Workbook

Sheet Introduction
B2: Variable renewable energy policy impact forecast tool (Beta version)
B4: © NewClimate Institute 2018
B5: This tool was developed under the project 817010, funded by the ClimateWorks Foundation.
B7: Purpose and use
B9: This shell tool allows the user to project the impact of variable renewable energy (VRE) policies/ policy packages based on a s-curve modelling logic. The policies included in this tool are: (1) Long-term vision & Mid-term strategic policies toward energy system transition (2) Market and non-market measures for system integration (3) Direct VRE support policies & barriers (4) Other policies with impact on growth of renewable energy share (e.g. energy efficiency) Optional: (5) Financial barriers The tool provides an interactive setting (i.e. Dashboard), where the user can estimate the share of VRE in electricity generation in a given country by adjusting the indicators describing the policies described above. The tool includes default input data for the G20 countries (excl. the European Union) , which allows for a quick estimation of policy impacts given current publicly available data in these countries. At the same time, the input data can be adapted based on the user's needs.
B11: Index
B13: 1 | C13: Instructions | G13: Provides instructions on the VRE policy modelling tool's dashboard including data input requirements
B14: 2 | C14: Dashboard | G14: Interactive VRE policy tool. Provides dynamic results based on user's selected data.
B15: 3 | C15: Results | G15: Results (i.e graph and time series) from data input in the Dashboard
B16: 4 | C16: Default Country Results | G16: Results overview of VRE share (historical and projected), incentive factor, ceiling factor, growth factor, barriers, and all input data for all default countries
B17: 5 | C17: Calculations
D18: Background Calculations | G18: Modelling calculations based on an s-curve logic
D19: Good Practice and No Policy curves for all countries | G19: Estimation of good practice and no policy curves for all countries
B20: 6 | C20: Default | G20: Provides input data for all default countries. It also contains VRE shares in 2030 for a selection of default countries as reported in recent literature.
D21: Default_InputData
D22: Default_RawData&Calc
D23: Historical VRE share
D24: Data Validation
B25: 7 | C25: In-depth calculations | G25: Estimation of "Direct support policies" and "Mid-term target" indicators based on in country data. It represents a more sophisticated approach to calculating the RE share development under support policies and mid-term targets.
D26: Direct Support policies
D27: Mid-term Target
B28: 8 | C28: Admin | G28: Contains lists and conversion factors
B29: 9 | C29: Styles | G29: Explains the styles used throughout the workbook

Sheet Instructions
B2: Instructions
C4: 1. Go to Dashboard.
C5: 2. Select a country to be evaluated from the drop-down menu under "Required input".
C6: 3. Select whether to be able to adjust the country input variables for projection manually or not under "Required input". Important notes: - The "No" option feeds default data for G20 countries (excl. the European Union). - If default data does not exist for the selected country, a manual input (i.e. Manually adjust variables for projection: "User-defined") is needed. - A manual input is available for ALL countries in the list (also for countries with available default data).
C7: Optional Inputs:
C8: Weights
C9: 4. Use default weight values OR manually input weights on yellow cells. Default weights exist based on expert knowledge. The user can choose to use those by clicking the button on top, or can choose to input their own values. User-defined values can be added on all cells in yellow. Notes: Default values can be restored by clicking the button. Clicking on the button will reset ALL values. When manually editing please always keep the sum of the weigths equal to 100%
C10: In-depth calculation for "Direct RE support policies" indicator
C11: 5. In-depth calculation for this indicator is enabled when choosing "yes" on their dropdown menu. A navigation button appears on the left when choosing "yes" and the values from the 'in-depth' calculation sheet is automatically fed. Use the navigation button to go to the sheet where data can be edited. Use the navigation button on the 'in-depth' calculation sheet to return to the Dashboard. The in-depth analysis is based on specific policies (i.e. Teneders and Feed it Tariffs with cap) and country data. Needed information: - scheme duration (beginning and final year), - capacity from each scheme and technology, - future electricity generation, and - technology assumptions (i.e. national capacity factors, costs, lifetime, etc.)
C12: In-depth calculation for "Mid-term target" indicator
C13: 6. In-depth calculation for this indicator is enabled when choosing "yes" on their dropdown menu. A navigation button appears on the left when choosing "yes" and the values from the 'in-depth' calculation sheet is automatically fed. Use the navigation button to go to the sheet where data can be edited. Use the navigation button on the 'in-depth' calculation sheet to return to the Dashboard. The in-depth calculation allows for estimation of how a country's mid-term target relates to the "good practice" and "no policy" curves for the selected country for the year of that target. Needed information: - country VRE target - year of VRE target
C14: Optional barriers
C15: 7. Select to add barriers if existing. Selecting "yes" will enable manual entry of financial barriers. For G20 countries (excl. EU), there is the option to use default data. Please select from the dropdown menu to use default data or not. As with other indicators, selecting to use default data disables manual adjustment of the slider.
C16: Reference Values
C17: 8. Select "yes" to be able to manually input reference values for the no policy and good practice curves. Default reference values exist based on literature and expert knowledge. The user can choose to use those by clicking the button on top, or can choose to input their oun values. User-defined values can be added on all cells in yellow. Note: clicking on the button will reset ALL values.
C18: s-curve settings:
C19: 9. To change the seeting that define the good practice and no policy s-curves (i.e. ceiling, pace of growth, and/or good practice country) go to "Background Calculations". Note: only cells in yellow can be adjusted.

Sheet Dashboard
A1: i | B1: Dashboard
C3: ="VRE share projection for "&SelectedCountry -> VRE share projection for United States of America | G3: Required Input | P3: Optional input - Reference Values
H5: Select a Country: | I5: United States of America | Q5: Manually edit reference values: | R5: No | S5: i
H6: =IF(AND(SelectManual="No",COUNTIF(CountriesDefault,SelectedCountry)=0), "WARNING: No default data exists for the selected country, please select manual input below","") -> 
H7: Input values used: | I7: Default | J7: i | P7: =IF(ManualEditRefVals_YesNo="Yes", "NOTE: Only cells in yellow can be manually edited.","") -> 
H9: =IF(AND(SelectManual="Default",COUNTIF(CountriesDefault,SelectedCountry)<>0), "NOTE: Sliders below are disabled and default values are displayed. To manually adjust please select: User-defined","") -> NOTE: Sliders below are disabled and default values are displayed. To manually adjust please select: User-defined
H11: =IF(AND(SelectManual="Default",COUNTIF(CountriesDefault,SelectedCountry)=0), "NOTE: No default values exist for this country. To manually adjust please select: User-defined","") ->  | K11: Assessment used for: Current policy | N11: Weight | P11: Reference values for: Good practice | S11: Reference values for: No policy
G13: =Default_InputData!$E$7 -> Policies affecting the ceiling of VRE share
G15: Long-term vision & strategic policies toward energy system transition | H15: =Default_InputData!$G$11 -> Long-term transition plan for the electricity system | I15: 22 | K15: =IF(AND(COUNTIF(CountriesDefault,SelectedCountry)=0,SelectManual="Default"),0, IF(AND(COUNTIF(CountriesDefault,SelectedCountry)<>0,SelectManual="Default"),INDEX(Default_InputData,MATCH(SelectedCountry_Data_Scenario,Default_CountryScenario,0),MATCH($H15,Default__InputData_Head,0)),$I15)) -> 0 | L15: =IF($K$15=0,"Policy cliff-edge after 2020 (RE strategy)", IF($K$15=25,"No 2050 plan but a post-2020 RE strategy exists", IF($K$15=50,"A binding strategy in place but lacks both ambition and concreteness", IF($K$15=75,"A binding and ambitious long-term transition strategy exists but lacks concreteness", IF($K$15=100,"A binding, ambitious and concrete strategy for power sector decarbonisation exists", "Please select a value"))))) -> Policy cliff-edge after 2020 (RE strategy) | M15: i | N15: 0.17 | P15: 100 | Q15: A binding, ambitious and concrete strategy for power sector decarbonisation exists | S15: 0 | T15: Policy cliff-edge after 2020 (RE strategy)
C16: Instructions | H16: =Default_InputData!$G$12 -> Long-term RE target ambition | I16: 96 | K16: =IF(AND(COUNTIF(CountriesDefault,SelectedCountry)=0,SelectManual="Default"),0, IF(AND(COUNTIF(CountriesDefault,SelectedCountry)<>0,SelectManual="Default"),INDEX(Default_InputData,MATCH(SelectedCountry_Data_Scenario,Default_CountryScenario,0),MATCH($H16,Default__InputData_Head,0)),$I16)) -> 37 | L16: =IF($K$16=0,"Equal or lower than reference development of 1% increase per year or no target", IF($K$16=100,"Target on trajectory towards 100% renewables in 2050","Selected value reflecting how close a country is of achieving 100% renewables in 2050 (i.e.100%) or not having a target (i.e.0%)")) -> Selected value reflecting how close a country is of achieving 100% renewables in 2050 (i.e.100%) or not having a target (i.e.0%) | N16: 0.17 | P16: 100 | Q16: Target on trajectory towards 100% renewables in 2050 | S16: 0 | T16: Equal or lower than reference development of 1% increase per year or no target
C18: To estimate the share of VRE in future years in a given country please: 1. Select a country from the drop-down menu. 2. Select manual or default variable adjustment. Manual adjustment enables sliders. 3. Select variables for assessment. NOTE: The graph is updated automatically when changing input values. It is also automatically repositioned to the top left corner when clicking through the sheet. Optional Inputs Weight: 4. Use default weight values OR manually input weights on yellow cells. Notes: Default values can be restored by clicking the button. When manually editing please always keep the sum of the weigths equal to 100% Optional barriers: 5. Select to add barriers if existing In-depth calculation for "Mid-term target" and "Direct support policies" indicators 6. In-depth calculation for these indicators in enabled when choosing "yes" on their dropdown menus. Use the button (appears when "yes" is selected) to navigate to the 'in-depth' calculation worksheets for each of the indicators. Reference Values: 7. Select "yes" to be able to manually input reference values for the no policy and good practice curves. Click the button to fill with default reference values. | G18: System integration: non-market measures | H18: =Default_InputData!$G$14 -> VRE in grid codes | I18: 100 | K18: =IF(AND(COUNTIF(CountriesDefault,SelectedCountry)=0,SelectManual="Default"),0, IF(AND(COUNTIF(CountriesDefault,SelectedCountry)<>0,SelectManual="Default"),INDEX(Default_InputData,MATCH(SelectedCountry_Data_Scenario,Default_CountryScenario,0),MATCH($H18,Default__InputData_Head,0)),$I18)) -> 100 | L18: =IF($K$18=0,"No VRE included in existing grid codes and/or no separate grid codes for VRE exist", IF($K$18=100,"VRE are included in existing grid codes or separate grid codes for VRE exist","")) -> VRE are included in existing grid codes or separate grid codes for VRE exist | N18: 0.11 | P18: 100 | Q18: Yes, VRE are included in existing grid codes and/ or separate grid codes for VRE exist | S18: 0 | T18: No, VRE are not included in existing grid codes and/ or separate grid codes for VRE do not exist
H19: =Default_InputData!$G$15 -> Support schemes for demand-side management (DSM) | I19: 100 | K19: =IF(AND(COUNTIF(CountriesDefault,SelectedCountry)=0,SelectManual="Default"),0, IF(AND(COUNTIF(CountriesDefault,SelectedCountry)<>0,SelectManual="Default"),INDEX(Default_InputData,MATCH(SelectedCountry_Data_Scenario,Default_CountryScenario,0),MATCH($H19,Default__InputData_Head,0)),$I19)) -> 100 | L19: =IF($K$19=0,"No policy present", IF($K$19=50,"Only market based OR regulatory DSM policies are present", IF($K$19=100,"Both market based AND regulatory DSM policies are present", "Please select between 0,50, and 100 according to the level of policies present"))) -> Both market based AND regulatory DSM policies are present | M19: i | N19: 0.11 | P19: 100 | Q19: Both market based and regulatory DSM policies are present | S19: 0 | T19: No policy present
H20: =Default_InputData!$G$16 -> Storage promotion & flexible supply-side policies | I20: 100 | K20: =IF(AND(COUNTIF(CountriesDefault,SelectedCountry)=0,SelectManual="Default"),0, IF(AND(COUNTIF(CountriesDefault,SelectedCountry)<>0,SelectManual="Default"),INDEX(Default_InputData,MATCH(SelectedCountry_Data_Scenario,Default_CountryScenario,0),MATCH($H20,Default__InputData_Head,0)),$I20)) -> 100 | L20: =IF($K$20=0,"No storage promotion or flexible supply-side policies exist", IF($K$20=100,"Storage promotion & flexible supply-side policies exist","")) -> Storage promotion & flexible supply-side policies exist | M20: i | N20: 0.11 | P20: 100 | Q20: Yes, a national policy, roadmap, strategic plan or guidance on the promotion of energy storage exists and has been (at least partially) implemented | S20: 0 | T20: No national policy, roadmap, strategic plan or guidance on the promotion of energy storage exists nor has been implemented.
G22: System integration: market measures | H22: =Default_InputData!$G$18 -> System integration: markets measures | I22: 25 | K22: =IF(AND(COUNTIF(CountriesDefault,SelectedCountry)=0,SelectManual="Default"),0, IF(AND(COUNTIF(CountriesDefault,SelectedCountry)<>0,SelectManual="Default"),INDEX(Default_InputData,MATCH(SelectedCountry_Data_Scenario,Default_CountryScenario,0),MATCH($H22,Default__InputData_Head,0)),$I22)) -> 100 | L22: =IF($K$22=0,"Neither flexible markets nor capacity mechanisms exist", IF($K$22=50,"Either flexible markets OR capacity mechanism exist", IF($K$22=100,"Both flexible markets AND capacity mechanism exist", ""))) -> Both flexible markets AND capacity mechanism exist | N22: 0.33 | P22: 100 | Q22: Flexible markets AND capacity mechanism | S22: 0 | T22: No flexible markets nor capacity mechanism
G23: =Default_InputData!$E$20 -> Policies affecting the pace of growth of VRE share
C25: Use in-depth calculations for "Mid-term target ambition"? | D25: No | E25: i | F25: =IF(YesNo_inDepth_MidTerm="no", "","i") ->  | G25: Mid-term strategic policies toward energy system transition | H25: =Default_InputData!G24 -> Mid-term RE target ambition | I25: 15 | K25: =IF(AND(COUNTIF(CountriesDefault,SelectedCountry)=0,SelectManual="Default"),0, IF(AND(COUNTIF(CountriesDefault,SelectedCountry)<>0,SelectManual="Default"),INDEX(Default_InputData,MATCH(SelectedCountry_Data_Scenario,Default_CountryScenario,0),MATCH($H25,Default__InputData_Head,0)),$I25)) -> 33 | L25: =IF(YesNo_inDepth_MidTerm="yes","Value from in-depth calculation sheet", IF($K$25=0,"", IF($K$25=100,"","Please select a value between 0-100, which represents how close a country is to achieve their 2030 target (100) or if this target will not be achieved (0)"))) -> Please select a value between 0-100, which represents how close a country is to achieve their 2030 target (100) or if this target will not be achieved (0) | N25: 0.1 | P25: 100 | Q25: 2030 target alligned 100% with good practice curve. The mid-term RE target level (in terms of %-share in total generation) equals the country-specific good practice scenario curve level. | S25: 0 | T25: 2030 target not alligned to good practice curve. The mid-term RE target level (in terms of %-share in total generation) equals the country-specific no-policy scenario curve level.
H26: =Default_InputData!G25 -> Policies to level the playing field: shift away from coal/oil | I26: 0 | K26: =IF(AND(COUNTIF(CountriesDefault,SelectedCountry)=0,SelectManual="Default"),0, IF(AND(COUNTIF(CountriesDefault,SelectedCountry)<>0,SelectManual="Default"),INDEX(Default_InputData,MATCH(SelectedCountry_Data_Scenario,Default_CountryScenario,0),MATCH($H26,Default__InputData_Head,0)),$I26)) -> 0 | L26: =IF($K$26=0,"A coal and/or oil phase-out date is agreed", IF($K$26=50,"No coal and/or oil phase out plan agreed yet but country has been vocal about its commitment to phase out (e.g. in international coalitions such as powering-past coal alliance)", IF($K$26=100,"A coal and/or oil phase-out date is agreed", "Please select between 0,50, and 100 according to the level of policies present"))) -> A coal and/or oil phase-out date is agreed | N26: 0.1 | P26: 100 | Q26: A coal and/or oil phase-out date is agreed and fixed | S26: 0 | T26: Continued emphasis on coal/oil-based generation
C28: Use in-depth calculations for "Direct support policies"? | D28: No | E28: i | F28: =IF(YesNo_InDepth_DirSupport="no","","i") ->  | G28: Direct RE support policies | H28: =Default_InputData!G27 -> Direct support policies (RPS and feed-in schemes, tax measures) | I28: 75 | K28: =IF(AND(COUNTIF(CountriesDefault,SelectedCountry)=0,SelectManual="Default"),0, IF(AND(COUNTIF(CountriesDefault,SelectedCountry)<>0,SelectManual="Default"),INDEX(Default_InputData,MATCH(SelectedCountry_Data_Scenario,Default_CountryScenario,0),MATCH($H28,Default__InputData_Head,0)),$I28)) -> 25 | L28: =IF(YesNo_InDepth_DirSupport="Yes","Value from in-depth calculation sheet", IF($K$28=0," No support for renewables / support announced but not yet implemented / "&"Support schemes in place do not necessarily provide sufficient incentives to level the playing field for renewables against fossil fuel-fired technologies (e.g. only tax breaks and accelerated depreciation without other policies) ", IF($K$28=25,"Only an initial policy support exists (i.e. support policies cover less than 3 technologies and/or policy support is technology neutral) but without complementary conducive financial support policies", IF($K$28=50,"Only an initial policy support exists (i.e. support policies cover less than 3 technologies and/or policy support is technology neutral) but with complementary conducive financial support policies", IF($K$28=75,"Either favourable support policies exist for only 3 renewable energy technologies with complementary financial support policies"&" Or support policies exist for all 4 renewables but without complementary financial support policies and measures to mitigate financial risks i.e. only 4 of the 5 policy support conditions are met", IF($K$28=100,"Favourable support policies exist for ALL 4 major renewables "&"(i.e. small and large scale solar, onshore and offshore wind) and are complemented by conducive financial support policies and measures to mitigate financial risks i.e. all 5 support conditions are in place", "")))))) -> Only an initial policy support exists (i.e. support policies cover less than 3 technologies and/or policy support is technology neutral) but without complementary conducive financial support policies | M28: =IF(YesNo_InDepth_DirSupport="yes","","i") -> i | N28: 0.2 | P28: 100 | Q28: Favourable support policies exist for ALL 4 major renewables (= small and large scale solar, onshore and offshore wind) and are complemented by conducive financial support policies and measures to mitigate financial risks i.e. all 5 support conditions are in place | S28: 0 | T28: No support for renewables / support announced but not yet implemented / Support schemes in place do not necessarily provide sufficient incentives to level the playing field for renewables against fossil fuel-fired technologies (e.g. only tax breaks and accelerated depreciation without other policies)
H29: =Default_InputData!G28 -> Reliability of RE policies | I29: 100 | K29: =IF(AND(COUNTIF(CountriesDefault,SelectedCountry)=0,SelectManual="Default"),0, IF(AND(COUNTIF(CountriesDefault,SelectedCountry)<>0,SelectManual="Default"),INDEX(Default_InputData,MATCH(SelectedCountry_Data_Scenario,Default_CountryScenario,0),MATCH($H29,Default__InputData_Head,0)),$I29)) -> 31 | L29: =IF(SelectManual="No", "Fluctuation of support measured by standard deviation of Climate Change Policy Index (CCPI) Energy Scores 2012-2018 on a 0 – 100 scale multiplied with CCPI Energy Scores 2012-2018", "Select a number representing the level of support (0: no support to 100:full support) for VRE policies in "&SelectedCountry) -> Select a number representing the level of support (0: no support to 100:full support) for VRE policies in United States of America | N29: 0.2 | P29: 100 | Q29: Favourable support for RE policies | S29: 0 | T29: No support for RE policies
H30: =Default_InputData!G29 -> Ensuring realization | I30: 0 | K30: =IF(AND(COUNTIF(CountriesDefault,SelectedCountry)=0,SelectManual="Default"),0, IF(AND(COUNTIF(CountriesDefault,SelectedCountry)<>0,SelectManual="Default"),INDEX(Default_InputData,MATCH(SelectedCountry_Data_Scenario,Default_CountryScenario,0),MATCH($H30,Default__InputData_Head,0)),$I30)) -> 100 | L30: =IF($K$30=0,"No actions for ensuring the projects are really implemented are in place", IF($K$30=25,"Please select 50 if at least one of the three actions for ensuring the projects are really implemented are in place", IF($K$30=50,"For auctions: one out of three actions for ensuring the projects are really implemented are in place", IF($K$30=75,"For auctions: two out of three actions for ensuring the projects are really implemented are in place", IF($K$30=100,"For auctions: all three actions for ensuring the projects are really implemented are in place", ""))))) -> For auctions: all three actions for ensuring the projects are really implemented are in place | M30: i | N30: 0.2 | P30: 100 | Q30: Ensuring the projects are really implemented E.g. for auctions: (1) Pre-defined realisation periods in policy schedules exist, (2) pre-qualification requirements can help identify “serious” bids and eliminate projects with low realisation probability (3) effective penalties for non-realisation. For FITs always given (generally do not have a similar need) | S30: 0 | T30: Projects are not implemented
G32: Energy efficiency policy | H32: =Default_InputData!G31 -> Energy efficiency policy | I32: 100 | K32: =IF(AND(COUNTIF(CountriesDefault,SelectedCountry)=0,SelectManual="Default"),0, IF(AND(COUNTIF(CountriesDefault,SelectedCountry)<>0,SelectManual="Default"),INDEX(Default_InputData,MATCH(SelectedCountry_Data_Scenario,Default_CountryScenario,0),MATCH($H32,Default__InputData_Head,0)),$I32)) -> 56 | L32: =IF(SelectManual="No", "Relative score based on 2018 ACEEE International Energy Efficiency Scorecard", "Values reflecting level of energy efficiency policy in "&SelectedCountry) -> Values reflecting level of energy efficiency policy in United States of America | N32: 0.2 | P32: 100 | Q32: No national efforts on energy efficiency or energy efficiency policies in the buildings, industry and transport sectors exist. National efforts consider the following policies (and metrics): energy productivity, change in energy intensity, efficiency in thermal power plants, mandatory saving goas, tax credits and loan programmes, energy efficiency spending, and energy efficiency research and development spending. | S32: 0 | T32: Maximum number of energy efficiency policies in the buildings, industry, and transport sectors are present in a country. Additionally, national efforts on energy efficiency exist. National efforts consider the following policies (and metrics): energy productivity, change in energy intensity, efficiency in thermal power plants, mandatory saving goas, tax credits and loan programmes, energy efficiency spending, and energy efficiency research and development spending.
G33: =Default_InputData!E35 -> Barriers to the pace of growth
G35: Long-term vision & strategic policies toward energy system transition | H35: =Default_InputData!G39 -> Fossil fuel production | I35: 100 | K35: =IF(AND(COUNTIF(CountriesDefault,SelectedCountry)=0,SelectManual="Default"),0, IF(AND(COUNTIF(CountriesDefault,SelectedCountry)<>0,SelectManual="Default"),INDEX(Default_InputData,MATCH(SelectedCountry_Data_Scenario,Default_CountryScenario,0),MATCH($H35,Default__InputData_Head,0)),$I35)) -> 100 | L35: %-self sufficiency in coal & gas in the power sector, production as share of total domestic use | N35: 0.05 | P35: 100 | Q35: High self suffiency The country produced more coal and gas than it consumed domestically in 2016. | S35: 0 | T35: No self sufficiency The country produced no coal or gas domestically in 2016.
G37: Direct RE support policies | H37: =Default_InputData!G41 -> Administrative procedures - Permit granting procedures | I37: 100 | K37: =IF(AND(COUNTIF(CountriesDefault,SelectedCountry)=0,SelectManual="Default"),0, IF(AND(COUNTIF(CountriesDefault,SelectedCountry)<>0,SelectManual="Default"),INDEX(Default_InputData,MATCH(SelectedCountry_Data_Scenario,Default_CountryScenario,0),MATCH($H37,Default__InputData_Head,0)),$I37)) -> 50 | L37: =IF($K$37=100,"No siting/zoning exist", IF($K$37=50,SelectedCountry&" has carried out strategic planning or produced zoning guidance to inform the commercial development of both either solar OR wind resources", IF($K$37=0,"Siting/zoning exist",""))) -> United States of America has carried out strategic planning or produced zoning guidance to inform the commercial development of both either solar OR wind resources | N37: 0.05 | P37: 100 | Q37: Bureaucratic and in transparent procedures are inhibitory | S37: 0 | T37: Streamlined procedures for permitting renewable energy projects speed up uptake
H38: =Default_InputData!G42 -> Administrative procedures - Siting / zoning | I38: 100 | K38: =IF(AND(COUNTIF(CountriesDefault,SelectedCountry)=0,SelectManual="Default"),0, IF(AND(COUNTIF(CountriesDefault,SelectedCountry)<>0,SelectManual="Default"),INDEX(Default_InputData,MATCH(SelectedCountry_Data_Scenario,Default_CountryScenario,0),MATCH($H38,Default__InputData_Head,0)),$I38)) -> 0 | L38: =IF($K$38=100,"Bureaucreatic and intransparent procedures are inhibitory", IF($K$38=50,"Standard administrative procedures or no information", IF($K$38=0,"Streamlined procedures for permitting renewable energy projects speed up uptake",""))) -> Streamlined procedures for permitting renewable energy projects speed up uptake | N38: 0.05 | P38: 100 | Q38: The country has carried out NO strategic planning or produced zoning guidance to inform the commercial development of solar and wind resources. | S38: 0 | T38: The country has carried out strategic planning or produced zoning guidance to inform the commercial development of both solar AND wind resources.
H40: =Default_InputData!E45 -> Optional barriers
H42: Enable financial & non-financial determinants and macroeconomic fundamentals as a barrier? | I42: Yes | J42: i | K42: General investment conditions consider the following determinants: 1. Non-financial determinants: This set of indicators reflects the safety of investments in a country. A high score reflects the ease of investing in a country. 2. Financial determinants: Financial determinants facilitate investor confidence towards return on investment in a country. 3. Macroeconomic fundamentals: These variables provide some resilience to a country from external shocks; especially so in emerging markets.
H44: Use default? | I44: Yes | J44: =IF(AND(ManualEditBarrier_YesNo="Yes",I44="Yes",COUNTIF(CountriesDefault,SelectedCountry)<>0), "NOTE: The slider below is disabled and the default value is displayed. To manually adjust please select: No","") -> NOTE: The slider below is disabled and the default value is displayed. To manually adjust please select: No
H46: =Default_InputData!G47 -> Financial & non-financial determinants and macroeconomic fundamentals | I46: 0 | K46: =IF(ManualEditBarrier_YesNo="No",0, IF(AND(COUNTIF(CountriesDefault,SelectedCountry)<>0,$I$44="Yes"),INDEX(Default_InputData,MATCH(SelectedCountry_Data_Scenario,Default_CountryScenario,0),MATCH($H46,Default__InputData_Head,0)), IF(AND(COUNTIF(CountriesDefault,SelectedCountry)<>0,$I$44="No"),OptionalBarrier, IF(COUNTIF(CountriesDefault,SelectedCountry)=0,OptionalBarrier)))) -> 20 | L46: =IF($I$46="Yes","Based on the Allianz Climate and Energy Index 2018","") ->  | M46: i | N46: 0.05 | P46: 100 | Q46: Bad general investment conditions based on macro economic and governance indicators | S46: 0 | T46: Optimal general investment conditions based on macro economic and governance indicators
L69: `

Sheet Results
B2: Results | G2: =SelectedDefaultCountry -> United States of America
C5: ="VRE share projection for "&SelectedCountry -> VRE share projection for United States of America
B35: Historical and projected share of VRE* in total electricity generation
B36: *VRE includes wind and solar. Historical: 2000-2015, Projected: 2016-2050
D37: 2000 | E37: 2001 | F37: 2002 | G37: 2003 | H37: 2004 | I37: 2005 | J37: 2006 | K37: 2007 | L37: 2008 | M37: 2009 | N37: 2010 | O37: 2011 | P37: 2012 | Q37: 2013 | R37: 2014 | S37: 2015 | T37: 2016 | U37: 2017 | V37: 2018 | W37: 2019 | X37: 2020 | Y37: 2021 | Z37: 2022 | AA37: 2023 | AB37: 2024 | AC37: 2025 | AD37: 2026 | AE37: 2027 | AF37: 2028 | AG37: 2029 | AH37: 2030 | AI37: 2031 | AJ37: 2032 | AK37: 2033 | AL37: 2034 | AM37: 2035 | AN37: 2036 | AO37: 2037 | AP37: 2038 | AQ37: 2039 | AR37: 2040 | AS37: 2041 | AT37: 2042 | AU37: 2043 | AV37: 2044 | AW37: 2045 | AX37: 2046 | AY37: 2047 | AZ37: 2048 | BA37: 2049 | BB37: 2050 | BC37: ShareVRE_Year
B38: ꟷ | C38: Good practice | D38: =D$39 -> 0.001579528476 | E38: 0.001977424898 | F38: 0.002803745977 | G38: 0.002996066984 | H38: 0.003677846136 | I38: 0.004451043094 | J38: 0.006541035801 | K38: 0.008389850402 | L38: 0.01330607095 | M38: 0.01842346284 | N38: 0.02275648585 | O38: 0.0293690131 | P38: 0.0356055093 | Q38: 0.04328902847 | R38: 0.04852792052 | S38: 0.05320559603 | T38: =IF($S$38>Threshold,INDEX(y_ideal,MATCH(INDEX(x_adj,MATCH($S38,y_ideal,1))+(T$37-$S$37),x_adj,0)),INDEX(y_ideal,MATCH(INDEX(x_adj,MATCH(Threshold,y_ideal,1))+(T$37-$S$37),x_adj,0))) -> 0.05320567305 | U38: 0.06231757562 | V38: 0.07281429007 | W38: 0.08484382089 | X38: 0.098548458 | Y38: 0.114056336 | Z38: 0.1314711407 | AA38: 0.150860342 | AB38: 0.1722427198 | AC38: 0.1955763851 | AD38: 0.2207488783 | AE38: 0.2475711452 | AF38: 0.2757771004 | AG38: 0.3050300044 | AH38: 0.3349359989 | AI38: 0.3650640011 | AJ38: 0.3949699956 | AK38: 0.4242228996 | AL38: 0.4524288548 | AM38: 0.4792511217 | AN38: 0.5044236149 | AO38: 0.5277572802 | AP38: 0.549139658 | AQ38: 0.5685288593 | AR38: 0.585943664 | AS38: 0.601451542 | AT38: 0.6151561791 | AU38: 0.6271857099 | AV38: 0.6376824244 | AW38: 0.646794327 | AX38: 0.6546686238 | AY38: 0.6614470095 | AZ38: 0.6672625102 | BA38: 0.672237595 | BB38: 0.6764832672
B39: ꟷ | C39: Current policy | D39: =IF(COUNTIF(HistVREShare_Country,SelectedCountry)>0,INDEX(HistVREShare_Data,MATCH(SelectedCountry,HistVREShare_Country,0),MATCH(D$37,HistVREShare_Year,0)),INDEX(HistVREShare_Data,MATCH("Other",HistVREShare_Country,0),MATCH(D$37,HistVREShare_Year,0))) -> 0.001579528476 | E39: 0.001977424898 | F39: 0.002803745977 | G39: 0.002996066984 | H39: 0.003677846136 | I39: 0.004451043094 | J39: 0.006541035801 | K39: 0.008389850402 | L39: 0.01330607095 | M39: 0.01842346284 | N39: 0.02275648585 | O39: 0.0293690131 | P39: 0.0356055093 | Q39: 0.04328902847 | R39: 0.04852792052 | S39: 0.05320559603 | T39: =IF($S$39>Threshold,INDEX(y_fact,MATCH(INDEX(x_adj,MATCH($S39,y_fact,1))+(T$37-$S$37),x_adj,0)),INDEX(y_fact,MATCH(INDEX(x_adj,MATCH(Threshold,y_fact,1))+(T$37-$S$37),x_adj,0))) -> 0.05599051812 | U39: 0.06153191111 | V39: 0.0675522508 | W39: 0.0740789256 | X39: 0.08113809608 | Y39: 0.08875404183 | Z39: 0.09694842968 | AA39: 0.1057395128 | AB39: 0.1151412771 | AC39: 0.1251625569 | AD39: 0.1358061507 | AE39: 0.1470679732 | AF39: 0.1589362867 | AG39: 0.1713910584 | AH39: 0.1844034929 | AI39: 0.1979357869 | AJ39: 0.2119411467 | AK39: 0.2263641003 | AL39: 0.2411411221 | AM39: 0.2562015687 | AN39: 0.2714689087 | AO39: 0.2868622052 | AP39: 0.3022977948 | AQ39: 0.3176910913 | AR39: 0.3329584313 | AS39: 0.3480188779 | AT39: 0.3627958997 | AU39: 0.3772188533 | AV39: 0.3912242131 | AW39: 0.4047565071 | AX39: 0.4177689416 | AY39: 0.4302237133 | AZ39: 0.4420920268 | BA39: 0.4533538493 | BB39: 0.4639974431 | BC39: ShareVRE_Data
B40: ꟷ | C40: No policy | D40: =D$39 -> 0.001579528476 | E40: 0.001977424898 | F40: 0.002803745977 | G40: 0.002996066984 | H40: 0.003677846136 | I40: 0.004451043094 | J40: 0.006541035801 | K40: 0.008389850402 | L40: 0.01330607095 | M40: 0.01842346284 | N40: 0.02275648585 | O40: 0.0293690131 | P40: 0.0356055093 | Q40: 0.04328902847 | R40: 0.04852792052 | S40: 0.05320559603 | T40: =IF($S$40>Threshold,INDEX(y_0,MATCH(INDEX(x_adj,MATCH($S40,y_0,1))+(T$37-$S$37),x_adj,0)),INDEX(y_0,MATCH(INDEX(x_adj,MATCH(Threshold,y_0,1))+(T$37-$S$37),x_adj,0))) -> 0.05376397667 | U40: 0.05634477459 | V40: 0.05901976333 | W40: 0.06178954268 | X40: 0.06465443228 | Y40: 0.06761444998 | Z40: 0.07066929104 | AA40: 0.0738183085 | AB40: 0.07706049511 | AC40: 0.08039446719 | AD40: 0.08381845076 | AE40: 0.08733027033 | AF40: 0.0909273407 | AG40: 0.09460666212 | AH40: 0.09836481909 | AI40: 0.1021979831 | AJ40: 0.1061019194 | AK40: 0.1100719982 | AL40: 0.11410321 | AM40: 0.1181901859 | AN40: 0.1223272209 | AO40: 0.126508303 | AP40: 0.1307271447 | AQ40: 0.1349772194 | AR40: 0.1392517997 | AS40: 0.1435439995 | AT40: 0.1478468175 | AU40: 0.1521531825 | AV40: 0.1564560005 | AW40: 0.1607482003 | AX40: 0.1650227806 | AY40: 0.1692728553 | AZ40: 0.173491697 | BA40: 0.1776727791 | BB40: 0.1818098141 | BC40: Results_All3_data

Sheet Default Country Results
B2: Default Country Results | G2: =SelectedDefaultCountry -> United States of America
C4: Select a default country | D4: United States of America
C11: Input Overview
D12: Policies affecting the ceiling of VRE share | AD12: Policies afecting the pace of growth of VRE share | AY12: Barriers to the pace of growth | BH12: Optional barrier
B18: Time series
E20: Overall | F20: Optional | I20: 2000 | J20: 2001 | K20: 2002 | L20: 2003 | M20: 2004 | N20: 2005 | O20: 2006 | P20: 2007 | Q20: 2008 | R20: 2009 | S20: 2010 | T20: 2011 | U20: 2012 | V20: 2013 | W20: 2014 | X20: 2015 | Y20: 2016 | Z20: 2017 | AA20: 2018 | AB20: 2019 | AC20: 2020 | AD20: 2021 | AE20: 2022 | AF20: 2023 | AG20: 2024 | AH20: 2025 | AI20: 2026 | AJ20: 2027 | AK20: 2028 | AL20: 2029 | AM20: 2030 | AN20: 2031 | AO20: 2032 | AP20: 2033 | AQ20: 2034 | AR20: 2035 | AS20: 2036 | AT20: 2037 | AU20: 2038 | AV20: 2039 | AW20: 2040 | AX20: 2041 | AY20: 2042 | AZ20: 2043 | BA20: 2044 | BB20: 2045 | BC20: 2046 | BD20: 2047 | BE20: 2048 | BF20: 2049 | BG20: 2050 | BH20: YearEVs
C21: Country | D21: Ceiling factor | E21: Growth factor | F21: Barrier factor | G21: Incentive factor | I21: VRE share | BQ21: Sort values | BR21: Incentive factor | BS21: Country | BT21: Total Countries (including repeated) | BU21: =SUM(IF((LEN(Default_CountryScenario)>0)*(Default_CountryScenario<>0),1)) -> 19
D22: % | E22: % | F22: % | G22: % | I22: % | J22: % | K22: % | L22: % | M22: % | N22: % | O22: % | P22: % | Q22: % | R22: % | S22: % | T22: % | U22: % | V22: % | W22: % | X22: % | Y22: % | Z22: % | AA22: % | AB22: % | AC22: % | AD22: % | AE22: % | AF22: % | AG22: % | AH22: % | AI22: % | AJ22: % | AK22: % | AL22: % | AM22: % | AN22: % | AO22: % | AP22: % | AQ22: % | AR22: % | AS22: % | AT22: % | AU22: % | AV22: % | AW22: % | AX22: % | AY22: % | AZ22: % | BA22: % | BB22: % | BC22: % | BD22: % | BE22: % | BF22: % | BG22: % | BQ22: All countries
C23: =Default_CountryAll -> Argentina | D23: 0.3208 | E23: 0.32025 | F23: 0.0435 | G23: 0.27675 | H23: Factors_1stRow | I23: 0.0003936565066 | J23: 0.0005437496532 | K23: 0.0008643861082 | L23: 0.0008475497121 | M23: 0.000718813957 | N23: 0.0007109611246 | O23: 0.0006550075326 | P23: 0.0005678908905 | Q23: 0.0003453833755 | R23: 0.0002952780125 | S23: 0.0001995800835 | T23: 0.0002161244259 | U23: 0.002779682512 | V23: 0.00342253987 | W23: 0.004596719318 | X23: 0.004235738874 | Y23: 0.01031373341 | Z23: 0.01125077967 | AA23: 0.01227046144 | AB23: 0.01337959441 | AC23: 0.0145854678 | AD23: 0.0158958604 | AE23: 0.01731905358 | AF23: 0.01886384041 | AG23: 0.02053952983 | AH23: 0.0223559448 | AI23: 0.02432341298 | AJ23: 0.02645274862 | AK23: 0.02875522399 | AL23: 0.03124252871 | AM23: 0.03392671517 | AN23: 0.03682012818 | AO23: 0.03993531705 | AP23: 0.04328492839 | AQ23: 0.04688157802 | AR23: 0.05073770069 | AS23: 0.05486537683 | AT23: 0.05927613601 | AU23: 0.06398073763 | AV23: 0.06898893004 | AW23: 0.07430919087 | AX23: 0.07994845197 | AY23: 0.08591181419 | AZ23: 0.09220225846 | BA23: 0.09882036104 | BB23: 0.1057640223 | BC23: 0.1130282191 | BD23: 0.1206047925 | BE23: 0.1284822818 | BF23: 0.1366458161 | BG23: 0.1450770746 | BH23: Default_1stRow | BQ23: 1 | BR23: =LARGE(IF(ISNUMBER(OutputIncentiveDefault),OutputIncentiveDefault,""),BQ23) -> 0.794975 | BS23: =INDEX($C$23:$C$41,MATCH(BR23,OutputIncentiveDefault,0)) -> France
C24: Australia | D24: 0.385 | E24: 0.378 | F24: 0.0055 | G24: 0.3725 | I24: 0.0004574391034 | J24: 0.001132588679 | K24: 0.001820756626 | L24: 0.003454435005 | M24: 0.003391568403 | N24: 0.004221645128 | O24: 0.007751571584 | P24: 0.01119438305 | Q24: 0.01324704924 | R24: 0.01605836474 | S24: 0.02153879041 | T24: 0.02945997919 | U24: 0.03705047155 | V24: 0.04587395194 | W24: 0.05764380638 | X24: 0.06561068869 | Y24: 0.06701161206 | Z24: 0.07293954286 | AA24: 0.07928443072 | AB24: 0.08605660459 | AC24: 0.09326326004 | AD24: 0.1009079126 | AE24: 0.1089898643 | AF24: 0.1175037061 | AG24: 0.1264388816 | AH24: 0.13577934 | AI24: 0.145503305 | AJ24: 0.1555831841 | AK24: 0.1659856421 | AL24: 0.1766718508 | AM24: 0.1875979248 | AN24: 0.1987155387 | AO24: 0.2099727131 | AP24: 0.2213147459 | AQ24: 0.2326852541 | AR24: 0.2440272869 | AS24: 0.2552844613 | AT24: 0.2664020752 | AU24: 0.2773281492 | AV24: 0.2880143579 | AW24: 0.2984168159 | AX24: 0.308496695 | AY24: 0.31822066 | AZ24: 0.3275611184 | BA24: 0.3364962939 | BB24: 0.3450101357 | BC24: 0.3530920874 | BD24: 0.36073674 | BE24: 0.3679433954 | BF24: 0.3747155693 | BG24: 0.3810604571 | BQ24: =IF(BQ23<$BU$21,BQ23+1,"") -> 2 | BR24: 0.656 | BS24: India
C25: Brazil | D25: 0.5975 | E25: 0.5445 | F25: 0.0315 | G25: 0.513 | I25: 5.732137227e-06 | J25: 0.0001065423064 | K25: 0.000176468376 | L25: 0.0001674264902 | M25: 0.0001574384506 | N25: 0.0002307503356 | O25: 0.000565177888 | P25: 0.001448959557 | Q25: 0.001807513815 | R25: 0.002655962722 | S25: 0.004221078246 | T25: 0.005086909998 | U25: 0.009138220562 | V25: 0.01152870971 | W25: 0.02070088766 | X25: 0.03728174235 | Y25: 0.04084030502 | Z25: 0.0454540529 | AA25: 0.05053614277 | AB25: 0.05612183434 | AC25: 0.06224623064 | AD25: 0.06894354024 | AE25: 0.07624619669 | AF25: 0.08418383615 | AG25: 0.09278214321 | AH25: 0.1020615865 | AI25: 0.1120360785 | AJ25: 0.1227116096 | AK25: 0.1340849201 | AL25: 0.146142288 | AM25: 0.1588585204 | AN25: 0.17219624 | AO25: 0.1861055561 | AP25: 0.2005241949 | AQ25: 0.2153781436 | AR25: 0.2305828301 | AS25: 0.2460448218 | AT25: 0.261663986 | AU25: 0.277336014 | AV25: 0.2929551782 | AW25: 0.3084171699 | AX25: 0.3236218564 | AY25: 0.3384758051 | AZ25: 0.3528944439 | BA25: 0.36680376 | BB25: 0.3801414796 | BC25: 0.392857712 | BD25: 0.4049150799 | BE25: 0.4162883904 | BF25: 0.4269639215 | BG25: 0.4369384135 | BQ25: 3 | BR25: 0.6371875 | BS25: Germany
C26: Canada | D26: 0.58 | E26: 0.38325 | F26: 0.004 | G26: 0.37925 | I26: 0.0004623544409 | J26: 0.0006036149073 | K26: 0.0007152861644 | L26: 0.00144010096 | M26: 0.001612029373 | N26: 0.002552940475 | O26: 0.004082013444 | P26: 0.004824186783 | Q26: 0.006049490944 | R26: 0.01106798695 | S26: 0.01485976808 | T26: 0.01697710087 | U26: 0.0192314063 | V26: 0.02951815726 | W26: 0.03727273277 | X26: 0.04392135143 | Y26: 0.04535743429 | Z26: 0.04972624871 | AA26: 0.05446876653 | AB26: 0.0596076865 | AC26: 0.06516528162 | AD26: 0.0711629869 | AE26: 0.07762092654 | AF26: 0.08455738293 | AG26: 0.09198821309 | AH26: 0.09992622204 | AI26: 0.1083805073 | AJ26: 0.1173557928 | AK26: 0.1268517765 | AL26: 0.1368625186 | AM26: 0.1473759022 | AN26: 0.1583732001 | AO26: 0.169828781 | AP26: 0.1817099874 | AQ26: 0.1939772107 | AR26: 0.2065841847 | AS26: 0.219478505 | AT26: 0.2326023726 | AU26: 0.2458935449 | AV26: 0.259286466 | AW26: 0.272713534 | AX26: 0.2861064551 | AY26: 0.2993976274 | AZ26: 0.312521495 | BA26: 0.3254158153 | BB26: 0.3380227893 | BC26: 0.3502900126 | BD26: 0.362171219 | BE26: 0.3736267999 | BF26: 0.3846240978 | BG26: 0.3951374814 | BQ26: 4 | BR26: 0.629875 | BS26: China
C27: China | D27: 0.4133 | E27: 0.648375 | F27: 0.0185 | G27: 0.629875 | I27: 0.000469854795 | J27: 0.0005266893053 | K27: 0.0005567767162 | L27: 0.0005772587276 | M27: 0.0006389828555 | N27: 0.0008446425586 | O27: 0.001382785627 | P27: 0.001774641278 | Q27: 0.004312432132 | R27: 0.007315896024 | S27: 0.01079837911 | T27: 0.0155033273 | U27: 0.02053009068 | V27: 0.02881855406 | W27: 0.03270655492 | X27: 0.03945692081 | Y27: 0.04354036159 | Z27: 0.04893861209 | AA27: 0.0549190054 | AB27: 0.06152223305 | AC27: 0.06878633365 | AD27: 0.07674511517 | AE27: 0.08542636888 | AF27: 0.09484992399 | AG27: 0.105025621 | AH27: 0.1159513124 | AI27: 0.1276110281 | AJ27: 0.139973465 | AK27: 0.1529909702 | AL27: 0.1665991797 | AM27: 0.1807174453 | AN27: 0.1952501318 | AO27: 0.2100887957 | AP27: 0.2251151738 | AQ27: 0.2402048262 | AR27: 0.2552312043 | AS27: 0.2700698682 | AT27: 0.2846025547 | AU27: 0.2987208203 | AV27: 0.3123290298 | AW27: 0.325346535 | AX27: 0.3377089719 | AY27: 0.3493686876 | AZ27: 0.360294379 | BA27: 0.370470076 | BB27: 0.3798936311 | BC27: 0.3885748848 | BD27: 0.3965336663 | BE27: 0.4037977669 | BF27: 0.4104009946 | BG27: 0.4163813879 | BQ27: 5 | BR27: 0.59184 | BS27: Italy
C28: France | D28: 0.805 | E28: 0.801975 | F28: 0.007 | G28: 0.794975 | I28: 9.903136118e-05 | J28: 0.0002512438404 | K28: 0.0004913028557 | L28: 0.0007052500165 | M28: 0.00106029435 | N28: 0.001703401551 | O28: 0.003852969016 | P28: 0.007246775026 | Q28: 0.01007910764 | R28: 0.01522887573 | S28: 0.01871640702 | T28: 0.0252361536 | U28: 0.03382921154 | V28: 0.03651869631 | W28: 0.04148242075 | X28: 0.05042927944 | Y28: 0.05641284467 | Z28: 0.06452025047 | AA28: 0.0736411096 | AB28: 0.08385738342 | AC28: 0.09524479345 | AD28: 0.1078685959 | AE28: 0.1217787512 | AF28: 0.1370046828 | AG28: 0.1535499401 | AH28: 0.1713871941 | AI28: 0.1904540981 | AJ28: 0.2106505934 | AK28: 0.231838216 | AL28: 0.2538418427 | AM28: 0.2764540928 | AN28: 0.2994423074 | AO28: 0.3225576926 | AP28: 0.3455459072 | AQ28: 0.3681581573 | AR28: 0.390161784 | AS28: 0.4113494066 | AT28: 0.4315459019 | AU28: 0.4506128059 | AV28: 0.4684500599 | AW28: 0.4849953172 | AX28: 0.5002212488 | AY28: 0.5141314041 | AZ28: 0.5267552066 | BA28: 0.5381426166 | BB28: 0.5483588904 | BC28: 0.5574797495 | BD28: 0.5655871553 | BE28: 0.5727657824 | BF28: 0.5791002058 | BG28: 0.5846727613 | BQ28: 6 | BR28: 0.575196 | BS28: United Kingdom
C29: Germany | D29: 0.9025 | E29: 0.6496875 | F29: 0.0125 | G29: 0.6371875 | I29: 0.01644554641 | J29: 0.01816850723 | K29: 0.02756918932 | L29: 0.03152071809 | M29: 0.04265388108 | N29: 0.04629912309 | O29: 0.05204415139 | P29: 0.06752485154 | Q29: 0.07092594344 | R29: 0.07666712997 | S29: 0.0790350201 | T29: 0.1127780669 | U29: 0.1235333917 | V29: 0.1306875005 | W29: 0.1501966434 | X29: 0.1839907515 | Y29: 0.1980781362 | Z29: 0.2166546875 | AA29: 0.2360849278 | AB29: 0.2562527992 | AC29: 0.2770203269 | AD29: 0.2982307833 | AE29: 0.3197130497 | AF29: 0.3412869503 | AG29: 0.3627692167 | AH29: 0.3839796731 | AI29: 0.4047472008 | AJ29: 0.4249150722 | AK29: 0.4443453125 | AL29: 0.4629218638 | AM29: 0.4805524455 | AN29: 0.4971691336 | AO29: 0.5127277827 | AP29: 0.5272064917 | AQ29: 0.5406033538 | AR29: 0.5529337432 | AS29: 0.5642273735 | AT29: 0.5745253292 | AU29: 0.5838772272 | AV29: 0.5923386227 | AW29: 0.5999687262 | AX29: 0.6068284668 | AY29: 0.6129789036 | AZ29: 0.6184799717 | BA29: 0.6233895293 | BB29: 0.6277626711 | BC29: 0.6316512668 | BD29: 0.6351036843 | BE29: 0.6381646611 | BF29: 0.6408752914 | BG29: 0.6432730989 | BQ29: 7 | BR29: 0.5676 | BS29: Mexico
C30: India | D30: 0.4569 | E30: 0.693 | F30: 0.037 | G30: 0.656 | I30: 0.002959514682 | J30: 0.003813516817 | K30: 0.004406209971 | L30: 0.005520583495 | M30: 0.006568799882 | N30: 0.008682942643 | O30: 0.01262109322 | P30: 0.01439475256 | Q30: 0.01642251168 | R30: 0.02057064127 | S30: 0.02016476562 | T30: 0.02367485072 | U30: 0.02881579146 | V30: 0.03130086485 | W30: 0.0333745422 | X30: 0.0379823277 | Y30: 0.03813636021 | Z30: 0.04306777298 | AA30: 0.04856721145 | AB30: 0.05468155525 | AC30: 0.06145670718 | AD30: 0.06893613112 | AE30: 0.0771591092 | AF30: 0.08615873854 | AG30: 0.09595971715 | AH30: 0.106576003 | AI30: 0.1180084679 | AJ30: 0.130242706 | AK30: 0.1432471836 | AL30: 0.1569719381 | AM30: 0.1713480239 | AN30: 0.1862878758 | AO30: 0.2016866982 | AP30: 0.2174249061 | AQ30: 0.2333715382 | AR30: 0.2493884618 | AS30: 0.2653350939 | AT30: 0.2810733018 | AU30: 0.2964721242 | AV30: 0.3114119761 | AW30: 0.3257880619 | AX30: 0.3395128164 | AY30: 0.352517294 | AZ30: 0.3647515321 | BA30: 0.376183997 | BB30: 0.3868002829 | BC30: 0.3966012615 | BD30: 0.4056008908 | BE30: 0.4138238689 | BF30: 0.4213032928 | BG30: 0.4280784447 | BQ30: 8 | BR30: 0.513 | BS30: Brazil
C31: Indonesia | D31: 0.1848 | E31: 0.42 | F31: 0.0345 | G31: 0.3855 | I31: 0 | J31: 0 | K31: 0 | L31: 0 | M31: 0 | N31: 0 | O31: 0 | P31: 0 | Q31: 0 | R31: 2.551443479e-05 | S31: 2.945421343e-05 | T31: 3.2712344e-05 | U31: 3.99940009e-05 | V31: 2.3146005e-05 | W31: 3.071846092e-05 | X31: 3.846416849e-05 | Y31: 0.01087073337 | Z31: 0.01199705926 | AA31: 0.01323583017 | AB31: 0.01459735288 | AC31: 0.01609268173 | AD31: 0.01773362978 | AE31: 0.01953276918 | AF31: 0.02150341813 | AG31: 0.02365961116 | AH31: 0.02601604947 | AI31: 0.02858802749 | AJ31: 0.0313913317 | AK31: 0.0344421079 | AL31: 0.03775669276 | AM31: 0.04135140634 | AN31: 0.04524230243 | AO31: 0.04944487498 | AP31: 0.05397372002 | AQ31: 0.05884215452 | AR31: 0.06406179605 | AS31: 0.06964210982 | AT31: 0.07558993312 | AU31: 0.0819089905 | AV31: 0.08859941677 | AW31: 0.09565730795 | AX31: 0.1030743233 | AY31: 0.1108373627 | AZ31: 0.1189283452 | BA31: 0.1273241111 | BB31: 0.1359964684 | BC31: 0.1449123982 | BD31: 0.1540344261 | BE31: 0.1633211575 | BF31: 0.1727279669 | BG31: 0.1822078173 | BQ31: 9 | BR31: 0.506981 | BS31: Japan
C32: Italy | D32: 0.7631 | E32: 0.60984 | F32: 0.018 | G32: 0.59184 | I32: 0.002152322174 | J32: 0.004406128859 | K32: 0.005134543044 | L32: 0.005176786201 | M32: 0.006342616228 | N32: 0.008000943269 | O32: 0.009769541521 | P32: 0.01321125682 | Q32: 0.01611982381 | R32: 0.0250368495 | S32: 0.03692435394 | T32: 0.06869162609 | U32: 0.1085409253 | V32: 0.1267275424 | W32: 0.1347782939 | X32: 0.1342013482 | Y32: 0.1410456082 | Z32: 0.1550607892 | AA32: 0.1699587112 | AB32: 0.1856975626 | AC32: 0.2022167987 | AD32: 0.2194369361 | AE32: 0.237260207 | AF32: 0.2555721455 | AG32: 0.2742441025 | AH32: 0.2931366054 | AI32: 0.3121033946 | AJ32: 0.3309958975 | AK32: 0.3496678545 | AL32: 0.367979793 | AM32: 0.3858030639 | AN32: 0.4030232013 | AO32: 0.4195424374 | AP32: 0.4352812888 | AQ32: 0.4501792108 | AR32: 0.4641943918 | AS32: 0.4773028132 | AT32: 0.4894967356 | AU32: 0.5007827851 | AV32: 0.5111798072 | AW32: 0.5207166396 | AX32: 0.5294299277 | AY32: 0.5373620747 | AZ32: 0.5445593919 | BA32: 0.5510704851 | BB32: 0.5569448917 | BC32: 0.5622319672 | BD32: 0.5669800048 | BE32: 0.5712355674 | BF32: 0.5750430041 | BG32: 0.5784441243 | BQ32: 10 | BR32: 0.505984 | BS32: South Korea
C33: Japan | D33: 0.2874 | E33: 0.513981 | F33: 0.007 | G33: 0.506981 | I33: 0.0004395384185 | J33: 0.0007669478168 | K33: 0.0009984061361 | L33: 0.001601716614 | M33: 0.002239528746 | N33: 0.002877035972 | O33: 0.003514465079 | P33: 0.004045839913 | Q33: 0.004732674669 | R33: 0.005945709132 | S33: 0.006697544085 | T33: 0.00900116913 | U33: 0.01095474983 | V33: 0.01692046902 | W33: 0.02684886801 | X33: 0.0387258437 | Y33: 0.03938413667 | Z33: 0.04370403396 | AA33: 0.04843665593 | AB33: 0.05360776323 | AC33: 0.05924170735 | AD33: 0.06536065624 | AE33: 0.07198372304 | AF33: 0.07912601498 | AG33: 0.08679762866 | AH33: 0.09500262949 | AI33: 0.1037380633 | AJ33: 0.1129930582 | AK33: 0.1227480821 | AL33: 0.1329744229 | AM33: 0.1436339575 | AN33: 0.1546792648 | AO33: 0.1660541207 | AP33: 0.1776943919 | AQ33: 0.189529314 | AR33: 0.2014831118 | AS33: 0.2134768882 | AT33: 0.225430686 | AU33: 0.2372656081 | AV33: 0.2489058793 | AW33: 0.2602807352 | AX33: 0.2713260425 | AY33: 0.2819855771 | AZ33: 0.2922119179 | BA33: 0.3019669418 | BB33: 0.3112219367 | BC33: 0.3199573705 | BD33: 0.3281623713 | BE33: 0.335833985 | BF33: 0.342976277 | BG33: 0.3495993438 | BQ33: 11 | BR33: 0.480275 | BS33: South Africa
C34: South Korea | D34: 0.3101 | E34: 0.515984 | F34: 0.01 | G34: 0.505984 | I34: 7.624962742e-05 | J34: 6.146142325e-05 | K34: 6.670628616e-05 | L34: 9.615636774e-05 | M34: 0.0001554777258 | N34: 0.0003738327395 | O34: 0.0006711909911 | P34: 0.001047181883 | Q34: 0.00162410798 | R34: 0.002769684464 | S34: 0.003198998224 | T34: 0.003422728068 | U34: 0.00380460885 | V34: 0.005119996431 | W34: 0.00678371615 | X34: 0.009684052549 | Y34: 0.0108552832 | Z34: 0.01214664655 | AA34: 0.01358658121 | AB34: 0.01519091869 | AC34: 0.0169768647 | AD34: 0.01896303985 | AE34: 0.02116949925 | AF34: 0.02361772425 | AG34: 0.02633057837 | AH34: 0.02933221835 | AI34: 0.03264795037 | AJ34: 0.03630402067 | AK34: 0.04032732959 | AL34: 0.04474505817 | AM34: 0.04958419782 | AN34: 0.05487097564 | AO34: 0.06063017172 | AP34: 0.06688432991 | AQ34: 0.07365287052 | AR34: 0.08095112212 | AS34: 0.08878929939 | AT34: 0.09717146543 | AU34: 0.1060945274 | AV34: 0.1155473249 | AW34: 0.1255098762 | AX34: 0.1359528527 | AY34: 0.1468373461 | AZ34: 0.1581149862 | BA34: 0.1697284465 | BB34: 0.1816123549 | BC34: 0.1936945948 | BD34: 0.2058979541 | BE34: 0.2181420459 | BF34: 0.2303454052 | BG34: 0.2424276451 | BQ34: 12 | BR34: 0.412725 | BS34: United States of America
C35: Mexico | D35: 0.5482 | E35: 0.6021 | F35: 0.0345 | G35: 0.5676 | I35: 0.0001264130303 | J35: 0.0001215021403 | K35: 0.0001328928013 | L35: 0.0001143016802 | M35: 0.0001220626055 | N35: 0.0001116569897 | O35: 0.0002676472642 | P35: 0.001021592931 | Q35: 0.001069379723 | R35: 0.002326762625 | S35: 0.004609181344 | T35: 0.005578842019 | U35: 0.01222870311 | V35: 0.0144319703 | W35: 0.02204672699 | X35: 0.02893611269 | Y35: 0.0309483612 | Z35: 0.0347154134 | AA35: 0.03890446329 | AB35: 0.04355356473 | AC35: 0.04870191063 | AD35: 0.0543892509 | AE35: 0.06065514391 | AF35: 0.06753802696 | AG35: 0.07507409833 | AH35: 0.08329601313 | AI35: 0.09223140939 | AJ35: 0.1019012973 | AK35: 0.1123183651 | AL35: 0.1234852768 | AM35: 0.1353930575 | AN35: 0.1480196812 | AO35: 0.161328986 | AP35: 0.1752700437 | AQ35: 0.1897770984 | AR35: 0.2047701608 | AS35: 0.2201563049 | AT35: 0.2358316589 | AU35: 0.2516840215 | AV35: 0.2675959785 | AW35: 0.2834483411 | AX35: 0.2991236951 | AY35: 0.3145098392 | AZ35: 0.3295029016 | BA35: 0.3440099563 | BB35: 0.357951014 | BC35: 0.3712603188 | BD35: 0.3838869425 | BE35: 0.3957947232 | BF35: 0.4069616349 | BG35: 0.4173787027 | BQ35: 13 | BR35: 0.3855 | BS35: Indonesia
C36: Russian Federation | D36: 0.385 | E36: 0.3885 | F36: 0.0325 | G36: 0.356 | I36: 2.281885933e-06 | J36: 3.373314608e-06 | K36: 6.746788529e-06 | L36: 9.843294748e-06 | M36: 7.527650674e-06 | N36: 7.359442533e-06 | O36: 5.030864353e-06 | P36: 6.907447116e-06 | Q36: 4.81495641e-06 | R36: 4.040220394e-06 | S36: 3.860571596e-06 | T36: 4.748333572e-06 | U36: 4.675899386e-06 | V36: 4.727734498e-06 | W36: 0.0002409790527 | X36: 0.0004532559827 | Y36: 0.01008278621 | Z36: 0.01109888645 | AA36: 0.0122145674 | AB36: 0.01343899572 | AC36: 0.01478205786 | AD36: 0.01625439042 | AE36: 0.01786740559 | AF36: 0.01963331016 | AG36: 0.02156511597 | AH36: 0.02367663957 | AI36: 0.02598248835 | AJ36: 0.02849803013 | AK36: 0.03123934313 | AL36: 0.03422314242 | AM36: 0.03746667939 | AN36: 0.04098761031 | AO36: 0.04480383009 | AP36: 0.04893326798 | AQ36: 0.05339364201 | AR36: 0.05820217028 | AS36: 0.06337523806 | AT36: 0.06892802155 | AU36: 0.07487407106 | AV36: 0.08122485898 | AW36: 0.08798930082 | AX36: 0.09517326049 | AY36: 0.1027790548 | AZ36: 0.1108049747 | BA36: 0.1192448446 | BB36: 0.1280876418 | BC36: 0.1373172002 | BD36: 0.1469120234 | BE36: 0.1568452255 | BF36: 0.1670846217 | BG36: 0.1775929776 | BQ36: 14 | BR36: 0.381468 | BS36: Turkey
C37: Saudi Arabia | D37: 0.2398 | E37: 0.3672 | F37: 0.0255 | G37: 0.3417 | I37: 0 | J37: 0 | K37: 0 | L37: 0 | M37: 0 | N37: 0 | O37: 0 | P37: 0 | Q37: 0 | R37: 0 | S37: 0 | T37: 0 | U37: 3.680800942e-06 | V37: 3.520916002e-06 | W37: 3.207122377e-06 | X37: 2.955589315e-06 | Y37: 0.01027787284 | Z37: 0.01129123292 | AA37: 0.01240129356 | AB37: 0.01361662269 | AC37: 0.01494641268 | AD37: 0.01640049787 | AE37: 0.01798936622 | AF37: 0.01972416311 | AG37: 0.02161668558 | AH37: 0.0236793647 | AI37: 0.02592523366 | AJ37: 0.02836787892 | AK37: 0.03102137152 | AL37: 0.03390017577 | AM37: 0.03701903207 | AN37: 0.04039281133 | AO37: 0.04403633815 | AP37: 0.04796418086 | AQ37: 0.05219040709 | AR37: 0.05672830459 | AS37: 0.06159006832 | AT37: 0.06678645687 | AU37: 0.07232642267 | AV37: 0.07821672336 | AW37: 0.08446152372 | AX37: 0.0910620003 | AY37: 0.09801596306 | AZ37: 0.1053175108 | BA37: 0.112956738 | BB37: 0.120919512 | BC37: 0.1291873388 | BD37: 0.137737333 | BE37: 0.1465423066 | BF37: 0.1555709845 | BG37: 0.1647883499 | BQ37: 15 | BR37: 0.37925 | BS37: Canada
C38: South Africa | D38: 0.4615 | E38: 0.502275 | F38: 0.022 | G38: 0.480275 | I38: 0 | J38: 0 | K38: 0 | L38: 2.594617035e-05 | M38: 4.980699788e-05 | N38: 4.95755097e-05 | O38: 4.78371623e-05 | P38: 4.606525912e-05 | Q38: 8.218566917e-05 | R38: 0.0001215485282 | S38: 0.0001324771672 | T38: 0.0001425401424 | U38: 0.0001451475601 | V38: 0.0002211760245 | W38: 0.008762541538 | X38: 0.0197498541 | Y38: 0.02097144099 | Z38: 0.02335000101 | AA38: 0.02598321597 | AB38: 0.02889478017 | AC38: 0.0321097587 | AD38: 0.03565446423 | AE38: 0.03955627374 | AF38: 0.04384337447 | AG38: 0.04854442887 | AH38: 0.05368814863 | AI38: 0.05930276966 | AJ38: 0.06541542258 | AK38: 0.0720513975 | AL38: 0.07923330712 | AM38: 0.08698015975 | AN38: 0.0953063623 | AO38: 0.104220683 | AP38: 0.1137252139 | AQ38: 0.1238143839 | AR38: 0.1344740802 | AS38: 0.1456809425 | AT38: 0.1574018971 | AU38: 0.1695939901 | AV38: 0.1822045725 | AW38: 0.19517187 | AX38: 0.2084259491 | AY38: 0.2218900623 | AZ38: 0.2354823279 | BA38: 0.2491176721 | BB38: 0.2627099377 | BC38: 0.2761740509 | BD38: 0.28942813 | BE38: 0.3023954275 | BF38: 0.3150060099 | BG38: 0.3271981029 | BQ38: 16 | BR38: 0.3725 | BS38: Australia
C39: Turkey | D39: 0.4723 | E39: 0.424468 | F39: 0.043 | G39: 0.381468 | I39: 0.0002641648389 | J39: 0.0005051945406 | K39: 0.000370942813 | L39: 0.0004339135445 | M39: 0.0003848757117 | N39: 0.0003642964756 | O39: 0.0007203671036 | P39: 0.001853224611 | Q39: 0.004268765939 | R39: 0.007674065253 | S39: 0.01380629522 | T39: 0.02058911998 | U39: 0.02446804957 | V39: 0.03146730848 | W39: 0.03388195886 | X39: 0.04525121952 | Y39: 0.04546266036 | Z39: 0.04981248208 | AA39: 0.05452731627 | AB39: 0.05962781733 | AC39: 0.06513388287 | AD39: 0.07106421649 | AE39: 0.07743583605 | AF39: 0.08426353269 | AG39: 0.0915592891 | AH39: 0.09933167026 | AI39: 0.1075852037 | AJ39: 0.1163197711 | AK39: 0.1255300378 | AL39: 0.1352049479 | AM39: 0.1453273184 | AN39: 0.1558735619 | AO39: 0.1668135687 | AP39: 0.1781107739 | AQ39: 0.1897224255 | AR39: 0.2016000657 | AS39: 0.2136902197 | AT39: 0.2259352792 | AU39: 0.2382745533 | AV39: 0.2506454467 | AW39: 0.2629847208 | AX39: 0.2752297803 | AY39: 0.2873199343 | AZ39: 0.2991975745 | BA39: 0.3108092261 | BB39: 0.3221064313 | BC39: 0.3330464381 | BD39: 0.3435926816 | BE39: 0.3537150521 | BF39: 0.3633899622 | BG39: 0.3726002289 | BQ39: 17 | BR39: 0.356 | BS39: Russian Federation
C40: United Kingdom | D40: 0.83 | E40: 0.579696 | F40: 0.0045 | G40: 0.575196 | I40: 0.002532220367 | J40: 0.00252897732 | K40: 0.003273573499 | L40: 0.003256933627 | M40: 0.004955555896 | N40: 0.007364209738 | O40: 0.01076684544 | P40: 0.01345646371 | Q40: 0.01855104851 | R40: 0.02493091127 | S40: 0.02725106289 | T40: 0.04439325295 | U40: 0.05874268868 | V40: 0.08556048916 | W40: 0.1074319023 | X40: 0.142371016 | Y40: 0.1493429339 | Z40: 0.1638811144 | AA40: 0.1793087793 | AB40: 0.1955819967 | AC40: 0.2126383734 | AD40: 0.2303969385 | AE40: 0.2487588566 | AF40: 0.267609031 | AG40: 0.2868185894 | AH40: 0.3062481678 | AI40: 0.3257518322 | AJ40: 0.3451814106 | AK40: 0.364390969 | AL40: 0.3832411434 | AM40: 0.4016030615 | AN40: 0.4193616266 | AO40: 0.4364180033 | AP40: 0.4526912207 | AQ40: 0.4681188856 | AR40: 0.4826570661 | AS40: 0.4962794608 | AT40: 0.5089760001 | AU40: 0.5207510423 | AV40: 0.5316213246 | AW40: 0.5416138134 | AX40: 0.5507635745 | AY40: 0.5591117565 | AZ40: 0.566703754 | BA40: 0.5735875888 | BB40: 0.5798125293 | BC40: 0.5854279485 | BD40: 0.5904824091 | BE40: 0.5950229579 | BF40: 0.5990946043 | BG40: 0.6027399572 | BQ40: 18 | BR40: 0.3417 | BS40: Saudi Arabia
C41: United States of America | D41: 0.7229 | E41: 0.422725 | F41: 0.01 | G41: 0.412725 | I41: 0.001579528476 | J41: 0.001977424898 | K41: 0.002803745977 | L41: 0.002996066984 | M41: 0.003677846136 | N41: 0.004451043094 | O41: 0.006541035801 | P41: 0.008389850402 | Q41: 0.01330607095 | R41: 0.01842346284 | S41: 0.02275648585 | T41: 0.0293690131 | U41: 0.0356055093 | V41: 0.04328902847 | W41: 0.04852792052 | X41: 0.05320559603 | Y41: 0.05599051812 | Z41: 0.06153191111 | AA41: 0.0675522508 | AB41: 0.0740789256 | AC41: 0.08113809608 | AD41: 0.08875404183 | AE41: 0.09694842968 | AF41: 0.1057395128 | AG41: 0.1151412771 | AH41: 0.1251625569 | AI41: 0.1358061507 | AJ41: 0.1470679732 | AK41: 0.1589362867 | AL41: 0.1713910584 | AM41: 0.1844034929 | AN41: 0.1979357869 | AO41: 0.2119411467 | AP41: 0.2263641003 | AQ41: 0.2411411221 | AR41: 0.2562015687 | AS41: 0.2714689087 | AT41: 0.2868622052 | AU41: 0.3022977948 | AV41: 0.3176910913 | AW41: 0.3329584313 | AX41: 0.3480188779 | AY41: 0.3627958997 | AZ41: 0.3772188533 | BA41: 0.3912242131 | BB41: 0.4047565071 | BC41: 0.4177689416 | BD41: 0.4302237133 | BE41: 0.4420920268 | BF41: 0.4533538493 | BG41: 0.4639974431 | BQ41: 19 | BR41: 0.27675 | BS41: Argentina
D42: OutputCeilingDefault | E42: OutputGrowthDefault | F42: OutputBarrierDefault | G42: OutputIncentiveDefault | BZ42: =_xlfn.IFNA(MAX(CJ46:CJ65),"") -> 100
C43: Projection: this study | D43: =SelectedDefaultCountry -> United States of America | G43: =INDEX(OutputIncentiveDefault,MATCH($D$43,$C$23:$C$41,0)) -> 0.412725 | I43: =INDEX(I23:I41,MATCH($D$43,$C$23:$C$41,0)) -> 0.001579528476 | J43: =INDEX(J23:J41,MATCH($D$43,$C$23:$C$41,0)) -> 0.001977424898 | K43: 0.002803745977 | L43: 0.002996066984 | M43: 0.003677846136 | N43: 0.004451043094 | O43: 0.006541035801 | P43: 0.008389850402 | Q43: 0.01330607095 | R43: 0.01842346284 | S43: 0.02275648585 | T43: 0.0293690131 | U43: 0.0356055093 | V43: 0.04328902847 | W43: 0.04852792052 | X43: 0.05320559603 | Y43: 0.05599051812 | Z43: 0.06153191111 | AA43: 0.0675522508 | AB43: 0.0740789256 | AC43: 0.08113809608 | AD43: 0.08875404183 | AE43: 0.09694842968 | AF43: 0.1057395128 | AG43: 0.1151412771 | AH43: 0.1251625569 | AI43: 0.1358061507 | AJ43: 0.1470679732 | AK43: 0.1589362867 | AL43: 0.1713910584 | AM43: 0.1844034929 | AN43: 0.1979357869 | AO43: 0.2119411467 | AP43: 0.2263641003 | AQ43: 0.2411411221 | AR43: 0.2562015687 | AS43: 0.2714689087 | AT43: 0.2868622052 | AU43: 0.3022977948 | AV43: 0.3176910913 | AW43: 0.3329584313 | AX43: 0.3480188779 | AY43: 0.3627958997 | AZ43: 0.3772188533 | BA43: 0.3912242131 | BB43: 0.4047565071 | BC43: 0.4177689416 | BD43: 0.4302237133 | BE43: 0.4420920268 | BF43: 0.4533538493 | BG43: 0.4639974431
BQ44: Sort values | BS44: Country | BT44: =G21 -> Incentive factor | BV44: Ceiling factor | BX44: Growth factor | BZ44: Barrier factor | CB44: VRE share | CD44: VRE share | CF44: Long-term transition plan for the electricity system | CH44: Long-term RE target ambition | CJ44: VRE in grid codes | CL44: Support schemes for demand-side management (DSM) | CN44: Storage promotion & flexible supply-side policies | CP44: System integration: markets measures | CR44: Mid-term RE target ambition | CT44: Policies to level the playing field: shift away from coal/oil | CV44: Direct support policies (RPS and feed-in schemes, tax measures) | CX44: Reliability of RE policies | CZ44: Ensuring realization | DB44: Energy efficiency policy | DD44: Fossil fuel production | DF44: Administrative procedures - Permit granting procedures | DH44: Administrative procedures - Siting / zoning | DJ44: Financial & non-financial determinants and macroeconomic fundamentals
B45: Projected RE share (excl. hydro) from CAT data portal | BQ45: All countries | CB45: 2030 | CD45: 2050
BQ46: =IF(ISERROR(SUM(IF(ISNUMBER(BR46),$BR$46:BR46,""))),"",SUM(IF(ISNUMBER(BR46),$BR$46:BR46,""))) -> 1 | BR46: =IF(LEN(BS46)>0,1,"") -> 1 | BS46: =IF(COUNTIF(BS$23:BS23,BS23)=1,BS23,"") -> France | BT46: =IF($BS46<>SelectedDefaultCountry,IF(ISNUMBER(INDEX(OutputIncentiveDefault,MATCH($BS46,Default_CountryAll,0))),(INDEX(OutputIncentiveDefault,MATCH($BS46,Default_CountryAll,0))),""),"") -> 0.794975 | BU46: =IF($BS46=SelectedDefaultCountry,IF(ISNUMBER(INDEX(OutputIncentiveDefault,MATCH($BS46,Default_CountryAll,0))),(INDEX(OutputIncentiveDefault,MATCH($BS46,Default_CountryAll,0))),""),"") ->  | BV46: =IF($BS46<>SelectedDefaultCountry,IF(ISNUMBER(INDEX(OutputCeilingDefault,MATCH($BS46,Default_CountryAll,0))),(INDEX(OutputCeilingDefault,MATCH($BS46,Default_CountryAll,0))),""),"") -> 0.805 | BW46: =IF($BS46=SelectedDefaultCountry,IF(ISNUMBER(INDEX(OutputCeilingDefault,MATCH($BS46,Default_CountryAll,0))),(INDEX(OutputCeilingDefault,MATCH($BS46,Default_CountryAll,0))),""),"") ->  | BX46: =IF($BS46<>SelectedDefaultCountry,IF(ISNUMBER(INDEX(OutputGrowthDefault,MATCH($BS46,Default_CountryAll,0))),(INDEX(OutputGrowthDefault,MATCH($BS46,Default_CountryAll,0))),""),"") -> 0.801975 | BY46: =IF($BS46=SelectedDefaultCountry,IF(ISNUMBER(INDEX(OutputGrowthDefault,MATCH($BS46,Default_CountryAll,0))),(INDEX(OutputGrowthDefault,MATCH($BS46,Default_CountryAll,0))),""),"") ->  | BZ46: =IF($BS46<>SelectedDefaultCountry,IF(ISNUMBER(INDEX(OutputBarrierDefault,MATCH($BS46,Default_CountryAll,0))),(INDEX(OutputBarrierDefault,MATCH($BS46,Default_CountryAll,0))),""),"") -> 0.007 | CA46: =IF($BS46=SelectedDefaultCountry,IF(ISNUMBER(INDEX(OutputBarrierDefault,MATCH($BS46,Default_CountryAll,0))),(INDEX(OutputBarrierDefault,MATCH($BS46,Default_CountryAll,0))),""),"") ->  | CB46: =IF($BS46<>SelectedDefaultCountry,IF(ISNUMBER(INDEX(DefaultAll,MATCH($BS46,Default_CountryAll,0),MATCH($CB$45,YearEVs,0))),INDEX(DefaultAll,MATCH($BS46,Default_CountryAll,0),MATCH($CB$45,YearEVs,0)),""),"") -> 0.2764540928 | CC46: =IF($BS46=SelectedDefaultCountry,IF(ISNUMBER(INDEX(DefaultAll,MATCH($BS46,Default_CountryAll,0),MATCH($CB$45,YearEVs,0))),INDEX(DefaultAll,MATCH($BS46,Default_CountryAll,0),MATCH($CB$45,YearEVs,0)),""),"") ->  | CD46: =IF($BS46<>SelectedDefaultCountry,IF(ISNUMBER(INDEX(DefaultAll,MATCH($BS46,Default_CountryAll,0),MATCH($CD$45,YearEVs,0))),INDEX(DefaultAll,MATCH($BS46,Default_CountryAll,0),MATCH($CD$45,YearEVs,0)),""),"") -> 0.5846727613 | CE46: =IF($BS46=SelectedDefaultCountry,IF(ISNUMBER(INDEX(DefaultAll,MATCH($BS46,Default_CountryAll,0),MATCH($CD$45,YearEVs,0))),INDEX(DefaultAll,MATCH($BS46,Default_CountryAll,0),MATCH($CD$45,YearEVs,0)),""),"") ->  | CF46: =IF($BS46<>SelectedDefaultCountry,IF(ISNUMBER(INDEX(Default_InputData,MATCH($BS46,Default_CountryAll,0),MATCH(CF$44,Default__InputData_Head,0))),INDEX(Default_InputData,MATCH($BS46,Default_CountryAll,0),MATCH(CF$44,Default__InputData_Head,0)),""),"") -> 50 | CG46: =IF($BS46=SelectedDefaultCountry,IF(ISNUMBER(INDEX(Default_InputData,MATCH($BS46,Default_CountryAll,0),MATCH(CF$44,Default__InputData_Head,0))),INDEX(Default_InputData,MATCH($BS46,Default_CountryAll,0),MATCH(CF$44,Default__InputData_Head,0)),""),"") ->  | CH46: =IF($BS46<>SelectedDefaultCountry,IF(ISNUMBER(INDEX(Default_InputData,MATCH($BS46,Default_CountryAll,0),MATCH(CH$44,Default__InputData_Head,0))),INDEX(Default_InputData,MATCH($BS46,Default_CountryAll,0),MATCH(CH$44,Default__InputData_Head,0)),""),"") -> 100 | CI46: =IF($BS46=SelectedDefaultCountry,IF(ISNUMBER(INDEX(Default_InputData,MATCH($BS46,Default_CountryAll,0),MATCH(CH$44,Default__InputData_Head,0))),INDEX(Default_InputData,MATCH($BS46,Default_CountryAll,0),MATCH(CH$44,Default__InputData_Head,0)),""),"") ->  | CJ46: =IF($BS46<>SelectedDefaultCountry,IF(ISNUMBER(INDEX(Default_InputData,MATCH($BS46,Default_CountryAll,0),MATCH(CJ$44,Default__InputData_Head,0))),INDEX(Default_InputData,MATCH($BS46,Default_CountryAll,0),MATCH(CJ$44,Default__InputData_Head,0)),""),"") -> 100 | CK46: =IF($BS46=SelectedDefaultCountry,IF(ISNUMBER(INDEX(Default_InputData,MATCH($BS46,Default_CountryAll,0),MATCH(CJ$44,Default__InputData_Head,0))),INDEX(Default_InputData,MATCH($BS46,Default_CountryAll,0),MATCH(CJ$44,Default__InputData_Head,0)),""),"") ->  | CL46: =IF($BS46<>SelectedDefaultCountry,IF(ISNUMBER(INDEX(Default_InputData,MATCH($BS46,Default_CountryAll,0),MATCH(CL$44,Default__InputData_Head,0))),INDEX(Default_InputData,MATCH($BS46,Default_CountryAll,0),MATCH(CL$44,Default__InputData_Head,0)),""),"") -> 100 | CM46: =IF($BS46=SelectedDefaultCountry,IF(ISNUMBER(INDEX(Default_InputData,MATCH($BS46,Default_CountryAll,0),MATCH(CL$44,Default__InputData_Head,0))),INDEX(Default_InputData,MATCH($BS46,Default_CountryAll,0),MATCH(CL$44,Default__InputData_Head,0)),""),"") ->  | CN46: =IF($BS46<>SelectedDefaultCountry,IF(ISNUMBER(INDEX(Default_InputData,MATCH($BS46,Default_CountryAll,0),MATCH(CN$44,Default__InputData_Head,0))),INDEX(Default_InputData,MATCH($BS46,Default_CountryAll,0),MATCH(CN$44,Default__InputData_Head,0)),""),"") -> 0 | CO46: =IF($BS46=SelectedDefaultCountry,IF(ISNUMBER(INDEX(Default_InputData,MATCH($BS46,Default_CountryAll,0),MATCH(CN$44,Default__InputData_Head,0))),INDEX(Default_InputData,MATCH($BS46,Default_CountryAll,0),MATCH(CN$44,Default__InputData_Head,0)),""),"") ->  | CP46: =IF($BS46<>SelectedDefaultCountry,IF(ISNUMBER(INDEX(Default_InputData,MATCH($BS46,Default_CountryAll,0),MATCH(CP$44,Default__InputData_Head,0))),INDEX(Default_InputData,MATCH($BS46,Default_CountryAll,0),MATCH(CP$44,Default__InputData_Head,0)),""),"") -> 100 | CQ46: =IF($BS46=SelectedDefaultCountry,IF(ISNUMBER(INDEX(Default_InputData,MATCH($BS46,Default_CountryAll,0),MATCH(CP$44,Default__InputData_Head,0))),INDEX(Default_InputData,MATCH($BS46,Default_CountryAll,0),MATCH(CP$44,Default__InputData_Head,0)),""),"") ->  | CR46: =IF($BS46<>SelectedDefaultCountry,IF(ISNUMBER(INDEX(Default_InputData,MATCH($BS46,Default_CountryAll,0),MATCH(CR$44,Default__InputData_Head,0))),INDEX(Default_InputData,MATCH($BS46,Default_CountryAll,0),MATCH(CR$44,Default__InputData_Head,0)),""),"") -> 77 | CS46: =IF($BS46=SelectedDefaultCountry,IF(ISNUMBER(INDEX(Default_InputData,MATCH($BS46,Default_CountryAll,0),MATCH(CR$44,Default__InputData_Head,0))),INDEX(Default_InputData,MATCH($BS46,Default_CountryAll,0),MATCH(CR$44,Default__InputData_Head,0)),""),"") ->  | CT46: =IF($BS46<>SelectedDefaultCountry,IF(ISNUMBER(INDEX(Default_InputData,MATCH($BS46,Default_CountryAll,0),MATCH(CT$44,Default__InputData_Head,0))),INDEX(Default_InputData,MATCH($BS46,Default_CountryAll,0),MATCH(CT$44,Default__InputData_Head,0)),""),"") -> 100 | CU46: =IF($BS46=SelectedDefaultCountry,IF(ISNUMBER(INDEX(Default_InputData,MATCH($BS46,Default_CountryAll,0),MATCH(CT$44,Default__InputData_Head,0))),INDEX(Default_InputData,MATCH($BS46,Default_CountryAll,0),MATCH(CT$44,Default__InputData_Head,0)),""),"") ->  | CV46: =IF($BS46<>SelectedDefaultCountry,IF(ISNUMBER(INDEX(Default_InputData,MATCH($BS46,Default_CountryAll,0),MATCH(CV$44,Default__InputData_Head,0))),INDEX(Default_InputData,MATCH($BS46,Default_CountryAll,0),MATCH(CV$44,Default__InputData_Head,0)),""),"") -> 100 | CW46: =IF($BS46=SelectedDefaultCountry,IF(ISNUMBER(INDEX(Default_InputData,MATCH($BS46,Default_CountryAll,0),MATCH(CV$44,Default__InputData_Head,0))),INDEX(Default_InputData,MATCH($BS46,Default_CountryAll,0),MATCH(CV$44,Default__InputData_Head,0)),""),"") ->  | CX46: =IF($BS46<>SelectedDefaultCountry,IF(ISNUMBER(INDEX(Default_InputData,MATCH($BS46,Default_CountryAll,0),MATCH(CX$44,Default__InputData_Head,0))),INDEX(Default_InputData,MATCH($BS46,Default_CountryAll,0),MATCH(CX$44,Default__InputData_Head,0)),""),"") -> 71 | CY46: =IF($BS46=SelectedDefaultCountry,IF(ISNUMBER(INDEX(Default_InputData,MATCH($BS46,Default_CountryAll,0),MATCH(CX$44,Default__InputData_Head,0))),INDEX(Default_InputData,MATCH($BS46,Default_CountryAll,0),MATCH(CX$44,Default__InputData_Head,0)),""),"") ->  | CZ46: =IF($BS46<>SelectedDefaultCountry,IF(ISNUMBER(INDEX(Default_InputData,MATCH($BS46,Default_CountryAll,0),MATCH(CZ$44,Default__InputData_Head,0))),INDEX(Default_InputData,MATCH($BS46,Default_CountryAll,0),MATCH(CZ$44,Default__InputData_Head,0)),""),"") -> 100 | DA46: =IF($BS46=SelectedDefaultCountry,IF(ISNUMBER(INDEX(Default_InputData,MATCH($BS46,Default_CountryAll,0),MATCH(CZ$44,Default__InputData_Head,0))),INDEX(Default_InputData,MATCH($BS46,Default_CountryAll,0),MATCH(CZ$44,Default__InputData_Head,0)),""),"") ->  | DB46: =IF($BS46<>SelectedDefaultCountry,IF(ISNUMBER(INDEX(Default_InputData,MATCH($BS46,Default_CountryAll,0),MATCH(DB$44,Default__InputData_Head,0))),INDEX(Default_InputData,MATCH($BS46,Default_CountryAll,0),MATCH(DB$44,Default__InputData_Head,0)),""),"") -> 74 | DC46: =IF($BS46=SelectedDefaultCountry,IF(ISNUMBER(INDEX(Default_InputData,MATCH($BS46,Default_CountryAll,0),MATCH(DB$44,Default__InputData_Head,0))),INDEX(Default_InputData,MATCH($BS46,Default_CountryAll,0),MATCH(DB$44,Default__InputData_Head,0)),""),"") ->  | DD46: =IF($BS46<>SelectedDefaultCountry,IF(ISNUMBER(INDEX(Default_InputData,MATCH($BS46,Default_CountryAll,0),MATCH(DD$44,Default__InputData_Head,0))),INDEX(Default_InputData,MATCH($BS46,Default_CountryAll,0),MATCH(DD$44,Default__InputData_Head,0)),""),"") -> 0 | DE46: =IF($BS46=SelectedDefaultCountry,IF(ISNUMBER(INDEX(Default_InputData,MATCH($BS46,Default_CountryAll,0),MATCH(DD$44,Default__InputData_Head,0))),INDEX(Default_InputData,MATCH($BS46,Default_CountryAll,0),MATCH(DD$44,Default__InputData_Head,0)),""),"") ->  | DF46: =IF($BS46<>SelectedDefaultCountry,IF(ISNUMBER(INDEX(Default_InputData,MATCH($BS46,Default_CountryAll,0),MATCH(DF$44,Default__InputData_Head,0))),INDEX(Default_InputData,MATCH($BS46,Default_CountryAll,0),MATCH(DF$44,Default__InputData_Head,0)),""),"") -> 100 | DG46: =IF($BS46=SelectedDefaultCountry,IF(ISNUMBER(INDEX(Default_InputData,MATCH($BS46,Default_CountryAll,0),MATCH(DF$44,Default__InputData_Head,0))),INDEX(Default_InputData,MATCH($BS46,Default_CountryAll,0),MATCH(DF$44,Default__InputData_Head,0)),""),"") ->  | DH46: =IF($BS46<>SelectedDefaultCountry,IF(ISNUMBER(INDEX(Default_InputData,MATCH($BS46,Default_CountryAll,0),MATCH(DH$44,Default__InputData_Head,0))),INDEX(Default_InputData,MATCH($BS46,Default_CountryAll,0),MATCH(DH$44,Default__InputData_Head,0)),""),"") -> 50 | DI46: =IF($BS46=SelectedDefaultCountry,IF(ISNUMBER(INDEX(Default_InputData,MATCH($BS46,Default_CountryAll,0),MATCH(DH$44,Default__InputData_Head,0))),INDEX(Default_InputData,MATCH($BS46,Default_CountryAll,0),MATCH(DH$44,Default__InputData_Head,0)),""),"") ->  | DJ46: =IF($BS46<>SelectedDefaultCountry,IF(ISNUMBER(INDEX(Default_InputData,MATCH($BS46,Default_CountryAll,0),MATCH(DJ$44,Default__InputData_Head,0))),INDEX(Default_InputData,MATCH($BS46,Default_CountryAll,0),MATCH(DJ$44,Default__InputData_Head,0)),""),"") -> 14 | DK46: =IF($BS46=SelectedDefaultCountry,IF(ISNUMBER(INDEX(Default_InputData,MATCH($BS46,Default_CountryAll,0),MATCH(DJ$44,Default__InputData_Head,0))),INDEX(Default_InputData,MATCH($BS46,Default_CountryAll,0),MATCH(DJ$44,Default__InputData_Head,0)),""),"") -> 
C47: projected_current_policy_max | BQ47: =IF(ISERROR(SUM(IF(ISNUMBER(BR47),$BR$46:BR47,""))),"",SUM(IF(ISNUMBER(BR47),$BR$46:BR47,""))) -> 2 | BR47: 1 | BS47: =IF(COUNTIF(BS$23:BS24,BS24)=1,BS24,"") -> India | BT47: 0.656 | BV47: 0.4569 | BX47: 0.693 | BZ47: 0.037 | CB47: 0.1713480239 | CD47: 0.4280784447 | CF47: 25 | CH47: 82 | CJ47: 100 | CL47: 50 | CN47: 100 | CP47: 0 | CR47: 100 | CT47: 0 | CV47: 100 | CX47: 95 | CZ47: 100 | DB47: 51 | DD47: 100 | DF47: 50 | DH47: 100 | DJ47: 74
BQ48: =IF(ISERROR(SUM(IF(ISNUMBER(BR48),$BR$46:BR48,""))),"",SUM(IF(ISNUMBER(BR48),$BR$46:BR48,""))) -> 3 | BR48: =IF(LEN(BS48)>0,1,"") -> 1 | BS48: =IF(COUNTIF(BS$23:BS25,BS25)=1,BS25,"") -> Germany | BT48: 0.6371875 | BV48: 0.9025 | BX48: 0.6496875 | BZ48: 0.0125 | CB48: 0.4805524455 | CD48: 0.6432730989 | CF48: 75 | CH48: 100 | CJ48: 100 | CL48: 50 | CN48: 100 | CP48: 100 | CR48: 89 | CT48: 50 | CV48: 100 | CX48: 26 | CZ48: 75 | DB48: 76 | DD48: 75 | DF48: 50 | DH48: 0 | DJ48: 25
C49: Country | D49: 2015 | E49: 2016 | F49: 2017 | G49: 2018 | H49: 2019 | I49: 2020 | J49: 2021 | K49: 2022 | L49: 2023 | M49: 2024 | N49: 2025 | O49: 2026 | P49: 2027 | Q49: 2028 | R49: 2029 | S49: 2030 | T49: 2031 | U49: 2032 | V49: 2033 | W49: 2034 | X49: 2035 | Y49: 2036 | Z49: 2037 | AA49: 2038 | AB49: 2039 | AC49: 2040 | AD49: 2041 | AE49: 2042 | AF49: 2043 | AG49: 2044 | AH49: 2045 | AI49: 2046 | AJ49: 2047 | AK49: 2048 | AL49: 2049 | AM49: 2050 | BQ49: =IF(ISERROR(SUM(IF(ISNUMBER(BR49),$BR$46:BR49,""))),"",SUM(IF(ISNUMBER(BR49),$BR$46:BR49,""))) -> 4 | BR49: 1 | BS49: =IF(COUNTIF(BS$23:BS26,BS26)=1,BS26,"") -> China | BT49: 0.629875 | BV49: 0.4133 | BX49: 0.648375 | BZ49: 0.0185 | CB49: 0.1807174453 | CD49: 0.4163813879 | CF49: 25 | CH49: 24 | CJ49: 100 | CL49: 100 | CN49: 100 | CP49: 0 | CR49: 71 | CT49: 0 | CV49: 100 | CX49: 100 | CZ49: 75 | DB49: 60 | DD49: 100 | DF49: 50 | DH49: 100 | DJ49: 37
C50: =Default_CountryAll -> Argentina | D50: =INDEX(CATData_max_data,MATCH($C50,CATData_max_country,0),MATCH(D$49,CATData_max_year,0)) -> 0.003835047635 | E50: 0.02403504763 | F50: 0.04423504763 | G50: 0.06443504763 | H50: 0.08463504763 | I50: 0.1048350476 | J50: 0.1304350476 | K50: 0.1560350476 | L50: 0.1816350476 | M50: 0.2072350476 | N50: =INDEX(CATData_max_data,MATCH($C50,CATData_max_country,0),MATCH(N$49,CATData_max_year,0)) -> 0.2328350476 | O50: 0.2388350476 | P50: 0.2448350476 | Q50: 0.2508350476 | R50: 0.2568350476 | S50: 0.2628350476 | X50: =INDEX(CATData_max_data,MATCH($C50,CATData_max_country,0),MATCH(X$49,CATData_max_year,0)) ->  | AH50: =INDEX(CATData_max_data,MATCH($C50,CATData_max_country,0),MATCH(AH$49,CATData_max_year,0)) ->  | BQ50: =IF(ISERROR(SUM(IF(ISNUMBER(BR50),$BR$46:BR50,""))),"",SUM(IF(ISNUMBER(BR50),$BR$46:BR50,""))) -> 5 | BR50: 1 | BS50: =IF(COUNTIF(BS$23:BS27,BS27)=1,BS27,"") -> Italy | BT50: 0.59184 | BV50: 0.7631 | BX50: 0.60984 | BZ50: 0.018 | CB50: 0.3858030639 | CD50: 0.5784441243 | CF50: 25 | CH50: 68 | CJ50: 100 | CL50: 50 | CN50: 100 | CP50: 100 | CR50: 32 | CT50: 100 | CV50: 75 | CX50: 23 | CZ50: 75 | DB50: 76 | DD50: 14 | DF50: 50 | DH50: 0 | DJ50: 36
C51: Australia | D51: 0.06847947925 | E51: 0.08907947925 | F51: 0.1096794793 | G51: 0.1302794793 | H51: 0.1508794793 | I51: 0.1714794793 | J51: 0.1802794793 | K51: 0.1890794793 | L51: 0.1978794793 | M51: 0.2066794793 | N51: 0.2154794793 | O51: 0.2216794793 | P51: 0.2278794793 | Q51: 0.2340794793 | R51: 0.2402794793 | S51: 0.2464794793 | BQ51: =IF(ISERROR(SUM(IF(ISNUMBER(BR51),$BR$46:BR51,""))),"",SUM(IF(ISNUMBER(BR51),$BR$46:BR51,""))) -> 6 | BR51: 1 | BS51: =IF(COUNTIF(BS$23:BS28,BS28)=1,BS28,"") -> United Kingdom | BT51: 0.575196 | BV51: 0.83 | BX51: 0.579696 | BZ51: 0.0045 | CB51: 0.4016030615 | CD51: 0.6027399572 | CF51: 100 | CH51: 0 | CJ51: 100 | CL51: 100 | CN51: 100 | CP51: 100 | CR51: 32 | CT51: 100 | CV51: 25 | CX51: 73 | CZ51: 75 | DB51: 73 | DD51: 92 | DF51: 50 | DH51: 0 | DJ51: 9
C52: Brazil | D52: 0.03761266187 | E52: 0.04801266187 | F52: 0.05841266187 | G52: 0.06881266187 | H52: 0.07921266187 | I52: 0.08961266187 | J52: 0.09781266187 | K52: 0.1060126619 | L52: 0.1142126619 | M52: 0.1224126619 | N52: 0.1306126619 | O52: 0.1302126619 | P52: 0.1298126619 | Q52: 0.1294126619 | R52: 0.1290126619 | S52: 0.1286126619 | BQ52: =IF(ISERROR(SUM(IF(ISNUMBER(BR52),$BR$46:BR52,""))),"",SUM(IF(ISNUMBER(BR52),$BR$46:BR52,""))) -> 7 | BR52: 1 | BS52: =IF(COUNTIF(BS$23:BS29,BS29)=1,BS29,"") -> Mexico | BT52: 0.5676 | BV52: 0.5482 | BX52: 0.6021 | BZ52: 0.0345 | CB52: 0.1353930575 | CD52: 0.4173787027 | CF52: 50 | CH52: 46 | CJ52: 0 | CL52: 50 | CN52: 0 | CP52: 100 | CR52: 57 | CT52: 50 | CV52: 75 | CX52: 52 | CZ52: 100 | DB52: 54 | DD52: 100 | DF52: 100 | DH52: 0 | DJ52: 69
C53: Canada | D53: 0.03889624047 | E53: 0.04589624047 | F53: 0.05289624047 | G53: 0.05989624047 | H53: 0.06689624047 | I53: 0.07389624047 | J53: 0.07949624047 | K53: 0.08509624047 | L53: 0.09069624047 | M53: 0.09629624047 | N53: 0.1018962405 | O53: 0.1030962405 | P53: 0.1042962405 | Q53: 0.1054962405 | R53: 0.1066962405 | S53: 0.1078962405 | BQ53: =IF(ISERROR(SUM(IF(ISNUMBER(BR53),$BR$46:BR53,""))),"",SUM(IF(ISNUMBER(BR53),$BR$46:BR53,""))) -> 8 | BR53: 1 | BS53: =IF(COUNTIF(BS$23:BS30,BS30)=1,BS30,"") -> Brazil | BT53: 0.513 | BV53: 0.5975 | BX53: 0.5445 | BZ53: 0.0315 | CB53: 0.1588585204 | CD53: 0.4369384135 | CF53: 25 | CH53: 100 | CJ53: 100 | CL53: 100 | CN53: 0 | CP53: 50 | CR53: 87 | CT53: 0 | CV53: 100 | CX53: 72 | CZ53: 50 | DB53: 37 | DD53: 100 | DF53: 100 | DH53: 0 | DJ53: 63
C54: China | D54: 0.03924641859 | E54: 0.04344641859 | F54: 0.04764641859 | G54: 0.05184641859 | H54: 0.05604641859 | I54: 0.06024641859 | J54: 0.06444641859 | K54: 0.06864641859 | L54: 0.07284641859 | M54: 0.07704641859 | N54: 0.08124641859 | O54: 0.08124641859 | P54: 0.08124641859 | Q54: 0.08124641859 | R54: 0.08124641859 | S54: 0.08124641859 | BQ54: =IF(ISERROR(SUM(IF(ISNUMBER(BR54),$BR$46:BR54,""))),"",SUM(IF(ISNUMBER(BR54),$BR$46:BR54,""))) -> 9 | BR54: 1 | BS54: =IF(COUNTIF(BS$23:BS31,BS31)=1,BS31,"") -> Japan | BT54: 0.506981 | BV54: 0.2874 | BX54: 0.513981 | BZ54: 0.007 | CB54: 0.1436339575 | CD54: 0.3495993438 | CF54: 25 | CH54: 47 | CJ54: 0 | CL54: 50 | CN54: 100 | CP54: 0 | CR54: 5 | CT54: 0 | CV54: 100 | CX54: 17 | CZ54: 100 | DB54: 67 | DD54: 6 | DF54: 100 | DH54: 100 | DJ54: 14
C55: France | D55: 0.05128747395 | E55: 0.07608747395 | F55: 0.100887474 | G55: 0.125687474 | H55: 0.150487474 | I55: 0.175287474 | J55: 0.182087474 | K55: 0.188887474 | L55: 0.195687474 | M55: 0.202487474 | N55: 0.209287474 | O55: 0.215287474 | P55: 0.221287474 | Q55: 0.227287474 | R55: 0.233287474 | S55: 0.239287474 | T55: 0.249887474 | U55: 0.260487474 | V55: 0.271087474 | W55: 0.281687474 | X55: 0.292287474 | Y55: 0.302887474 | Z55: 0.313487474 | AA55: 0.324087474 | AB55: 0.334687474 | AC55: 0.345287474 | AD55: 0.355887474 | AE55: 0.366487474 | AF55: 0.377087474 | AG55: 0.387687474 | AH55: 0.398287474 | AI55: 0.408887474 | AJ55: 0.419487474 | AK55: 0.430087474 | AL55: 0.440687474 | AM55: 0.451287474 | BQ55: =IF(ISERROR(SUM(IF(ISNUMBER(BR55),$BR$46:BR55,""))),"",SUM(IF(ISNUMBER(BR55),$BR$46:BR55,""))) -> 10 | BR55: 1 | BS55: =IF(COUNTIF(BS$23:BS32,BS32)=1,BS32,"") -> South Korea | BT55: 0.505984 | BV55: 0.3101 | BX55: 0.515984 | BZ55: 0.01 | CB55: 0.04958419782 | CD55: 0.2424276451 | CF55: 25 | CH55: 28 | CJ55: 0 | CL55: 100 | CN55: 100 | CP55: 0 | CR55: 100 | CT55: 0 | CV55: 25 | CX55: 44 | CZ55: 100 | DB55: 53 | DD55: 3 | DF55: 100 | DH55: 0 | DJ55: 20
C56: Germany | D56: 0.1836730503 | E56: 0.2054730503 | F56: 0.2272730503 | G56: 0.2490730503 | H56: 0.2708730503 | I56: 0.2926730503 | J56: 0.3140730503 | K56: 0.3354730503 | L56: 0.3568730503 | M56: 0.3782730503 | N56: 0.3996730503 | O56: 0.4134730503 | P56: 0.4272730503 | Q56: 0.4410730503 | R56: 0.4548730503 | S56: 0.4686730503 | BQ56: =IF(ISERROR(SUM(IF(ISNUMBER(BR56),$BR$46:BR56,""))),"",SUM(IF(ISNUMBER(BR56),$BR$46:BR56,""))) -> 11 | BR56: 1 | BS56: =IF(COUNTIF(BS$23:BS33,BS33)=1,BS33,"") -> South Africa | BT56: 0.480275 | BV56: 0.4615 | BX56: 0.502275 | BZ56: 0.022 | CB56: 0.08698015975 | CD56: 0.3271981029 | CF56: 25 | CH56: 20 | CJ56: 100 | CL56: 100 | CN56: 0 | CP56: 50 | CR56: 45 | CT56: 0 | CV56: 75 | CX56: 50 | CZ56: 100 | DB56: 24 | DD56: 100 | DF56: 50 | DH56: 0 | DJ56: 44
C57: India | D57: 0.03540783234 | E57: 0.04900783234 | F57: 0.06260783234 | G57: 0.07620783234 | H57: 0.08980783234 | I57: 0.1034078323 | J57: 0.1090078323 | K57: 0.1146078323 | L57: 0.1202078323 | M57: 0.1258078323 | N57: 0.1314078323 | O57: 0.1344078323 | P57: 0.1374078323 | Q57: 0.1404078323 | R57: 0.1434078323 | S57: 0.1464078323 | BQ57: =IF(ISERROR(SUM(IF(ISNUMBER(BR57),$BR$46:BR57,""))),"",SUM(IF(ISNUMBER(BR57),$BR$46:BR57,""))) -> 12 | BR57: 1 | BS57: =IF(COUNTIF(BS$23:BS34,BS34)=1,BS34,"") -> United States of America | BU57: 0.412725 | BW57: 0.7229 | BY57: 0.422725 | CA57: 0.01 | CC57: 0.1844034929 | CE57: 0.4639974431 | CG57: 0 | CI57: 37 | CK57: 100 | CM57: 100 | CO57: 100 | CQ57: 100 | CS57: 33 | CU57: 0 | CW57: 25 | CY57: 31 | DA57: 100 | DC57: 56 | DE57: 100 | DG57: 50 | DI57: 0 | DK57: 20
C58: Indonesia | D58: 0.0005269078228 | E58: 0.004526907823 | F58: 0.008526907823 | G58: 0.01252690782 | H58: 0.01652690782 | I58: 0.02052690782 | J58: 0.04112690782 | K58: 0.06172690782 | L58: 0.08232690782 | M58: 0.1029269078 | N58: 0.1235269078 | O58: 0.1183269078 | P58: 0.1131269078 | Q58: 0.1079269078 | R58: 0.1027269078 | S58: 0.09752690782 | BQ58: =IF(ISERROR(SUM(IF(ISNUMBER(BR58),$BR$46:BR58,""))),"",SUM(IF(ISNUMBER(BR58),$BR$46:BR58,""))) -> 13 | BR58: 1 | BS58: =IF(COUNTIF(BS$23:BS35,BS35)=1,BS35,"") -> Indonesia | BT58: 0.3855 | BV58: 0.1848 | BX58: 0.42 | BZ58: 0.0345 | CB58: 0.04135140634 | CD58: 0.1822078173 | CF58: 0 | CH58: 44 | CJ58: 100 | CL58: 0 | CN58: 0 | CP58: 0 | CR58: 100 | CT58: 0 | CV58: 25 | CX58: 20 | CZ58: 100 | DB58: 45 | DD58: 100 | DF58: 100 | DH58: 50 | DJ58: 69
C59: Italy | D59: 0.1344090964 | E59: 0.1300090964 | F59: 0.1256090964 | G59: 0.1212090964 | H59: 0.1168090964 | I59: 0.1124090964 | J59: 0.1264090964 | K59: 0.1404090964 | L59: 0.1544090964 | M59: 0.1684090964 | N59: 0.1824090964 | O59: 0.1872090964 | P59: 0.1920090964 | Q59: 0.1968090964 | R59: 0.2016090964 | S59: 0.2064090964 | T59: 0.2161590964 | U59: 0.2259090964 | V59: 0.2356590964 | W59: 0.2454090964 | X59: 0.2551590964 | Y59: 0.2649090964 | Z59: 0.2746590964 | AA59: 0.2844090964 | AB59: 0.2941590964 | AC59: 0.3039090964 | AD59: 0.3136590964 | AE59: 0.3234090964 | AF59: 0.3331590964 | AG59: 0.3429090964 | AH59: 0.3526590964 | AI59: 0.3624090964 | AJ59: 0.3721590964 | AK59: 0.3819090964 | AL59: 0.3916590964 | AM59: 0.4014090964 | BQ59: =IF(ISERROR(SUM(IF(ISNUMBER(BR59),$BR$46:BR59,""))),"",SUM(IF(ISNUMBER(BR59),$BR$46:BR59,""))) -> 14 | BR59: 1 | BS59: =IF(COUNTIF(BS$23:BS36,BS36)=1,BS36,"") -> Turkey | BT59: 0.381468 | BV59: 0.4723 | BX59: 0.424468 | BZ59: 0.043 | CB59: 0.1453273184 | CD59: 0.3726002289 | CF59: 0 | CH59: 19 | CJ59: 100 | CL59: 50 | CN59: 100 | CP59: 50 | CR59: 32 | CT59: 0 | CV59: 75 | CX59: 1 | CZ59: 100 | DB59: 50 | DD59: 46 | DF59: 100 | DH59: 100 | DJ59: 86
C60: Japan | D60: =INDEX(CATData_max_data,MATCH($C60,CATData_max_country,0),MATCH(D$49,CATData_max_year,0)) -> 0.05610296205 | E60: 0.06410296205 | F60: 0.07210296205 | G60: 0.08010296205 | H60: 0.08810296205 | I60: 0.09610296205 | J60: 0.102102962 | K60: 0.108102962 | L60: 0.114102962 | M60: 0.120102962 | N60: =INDEX(CATData_max_data,MATCH($C60,CATData_max_country,0),MATCH(N$49,CATData_max_year,0)) -> 0.126102962 | O60: 0.132102962 | P60: 0.138102962 | Q60: 0.144102962 | R60: 0.150102962 | S60: 0.156102962 | X60: =INDEX(CATData_max_data,MATCH($C60,CATData_max_country,0),MATCH(X$49,CATData_max_year,0)) ->  | AH60: =INDEX(CATData_max_data,MATCH($C60,CATData_max_country,0),MATCH(AH$49,CATData_max_year,0)) ->  | BQ60: =IF(ISERROR(SUM(IF(ISNUMBER(BR60),$BR$46:BR60,""))),"",SUM(IF(ISNUMBER(BR60),$BR$46:BR60,""))) -> 15 | BR60: 1 | BS60: =IF(COUNTIF(BS$23:BS37,BS37)=1,BS37,"") -> Canada | BT60: 0.37925 | BV60: 0.58 | BX60: 0.38325 | BZ60: 0.004 | CB60: 0.1473759022 | CD60: 0.3951374814 | CF60: 50 | CH60: 0 | CJ60: 100 | CL60: 100 | CN60: 100 | CP60: 50 | CR60: 0 | CT60: 50 | CV60: 25 | CX60: 13 | CZ60: 100 | DB60: 56 | DD60: 100 | DF60: 50 | DH60: 100 | DJ60: 8
C61: South Korea | D61: 0.009201376749 | E61: 0.01122137675 | F61: 0.01324137675 | G61: 0.01526137675 | H61: 0.01728137675 | I61: 0.01930137675 | J61: 0.03350137675 | K61: 0.04770137675 | L61: 0.06190137675 | M61: 0.07610137675 | N61: 0.09030137675 | O61: 0.09030137675 | P61: 0.09030137675 | Q61: 0.09030137675 | R61: 0.09030137675 | S61: 0.09030137675 | BQ61: =IF(ISERROR(SUM(IF(ISNUMBER(BR61),$BR$46:BR61,""))),"",SUM(IF(ISNUMBER(BR61),$BR$46:BR61,""))) -> 16 | BR61: 1 | BS61: =IF(COUNTIF(BS$23:BS38,BS38)=1,BS38,"") -> Australia | BT61: 0.3725 | BV61: 0.385 | BX61: 0.378 | BZ61: 0.0055 | CB61: 0.1875979248 | CD61: 0.3810604571 | CF61: 0 | CH61: 0 | CJ61: 100 | CL61: 100 | CN61: 0 | CP61: 50 | CR61: 100 | CT61: 0 | CV61: 50 | CX61: 0 | CZ61: 75 | DB61: 41 | DD61: 100 | DF61: 50 | DH61: 100 | DJ61: 11
C62: Mexico | D62: 0.03013567242 | E62: 0.04393567242 | F62: 0.05773567242 | G62: 0.07153567242 | H62: 0.08533567242 | I62: 0.09913567242 | J62: 0.1145356724 | K62: 0.1299356724 | L62: 0.1453356724 | M62: 0.1607356724 | N62: 0.1761356724 | O62: 0.1789356724 | P62: 0.1817356724 | Q62: 0.1845356724 | R62: 0.1873356724 | S62: 0.1901356724 | BQ62: =IF(ISERROR(SUM(IF(ISNUMBER(BR62),$BR$46:BR62,""))),"",SUM(IF(ISNUMBER(BR62),$BR$46:BR62,""))) -> 17 | BR62: 1 | BS62: =IF(COUNTIF(BS$23:BS39,BS39)=1,BS39,"") -> Russian Federation | BT62: 0.356 | BV62: 0.385 | BX62: 0.3885 | BZ62: 0.0325 | CB62: 0.03746667939 | CD62: 0.1775929776 | CF62: 0 | CH62: 0 | CJ62: 0 | CL62: 50 | CN62: 0 | CP62: 100 | CR62: 100 | CT62: 0 | CV62: 25 | CX62: 37 | CZ62: 75 | DB62: 35 | DD62: 100 | DF62: 50 | DH62: 100 | DJ62: 65
C63: Russian Federation | D63: 0.0008953044369 | E63: 0.004895304437 | F63: 0.008895304437 | G63: 0.01289530444 | H63: 0.01689530444 | I63: 0.02089530444 | J63: 0.02189530444 | K63: 0.02289530444 | L63: 0.02389530444 | M63: 0.02489530444 | N63: 0.02589530444 | O63: 0.02669530444 | P63: 0.02749530444 | Q63: 0.02829530444 | R63: 0.02909530444 | S63: 0.02989530444 | BQ63: =IF(ISERROR(SUM(IF(ISNUMBER(BR63),$BR$46:BR63,""))),"",SUM(IF(ISNUMBER(BR63),$BR$46:BR63,""))) -> 18 | BR63: 1 | BS63: =IF(COUNTIF(BS$23:BS40,BS40)=1,BS40,"") -> Saudi Arabia | BT63: 0.3417 | BV63: 0.2398 | BX63: 0.3672 | BZ63: 0.0255 | CB63: 0.03701903207 | CD63: 0.1647883499 | CF63: 25 | CH63: 19 | CJ63: 100 | CL63: 50 | CN63: 0 | CP63: 0 | CR63: 100 | CT63: 0 | CV63: 50 | CX63: 12 | CZ63: 75 | DB63: 17 | DD63: 100 | DF63: 0 | DH63: 100 | DJ63: 51
C64: Saudi Arabia | D64: 0 | E64: 0.00808 | F64: 0.01616 | G64: 0.02424 | H64: 0.03232 | I64: 0.0404 | J64: 0.04406 | K64: 0.04772 | L64: 0.05138 | M64: 0.05504 | N64: 0.0587 | O64: 0.06156 | P64: 0.06442 | Q64: 0.06728 | R64: 0.07014 | S64: 0.073 | BQ64: =IF(ISERROR(SUM(IF(ISNUMBER(BR64),$BR$46:BR64,""))),"",SUM(IF(ISNUMBER(BR64),$BR$46:BR64,""))) -> 19 | BR64: 1 | BS64: =IF(COUNTIF(BS$23:BS41,BS41)=1,BS41,"") -> Argentina | BT64: 0.27675 | BV64: 0.3208 | BX64: 0.32025 | BZ64: 0.0435 | CB64: 0.03392671517 | CD64: 0.1450770746 | CF64: 25 | CH64: 99 | CJ64: 0 | CL64: 0 | CN64: 100 | CP64: 0 | CR64: 100 | CT64: 0 | CV64: 50 | CX64: 58 | CZ64: 25 | DB64: 0 | DD64: 100 | DF64: 50 | DH64: 100 | DJ64: 87
C65: South Africa | D65: 0.01830391025 | E65: 0.02538391025 | F65: 0.03246391025 | G65: 0.03954391025 | H65: 0.04662391025 | I65: 0.05370391025 | J65: 0.06008391025 | K65: 0.06646391025 | L65: 0.07284391025 | M65: 0.07922391025 | N65: 0.08560391025 | O65: 0.1020239103 | P65: 0.1184439103 | Q65: 0.1348639103 | R65: 0.1512839103 | S65: 0.1677039103
C66: Turkey | D66: 0.04568119397 | E66: 0.04768119397 | F66: 0.04968119397 | G66: 0.05168119397 | H66: 0.05368119397 | I66: 0.05568119397 | J66: 0.05674786063 | K66: 0.0578145273 | L66: 0.05888119397 | M66: 0.05994786063 | N66: 0.0610145273 | O66: 0.08794786063 | P66: 0.114881194 | Q66: 0.1418145273 | R66: 0.1687478606 | S66: 0.195681194
C67: United Kingdom | D67: 0.1422784479 | E67: 0.1688784479 | F67: 0.1954784479 | G67: 0.2220784479 | H67: 0.2486784479 | I67: 0.2752784479 | J67: 0.2798784479 | K67: 0.2844784479 | L67: 0.2890784479 | M67: 0.2936784479 | N67: 0.2982784479 | O67: 0.2988784479 | P67: 0.2994784479 | Q67: 0.3000784479 | R67: 0.3006784479 | S67: 0.3012784479
C68: United States of America | D68: 0.05291966392 | E68: 0.06431966392 | F68: 0.07571966392 | G68: 0.08711966392 | H68: 0.09851966392 | I68: 0.1099196639 | J68: 0.1157196639 | K68: 0.1215196639 | L68: 0.1273196639 | M68: 0.1331196639 | N68: 0.1389196639 | O68: 0.1401196639 | P68: 0.1413196639 | Q68: 0.1425196639 | R68: 0.1437196639 | S68: 0.1449196639 | T68: 0.1472196639 | U68: 0.1495196639 | V68: 0.1518196639 | W68: 0.1541196639 | X68: 0.1564196639 | Y68: 0.1587196639 | Z68: 0.1610196639 | AA68: 0.1633196639 | AB68: 0.1656196639 | AC68: 0.1679196639 | AD68: 0.1702196639 | AE68: 0.1725196639 | AF68: 0.1748196639 | AG68: 0.1771196639 | AH68: 0.1794196639 | AI68: 0.1817196639 | AJ68: 0.1840196639 | AK68: 0.1863196639 | AL68: 0.1886196639 | AM68: 0.1909196639
B70: Selected default country | C70: ="Projection: CATDecarb max" -> Projection: CATDecarb max | D70: =INDEX(D50:D68,MATCH($D$43,$C$50:$C$68,0)) -> 0.05291966392 | E70: =INDEX(E50:E68,MATCH($D$43,$C$50:$C$68,0)) -> 0.06431966392 | F70: 0.07571966392 | G70: 0.08711966392 | H70: 0.09851966392 | I70: 0.1099196639 | J70: 0.1157196639 | K70: 0.1215196639 | L70: 0.1273196639 | M70: 0.1331196639 | N70: 0.1389196639 | O70: 0.1401196639 | P70: 0.1413196639 | Q70: 0.1425196639 | R70: 0.1437196639 | S70: 0.1449196639 | T70: 0.1472196639 | U70: 0.1495196639 | V70: 0.1518196639 | W70: 0.1541196639 | X70: 0.1564196639 | Y70: 0.1587196639 | Z70: 0.1610196639 | AA70: 0.1633196639 | AB70: 0.1656196639 | AC70: 0.1679196639 | AD70: 0.1702196639 | AE70: 0.1725196639 | AF70: 0.1748196639 | AG70: 0.1771196639 | AH70: 0.1794196639 | AI70: 0.1817196639 | AJ70: 0.1840196639 | AK70: 0.1863196639 | AL70: 0.1886196639 | AM70: 0.1909196639
D71: 0 | E71: 0 | F71: 0 | G71: 0 | H71: 0 | I71: 0 | J71: 0 | K71: 0 | L71: 0 | M71: 0 | N71: 0 | O71: 0 | P71: 0 | Q71: 0 | R71: 0 | S71: 0 | T71: 0 | U71: 0 | V71: 0 | W71: 0 | X71: 0 | Y71: 0 | Z71: 0 | AA71: 0 | AB71: 0 | AC71: 0 | AD71: 0 | AE71: 0 | AF71: 0 | AG71: 0 | AH71: 0 | AI71: 0 | AJ71: 0 | AK71: 0 | AL71: 0 | AM71: 0
C72: projected_current_policy_min
C74: Country | D74: 2015 | E74: 2016 | F74: 2017 | G74: 2018 | H74: 2019 | I74: 2020 | J74: 2021 | K74: 2022 | L74: 2023 | M74: 2024 | N74: 2025 | O74: 2026 | P74: 2027 | Q74: 2028 | R74: 2029 | S74: 2030 | T74: 2031 | U74: 2032 | V74: 2033 | W74: 2034 | X74: 2035 | Y74: 2036 | Z74: 2037 | AA74: 2038 | AB74: 2039 | AC74: 2040 | AD74: 2041 | AE74: 2042 | AF74: 2043 | AG74: 2044 | AH74: 2045 | AI74: 2046 | AJ74: 2047 | AK74: 2048 | AL74: 2049 | AM74: 2050
C75: =Default_CountryAll -> Argentina | D75: =INDEX(CATData_min_data,MATCH($C75,CATData_max_country,0),MATCH(D$74,CATData_max_year,0)) -> 0.003835047635 | E75: 0.01963504763 | F75: 0.03543504763 | G75: 0.05123504763 | H75: 0.06703504763 | I75: 0.08283504763 | J75: 0.1028350476 | K75: 0.1228350476 | L75: 0.1428350476 | M75: 0.1628350476 | N75: =INDEX(CATData_min_data,MATCH($C75,CATData_max_country,0),MATCH(N$74,CATData_max_year,0)) -> 0.1828350476 | O75: 0.1888350476 | P75: 0.1948350476 | Q75: 0.2008350476 | R75: 0.2068350476 | S75: 0.2128350476 | X75: =INDEX(CATData_min_data,MATCH($C75,CATData_max_country,0),MATCH(X$74,CATData_max_year,0)) ->  | AH75: =INDEX(CATData_min_data,MATCH($C75,CATData_max_country,0),MATCH(AH$74,CATData_max_year,0)) -> 
C76: Australia | D76: 0.06847947925 | E76: 0.08907947925 | F76: 0.1096794793 | G76: 0.1302794793 | H76: 0.1508794793 | I76: 0.1714794793 | J76: 0.1802794793 | K76: 0.1890794793 | L76: 0.1978794793 | M76: 0.2066794793 | N76: 0.2154794793 | O76: 0.2216794793 | P76: 0.2278794793 | Q76: 0.2340794793 | R76: 0.2402794793 | S76: 0.2464794793
C77: Brazil | D77: 0.03761266187 | E77: 0.05141266187 | F77: 0.06521266187 | G77: 0.07901266187 | H77: 0.09281266187 | I77: 0.1066126619 | J77: 0.1009126619 | K77: 0.09521266187 | L77: 0.08951266187 | M77: 0.08381266187 | N77: 0.07811266187 | O77: 0.07241266187 | P77: 0.06671266187 | Q77: 0.06101266187 | R77: 0.05531266187 | S77: 0.04961266187
C78: Canada | D78: 0.03889624047 | E78: 0.04589624047 | F78: 0.05289624047 | G78: 0.05989624047 | H78: 0.06689624047 | I78: 0.07389624047 | J78: 0.07949624047 | K78: 0.08509624047 | L78: 0.09069624047 | M78: 0.09629624047 | N78: 0.1018962405 | O78: 0.1030962405 | P78: 0.1042962405 | Q78: 0.1054962405 | R78: 0.1066962405 | S78: 0.1078962405
C79: China | D79: 0.03924641859 | E79: 0.04344641859 | F79: 0.04764641859 | G79: 0.05184641859 | H79: 0.05604641859 | I79: 0.06024641859 | J79: 0.06444641859 | K79: 0.06864641859 | L79: 0.07284641859 | M79: 0.07704641859 | N79: 0.08124641859 | O79: 0.08124641859 | P79: 0.08124641859 | Q79: 0.08124641859 | R79: 0.08124641859 | S79: 0.08124641859
C80: France | D80: 0.05128747395 | E80: 0.05948747395 | F80: 0.06768747395 | G80: 0.07588747395 | H80: 0.08408747395 | I80: 0.09228747395 | J80: 0 | K80: 0 | L80: 0 | M80: 0 | N80: 0 | O80: 0 | P80: 0 | Q80: 0 | R80: 0 | S80: 0
C81: Germany | D81: 0.1836730503 | E81: 0.2054730503 | F81: 0.2272730503 | G81: 0.2490730503 | H81: 0.2708730503 | I81: 0.2926730503 | J81: 0.3140730503 | K81: 0.3354730503 | L81: 0.3568730503 | M81: 0.3782730503 | N81: 0.3996730503 | O81: 0.4134730503 | P81: 0.4272730503 | Q81: 0.4410730503 | R81: 0.4548730503 | S81: 0.4686730503
C82: India | D82: 0.03540783234 | E82: 0.04900783234 | F82: 0.06260783234 | G82: 0.07620783234 | H82: 0.08980783234 | I82: 0.1034078323 | J82: 0.1012078323 | K82: 0.09900783234 | L82: 0.09680783234 | M82: 0.09460783234 | N82: 0.09240783234 | O82: 0.09120783234 | P82: 0.09000783234 | Q82: 0.08880783234 | R82: 0.08760783234 | S82: 0.08640783234
C83: Indonesia | D83: 0.0005269078228 | E83: 0.01292690782 | F83: 0.02532690782 | G83: 0.03772690782 | H83: 0.05012690782 | I83: 0.06252690782 | J83: 0.06332690782 | K83: 0.06412690782 | L83: 0.06492690782 | M83: 0.06572690782 | N83: 0.06652690782 | O83: 0.06732690782 | P83: 0.06812690782 | Q83: 0.06892690782 | R83: 0.06972690782 | S83: 0.07052690782
C84: Italy | D84: 0.1344090964 | E84: 0.1398090964 | F84: 0.1452090964 | G84: 0.1506090964 | H84: 0.1560090964 | I84: 0.1614090964 | J84: 0.1618090964 | K84: 0.1622090964 | L84: 0.1626090964 | M84: 0.1630090964 | N84: 0.1634090964 | O84: 0.1638090964 | P84: 0.1642090964 | Q84: 0.1646090964 | R84: 0.1650090964 | S84: 0.1654090964
C85: Japan | D85: =INDEX(CATData_min_data,MATCH($C85,CATData_max_country,0),MATCH(D$74,CATData_max_year,0)) -> 0.05610296205 | E85: 0.06230296205 | F85: 0.06850296205 | G85: 0.07470296205 | H85: 0.08090296205 | I85: 0.08710296205 | J85: 0.09030296205 | K85: 0.09350296205 | L85: 0.09670296205 | M85: 0.09990296205 | N85: =INDEX(CATData_min_data,MATCH($C85,CATData_max_country,0),MATCH(N$74,CATData_max_year,0)) -> 0.103102962 | O85: 0.106302962 | P85: 0.109502962 | Q85: 0.112702962 | R85: 0.115902962 | S85: 0.119102962 | X85: =INDEX(CATData_min_data,MATCH($C85,CATData_max_country,0),MATCH(X$74,CATData_max_year,0)) ->  | AH85: =INDEX(CATData_min_data,MATCH($C85,CATData_max_country,0),MATCH(AH$74,CATData_max_year,0)) -> 
C86: South Korea | D86: 0.009201376749 | E86: 0.01122137675 | F86: 0.01324137675 | G86: 0.01526137675 | H86: 0.01728137675 | I86: 0.01930137675 | J86: 0.02116137675 | K86: 0.02302137675 | L86: 0.02488137675 | M86: 0.02674137675 | N86: 0.02860137675 | O86: 0.03030137675 | P86: 0.03200137675 | Q86: 0.03370137675 | R86: 0.03540137675 | S86: 0.03710137675
C87: Mexico | D87: 0.03013567242 | E87: 0.04393567242 | F87: 0.05773567242 | G87: 0.07153567242 | H87: 0.08533567242 | I87: 0.09913567242 | J87: 0.1145356724 | K87: 0.1299356724 | L87: 0.1453356724 | M87: 0.1607356724 | N87: 0.1761356724 | O87: 0.1789356724 | P87: 0.1817356724 | Q87: 0.1845356724 | R87: 0.1873356724 | S87: 0.1901356724
C88: Russian Federation | D88: 0.0008953044369 | E88: 0.004895304437 | F88: 0.008895304437 | G88: 0.01289530444 | H88: 0.01689530444 | I88: 0.02089530444 | J88: 0.02189530444 | K88: 0.02289530444 | L88: 0.02389530444 | M88: 0.02489530444 | N88: 0.02589530444 | O88: 0.02669530444 | P88: 0.02749530444 | Q88: 0.02829530444 | R88: 0.02909530444 | S88: 0.02989530444
C89: Saudi Arabia | D89: 0 | E89: 0.00808 | F89: 0.01616 | G89: 0.02424 | H89: 0.03232 | I89: 0.0404 | J89: 0.04224 | K89: 0.04408 | L89: 0.04592 | M89: 0.04776 | N89: 0.0496 | O89: 0.04788 | P89: 0.04616 | Q89: 0.04444 | R89: 0.04272 | S89: 0.041
C90: South Africa | D90: 0.01830391025 | E90: 0.02538391025 | F90: 0.03246391025 | G90: 0.03954391025 | H90: 0.04662391025 | I90: 0.05370391025 | J90: 0.06008391025 | K90: 0.06646391025 | L90: 0.07284391025 | M90: 0.07922391025 | N90: 0.08560391025 | O90: 0.1020239103 | P90: 0.1184439103 | Q90: 0.1348639103 | R90: 0.1512839103 | S90: 0.1677039103
C91: Turkey | D91: 0.04568119397 | E91: 0.04674786063 | F91: 0.0478145273 | G91: 0.04888119397 | H91: 0.04994786063 | I91: 0.0510145273 | J91: 0.05208119397 | K91: 0.05314786063 | L91: 0.0542145273 | M91: 0.05528119397 | N91: 0.05634786063 | O91: 0.0702145273 | P91: 0.08408119397 | Q91: 0.09794786063 | R91: 0.1118145273 | S91: 0.125681194
C92: United Kingdom | D92: 0.1422784479 | E92: 0.1688784479 | F92: 0.1954784479 | G92: 0.2220784479 | H92: 0.2486784479 | I92: 0.2752784479 | J92: 0.2798784479 | K92: 0.2844784479 | L92: 0.2890784479 | M92: 0.2936784479 | N92: 0.2982784479 | O92: 0.2988784479 | P92: 0.2994784479 | Q92: 0.3000784479 | R92: 0.3006784479 | S92: 0.3012784479
C93: United States of America | D93: =INDEX(CATData_min_data,MATCH($C93,CATData_max_country,0),MATCH(D$74,CATData_max_year,0)) -> 0.05291966392 | E93: 0.06431966392 | F93: 0.07571966392 | G93: 0.08711966392 | H93: 0.09851966392 | I93: 0.1099196639 | J93: 0.1157196639 | K93: 0.1215196639 | L93: 0.1273196639 | M93: 0.1331196639 | N93: 0.1389196639 | O93: 0.1401196639 | P93: 0.1413196639 | Q93: 0.1425196639 | R93: 0.1437196639 | S93: 0.1449196639 | T93: 0.1472196639 | U93: 0.1495196639 | V93: 0.1518196639 | W93: 0.1541196639 | X93: 0.1564196639 | Y93: 0.1587196639 | Z93: 0.1610196639 | AA93: 0.1633196639 | AB93: 0.1656196639 | AC93: 0.1679196639 | AD93: 0.1702196639 | AE93: 0.1725196639 | AF93: 0.1748196639 | AG93: 0.1771196639 | AH93: 0.1794196639 | AI93: 0.1817196639 | AJ93: 0.1840196639 | AK93: 0.1863196639 | AL93: 0.1886196639 | AM93: 0.1909196639
B95: Selected default country | C95: ="Projection: CATDecarb min" -> Projection: CATDecarb min | D95: =INDEX(D75:D93,MATCH($D$43,$C$75:$C$93,0)) -> 0.05291966392 | E95: =INDEX(E75:E93,MATCH($D$43,$C$75:$C$93,0)) -> 0.06431966392 | F95: 0.07571966392 | G95: 0.08711966392 | H95: 0.09851966392 | I95: 0.1099196639 | J95: 0.1157196639 | K95: 0.1215196639 | L95: 0.1273196639 | M95: 0.1331196639 | N95: 0.1389196639 | O95: 0.1401196639 | P95: 0.1413196639 | Q95: 0.1425196639 | R95: 0.1437196639 | S95: 0.1449196639 | T95: 0.1472196639 | U95: 0.1495196639 | V95: 0.1518196639 | W95: 0.1541196639 | X95: 0.1564196639 | Y95: 0.1587196639 | Z95: 0.1610196639 | AA95: 0.1633196639 | AB95: 0.1656196639 | AC95: 0.1679196639 | AD95: 0.1702196639 | AE95: 0.1725196639 | AF95: 0.1748196639 | AG95: 0.1771196639 | AH95: 0.1794196639 | AI95: 0.1817196639 | AJ95: 0.1840196639 | AK95: 0.1863196639 | AL95: 0.1886196639 | AM95: 0.1909196639
D96: 0 | E96: 0 | F96: 0 | G96: 0
B98: VRE targets per country (from Allianz 2018) | G98: VRE shares per country (from IRENA REmap) Projections | M98: VRE from IEA Renewables 2017 Projections
C100: projected_current_policy_max | H100: IRENA REmap | N100: IEA Renewables 2017
C102: Country | D102: Year | E102: Target | H102: Country | I102: Year | J102: IRENA Reference Case | K102: IRENA Remap | N102: Country | O102: Year | P102: Target
C103: =Default_CountryAll -> Argentina | D103: =INDEX('Default_RawData&Calc'!$J$31:$J$49,MATCH(C103,'Default_RawData&Calc'!$D$31:$D$49,0)) -> 2025 | E103: =INDEX('Default_RawData&Calc'!$I$31:$I$49,MATCH(C103,'Default_RawData&Calc'!$D$31:$D$49,0)) -> 0.1770503878 | H103: =Default_CountryAll -> Argentina | I103: 2030 | J103: =INDEX(DataValidation!$D$44:$E$62,MATCH(H103,DataValidation!$B$44:$B$62,0),MATCH(J$102,DataValidation!$D$43:$E$43,0)) -> 0.104 | K103: =INDEX(DataValidation!$D$44:$E$62,MATCH(H103,DataValidation!$B$44:$B$62,0),MATCH(K$102,DataValidation!$D$43:$E$43,0)) -> 0.155 | N103: =Default_CountryAll -> Argentina | O103: 2022 | P103: =INDEX(DataValidation!$I$44:$I$62,MATCH(N103,DataValidation!$G$44:$G$62,0)) -> NA
C104: Australia | D104: =INDEX('Default_RawData&Calc'!$J$31:$J$49,MATCH(C104,'Default_RawData&Calc'!$D$31:$D$49,0)) -> 2020 | E104: =INDEX('Default_RawData&Calc'!$I$31:$I$49,MATCH(C104,'Default_RawData&Calc'!$D$31:$D$49,0)) -> 0.1674794793 | H104: Australia | I104: 2030 | J104: =INDEX(DataValidation!$D$44:$E$62,MATCH(H104,DataValidation!$B$44:$B$62,0),MATCH(J$102,DataValidation!$D$43:$E$43,0)) -> 0.106 | K104: =INDEX(DataValidation!$D$44:$E$62,MATCH(H104,DataValidation!$B$44:$B$62,0),MATCH(K$102,DataValidation!$D$43:$E$43,0)) -> 0.266 | N104: Australia | O104: 2022 | P104: =INDEX(DataValidation!$I$44:$I$62,MATCH(N104,DataValidation!$G$44:$G$62,0)) -> 0.13
C105: Brazil | D105: =INDEX('Default_RawData&Calc'!$J$31:$J$49,MATCH(C105,'Default_RawData&Calc'!$D$31:$D$49,0)) -> 2026 | E105: =INDEX('Default_RawData&Calc'!$I$31:$I$49,MATCH(C105,'Default_RawData&Calc'!$D$31:$D$49,0)) -> 0.1676126619 | H105: Brazil | I105: 2030 | J105: =INDEX(DataValidation!$D$44:$E$62,MATCH(H105,DataValidation!$B$44:$B$62,0),MATCH(J$102,DataValidation!$D$43:$E$43,0)) -> 0.111 | K105: =INDEX(DataValidation!$D$44:$E$62,MATCH(H105,DataValidation!$B$44:$B$62,0),MATCH(K$102,DataValidation!$D$43:$E$43,0)) -> 0.146 | N105: Brazil | O105: 2022 | P105: =INDEX(DataValidation!$I$44:$I$62,MATCH(N105,DataValidation!$G$44:$G$62,0)) -> 0.1
C106: Canada | D106: =INDEX('Default_RawData&Calc'!$J$31:$J$49,MATCH(C106,'Default_RawData&Calc'!$D$31:$D$49,0)) -> 0 | E106: =INDEX('Default_RawData&Calc'!$I$31:$I$49,MATCH(C106,'Default_RawData&Calc'!$D$31:$D$49,0)) -> no national target | H106: Canada | I106: 2030 | J106: =INDEX(DataValidation!$D$44:$E$62,MATCH(H106,DataValidation!$B$44:$B$62,0),MATCH(J$102,DataValidation!$D$43:$E$43,0)) -> 0.065 | K106: =INDEX(DataValidation!$D$44:$E$62,MATCH(H106,DataValidation!$B$44:$B$62,0),MATCH(K$102,DataValidation!$D$43:$E$43,0)) -> 0.128 | N106: Canada | O106: 2022 | P106: =INDEX(DataValidation!$I$44:$I$62,MATCH(N106,DataValidation!$G$44:$G$62,0)) -> NA
C107: China | D107: =INDEX('Default_RawData&Calc'!$J$31:$J$49,MATCH(C107,'Default_RawData&Calc'!$D$31:$D$49,0)) -> 2020 | E107: =INDEX('Default_RawData&Calc'!$I$31:$I$49,MATCH(C107,'Default_RawData&Calc'!$D$31:$D$49,0)) -> 0.07024641859 | H107: China | I107: 2030 | J107: =INDEX(DataValidation!$D$44:$E$62,MATCH(H107,DataValidation!$B$44:$B$62,0),MATCH(J$102,DataValidation!$D$43:$E$43,0)) -> 0.115 | K107: =INDEX(DataValidation!$D$44:$E$62,MATCH(H107,DataValidation!$B$44:$B$62,0),MATCH(K$102,DataValidation!$D$43:$E$43,0)) -> 0.19 | N107: China | O107: 2022 | P107: =INDEX(DataValidation!$I$44:$I$62,MATCH(N107,DataValidation!$G$44:$G$62,0)) -> 0.11
C108: France | D108: =INDEX('Default_RawData&Calc'!$J$31:$J$49,MATCH(C108,'Default_RawData&Calc'!$D$31:$D$49,0)) -> 2030 | E108: =INDEX('Default_RawData&Calc'!$I$31:$I$49,MATCH(C108,'Default_RawData&Calc'!$D$31:$D$49,0)) -> 0.292287474 | H108: France | I108: 2030 | J108: =INDEX(DataValidation!$D$44:$E$62,MATCH(H108,DataValidation!$B$44:$B$62,0),MATCH(J$102,DataValidation!$D$43:$E$43,0)) -> 0.23 | K108: =INDEX(DataValidation!$D$44:$E$62,MATCH(H108,DataValidation!$B$44:$B$62,0),MATCH(K$102,DataValidation!$D$43:$E$43,0)) -> 0.277 | N108: France | O108: 2022 | P108: =INDEX(DataValidation!$I$44:$I$62,MATCH(N108,DataValidation!$G$44:$G$62,0)) -> NA
C109: Germany | D109: =INDEX('Default_RawData&Calc'!$J$31:$J$49,MATCH(C109,'Default_RawData&Calc'!$D$31:$D$49,0)) -> 2030 | E109: =INDEX('Default_RawData&Calc'!$I$31:$I$49,MATCH(C109,'Default_RawData&Calc'!$D$31:$D$49,0)) -> 0.5416730503 | H109: Germany | I109: 2030 | J109: =INDEX(DataValidation!$D$44:$E$62,MATCH(H109,DataValidation!$B$44:$B$62,0),MATCH(J$102,DataValidation!$D$43:$E$43,0)) -> 0.332 | K109: =INDEX(DataValidation!$D$44:$E$62,MATCH(H109,DataValidation!$B$44:$B$62,0),MATCH(K$102,DataValidation!$D$43:$E$43,0)) -> 0.459 | N109: Germany | O109: 2022 | P109: =INDEX(DataValidation!$I$44:$I$62,MATCH(N109,DataValidation!$G$44:$G$62,0)) -> 0.26
C110: India | D110: =INDEX('Default_RawData&Calc'!$J$31:$J$49,MATCH(C110,'Default_RawData&Calc'!$D$31:$D$49,0)) -> 2026 | E110: =INDEX('Default_RawData&Calc'!$I$31:$I$49,MATCH(C110,'Default_RawData&Calc'!$D$31:$D$49,0)) -> 0.36 | H110: India | I110: 2030 | J110: =INDEX(DataValidation!$D$44:$E$62,MATCH(H110,DataValidation!$B$44:$B$62,0),MATCH(J$102,DataValidation!$D$43:$E$43,0)) -> 0.124 | K110: =INDEX(DataValidation!$D$44:$E$62,MATCH(H110,DataValidation!$B$44:$B$62,0),MATCH(K$102,DataValidation!$D$43:$E$43,0)) -> 0.23 | N110: India | O110: 2022 | P110: =INDEX(DataValidation!$I$44:$I$62,MATCH(N110,DataValidation!$G$44:$G$62,0)) -> 0.11
C111: Indonesia | D111: =INDEX('Default_RawData&Calc'!$J$31:$J$49,MATCH(C111,'Default_RawData&Calc'!$D$31:$D$49,0)) -> 2025 | E111: =INDEX('Default_RawData&Calc'!$I$31:$I$49,MATCH(C111,'Default_RawData&Calc'!$D$31:$D$49,0)) -> 0.1235269078 | H111: Indonesia | I111: 2030 | J111: =INDEX(DataValidation!$D$44:$E$62,MATCH(H111,DataValidation!$B$44:$B$62,0),MATCH(J$102,DataValidation!$D$43:$E$43,0)) -> 0.042 | K111: =INDEX(DataValidation!$D$44:$E$62,MATCH(H111,DataValidation!$B$44:$B$62,0),MATCH(K$102,DataValidation!$D$43:$E$43,0)) -> 0.109 | N111: Indonesia | O111: 2022 | P111: =INDEX(DataValidation!$I$44:$I$62,MATCH(N111,DataValidation!$G$44:$G$62,0)) -> NA
C112: Italy | D112: =INDEX('Default_RawData&Calc'!$J$31:$J$49,MATCH(C112,'Default_RawData&Calc'!$D$31:$D$49,0)) -> 2030 | E112: =INDEX('Default_RawData&Calc'!$I$31:$I$49,MATCH(C112,'Default_RawData&Calc'!$D$31:$D$49,0)) -> 0.2974090964 | H112: Italy | I112: 2030 | J112: =INDEX(DataValidation!$D$44:$E$62,MATCH(H112,DataValidation!$B$44:$B$62,0),MATCH(J$102,DataValidation!$D$43:$E$43,0)) -> 0.185 | K112: =INDEX(DataValidation!$D$44:$E$62,MATCH(H112,DataValidation!$B$44:$B$62,0),MATCH(K$102,DataValidation!$D$43:$E$43,0)) -> 0.259 | N112: Italy | O112: 2022 | P112: =INDEX(DataValidation!$I$44:$I$62,MATCH(N112,DataValidation!$G$44:$G$62,0)) -> 0.16
C113: Japan | D113: =INDEX('Default_RawData&Calc'!$J$31:$J$49,MATCH(C113,'Default_RawData&Calc'!$D$31:$D$49,0)) -> 2030 | E113: =INDEX('Default_RawData&Calc'!$I$31:$I$49,MATCH(C113,'Default_RawData&Calc'!$D$31:$D$49,0)) -> 0.087 | H113: Japan | I113: 2030 | J113: =INDEX(DataValidation!$D$44:$E$62,MATCH(H113,DataValidation!$B$44:$B$62,0),MATCH(J$102,DataValidation!$D$43:$E$43,0)) -> 0.088 | K113: =INDEX(DataValidation!$D$44:$E$62,MATCH(H113,DataValidation!$B$44:$B$62,0),MATCH(K$102,DataValidation!$D$43:$E$43,0)) -> 0.22 | N113: Japan | O113: 2022 | P113: =INDEX(DataValidation!$I$44:$I$62,MATCH(N113,DataValidation!$G$44:$G$62,0)) -> NA
C114: South Korea | D114: =INDEX('Default_RawData&Calc'!$J$31:$J$49,MATCH(C114,'Default_RawData&Calc'!$D$31:$D$49,0)) -> 2029 | E114: =INDEX('Default_RawData&Calc'!$I$31:$I$49,MATCH(C114,'Default_RawData&Calc'!$D$31:$D$49,0)) -> 0.1073013767 | H114: South Korea | I114: 2030 | J114: =INDEX(DataValidation!$D$44:$E$62,MATCH(H114,DataValidation!$B$44:$B$62,0),MATCH(J$102,DataValidation!$D$43:$E$43,0)) -> 0.066 | K114: =INDEX(DataValidation!$D$44:$E$62,MATCH(H114,DataValidation!$B$44:$B$62,0),MATCH(K$102,DataValidation!$D$43:$E$43,0)) -> 0.237 | N114: South Korea | O114: 2022 | P114: =INDEX(DataValidation!$I$44:$I$62,MATCH(N114,DataValidation!$G$44:$G$62,0)) -> NA
C115: Mexico | D115: =INDEX('Default_RawData&Calc'!$J$31:$J$49,MATCH(C115,'Default_RawData&Calc'!$D$31:$D$49,0)) -> 2031 | E115: =INDEX('Default_RawData&Calc'!$I$31:$I$49,MATCH(C115,'Default_RawData&Calc'!$D$31:$D$49,0)) -> 0.177 | H115: Mexico | I115: 2030 | J115: =INDEX(DataValidation!$D$44:$E$62,MATCH(H115,DataValidation!$B$44:$B$62,0),MATCH(J$102,DataValidation!$D$43:$E$43,0)) -> 0.085 | K115: =INDEX(DataValidation!$D$44:$E$62,MATCH(H115,DataValidation!$B$44:$B$62,0),MATCH(K$102,DataValidation!$D$43:$E$43,0)) -> 0.261 | N115: Mexico | O115: 2022 | P115: =INDEX(DataValidation!$I$44:$I$62,MATCH(N115,DataValidation!$G$44:$G$62,0)) -> NA
C116: Russian Federation | D116: =INDEX('Default_RawData&Calc'!$J$31:$J$49,MATCH(C116,'Default_RawData&Calc'!$D$31:$D$49,0)) -> 2020 | E116: =INDEX('Default_RawData&Calc'!$I$31:$I$49,MATCH(C116,'Default_RawData&Calc'!$D$31:$D$49,0)) -> 0.025 | H116: Russian Federation | I116: 2030 | J116: =INDEX(DataValidation!$D$44:$E$62,MATCH(H116,DataValidation!$B$44:$B$62,0),MATCH(J$102,DataValidation!$D$43:$E$43,0)) -> 0.007 | K116: =INDEX(DataValidation!$D$44:$E$62,MATCH(H116,DataValidation!$B$44:$B$62,0),MATCH(K$102,DataValidation!$D$43:$E$43,0)) -> 0.011 | N116: Russian Federation | O116: 2022 | P116: =INDEX(DataValidation!$I$44:$I$62,MATCH(N116,DataValidation!$G$44:$G$62,0)) -> NA
C117: Saudi Arabia | D117: =INDEX('Default_RawData&Calc'!$J$31:$J$49,MATCH(C117,'Default_RawData&Calc'!$D$31:$D$49,0)) -> 2025 | E117: =INDEX('Default_RawData&Calc'!$I$31:$I$49,MATCH(C117,'Default_RawData&Calc'!$D$31:$D$49,0)) -> 0.05 | H117: Saudi Arabia | I117: 2030 | J117: =INDEX(DataValidation!$D$44:$E$62,MATCH(H117,DataValidation!$B$44:$B$62,0),MATCH(J$102,DataValidation!$D$43:$E$43,0)) -> 0.048 | K117: =INDEX(DataValidation!$D$44:$E$62,MATCH(H117,DataValidation!$B$44:$B$62,0),MATCH(K$102,DataValidation!$D$43:$E$43,0)) -> 0.074 | N117: Saudi Arabia | O117: 2022 | P117: =INDEX(DataValidation!$I$44:$I$62,MATCH(N117,DataValidation!$G$44:$G$62,0)) -> NA
C118: South Africa | D118: =INDEX('Default_RawData&Calc'!$J$31:$J$49,MATCH(C118,'Default_RawData&Calc'!$D$31:$D$49,0)) -> 2030 | E118: =INDEX('Default_RawData&Calc'!$I$31:$I$49,MATCH(C118,'Default_RawData&Calc'!$D$31:$D$49,0)) -> 0.1057039103 | H118: South Africa | I118: 2030 | J118: =INDEX(DataValidation!$D$44:$E$62,MATCH(H118,DataValidation!$B$44:$B$62,0),MATCH(J$102,DataValidation!$D$43:$E$43,0)) -> 0.065 | K118: =INDEX(DataValidation!$D$44:$E$62,MATCH(H118,DataValidation!$B$44:$B$62,0),MATCH(K$102,DataValidation!$D$43:$E$43,0)) -> 0.139 | N118: South Africa | O118: 2022 | P118: =INDEX(DataValidation!$I$44:$I$62,MATCH(N118,DataValidation!$G$44:$G$62,0)) -> NA
C119: Turkey | D119: =INDEX('Default_RawData&Calc'!$J$31:$J$49,MATCH(C119,'Default_RawData&Calc'!$D$31:$D$49,0)) -> 2030 | E119: =INDEX('Default_RawData&Calc'!$I$31:$I$49,MATCH(C119,'Default_RawData&Calc'!$D$31:$D$49,0)) -> 0.16 | H119: Turkey | I119: 2030 | J119: =INDEX(DataValidation!$D$44:$E$62,MATCH(H119,DataValidation!$B$44:$B$62,0),MATCH(J$102,DataValidation!$D$43:$E$43,0)) -> 0.177 | K119: =INDEX(DataValidation!$D$44:$E$62,MATCH(H119,DataValidation!$B$44:$B$62,0),MATCH(K$102,DataValidation!$D$43:$E$43,0)) -> 0.184 | N119: Turkey | O119: 2022 | P119: =INDEX(DataValidation!$I$44:$I$62,MATCH(N119,DataValidation!$G$44:$G$62,0)) -> NA
C120: United Kingdom | D120: =INDEX('Default_RawData&Calc'!$J$31:$J$49,MATCH(C120,'Default_RawData&Calc'!$D$31:$D$49,0)) -> 2020 | E120: =INDEX('Default_RawData&Calc'!$I$31:$I$49,MATCH(C120,'Default_RawData&Calc'!$D$31:$D$49,0)) -> 0.1942784479 | H120: United Kingdom | I120: 2030 | J120: =INDEX(DataValidation!$D$44:$E$62,MATCH(H120,DataValidation!$B$44:$B$62,0),MATCH(J$102,DataValidation!$D$43:$E$43,0)) -> 0.282 | K120: =INDEX(DataValidation!$D$44:$E$62,MATCH(H120,DataValidation!$B$44:$B$62,0),MATCH(K$102,DataValidation!$D$43:$E$43,0)) -> 0.565 | N120: United Kingdom | O120: 2022 | P120: =INDEX(DataValidation!$I$44:$I$62,MATCH(N120,DataValidation!$G$44:$G$62,0)) -> 0.26
C121: United States of America | D121: =INDEX('Default_RawData&Calc'!$J$31:$J$49,MATCH(C121,'Default_RawData&Calc'!$D$31:$D$49,0)) -> 2030 | E121: =INDEX('Default_RawData&Calc'!$I$31:$I$49,MATCH(C121,'Default_RawData&Calc'!$D$31:$D$49,0)) -> 0.1836395247 | H121: United States of America | I121: 2030 | J121: =INDEX(DataValidation!$D$44:$E$62,MATCH(H121,DataValidation!$B$44:$B$62,0),MATCH(J$102,DataValidation!$D$43:$E$43,0)) -> 0.067 | K121: =INDEX(DataValidation!$D$44:$E$62,MATCH(H121,DataValidation!$B$44:$B$62,0),MATCH(K$102,DataValidation!$D$43:$E$43,0)) -> 0.3 | N121: United States of America | O121: 2022 | P121: =INDEX(DataValidation!$I$44:$I$62,MATCH(N121,DataValidation!$G$44:$G$62,0)) -> 0.12
C123: ="Target: "&SelectedDefaultCountry&"'s mid-term target" -> Target: United States of America's mid-term target | D123: =INDEX(D103:D121,MATCH($D$43,$C$103:$C$121,0)) -> 2030 | E123: =INDEX(E103:E121,MATCH($D$43,$C$50:$C$68,0)) -> 0.1836395247 | H123: ="Projection: IRENA Reference Case" -> Projection: IRENA Reference Case | I123: =INDEX(I103:I121,MATCH($D$43,$C$103:$C$121,0)) -> 2030 | J123: =INDEX(J103:J121,MATCH($D$43,$H$103:$H$121,0)) -> 0.067 | N123: ="Projection: IEA Renewables (2017 Edition)" -> Projection: IEA Renewables (2017 Edition) | O123: =INDEX(O103:O121,MATCH($D$43,$C$103:$C$121,0)) -> 2022 | P123: =INDEX(P103:P121,MATCH($D$43,$C$50:$C$68,0)) -> 0.12
H124: ="Projection: IRENA REmap" -> Projection: IRENA REmap | I124: =INDEX(I103:I121,MATCH($D$43,$C$103:$C$121,0)) -> 2030 | K124: =INDEX(K103:K121,MATCH($D$43,$H$103:$H$121,0)) -> 0.3
B127: PRIMES Projections (EU countries)
D129: 2000 | E129: 2005 | F129: 2010 | G129: 2015 | H129: 2020 | I129: 2025 | J129: 2030 | K129: 2035 | L129: 2040 | M129: 2045 | N129: 2050
C130: Italy | D130: =INDEX(Primes_VRE_data,MATCH($C130,Primes_VRE_country,0),MATCH(D$129,Primes_VRE_year,0)) -> 0.002148617661 | E130: 0.008000943269 | F130: 0.03692435394 | G130: 0.1316286699 | H130: 0.1269986699 | I130: 0.1818480228 | J130: 0.206588911 | K130: 0.2003333201 | L130: 0.2103135734 | M130: 0.301199036 | N130: 0.3589180884
C131: France | D131: 0.000152995065 | E131: 0.00170472545 | F131: 0.0187292417 | G131: 0.05155390925 | H131: 0.1454680263 | I131: 0.1744406953 | J131: 0.2045822506 | K131: 0.2076627325 | L131: 0.254317279 | M131: 0.2864622443 | N131: 0.3837638148
C132: Germany | D132: 0.01644554641 | E132: 0.046300747 | F132: 0.07903182819 | G132: 0.1560568938 | H132: 0.2635342612 | I132: 0.2732724427 | J132: 0.309147196 | K132: 0.31233967 | L132: 0.3284678623 | M132: 0.398017279 | N132: 0.4306182171
C134: ="Projection: PRIMES REF2016 scenario" -> Projection: PRIMES REF2016 scenario | D134: =IF(INDEX(D130:D132,MATCH($D$43,$C$130:$C$132,0))=0,"N/A",INDEX(D130:D132,MATCH($D$43,$C$130:$C$132,0))) ->  | E134: =INDEX(E130:E132,MATCH($D$43,$C$130:$C$132,0)) -> 
B137: IEA WEO2018 Projections
C139: Country | D139: 2025 | E139: 2030 | F139: 2035 | G139: 2040
C140: =Default_CountryAll -> Argentina | D140: =INDEX(WEO2018_data,MATCH($C140,WEO2018_countries,0),MATCH(D$139,WEO2018_years,0)) -> NA | E140: NA | F140: NA | G140: NA
C141: Australia | D141: NA | E141: NA | F141: NA | G141: NA
C142: Brazil | D142: 0.1066481994 | E142: 0.1224242424 | F142: 0.1276595745 | G142: 0.138576779
C143: Canada | D143: NA | E143: NA | F143: NA | G143: NA
C144: China | D144: 0.1228498373 | E144: 0.1357295591 | F144: 0.1472825589 | G144: 0.1594715139
C145: France | D145: NA | E145: NA | F145: NA | G145: NA
C146: Germany | D146: NA | E146: NA | F146: NA | G146: NA
C147: India | D147: 0.130859375 | E147: 0.1697247706 | F147: 0.1998016857 | G147: 0.2315941431
C148: Indonesia | D148: NA | E148: NA | F148: NA | G148: NA
C149: Italy | D149: NA | E149: NA | F149: NA | G149: NA
C150: Japan | D150: 0.07988980716 | E150: 0.08408679928 | F150: 0.08977777778 | G150: 0.09561403509
C151: South Korea | D151: NA | E151: NA | F151: NA | G151: NA
C152: Mexico | D152: NA | E152: NA | F152: NA | G152: NA
C153: Russian Federation | D153: 0.004180602007 | E153: 0.005516154452 | F153: 0.005912786401 | G153: 0.009688581315
C154: Saudi Arabia | D154: NA | E154: NA | F154: NA | G154: NA
C155: South Africa | D155: NA | E155: NA | F155: NA | G155: NA
C156: Turkey | D156: NA | E156: NA | F156: NA | G156: NA
C157: United Kingdom | D157: NA | E157: NA | F157: NA | G157: NA
C158: United States of America | D158: 0.1360054042 | E158: 0.1523642732 | F158: 0.1694267516 | G158: 0.1894888113
C160: ="Projection: IEA WEO 2018" -> Projection: IEA WEO 2018 | D160: =INDEX(D140:D158,MATCH($D$43,$C$140:$C$158,0)) -> 0.1360054042 | E160: =INDEX(E140:E158,MATCH($D$43,$C$140:$C$158,0)) -> 0.1523642732 | F160: 0.1694267516 | G160: 0.1894888113
B163: CTI tool Projections
D165: 2005 | E165: 2010 | F165: 2011 | G165: 2012 | H165: 2013 | I165: 2014 | J165: 2015 | K165: 2016 | L165: 2017 | M165: 2018 | N165: 2019 | O165: 2020 | P165: 2021 | Q165: 2022 | R165: 2023 | S165: 2024 | T165: 2025 | U165: 2026 | V165: 2027 | W165: 2028 | X165: 2029 | Y165: 2030
C166: China | D166: =INDEX(CTItools_data,MATCH($C166,CTItools_countries,0),MATCH(D$165,CTItools_year,0)) -> 0.0008446449232 | E166: 0.01077024057 | F166: 0.01546626325 | G166: 0.02226637239 | H166: 0.02724173712 | I166: 0.0319889878 | J166: 0.0391292605 | K166: 0.05055588766 | L166: 0.06200806013 | M166: 0.07143580909 | N166: =INDEX(CTItools_data,MATCH($C166,CTItools_countries,0),MATCH(N$165,CTItools_year,0)) -> 0.08149277408 | O166: 0.08600658352 | P166: 0.08991652238 | Q166: 0.09499140639 | R166: 0.1003875037 | S166: 0.1060760374 | T166: 0.1124327226 | U166: 0.1174679065 | V166: 0.1217438032 | W166: 0.1292363167 | X166: 0.1424441634 | Y166: 0.1592104067
C167: United States of America | D167: 0.004560194301 | E167: 0.02378785963 | F167: 0.03058512682 | G167: 0.0370691185 | H167: 0.0452984227 | I167: 0.05125927689 | J167: 0.05634987753 | K167: 0.06930570264 | L167: 0.0775305102 | M167: 0.08587644408 | N167: 0.09785468237 | O167: 0.1238138744 | P167: 0.1430673964 | Q167: 0.1571333418 | R167: 0.1664907464 | S167: 0.1755434601 | T167: 0.1851797214 | U167: 0.1932867311 | V167: 0.2012073799 | W167: 0.209413752 | X167: 0.2178617954 | Y167: 0.2290843201
C168: Mexico | D168: 3.905865108e-05 | E168: 0.004226767053 | F168: 0.009305838307 | G168: 0.01350771989 | H168: 0.01783388544 | I168: 0.02185391482 | J168: 0.02890263814 | K168: 0.03416580135 | L168: 0.04436383791 | M168: 0.09059897612 | N168: 0.1230178881 | O168: 0.1347733707 | P168: 0.1334698656 | Q168: 0.1327340968 | R168: 0.132274581 | S168: 0.1496988331 | T168: 0.1705069832 | U168: 0.1963242075 | V168: 0.2295649703 | W168: 0.2675659011 | X168: 0.3117278666 | Y168: 0.36393551
C170: ="Projection: CTI tool" -> Projection: CTI tool | D170: =IF(INDEX(D166:D168,MATCH($D$43,$C$166:$C$168,0))=0,"N/A",INDEX(D166:D168,MATCH($D$43,$C$166:$C$168,0))) -> 0.004560194301 | E170: =IF(INDEX(E166:E168,MATCH($D$43,$C$166:$C$168,0))=0,"N/A",INDEX(E166:E168,MATCH($D$43,$C$166:$C$168,0))) -> 0.02378785963 | F170: 0.03058512682 | G170: 0.0370691185 | H170: 0.0452984227 | I170: 0.05125927689 | J170: 0.05634987753 | K170: 0.06930570264 | L170: 0.0775305102 | M170: 0.08587644408 | N170: 0.09785468237 | O170: 0.1238138744 | P170: 0.1430673964 | Q170: 0.1571333418 | R170: 0.1664907464 | S170: 0.1755434601 | T170: 0.1851797214 | U170: 0.1932867311 | V170: 0.2012073799 | W170: 0.209413752 | X170: 0.2178617954 | Y170: 0.2290843201
B173: Argentina (Plataforma 2015)
D175: 2014 | E175: 2035
C176: Argentina | D176: =DataValidation!J22 -> 0.004586520555 | E176: =DataValidation!K22 -> 0.03570485521
C178: ="Projection: Plataforma 2015" -> Projection: Plataforma 2015 | D178: =IF(INDEX(D176,MATCH($D$43,$C$176,0))=0,"N/A",INDEX(D176,MATCH($D$43,$C$176,0))) ->  | E178: =IF(INDEX(E176,MATCH($D$43,$C$176,0))=0,"N/A",INDEX(E176,MATCH($D$43,$C$176,0))) -> 

Sheet Calculations>>

Sheet BackgroundCalculations
B2: Background calculations for VRE (share of wind and solar) electricity of total generated electricity
B5: A) Input data
B7: =Default_InputData!E7 -> Policies affecting the ceiling of VRE share
D9: Current policy | E9: Good practice | F9: No Policy | G9: Weight | H9: Ratio | J9: Selected combination
B10: =Default_InputData!G11 -> Long-term transition plan for the electricity system | D10: =INDEX(Dashboard!$K$15:$K$47,MATCH($B10,Dashboard!$H$15:$H$47,0),1) -> 0 | E10: =INDEX(Dashboard!$P$15:$P$47,MATCH($B10,Dashboard!$H$15:$H$47,0),1) -> 100 | F10: =INDEX(Dashboard!$S$15:$S$47,MATCH($B10,Dashboard!$H$15:$H$47,0),1) -> 0 | G10: =INDEX(Dashboard!$N$15:$N$47,MATCH($B10,Dashboard!$H$15:$H$47,0),1) -> 0.17 | H10: =IF((D10-F10)/(E10-F10)>100%,100%,IF((D10-F10)/(E10-F10)<0%,0%,(D10-F10)/(E10-F10))) -> 0 | K10: =SelectedCountry&"_Default" -> United States of America_Default | L10: SelectedCountry_Data_Scenario
B11: =Default_InputData!G12 -> Long-term RE target ambition | D11: =INDEX(Dashboard!$K$15:$K$47,MATCH($B11,Dashboard!$H$15:$H$47,0),1) -> 37 | E11: =INDEX(Dashboard!$P$15:$P$47,MATCH($B11,Dashboard!$H$15:$H$47,0),1) -> 100 | F11: =INDEX(Dashboard!$S$15:$S$47,MATCH($B11,Dashboard!$H$15:$H$47,0),1) -> 0 | G11: =INDEX(Dashboard!$N$15:$N$47,MATCH($B11,Dashboard!$H$15:$H$47,0),1) -> 0.17 | H11: =IF((D11-F11)/(E11-F11)>100%,100%,IF((D11-F11)/(E11-F11)<0%,0%,(D11-F11)/(E11-F11))) -> 0.37
B12: =Default_InputData!G14 -> VRE in grid codes | D12: =INDEX(Dashboard!$K$15:$K$47,MATCH($B12,Dashboard!$H$15:$H$47,0),1) -> 100 | E12: =INDEX(Dashboard!$P$15:$P$47,MATCH($B12,Dashboard!$H$15:$H$47,0),1) -> 100 | F12: =INDEX(Dashboard!$S$15:$S$47,MATCH($B12,Dashboard!$H$15:$H$47,0),1) -> 0 | G12: =INDEX(Dashboard!$N$15:$N$47,MATCH($B12,Dashboard!$H$15:$H$47,0),1) -> 0.11 | H12: 1 | J12: Ceiling factor
B13: =Default_InputData!G15 -> Support schemes for demand-side management (DSM) | D13: =INDEX(Dashboard!$K$15:$K$47,MATCH($B13,Dashboard!$H$15:$H$47,0),1) -> 100 | E13: =INDEX(Dashboard!$P$15:$P$47,MATCH($B13,Dashboard!$H$15:$H$47,0),1) -> 100 | F13: =INDEX(Dashboard!$S$15:$S$47,MATCH($B13,Dashboard!$H$15:$H$47,0),1) -> 0 | G13: =INDEX(Dashboard!$N$15:$N$47,MATCH($B13,Dashboard!$H$15:$H$47,0),1) -> 0.11 | H13: 1 | L13: =SUMPRODUCT($H$10:$H$15,$G$10:$G$15)/SUM($G$10:$G$15) -> 0.7229 | M13: Ceiling
B14: =Default_InputData!G16 -> Storage promotion & flexible supply-side policies | D14: =INDEX(Dashboard!$K$15:$K$47,MATCH($B14,Dashboard!$H$15:$H$47,0),1) -> 100 | E14: =INDEX(Dashboard!$P$15:$P$47,MATCH($B14,Dashboard!$H$15:$H$47,0),1) -> 100 | F14: =INDEX(Dashboard!$S$15:$S$47,MATCH($B14,Dashboard!$H$15:$H$47,0),1) -> 0 | G14: =INDEX(Dashboard!$N$15:$N$47,MATCH($B14,Dashboard!$H$15:$H$47,0),1) -> 0.11 | H14: 1 | J14: Growth factor
B15: =Default_InputData!G18 -> System integration: markets measures | D15: =INDEX(Dashboard!$K$15:$K$47,MATCH($B15,Dashboard!$H$15:$H$47,0),1) -> 100 | E15: =INDEX(Dashboard!$P$15:$P$47,MATCH($B15,Dashboard!$H$15:$H$47,0),1) -> 100 | F15: =INDEX(Dashboard!$S$15:$S$47,MATCH($B15,Dashboard!$H$15:$H$47,0),1) -> 0 | G15: =INDEX(Dashboard!$N$15:$N$47,MATCH($B15,Dashboard!$H$15:$H$47,0),1) -> 0.33 | H15: 1 | L15: =SUMPRODUCT($H$18:$H$23,$G$18:$G$23)/SUM($G$18:$G$23) -> 0.457
J16: Growth barrier
B17: =Default_InputData!E20 -> Policies affecting the pace of growth of VRE share | L17: =SUMPRODUCT($H$26:$H$28,$G$26:$G$28) -> 0.075
B18: =Default_InputData!G24 -> Mid-term RE target ambition | D18: =INDEX(Dashboard!$K$15:$K$47,MATCH($B18,Dashboard!$H$15:$H$47,0),1) -> 33 | E18: =INDEX(Dashboard!$P$15:$P$47,MATCH($B18,Dashboard!$H$15:$H$47,0),1) -> 100 | F18: =INDEX(Dashboard!$S$15:$S$47,MATCH($B18,Dashboard!$H$15:$H$47,0),1) -> 0 | G18: =INDEX(Dashboard!$N$15:$N$47,MATCH($B18,Dashboard!$H$15:$H$47,0),1) -> 0.1 | H18: =IF((D18-F18)/(E18-F18)>100%,100%,IF((D18-F18)/(E18-F18)<0%,0%,(D18-F18)/(E18-F18))) -> 0.33 | J18: Overall growth factor
B19: =Default_InputData!G25 -> Policies to level the playing field: shift away from coal/oil | D19: =INDEX(Dashboard!$K$15:$K$47,MATCH($B19,Dashboard!$H$15:$H$47,0),1) -> 0 | E19: =INDEX(Dashboard!$P$15:$P$47,MATCH($B19,Dashboard!$H$15:$H$47,0),1) -> 100 | F19: =INDEX(Dashboard!$S$15:$S$47,MATCH($B19,Dashboard!$H$15:$H$47,0),1) -> 0 | G19: =INDEX(Dashboard!$N$15:$N$47,MATCH($B19,Dashboard!$H$15:$H$47,0),1) -> 0.1 | H19: 0 | L19: =L15*(1-L17) -> 0.422725 | M19: growth
B20: =Default_InputData!G27 -> Direct support policies (RPS and feed-in schemes, tax measures) | D20: =INDEX(Dashboard!$K$15:$K$47,MATCH($B20,Dashboard!$H$15:$H$47,0),1) -> 25 | E20: =INDEX(Dashboard!$P$15:$P$47,MATCH($B20,Dashboard!$H$15:$H$47,0),1) -> 100 | F20: =INDEX(Dashboard!$S$15:$S$47,MATCH($B20,Dashboard!$H$15:$H$47,0),1) -> 0 | G20: =INDEX(Dashboard!$N$15:$N$47,MATCH($B20,Dashboard!$H$15:$H$47,0),1) -> 0.2 | H20: 0.25 | J20: Optional barrier factor
B21: =Default_InputData!G28 -> Reliability of RE policies | D21: =INDEX(Dashboard!$K$15:$K$47,MATCH($B21,Dashboard!$H$15:$H$47,0),1) -> 31 | E21: =INDEX(Dashboard!$P$15:$P$47,MATCH($B21,Dashboard!$H$15:$H$47,0),1) -> 100 | F21: =INDEX(Dashboard!$S$15:$S$47,MATCH($B21,Dashboard!$H$15:$H$47,0),1) -> 0 | G21: =INDEX(Dashboard!$N$15:$N$47,MATCH($B21,Dashboard!$H$15:$H$47,0),1) -> 0.2 | H21: 0.31 | L21: =H29*G29 -> 0.01 | M21: Barrier_factor
B22: =Default_InputData!G29 -> Ensuring realization | D22: =INDEX(Dashboard!$K$15:$K$47,MATCH($B22,Dashboard!$H$15:$H$47,0),1) -> 100 | E22: =INDEX(Dashboard!$P$15:$P$47,MATCH($B22,Dashboard!$H$15:$H$47,0),1) -> 100 | F22: =INDEX(Dashboard!$S$15:$S$47,MATCH($B22,Dashboard!$H$15:$H$47,0),1) -> 0 | G22: =INDEX(Dashboard!$N$15:$N$47,MATCH($B22,Dashboard!$H$15:$H$47,0),1) -> 0.2 | H22: 1 | J22: incentive
B23: =Default_InputData!G31 -> Energy efficiency policy | D23: =INDEX(Dashboard!$K$15:$K$47,MATCH($B23,Dashboard!$H$15:$H$47,0),1) -> 56 | E23: =INDEX(Dashboard!$P$15:$P$47,MATCH($B23,Dashboard!$H$15:$H$47,0),1) -> 100 | F23: =INDEX(Dashboard!$S$15:$S$47,MATCH($B23,Dashboard!$H$15:$H$47,0),1) -> 0 | G23: =INDEX(Dashboard!$N$15:$N$47,MATCH($B23,Dashboard!$H$15:$H$47,0),1) -> 0.2 | H23: 0.56 | L23: =growth-Barrier_factor -> 0.412725 | M23: incentive
B25: =Default_InputData!E35 -> Barriers to the pace of growth
B26: =Default_InputData!G39 -> Fossil fuel production | D26: =INDEX(Dashboard!$K$15:$K$47,MATCH($B26,Dashboard!$H$15:$H$47,0),1) -> 100 | E26: =INDEX(Dashboard!$P$15:$P$47,MATCH($B26,Dashboard!$H$15:$H$47,0),1) -> 100 | F26: =INDEX(Dashboard!$S$15:$S$47,MATCH($B26,Dashboard!$H$15:$H$47,0),1) -> 0 | G26: =INDEX(Dashboard!$N$15:$N$47,MATCH($B26,Dashboard!$H$15:$H$47,0),1) -> 0.05 | H26: =IF((D26-F26)/(E26-F26)>100%,100%,IF((D26-F26)/(E26-F26)<0%,0%,(D26-F26)/(E26-F26))) -> 1
B27: =Default_InputData!G41 -> Administrative procedures - Permit granting procedures | D27: =INDEX(Dashboard!$K$15:$K$47,MATCH($B27,Dashboard!$H$15:$H$47,0),1) -> 50 | E27: =INDEX(Dashboard!$P$15:$P$47,MATCH($B27,Dashboard!$H$15:$H$47,0),1) -> 100 | F27: =INDEX(Dashboard!$S$15:$S$47,MATCH($B27,Dashboard!$H$15:$H$47,0),1) -> 0 | G27: =INDEX(Dashboard!$N$15:$N$47,MATCH($B27,Dashboard!$H$15:$H$47,0),1) -> 0.05 | H27: 0.5
B28: =Default_InputData!G42 -> Administrative procedures - Siting / zoning | D28: =INDEX(Dashboard!$K$15:$K$47,MATCH($B28,Dashboard!$H$15:$H$47,0),1) -> 0 | E28: =INDEX(Dashboard!$P$15:$P$47,MATCH($B28,Dashboard!$H$15:$H$47,0),1) -> 100 | F28: =INDEX(Dashboard!$S$15:$S$47,MATCH($B28,Dashboard!$H$15:$H$47,0),1) -> 0 | G28: =INDEX(Dashboard!$N$15:$N$47,MATCH($B28,Dashboard!$H$15:$H$47,0),1) -> 0.05 | H28: 0
B29: =Default_InputData!G47 -> Financial & non-financial determinants and macroeconomic fundamentals | D29: =INDEX(Dashboard!$K$15:$K$47,MATCH($B29,Dashboard!$H$15:$H$47,0),1) -> 20 | E29: =INDEX(Dashboard!$P$15:$P$47,MATCH($B29,Dashboard!$H$15:$H$47,0),1) -> 100 | F29: =INDEX(Dashboard!$S$15:$S$47,MATCH($B29,Dashboard!$H$15:$H$47,0),1) -> 0 | G29: =INDEX(Dashboard!$N$15:$N$47,MATCH($B29,Dashboard!$H$15:$H$47,0),1) -> 0.05 | H29: 0.2
C31: Parameter | D31: Value | E31: Comment/Source | H31: t (year) | I31: y (%VRE) | J31: Comment/Source
B33: =D33 -> Denmark | C33: Country | D33: Denmark | G33: t1 | H33: 1995 | I33: =INDEX(HistVREShare_Data,MATCH($D$37,HistVREShare_Country,0),MATCH($H$33,HistVREShare_Year,0)) -> 0.03202024049 | J33: IEA 2018 Energy Balances
C34: amp_ideal | D34: 1 | E34: For ideal curve assuming 100% VRE | G34: t2 | H34: 2015 | I34: =INDEX(HistVREShare_Data,MATCH($D$37,HistVREShare_Country,0),MATCH($H$34,HistVREShare_Year,0)) -> 0.5091204311 | J34: IEA 2018 Energy Balances
C35: beta_ideal | D35: =(LN(1/I33-1)-LN(1/I34-1))/(H34-H33) -> 0.1722664365 | G35: t0 | H35: =LN(1/I33-1)/D39+H33 -> 2014.788202
B37: Good Practice | C37: Country | D37: Denmark | E37: Country on which good practice curve growth is based on | H37: =INDEX($B$53:$B$193,MATCH(I37,$D$53:$D$193,1)) -> 1988 | I37: 0.01
C38: amp_ideal | D38: 0.7 | E38: Ceiling for good practice curve | H38: =INDEX($B$83:$B$193,MATCH(I38,$D$83:$D$193,1)) -> 2041 | I38: 0.99
C39: beta_ideal | D39: =(LN(1/I33-1)-LN(1/I34-1))/(H34-H33) -> 0.1722664365 | E39: Pace of growth for good practice curve | G39: duration_1 (years) | H39: =H38-H37 -> 53 | I39: years | J39: Saturation period for good practice curve
B41: Current policy | C41: Country | D41: =IF(COUNTIF(HistVREShare_Country,SelectedCountry)>0,SelectedCountry,"Other") -> United States of America | G41: t1 | H41: =IF(MIN(HistVREShare!$C$5:$BG$5)=0,$H$34,MIN(HistVREShare!$C$5:$BG$5)) -> 1983 | I41: =INDEX(HistVREShare_Data,MATCH($D$41,HistVREShare_Country,0),MATCH(start_yr,HistVREShare_Year,0)) -> 1.224969784e-06 | J41: IEA 2018 Energy Balances
C42: amp_fact | D42: =amp_0+(amp_ideal-amp_0)*Ceiling -> 0.58916 | E42: Ceiling for current policy curve | G42: t2 | H42: =IF(MIN(MAX(HistVREShare!$C$5:$BG$5),2015)=0,$H$34,(MIN(MAX(HistVREShare!$C$5:$BG$5),$H$34))) -> 2015 | I42: =INDEX(HistVREShare_Data,MATCH($D$41,HistVREShare_Country,0),MATCH($H$42,HistVREShare_Year,0)) -> 0.05320559603 | J42: IEA 2018 Energy Balances
C43: beta_fact | D43: =(beta_ideal-beta_0)*incentive+beta_0 -> 0.1048212555 | E43: Pace of growth for current policy curve
G44: Threshold | H44: 0.01 | I44: ="If % VRE in curernt year ("&$H$34&") is lower than 1%, the policy curve starts at 1%" -> If % VRE in curernt year (2015) is lower than 1%, the policy curve starts at 1%
B45: No Policy | D45: 0.3 | E45: Ceiling for no policy curve
C46: amp_0 | D46: =MAX($D$45,$I$42+Threshold) -> 0.3
C47: beta_0 | D47: =beta_ideal/3 -> 0.05742214551 | E47: Pace of growth for no policy curve
B49: B) Constructing the S-curve
B51: =D37&"'s ideal s-curve" -> Denmark's ideal s-curve | I51: good practice | J51: no policy | K51: current policy
B52: x (year) | C52: ="Historical VRE share for "&D37 -> Historical VRE share for Denmark | D52: ="Ideal s-curve for " &D37& " with 100% VRE" -> Ideal s-curve for Denmark with 100% VRE | F52: x | G52: x_adj | I52: y_ideal | J52: y_0 | K52: y_fact
B53: 1960 | C53: =IFERROR(INDEX(HistVREShare_Data,MATCH($D$37,HistVREShare_Country,0),MATCH($B53,HistVREShare_Year,0)),"") -> 0 | D53: =$D$34/(1+EXP(-$D$35*(B53-$H$35))) -> 7.961979134e-05 | F53: =-1.5*duration_1 -> -79.5 | G53: =$H$37 -> 1988 | I53: =amp_ideal/(1+EXP(-beta_ideal*F53)) -> 7.895064948e-07 | J53: =amp_0/(1+EXP(-beta_0*F53)) -> 0.003090603752 | K53: =amp_fact/(1+EXP(-beta_fact*F53)) -> 0.0001415882089
B54: 1961 | C54: 0 | D54: 9.458644378e-05 | F54: =F53+1 -> -78.5 | G54: =G53+1 -> 1989 | I54: 9.379290295e-07 | J54: 0.003271275316 | K54: =amp_fact/(1+EXP(-beta_fact*F54)) -> 0.0001572312426
B55: 1962 | C55: 0 | D55: 0.0001123661595 | F55: =F54+1 -> -77.5 | G55: =G54+1 -> 1990 | I55: 1.114254075e-06 | J55: 0.003462385474 | K55: 0.0001746020471
B56: 1963 | C56: 0 | D56: 0.000133487539 | F56: -76.5 | G56: 1991 | I56: 1.323727112e-06 | J56: 0.003664522537 | K56: 0.0001938913349
B57: 1964 | C57: 0 | D57: 0.0001585784581 | F57: -75.5 | G57: 1992 | I57: 1.572579726e-06 | J57: 0.003878306197 | K57: 0.0002153108417
B58: 1965 | C58: 0 | D58: 0.0001883846908 | F58: -74.5 | G58: 1993 | I58: 1.868214987e-06 | J58: 0.004104388987 | K58: 0.0002390956375
B59: 1966 | C59: 0 | D59: 0.0002237920163 | F59: -73.5 | G59: 1994 | I59: 2.219427673e-06 | J59: 0.004343457783 | K59: 0.0002655066897
B60: 1967 | C60: 0 | D60: 0.0002658524585 | F60: -72.5 | G60: 1995 | I60: 2.636665889e-06 | J60: 0.004596235342 | K60: 0.0002948337066
B61: 1968 | C61: 0 | D61: 0.0003158154256 | F61: -71.5 | G61: 1996 | I61: 3.132341872e-06 | J61: 0.004863481884 | K61: 0.0003273982908
B62: 1969 | C62: 0 | D62: 0.0003751646565 | F62: -70.5 | G62: 1997 | I62: 3.721201209e-06 | J62: 0.005145996692 | K62: 0.0003635574349
B63: 1970 | C63: 0 | D63: 0.0004456620475 | F63: -69.5 | G63: 1998 | I63: 4.420761468e-06 | J63: 0.005444619757 | K63: 0.000403707398
B64: 1971 | C64: =IFERROR(INDEX(HistVREShare_Data,MATCH($D$37,HistVREShare_Country,0),MATCH($B64,HistVREShare_Year,0)),"") -> 0 | D64: 0.0005293996253 | F64: -68.5 | G64: 1999 | I64: 5.251833262e-06 | J64: 0.00576023343 | K64: 0.0004482880013
B65: 1972 | C65: 0 | D65: 0.0006288611589 | F65: -67.5 | G65: 2000 | I65: 6.239139264e-06 | J65: 0.006093764095 | K65: 0.0004977873894
B66: 1973 | C66: 0 | D66: 0.0007469951709 | F66: -66.5 | G66: 2001 | I66: 7.412049564e-06 | J66: 0.006446183858 | K66: 0.000552747305
B67: 1974 | C67: 0 | D67: 0.0008873014128 | F67: -65.5 | G67: 2002 | I67: 8.805455225e-06 | J67: 0.006818512219 | K67: 0.0006137689307
B68: 1975 | C68: 0 | D68: 0.001053933231 | F68: -64.5 | G68: 2003 | I68: 1.046080602e-05 | J68: 0.007211817749 | K68: 0.0006815193589
B69: 1976 | C69: =IFERROR(INDEX(HistVREShare_Data,MATCH($D$37,HistVREShare_Country,0),MATCH($B69,HistVREShare_Year,0)),"") -> 0 | D69: 0.001251818661 | F69: -63.5 | G69: 2004 | I69: 1.242734318e-05 | J69: 0.007627219733 | K69: 0.000756738752
B70: 1977 | C70: 0 | D70: 0.001486803557 | F70: -62.5 | G70: 2005 | I70: 1.476356379e-05 | J70: 0.008065889785 | K70: 0.0008402482669
B71: 1978 | C71: 0.0001469291801 | D71: 0.00176582061 | F71: -61.5 | G71: 2006 | I71: 1.753896033e-05 | J71: 0.008529053407 | K71: 0.0009329588192
B72: 1979 | C72: 0.0002713581475 | D72: 0.002097088689 | F72: -60.5 | G72: 2007 | I72: 2.083608704e-05 | J72: 0.009017991481 | K72: 0.001035880773
B73: 1980 | C73: =IFERROR(INDEX(HistVREShare_Data,MATCH($D$37,HistVREShare_Country,0),MATCH($B73,HistVREShare_Year,0)),"") -> 0.0004109844947 | D73: 0.002490347647 | F73: -59.5 | G73: 2008 | I73: 2.475301446e-05 | J73: 0.009534041678 | K73: 0.001150134649
B74: 1981 | C74: 0.0005565956586 | D74: 0.002957134404 | F74: -58.5 | G74: 2009 | I74: 2.940624499e-05 | J74: 0.01007859976 | K74: 0.00127696295
B75: 1982 | C75: 0.0008008092388 | D75: 0.003511106954 | F75: -57.5 | G75: 2010 | I75: 3.493417602e-05 | J75: 0.01065312073 | K75: 0.001417743212
B76: 1983 | C76: 0.00121736778 | D76: 0.004168423661 | F76: -56.5 | G76: 2011 | I76: 4.150121319e-05 | J76: 0.01125911988 | K76: 0.001574002403
B77: 1984 | C77: 0.001455539873 | D77: 0.004948186021 | F77: -55.5 | G77: 2012 | I77: 4.930265587e-05 | J77: 0.01189817356 | K77: 0.001747432786
B78: 1985 | C78: 0.001749931375 | D78: 0.005872953665 | F78: -54.5 | G78: 2013 | I78: 5.857049942e-05 | J78: 0.01257191984 | K78: 0.001939909388
B79: 1986 | C79: 0.004093168307 | D79: 0.00696934085 | F79: -53.5 | G79: 2014 | I79: 6.958032591e-05 | J79: 0.01328205883 | K79: 0.002153509219
B80: 1987 | C80: 0.005900505273 | D80: 0.008268703691 | F80: -52.5 | G80: 2015 | I80: 8.265948706e-05 | J80: 0.01403035276 | K80: 0.002390532388
B81: 1988 | C81: 0.01040256502 | D81: 0.009807926866 | F81: -51.5 | G81: 2016 | I81: 9.81968209e-05 | J81: 0.01481862573 | K81: 0.002653525274
B82: 1989 | C82: 0.01866306196 | D82: 0.01163031699 | F82: -50.5 | G82: 2017 | I82: 0.0001166541887 | J82: 0.01564876305 | K82: 0.002945305923
B83: 1990 | C83: =IFERROR(INDEX(HistVREShare_Data,MATCH($D$37,HistVREShare_Country,0),MATCH($B83,HistVREShare_Year,0)),"") -> 0.02347779232 | D83: 0.01378660698 | F83: -49.5 | G83: 2018 | I83: 0.0001385801715 | J83: 0.0165227102 | K83: 0.003268991837
B84: 1991 | C84: 0.02024900807 | D84: 0.01633607084 | F84: -48.5 | G84: 2019 | I84: 0.0001646263291 | J84: 0.01744247134 | K84: 0.003628030325
B85: 1992 | C85: 0.02976771423 | D85: =$D$34/(1+EXP(-$D$35*(B85-$H$35))) -> 0.01934774068 | F85: -47.5 | G85: 2020 | I85: =amp_ideal/(1+EXP(-beta_ideal*F85)) -> 0.0001955664968 | J85: =amp_0/(1+EXP(-beta_0*F85)) -> 0.01841010723 | K85: =amp_fact/(1+EXP(-beta_fact*F85)) -> 0.004026231583
B86: 1993 | C86: 0.03043503856 | D86: 0.02290170638 | F86: -46.5 | G86: 2021 | I86: 0.0002323196847 | J86: 0.01942773264 | K86: 0.00446780468
B87: 1994 | C87: 0.02802010942 | D87: 0.02709046199 | F87: -45.5 | G87: 2022 | I87: 0.000275977246 | J87: 0.02049751315 | K87: 0.00495739658
B88: 1995 | C88: 0.03202024049 | D88: 0.03202024049 | F88: -44.5 | G88: 2023 | I88: 0.0003278351014 | J88: 0.02162166117 | K88: 0.005500134356
B89: 1996 | C89: 0.02289948117 | D89: 0.03781224822 | F89: -43.5 | G89: 2024 | I89: 0.0003894319498 | J89: 0.02280243131 | K89: 0.006101670683
B90: 1997 | C90: 0.04364210764 | D90: 0.04460367131 | F90: -42.5 | G90: 2025 | I90: 0.0004625945614 | J90: 0.02404211489 | K90: 0.006768232679
B91: 1998 | C91: 0.0685914431 | D91: 0.05254827825 | F91: -41.5 | G91: 2026 | I91: 0.0005494914431 | J91: 0.02534303364 | K91: 0.007506674108
B92: 1999 | C92: 0.07785200411 | D92: 0.06181638556 | F92: -40.5 | G92: 2027 | I92: 0.0006526963906 | J92: 0.02670753241 | K92: 0.008324530869
B93: 2000 | C93: 0.1176601115 | D93: 0.0725938917 | F93: -39.5 | G93: 2028 | I93: 0.000775263706 | J93: 0.02813797095 | K93: 0.009230079631
B94: 2001 | C94: 0.1141562194 | D94: 0.08508002331 | F94: -38.5 | G94: 2029 | I94: 0.0009208171554 | J94: 0.02963671468 | K94: 0.01023239932
B95: 2002 | C95: 0.1241632092 | D95: 0.09948339096 | F95: -37.5 | G95: 2030 | I95: 0.001093655088 | J95: 0.03120612432 | K95: 0.01134143502
B96: 2003 | C96: 0.1204477547 | D96: 0.1160159368 | F96: -36.5 | G96: 2031 | I96: 0.001298874529 | J96: 0.03284854447 | K96: 0.01256806375
B97: 2004 | C97: 0.1628499357 | D97: 0.1348843993 | F97: -35.5 | G97: 2032 | I97: 0.001542517481 | J97: 0.03456629105 | K97: 0.0139241611
B98: 2005 | C98: 0.1825304861 | D98: 0.1562790535 | F98: -34.5 | G98: 2033 | I98: 0.001831743176 | J98: 0.03636163752 | K98: 0.01542266786
B99: 2006 | C99: 0.1339589134 | D99: 0.1803597352 | F99: -33.5 | G99: 2034 | I99: 0.002175030499 | J99: 0.03823680003 | K99: 0.01707765495
B100: 2007 | C100: 0.1824448062 | D100: 0.2072395507 | F100: -32.5 | G100: 2035 | I100: 0.002582415396 | J100: 0.04019392129 | K100: 0.01890438495
B101: 2008 | C101: 0.1892888355 | D101: 0.2369671999 | F101: -31.5 | G101: 2036 | I101: 0.003065768573 | J101: 0.04223505343 | K101: 0.02091936799
B102: 2009 | C102: 0.1848390732 | D102: 0.2695094485 | F102: -30.5 | G102: 2037 | I102: 0.003639119359 | J102: 0.04436213971 | K102: 0.02314040901
B103: 2010 | C103: 0.2010961865 | D103: 0.3047358708 | F103: -29.5 | G103: 2038 | I103: 0.004319031978 | J103: 0.04657699526 | K103: 0.02558664326
B104: 2011 | C104: 0.2778676658 | D104: 0.3424083817 | F104: -28.5 | G104: 2039 | I104: 0.005125040735 | J104: 0.04888128684 | K104: 0.02827855578
B105: 2012 | C105: 0.3379043028 | D105: 0.3821780905 | F105: -27.5 | G105: 2040 | I105: 0.006080150556 | J105: 0.05127651184 | K105: 0.03123798042
B106: 2013 | C106: 0.3350602999 | D106: 0.4235914907 | F106: -26.5 | G106: 2041 | I106: 0.007211408754 | J106: 0.05376397667 | K106: 0.0344880727
B107: 2014 | C107: 0.4248873699 | D107: 0.46610689 | F107: -25.5 | G107: 2042 | I107: 0.008550552587 | J107: 0.05634477459 | K107: 0.03805325066
B108: 2015 | C108: 0.5091204311 | D108: 0.5091204311 | F108: -24.5 | G108: 2043 | I108: 0.01013473483 | J108: 0.05901976333 | K108: 0.04195909674
B109: 2016 | C109: 0.4431557565 | D109: 0.5519993556 | F109: -23.5 | G109: 2044 | I109: 0.01200732562 | J109: 0.06178954268 | K109: 0.04623221347
B110: 2017 | D110: 0.5941187641 | F110: -22.5 | G110: 2045 | I110: 0.01421878289 | J110: 0.06465443228 | K110: 0.0509000252
B111: 2018 | D111: 0.6348974186 | F111: -21.5 | G111: 2046 | I111: 0.01682757475 | J111: 0.06761444998 | K111: 0.05599051812
B112: 2019 | D112: 0.6738283257 | F112: -20.5 | G112: 2047 | I112: 0.01990112462 | J112: 0.07066929104 | K112: 0.06153191111
B113: 2020 | D113: 0.7105008852 | F113: -19.5 | G113: 2048 | I113: 0.02351673277 | J113: 0.0738183085 | K113: 0.0675522508
B114: 2021 | D114: 0.7446129643 | F114: -18.5 | G114: 2049 | I114: 0.02776240496 | J114: 0.07706049511 | K114: 0.0740789256
B115: 2022 | C115: =IFERROR(INDEX(HistVREShare_Data,MATCH($D$37,HistVREShare_Country,0),MATCH($B115,HistVREShare_Year,0)),"") ->  | D115: 0.7759729447 | F115: -17.5 | G115: 2050 | I115: 0.03273748978 | J115: 0.08039446719 | K115: 0.08113809608
B116: 2023 | D116: 0.8044931861 | F116: -16.5 | G116: 2051 | I116: 0.03855299047 | J116: 0.08381845076 | K116: 0.08875404183
B117: 2024 | D117: =$D$34/(1+EXP(-$D$35*(B117-$H$35))) -> 0.8301772097 | F117: -15.5 | G117: 2052 | I117: =amp_ideal/(1+EXP(-beta_ideal*F117)) -> 0.04533137617 | J117: =amp_0/(1+EXP(-beta_0*F117)) -> 0.08733027033 | K117: =amp_fact/(1+EXP(-beta_fact*F117)) -> 0.09694842968
B118: 2025 | D118: 0.8531031889 | F118: -14.5 | G118: 2053 | I118: 0.05320567305 | J118: 0.0909273407 | K118: 0.1057395128
B119: 2026 | D119: 0.8734061303 | F119: =F118+1 -> -13.5 | G119: =G118+1 -> 2054 | I119: 0.06231757562 | J119: 0.09460666212 | K119: 0.1151412771
B120: 2027 | D120: 0.8912606328 | F120: -12.5 | G120: 2055 | I120: 0.07281429007 | J120: 0.09836481909 | K120: 0.1251625569
B121: 2028 | D121: 0.9068654986 | F121: -11.5 | G121: 2056 | I121: 0.08484382089 | J121: 0.1021979831 | K121: 0.1358061507
B122: 2029 | D122: 0.9204308839 | F122: -10.5 | G122: 2057 | I122: 0.098548458 | J122: 0.1061019194 | K122: 0.1470679732
B123: 2030 | D123: 0.9321682102 | F123: -9.5 | G123: 2058 | I123: 0.114056336 | J123: 0.1100719982 | K123: 0.1589362867
B124: 2031 | D124: 0.9422827204 | F124: -8.5 | G124: 2059 | I124: 0.1314711407 | J124: 0.11410321 | K124: 0.1713910584
B125: 2032 | D125: 0.9509683696 | F125: -7.5 | G125: 2060 | I125: 0.150860342 | J125: 0.1181901859 | K125: 0.1844034929
B126: 2033 | D126: 0.9584046473 | F126: -6.5 | G126: 2061 | I126: 0.1722427198 | J126: 0.1223272209 | K126: 0.1979357869
B127: 2034 | D127: 0.964754917 | F127: -5.5 | G127: 2062 | I127: 0.1955763851 | J127: 0.126508303 | K127: 0.2119411467
B128: 2035 | D128: 0.9701658841 | F128: -4.5 | G128: 2063 | I128: 0.2207488783 | J128: 0.1307271447 | K128: 0.2263641003
B129: 2036 | D129: 0.9747678641 | F129: -3.5 | G129: 2064 | I129: 0.2475711452 | J129: 0.1349772194 | K129: 0.2411411221
B130: 2037 | D130: 0.9786755813 | F130: -2.5 | G130: 2065 | I130: 0.2757771004 | J130: 0.1392517997 | K130: 0.2562015687
B131: 2038 | D131: 0.9819892898 | F131: -1.5 | G131: 2066 | I131: 0.3050300044 | J131: 0.1435439995 | K131: 0.2714689087
B132: 2039 | D132: 0.9847960642 | F132: -0.5 | G132: 2067 | I132: 0.3349359989 | J132: 0.1478468175 | K132: 0.2868622052
B133: 2040 | D133: 0.9871711474 | F133: 0.5 | G133: 2068 | I133: 0.3650640011 | J133: 0.1521531825 | K133: 0.3022977948
B134: 2041 | D134: 0.9891792837 | F134: 1.5 | G134: 2069 | I134: 0.3949699956 | J134: 0.1564560005 | K134: 0.3176910913
B135: 2042 | D135: 0.9908759861 | F135: 2.5 | G135: 2070 | I135: 0.4242228996 | J135: 0.1607482003 | K135: 0.3329584313
B136: 2043 | D136: 0.992308712 | F136: 3.5 | G136: 2071 | I136: 0.4524288548 | J136: 0.1650227806 | K136: 0.3480188779
B137: 2044 | D137: 0.9935179315 | F137: 4.5 | G137: 2072 | I137: 0.4792511217 | J137: 0.1692728553 | K137: 0.3627958997
B138: 2045 | D138: 0.9945380846 | F138: 5.5 | G138: 2073 | I138: 0.5044236149 | J138: 0.173491697 | K138: 0.3772188533
B139: 2046 | D139: 0.9953984289 | F139: 6.5 | G139: 2074 | I139: 0.5277572802 | J139: 0.1776727791 | K139: 0.3912242131
B140: 2047 | D140: 0.9961237826 | F140: 7.5 | G140: 2075 | I140: 0.549139658 | J140: 0.1818098141 | K140: 0.4047565071
B141: 2048 | D141: 0.9967351725 | F141: 8.5 | G141: 2076 | I141: 0.5685288593 | J141: 0.18589679 | K141: 0.4177689416
B142: 2049 | D142: 0.997250395 | F142: 9.5 | G142: 2077 | I142: 0.585943664 | J142: 0.1899280018 | K142: 0.4302237133
B143: 2050 | D143: 0.9976844991 | F143: 10.5 | G143: 2078 | I143: 0.601451542 | J143: 0.1938980806 | K143: 0.4420920268
B144: 2051 | D144: 0.9980502014 | F144: 11.5 | G144: 2079 | I144: 0.6151561791 | J144: 0.1978020169 | K144: 0.4533538493
B145: 2052 | D145: 0.998358241 | F145: 12.5 | G145: 2080 | I145: 0.6271857099 | J145: 0.2016351809 | K145: 0.4639974431
B146: 2053 | D146: 0.9986176822 | F146: 13.5 | G146: 2081 | I146: 0.6376824244 | J146: 0.2053933379 | K146: 0.4740187229
B147: 2054 | C147: =IFERROR(INDEX(HistVREShare_Data,MATCH($D$37,HistVREShare_Country,0),MATCH($B147,HistVREShare_Year,0)),"") ->  | D147: 0.9988361727 | F147: 14.5 | G147: 2082 | I147: 0.646794327 | J147: 0.2090726593 | K147: 0.4834204872
B148: 2055 | D148: 0.9990201622 | F148: 15.5 | G148: 2083 | I148: 0.6546686238 | J148: 0.2126697297 | K148: 0.4922115703
B149: 2056 | D149: =$D$34/(1+EXP(-$D$35*(B149-$H$35))) -> 0.9991750889 | F149: 16.5 | G149: 2084 | I149: =amp_ideal/(1+EXP(-beta_ideal*F149)) -> 0.6614470095 | J149: =amp_0/(1+EXP(-beta_0*F149)) -> 0.2161815492 | K149: =amp_fact/(1+EXP(-beta_fact*F149)) -> 0.5004059582
B150: 2057 | D150: 0.9993055364 | F150: 17.5 | G150: 2085 | I150: 0.6672625102 | J150: 0.2196055328 | K150: 0.5080219039
B151: 2058 | D151: 0.9994153676 | F151: 18.5 | G151: 2086 | I151: 0.672237595 | J151: 0.2229395049 | K151: 0.5150810744
B152: 2059 | D152: 0.9995078373 | F152: 19.5 | G152: 2087 | I152: 0.6764832672 | J152: 0.2261816915 | K152: 0.5216077492
B153: 2060 | D153: 0.9995856874 | F153: 20.5 | G153: 2088 | I153: 0.6800988754 | J153: 0.229330709 | K153: 0.5276280889
B154: 2061 | D154: 0.9996512275 | F154: 21.5 | G154: 2089 | I154: 0.6831724253 | J154: 0.23238555 | K154: 0.5331694819
B155: 2062 | D155: 0.9997064028 | F155: 22.5 | G155: 2090 | I155: 0.6857812171 | J155: 0.2353455677 | K155: 0.5382599748
B156: 2063 | D156: 0.9997528517 | F156: 23.5 | G156: 2091 | I156: 0.6879926744 | J156: 0.2382104573 | K156: 0.5429277865
B157: 2064 | D157: 0.9997919536 | F157: 24.5 | G157: 2092 | I157: 0.6898652652 | J157: 0.2409802367 | K157: 0.5472009033
B158: 2065 | D158: 0.9998248701 | F158: 25.5 | G158: 2093 | I158: 0.6914494474 | J158: 0.2436552254 | K158: 0.5511067493
B159: 2066 | D159: 0.9998525795 | F159: 26.5 | G159: 2094 | I159: 0.6927885912 | J159: 0.2462360233 | K159: 0.5546719273
B160: 2067 | D160: 0.9998759052 | F160: 27.5 | G160: 2095 | I160: 0.6939198494 | J160: 0.2487234882 | K160: 0.5579220196
B161: 2068 | D161: 0.9998955405 | F161: 28.5 | G161: 2096 | I161: 0.6948749593 | J161: 0.2511187132 | K161: 0.5608814442
B162: 2069 | D162: 0.9999120693 | F162: 29.5 | G162: 2097 | I162: 0.695680968 | J162: 0.2534230047 | K162: 0.5635733567
B163: 2070 | D163: 0.9999259829 | F163: 30.5 | G163: 2098 | I163: 0.6963608806 | J163: 0.2556378603 | K163: 0.566019591
B164: 2071 | D164: 0.999937695 | F164: 31.5 | G164: 2099 | I164: 0.6969342314 | J164: 0.2577649466 | K164: 0.568240632
B165: 2072 | D165: 0.9999475539 | F165: 32.5 | G165: 2100 | I165: 0.6974175846 | J165: 0.2598060787 | K165: 0.570255615
B166: 2073 | D166: 0.9999558529 | F166: 33.5 | G166: 2101 | I166: 0.6978249695 | J166: 0.2617632 | K166: 0.5720823451
B167: 2074 | D167: 0.9999628387 | F167: 34.5 | G167: 2102 | I167: 0.6981682568 | J167: 0.2636383625 | K167: 0.5737373321
B168: 2075 | D168: 0.9999687191 | F168: 35.5 | G168: 2103 | I168: 0.6984574825 | J168: 0.265433709 | K168: 0.5752358389
B169: 2076 | D169: 0.999973669 | F169: 36.5 | G169: 2104 | I169: 0.6987011255 | J169: 0.2671514555 | K169: 0.5765919363
B170: 2077 | D170: 0.9999778357 | F170: 37.5 | G170: 2105 | I170: 0.6989063449 | J170: 0.2687938757 | K170: 0.577818565
B171: 2078 | D171: 0.999981343 | F171: 38.5 | G171: 2106 | I171: 0.6990791828 | J171: 0.2703632853 | K171: 0.5789276007
B172: 2079 | D172: 0.9999842953 | F172: 39.5 | G172: 2107 | I172: 0.6992247363 | J172: 0.271862029 | K172: 0.5799299204
B173: 2080 | D173: 0.9999867805 | F173: 40.5 | G173: 2108 | I173: 0.6993473036 | J173: 0.2732924676 | K173: 0.5808354691
B174: 2081 | D174: 0.9999888724 | F174: 41.5 | G174: 2109 | I174: 0.6994505086 | J174: 0.2746569664 | K174: 0.5816533259
B175: 2082 | D175: 0.9999906333 | F175: 42.5 | G175: 2110 | I175: 0.6995374054 | J175: 0.2759578851 | K175: 0.5823917673
B176: 2083 | D176: 0.9999921155 | F176: 43.5 | G176: 2111 | I176: 0.6996105681 | J176: 0.2771975687 | K176: 0.5830583293
B177: 2084 | D177: 0.9999933632 | F177: 44.5 | G177: 2112 | I177: 0.6996721649 | J177: 0.2783783388 | K177: 0.5836598656
B178: 2085 | D178: 0.9999944134 | F178: 45.5 | G178: 2113 | I178: 0.6997240228 | J178: 0.2795024868 | K178: 0.5842026034
B179: 2086 | C179: =IFERROR(INDEX(HistVREShare_Data,MATCH($D$37,HistVREShare_Country,0),MATCH($B179,HistVREShare_Year,0)),"") ->  | D179: 0.9999952975 | F179: 46.5 | G179: 2114 | I179: 0.6997676803 | J179: 0.2805722674 | K179: 0.5846921953
B180: 2087 | D180: 0.9999960416 | F180: 47.5 | G180: 2115 | I180: 0.6998044335 | J180: 0.2815898928 | K180: 0.5851337684
B181: 2088 | D181: =$D$34/(1+EXP(-$D$35*(B181-$H$35))) -> 0.999996668 | F181: 48.5 | G181: 2116 | I181: =amp_ideal/(1+EXP(-beta_ideal*F181)) -> 0.6998353737 | J181: =amp_0/(1+EXP(-beta_0*F181)) -> 0.2825575287 | K181: =amp_fact/(1+EXP(-beta_fact*F181)) -> 0.5855319697
B182: 2089 | D182: 0.9999971953 | F182: 49.5 | G182: 2117 | I182: 0.6998614198 | J182: 0.2834772898 | K182: 0.5858910082
B183: 2090 | D183: 0.9999976391 | F183: =F182+1 -> 50.5 | G183: =G182+1 -> 2118 | I183: 0.6998833458 | J183: 0.284351237 | K183: 0.5862146941
B184: 2091 | D184: 0.9999980127 | F184: 51.5 | G184: 2119 | I184: 0.6999018032 | J184: 0.2851813743 | K184: 0.5865064747
B185: 2092 | D185: 0.9999983272 | F185: 52.5 | G185: 2120 | I185: 0.6999173405 | J185: 0.2859696472 | K185: 0.5867694676
B186: 2093 | D186: 0.9999985919 | F186: 53.5 | G186: 2121 | I186: 0.6999304197 | J186: 0.2867179412 | K186: 0.5870064908
B187: 2094 | D187: 0.9999988147 | F187: 54.5 | G187: 2122 | I187: =amp_ideal/(1+EXP(-beta_ideal*F187)) -> 0.6999414295 | J187: =amp_0/(1+EXP(-beta_0*F187)) -> 0.2874280802 | K187: =amp_fact/(1+EXP(-beta_fact*F187)) -> 0.5872200906
B188: 2095 | D188: 0.9999990023 | F188: 55.5 | G188: 2123 | I188: =amp_ideal/(1+EXP(-beta_ideal*F188)) -> 0.6999506973 | J188: =amp_0/(1+EXP(-beta_0*F188)) -> 0.2881018264 | K188: =amp_fact/(1+EXP(-beta_fact*F188)) -> 0.5874125672
B189: 2096 | D189: 0.9999991602 | F189: 56.5 | G189: 2124 | I189: 0.6999584988 | J189: 0.2887408801 | K189: 0.5875859976
B190: 2097 | D190: 0.9999992931 | F190: 57.5 | G190: 2125 | I190: 0.6999650658 | J190: 0.2893468793 | K190: 0.5877422568
B191: 2098 | D191: 0.9999994049 | F191: 58.5 | G191: 2126 | I191: 0.6999705938 | J191: 0.2899214002 | K191: 0.5878830371
B192: 2099 | D192: 0.9999994991 | F192: 59.5 | G192: 2127 | I192: 0.699975247 | J192: 0.2904659583 | K192: 0.5880098654
B193: 2100 | D193: 0.9999995784 | F193: 60.5 | G193: 2128 | I193: 0.6999791639 | J193: 0.2909820085 | K193: 0.5881241192
F194: 61.5 | G194: 2129 | I194: 0.699982461 | J194: 0.2914709466 | K194: 0.5882270412
F195: 62.5 | G195: 2130 | I195: 0.6999852364 | J195: 0.2919341102 | K195: 0.5883197517
F196: 63.5 | G196: 2131 | I196: 0.6999875727 | J196: 0.2923727803 | K196: 0.5884032612
F197: 64.5 | G197: 2132 | I197: 0.6999895392 | J197: 0.2927881823 | K197: 0.5884784806
F198: 65.5 | G198: 2133 | I198: 0.6999911945 | J198: 0.2931814878 | K198: 0.5885462311
F199: 66.5 | G199: 2134 | I199: 0.699992588 | J199: 0.2935538161 | K199: 0.5886072527
F200: 67.5 | G200: 2135 | I200: 0.6999937609 | J200: 0.2939062359 | K200: 0.5886622126
F201: 68.5 | G201: 2136 | I201: 0.6999947482 | J201: 0.2942397666 | K201: 0.588711712
F202: 69.5 | G202: 2137 | I202: 0.6999955792 | J202: 0.2945553802 | K202: 0.5887562926
F203: 70.5 | G203: 2138 | I203: 0.6999962788 | J203: 0.2948540033 | K203: 0.5887964426
F204: 71.5 | G204: 2139 | I204: 0.6999968677 | J204: 0.2951365181 | K204: 0.5888326017
F205: 72.5 | G205: 2140 | I205: 0.6999973633 | J205: 0.2954037647 | K205: 0.5888651663
F206: 73.5 | G206: 2141 | I206: 0.6999977806 | J206: 0.2956565422 | K206: 0.5888944933
F207: 74.5 | G207: 2142 | I207: 0.6999981318 | J207: 0.295895611 | K207: 0.5889209044
F208: 75.5 | G208: 2143 | I208: 0.6999984274 | J208: 0.2961216938 | K208: 0.5889446892
F209: 76.5 | G209: 2144 | I209: 0.6999986763 | J209: 0.2963354775 | K209: 0.5889661087
F210: 77.5 | G210: 2145 | I210: 0.6999988857 | J210: 0.2965376145 | K210: 0.588985398
F211: 78.5 | G211: 2146 | I211: 0.6999990621 | J211: 0.2967287247 | K211: 0.5890027688
F212: 79.5 | G212: 2147 | I212: 0.6999992105 | J212: 0.2969093962 | K212: 0.5890184118
... 191 more rows

Sheet GP_NP curve_all countries
B1: Good practice
C4: Country | D4: 2015 | E4: 2016 | F4: 2017 | G4: 2018 | H4: 2019 | I4: 2020 | J4: 2021 | K4: 2022 | L4: 2023 | M4: 2024 | N4: 2025 | O4: 2026 | P4: 2027 | Q4: 2028 | R4: 2029 | S4: 2030 | T4: 2031 | U4: 2032 | V4: 2033 | W4: 2034 | X4: 2035 | Y4: 2036 | Z4: 2037 | AA4: 2038 | AB4: 2039 | AC4: 2040 | AD4: 2041 | AE4: 2042 | AF4: 2043 | AG4: 2044 | AH4: 2045 | AI4: 2046 | AJ4: 2047 | AK4: 2048 | AL4: 2049 | AM4: 2050
C5: World | D5: =ROUND(HistVREShare!$BF7,5) -> 0.04523 | E5: =INDEX(y_GP,MATCH(D5,y_GP,1)+(E$4-D$4)) -> 0.04912 | F5: 0.0576 | G5: 0.06738 | H5: 0.07863 | I5: 0.09148 | J5: 0.10607 | K5: 0.12252 | L5: 0.14092 | M5: 0.1613 | N5: 0.18367 | O5: 0.20794 | P5: 0.23397 | Q5: 0.26152 | R5: 0.2903 | S5: 0.31993 | T5: 0.35 | U5: 0.38007 | V5: 0.4097 | W5: 0.43848 | X5: 0.46603 | Y5: 0.49206 | Z5: 0.51633 | AA5: 0.5387 | AB5: 0.55908 | AC5: 0.57748 | AD5: 0.59393 | AE5: 0.60852 | AF5: 0.62137 | AG5: 0.63262 | AH5: 0.6424 | AI5: 0.65088 | AJ5: 0.65819 | AK5: 0.66447 | AL5: 0.66985 | AM5: 0.67445 | AN5: GP_Data
C6: Albania | D6: =ROUND(HistVREShare!$BF8,5) -> 0 | E6: =INDEX(y_GP,MATCH(D6,y_GP,1)+(E$4-D$4)) -> 1e-05 | F6: 2e-05 | G6: 3e-05 | H6: 4e-05 | I6: 5e-05 | J6: 6e-05 | K6: 8e-05 | L6: 9e-05 | M6: 0.00011 | N6: 0.00013 | O6: 0.00015 | P6: 0.00018 | Q6: 0.00021 | R6: 0.00025 | S6: 0.0003 | T6: 0.00036 | U6: 0.00042 | V6: 0.0005 | W6: 0.0006 | X6: 0.00071 | Y6: 0.00084 | Z6: 0.001 | AA6: 0.00119 | AB6: 0.00142 | AC6: 0.00168 | AD6: 0.002 | AE6: 0.00237 | AF6: 0.00281 | AG6: 0.00334 | AH6: 0.00396 | AI6: 0.0047 | AJ6: 0.00558 | AK6: 0.00662 | AL6: 0.00785 | AM6: 0.00931
C7: Algeria | D7: =ROUND(HistVREShare!$BF9,5) -> 0.00112 | E7: =INDEX(y_GP,MATCH(D7,y_GP,1)+(E$4-D$4)) -> 0.00119 | F7: 0.00142 | G7: 0.00168 | H7: 0.002 | I7: 0.00237 | J7: 0.00281 | K7: 0.00334 | L7: 0.00396 | M7: 0.0047 | N7: 0.00558 | O7: 0.00662 | P7: 0.00785 | Q7: 0.00931 | R7: 0.01103 | S7: 0.01307 | T7: 0.01547 | U7: 0.0183 | V7: 0.02164 | W7: 0.02555 | X7: 0.03015 | Y7: 0.03553 | Z7: 0.04181 | AA7: 0.04912 | AB7: 0.0576 | AC7: 0.06738 | AD7: 0.07863 | AE7: 0.09148 | AF7: 0.10607 | AG7: 0.12252 | AH7: 0.14092 | AI7: 0.1613 | AJ7: 0.18367 | AK7: 0.20794 | AL7: 0.23397 | AM7: 0.26152
C8: Angola | D8: =ROUND(HistVREShare!$BF10,5) -> 0 | E8: =INDEX(y_GP,MATCH(D8,y_GP,1)+(E$4-D$4)) -> 1e-05 | F8: 2e-05 | G8: 3e-05 | H8: 4e-05 | I8: 5e-05 | J8: 6e-05 | K8: 8e-05 | L8: 9e-05 | M8: 0.00011 | N8: 0.00013 | O8: 0.00015 | P8: 0.00018 | Q8: 0.00021 | R8: 0.00025 | S8: 0.0003 | T8: 0.00036 | U8: 0.00042 | V8: 0.0005 | W8: 0.0006 | X8: 0.00071 | Y8: 0.00084 | Z8: 0.001 | AA8: 0.00119 | AB8: 0.00142 | AC8: 0.00168 | AD8: 0.002 | AE8: 0.00237 | AF8: 0.00281 | AG8: 0.00334 | AH8: 0.00396 | AI8: 0.0047 | AJ8: 0.00558 | AK8: 0.00662 | AL8: 0.00785 | AM8: 0.00931
C9: Argentina | D9: =ROUND(HistVREShare!$BF11,5) -> 0.00424 | E9: =INDEX(y_GP,MATCH(D9,y_GP,1)+(E$4-D$4)) -> 0.0047 | F9: 0.00558 | G9: 0.00662 | H9: 0.00785 | I9: 0.00931 | J9: 0.01103 | K9: 0.01307 | L9: 0.01547 | M9: 0.0183 | N9: 0.02164 | O9: 0.02555 | P9: 0.03015 | Q9: 0.03553 | R9: 0.04181 | S9: 0.04912 | T9: 0.0576 | U9: 0.06738 | V9: 0.07863 | W9: 0.09148 | X9: 0.10607 | Y9: 0.12252 | Z9: 0.14092 | AA9: 0.1613 | AB9: 0.18367 | AC9: 0.20794 | AD9: 0.23397 | AE9: 0.26152 | AF9: 0.2903 | AG9: 0.31993 | AH9: 0.35 | AI9: 0.38007 | AJ9: 0.4097 | AK9: 0.43848 | AL9: 0.46603 | AM9: 0.49206
C10: Armenia | D10: =ROUND(HistVREShare!$BF12,5) -> 0.00051 | E10: =INDEX(y_GP,MATCH(D10,y_GP,1)+(E$4-D$4)) -> 0.0006 | F10: 0.00071 | G10: 0.00084 | H10: 0.001 | I10: 0.00119 | J10: 0.00142 | K10: 0.00168 | L10: 0.002 | M10: 0.00237 | N10: 0.00281 | O10: 0.00334 | P10: 0.00396 | Q10: 0.0047 | R10: 0.00558 | S10: 0.00662 | T10: 0.00785 | U10: 0.00931 | V10: 0.01103 | W10: 0.01307 | X10: 0.01547 | Y10: 0.0183 | Z10: 0.02164 | AA10: 0.02555 | AB10: 0.03015 | AC10: 0.03553 | AD10: 0.04181 | AE10: 0.04912 | AF10: 0.0576 | AG10: 0.06738 | AH10: 0.07863 | AI10: 0.09148 | AJ10: 0.10607 | AK10: 0.12252 | AL10: 0.14092 | AM10: 0.1613
C11: Australia | D11: =ROUND(HistVREShare!$BF13,5) -> 0.06561 | E11: =INDEX(y_GP,MATCH(D11,y_GP,1)+(E$4-D$4)) -> 0.06738 | F11: 0.07863 | G11: 0.09148 | H11: 0.10607 | I11: 0.12252 | J11: 0.14092 | K11: 0.1613 | L11: 0.18367 | M11: 0.20794 | N11: 0.23397 | O11: 0.26152 | P11: 0.2903 | Q11: 0.31993 | R11: 0.35 | S11: 0.38007 | T11: 0.4097 | U11: 0.43848 | V11: 0.46603 | W11: 0.49206 | X11: 0.51633 | Y11: 0.5387 | Z11: 0.55908 | AA11: 0.57748 | AB11: 0.59393 | AC11: 0.60852 | AD11: 0.62137 | AE11: 0.63262 | AF11: 0.6424 | AG11: 0.65088 | AH11: 0.65819 | AI11: 0.66447 | AJ11: 0.66985 | AK11: 0.67445 | AL11: 0.67836 | AM11: 0.6817
C12: Austria | D12: =ROUND(HistVREShare!$BF14,5) -> 0.09353 | E12: =INDEX(y_GP,MATCH(D12,y_GP,1)+(E$4-D$4)) -> 0.10607 | F12: 0.12252 | G12: 0.14092 | H12: 0.1613 | I12: 0.18367 | J12: 0.20794 | K12: 0.23397 | L12: 0.26152 | M12: 0.2903 | N12: 0.31993 | O12: 0.35 | P12: 0.38007 | Q12: 0.4097 | R12: 0.43848 | S12: 0.46603 | T12: 0.49206 | U12: 0.51633 | V12: 0.5387 | W12: 0.55908 | X12: 0.57748 | Y12: 0.59393 | Z12: 0.60852 | AA12: 0.62137 | AB12: 0.63262 | AC12: 0.6424 | AD12: 0.65088 | AE12: 0.65819 | AF12: 0.66447 | AG12: 0.66985 | AH12: 0.67445 | AI12: 0.67836 | AJ12: 0.6817 | AK12: 0.68453 | AL12: 0.68693 | AM12: 0.68897
C13: Azerbaijan | D13: =ROUND(HistVREShare!$BF15,5) -> 0.00041 | E13: =INDEX(y_GP,MATCH(D13,y_GP,1)+(E$4-D$4)) -> 0.00042 | F13: 0.0005 | G13: 0.0006 | H13: 0.00071 | I13: 0.00084 | J13: 0.001 | K13: 0.00119 | L13: 0.00142 | M13: 0.00168 | N13: 0.002 | O13: 0.00237 | P13: 0.00281 | Q13: 0.00334 | R13: 0.00396 | S13: 0.0047 | T13: 0.00558 | U13: 0.00662 | V13: 0.00785 | W13: 0.00931 | X13: 0.01103 | Y13: 0.01307 | Z13: 0.01547 | AA13: 0.0183 | AB13: 0.02164 | AC13: 0.02555 | AD13: 0.03015 | AE13: 0.03553 | AF13: 0.04181 | AG13: 0.04912 | AH13: 0.0576 | AI13: 0.06738 | AJ13: 0.07863 | AK13: 0.09148 | AL13: 0.10607 | AM13: 0.12252
C14: Bahrain | D14: =ROUND(HistVREShare!$BF16,5) -> 0 | E14: =INDEX(y_GP,MATCH(D14,y_GP,1)+(E$4-D$4)) -> 1e-05 | F14: 2e-05 | G14: 3e-05 | H14: 4e-05 | I14: 5e-05 | J14: 6e-05 | K14: 8e-05 | L14: 9e-05 | M14: 0.00011 | N14: 0.00013 | O14: 0.00015 | P14: 0.00018 | Q14: 0.00021 | R14: 0.00025 | S14: 0.0003 | T14: 0.00036 | U14: 0.00042 | V14: 0.0005 | W14: 0.0006 | X14: 0.00071 | Y14: 0.00084 | Z14: 0.001 | AA14: 0.00119 | AB14: 0.00142 | AC14: 0.00168 | AD14: 0.002 | AE14: 0.00237 | AF14: 0.00281 | AG14: 0.00334 | AH14: 0.00396 | AI14: 0.0047 | AJ14: 0.00558 | AK14: 0.00662 | AL14: 0.00785 | AM14: 0.00931
C15: Bangladesh | D15: =ROUND(HistVREShare!$BF17,5) -> 0.00268 | E15: =INDEX(y_GP,MATCH(D15,y_GP,1)+(E$4-D$4)) -> 0.00281 | F15: 0.00334 | G15: 0.00396 | H15: 0.0047 | I15: 0.00558 | J15: 0.00662 | K15: 0.00785 | L15: 0.00931 | M15: 0.01103 | N15: 0.01307 | O15: 0.01547 | P15: 0.0183 | Q15: 0.02164 | R15: 0.02555 | S15: 0.03015 | T15: 0.03553 | U15: 0.04181 | V15: 0.04912 | W15: 0.0576 | X15: 0.06738 | Y15: 0.07863 | Z15: 0.09148 | AA15: 0.10607 | AB15: 0.12252 | AC15: 0.14092 | AD15: 0.1613 | AE15: 0.18367 | AF15: 0.20794 | AG15: 0.23397 | AH15: 0.26152 | AI15: 0.2903 | AJ15: 0.31993 | AK15: 0.35 | AL15: 0.38007 | AM15: 0.4097
C16: Belarus | D16: =ROUND(HistVREShare!$BF18,5) -> 0.001 | E16: =INDEX(y_GP,MATCH(D16,y_GP,1)+(E$4-D$4)) -> 0.00119 | F16: 0.00142 | G16: 0.00168 | H16: 0.002 | I16: 0.00237 | J16: 0.00281 | K16: 0.00334 | L16: 0.00396 | M16: 0.0047 | N16: 0.00558 | O16: 0.00662 | P16: 0.00785 | Q16: 0.00931 | R16: 0.01103 | S16: 0.01307 | T16: 0.01547 | U16: 0.0183 | V16: 0.02164 | W16: 0.02555 | X16: 0.03015 | Y16: 0.03553 | Z16: 0.04181 | AA16: 0.04912 | AB16: 0.0576 | AC16: 0.06738 | AD16: 0.07863 | AE16: 0.09148 | AF16: 0.10607 | AG16: 0.12252 | AH16: 0.14092 | AI16: 0.1613 | AJ16: 0.18367 | AK16: 0.20794 | AL16: 0.23397 | AM16: 0.26152
C17: Belgium | D17: =ROUND(HistVREShare!$BF19,5) -> 0.12549 | E17: =INDEX(y_GP,MATCH(D17,y_GP,1)+(E$4-D$4)) -> 0.14092 | F17: 0.1613 | G17: 0.18367 | H17: 0.20794 | I17: 0.23397 | J17: 0.26152 | K17: 0.2903 | L17: 0.31993 | M17: 0.35 | N17: 0.38007 | O17: 0.4097 | P17: 0.43848 | Q17: 0.46603 | R17: 0.49206 | S17: 0.51633 | T17: 0.5387 | U17: 0.55908 | V17: 0.57748 | W17: 0.59393 | X17: 0.60852 | Y17: 0.62137 | Z17: 0.63262 | AA17: 0.6424 | AB17: 0.65088 | AC17: 0.65819 | AD17: 0.66447 | AE17: 0.66985 | AF17: 0.67445 | AG17: 0.67836 | AH17: 0.6817 | AI17: 0.68453 | AJ17: 0.68693 | AK17: 0.68897 | AL17: 0.69069 | AM17: 0.69215
C18: Benin | D18: =ROUND(HistVREShare!$BF20,5) -> 0.01462 | E18: =INDEX(y_GP,MATCH(D18,y_GP,1)+(E$4-D$4)) -> 0.01547 | F18: 0.0183 | G18: 0.02164 | H18: 0.02555 | I18: 0.03015 | J18: 0.03553 | K18: 0.04181 | L18: 0.04912 | M18: 0.0576 | N18: 0.06738 | O18: 0.07863 | P18: 0.09148 | Q18: 0.10607 | R18: 0.12252 | S18: 0.14092 | T18: 0.1613 | U18: 0.18367 | V18: 0.20794 | W18: 0.23397 | X18: 0.26152 | Y18: 0.2903 | Z18: 0.31993 | AA18: 0.35 | AB18: 0.38007 | AC18: 0.4097 | AD18: 0.43848 | AE18: 0.46603 | AF18: 0.49206 | AG18: 0.51633 | AH18: 0.5387 | AI18: 0.55908 | AJ18: 0.57748 | AK18: 0.59393 | AL18: 0.60852 | AM18: 0.62137
C19: Bolivia | D19: =ROUND(HistVREShare!$BF21,5) -> 0.00252 | E19: =INDEX(y_GP,MATCH(D19,y_GP,1)+(E$4-D$4)) -> 0.00281 | F19: 0.00334 | G19: 0.00396 | H19: 0.0047 | I19: 0.00558 | J19: 0.00662 | K19: 0.00785 | L19: 0.00931 | M19: 0.01103 | N19: 0.01307 | O19: 0.01547 | P19: 0.0183 | Q19: 0.02164 | R19: 0.02555 | S19: 0.03015 | T19: 0.03553 | U19: 0.04181 | V19: 0.04912 | W19: 0.0576 | X19: 0.06738 | Y19: 0.07863 | Z19: 0.09148 | AA19: 0.10607 | AB19: 0.12252 | AC19: 0.14092 | AD19: 0.1613 | AE19: 0.18367 | AF19: 0.20794 | AG19: 0.23397 | AH19: 0.26152 | AI19: 0.2903 | AJ19: 0.31993 | AK19: 0.35 | AL19: 0.38007 | AM19: 0.4097
C20: Bosnia and Herzegovina | D20: =ROUND(HistVREShare!$BF22,5) -> 0 | E20: =INDEX(y_GP,MATCH(D20,y_GP,1)+(E$4-D$4)) -> 1e-05 | F20: 2e-05 | G20: 3e-05 | H20: 4e-05 | I20: 5e-05 | J20: 6e-05 | K20: 8e-05 | L20: 9e-05 | M20: 0.00011 | N20: 0.00013 | O20: 0.00015 | P20: 0.00018 | Q20: 0.00021 | R20: 0.00025 | S20: 0.0003 | T20: 0.00036 | U20: 0.00042 | V20: 0.0005 | W20: 0.0006 | X20: 0.00071 | Y20: 0.00084 | Z20: 0.001 | AA20: 0.00119 | AB20: 0.00142 | AC20: 0.00168 | AD20: 0.002 | AE20: 0.00237 | AF20: 0.00281 | AG20: 0.00334 | AH20: 0.00396 | AI20: 0.0047 | AJ20: 0.00558 | AK20: 0.00662 | AL20: 0.00785 | AM20: 0.00931
C21: Botswana | D21: =ROUND(HistVREShare!$BF23,5) -> 0.00067 | E21: =INDEX(y_GP,MATCH(D21,y_GP,1)+(E$4-D$4)) -> 0.00071 | F21: 0.00084 | G21: 0.001 | H21: 0.00119 | I21: 0.00142 | J21: 0.00168 | K21: 0.002 | L21: 0.00237 | M21: 0.00281 | N21: 0.00334 | O21: 0.00396 | P21: 0.0047 | Q21: 0.00558 | R21: 0.00662 | S21: 0.00785 | T21: 0.00931 | U21: 0.01103 | V21: 0.01307 | W21: 0.01547 | X21: 0.0183 | Y21: 0.02164 | Z21: 0.02555 | AA21: 0.03015 | AB21: 0.03553 | AC21: 0.04181 | AD21: 0.04912 | AE21: 0.0576 | AF21: 0.06738 | AG21: 0.07863 | AH21: 0.09148 | AI21: 0.10607 | AJ21: 0.12252 | AK21: 0.14092 | AL21: 0.1613 | AM21: 0.18367
C22: Brazil | D22: =ROUND(HistVREShare!$BF24,5) -> 0.03728 | E22: =INDEX(y_GP,MATCH(D22,y_GP,1)+(E$4-D$4)) -> 0.04181 | F22: 0.04912 | G22: 0.0576 | H22: 0.06738 | I22: 0.07863 | J22: 0.09148 | K22: 0.10607 | L22: 0.12252 | M22: 0.14092 | N22: 0.1613 | O22: 0.18367 | P22: 0.20794 | Q22: 0.23397 | R22: 0.26152 | S22: 0.2903 | T22: 0.31993 | U22: 0.35 | V22: 0.38007 | W22: 0.4097 | X22: 0.43848 | Y22: 0.46603 | Z22: 0.49206 | AA22: 0.51633 | AB22: 0.5387 | AC22: 0.55908 | AD22: 0.57748 | AE22: 0.59393 | AF22: 0.60852 | AG22: 0.62137 | AH22: 0.63262 | AI22: 0.6424 | AJ22: 0.65088 | AK22: 0.65819 | AL22: 0.66447 | AM22: 0.66985
C23: Brunei | D23: =ROUND(HistVREShare!$BF25,5) -> 0.00048 | E23: =INDEX(y_GP,MATCH(D23,y_GP,1)+(E$4-D$4)) -> 0.0005 | F23: 0.0006 | G23: 0.00071 | H23: 0.00084 | I23: 0.001 | J23: 0.00119 | K23: 0.00142 | L23: 0.00168 | M23: 0.002 | N23: 0.00237 | O23: 0.00281 | P23: 0.00334 | Q23: 0.00396 | R23: 0.0047 | S23: 0.00558 | T23: 0.00662 | U23: 0.00785 | V23: 0.00931 | W23: 0.01103 | X23: 0.01307 | Y23: 0.01547 | Z23: 0.0183 | AA23: 0.02164 | AB23: 0.02555 | AC23: 0.03015 | AD23: 0.03553 | AE23: 0.04181 | AF23: 0.04912 | AG23: 0.0576 | AH23: 0.06738 | AI23: 0.07863 | AJ23: 0.09148 | AK23: 0.10607 | AL23: 0.12252 | AM23: 0.14092
C24: Bulgaria | D24: =ROUND(HistVREShare!$BF26,5) -> 0.05816 | E24: =INDEX(y_GP,MATCH(D24,y_GP,1)+(E$4-D$4)) -> 0.06738 | F24: 0.07863 | G24: 0.09148 | H24: 0.10607 | I24: 0.12252 | J24: 0.14092 | K24: 0.1613 | L24: 0.18367 | M24: 0.20794 | N24: 0.23397 | O24: 0.26152 | P24: 0.2903 | Q24: 0.31993 | R24: 0.35 | S24: 0.38007 | T24: 0.4097 | U24: 0.43848 | V24: 0.46603 | W24: 0.49206 | X24: 0.51633 | Y24: 0.5387 | Z24: 0.55908 | AA24: 0.57748 | AB24: 0.59393 | AC24: 0.60852 | AD24: 0.62137 | AE24: 0.63262 | AF24: 0.6424 | AG24: 0.65088 | AH24: 0.65819 | AI24: 0.66447 | AJ24: 0.66985 | AK24: 0.67445 | AL24: 0.67836 | AM24: 0.6817
C25: Cambodia | D25: =ROUND(HistVREShare!$BF27,5) -> 0.00068 | E25: =INDEX(y_GP,MATCH(D25,y_GP,1)+(E$4-D$4)) -> 0.00071 | F25: 0.00084 | G25: 0.001 | H25: 0.00119 | I25: 0.00142 | J25: 0.00168 | K25: 0.002 | L25: 0.00237 | M25: 0.00281 | N25: 0.00334 | O25: 0.00396 | P25: 0.0047 | Q25: 0.00558 | R25: 0.00662 | S25: 0.00785 | T25: 0.00931 | U25: 0.01103 | V25: 0.01307 | W25: 0.01547 | X25: 0.0183 | Y25: 0.02164 | Z25: 0.02555 | AA25: 0.03015 | AB25: 0.03553 | AC25: 0.04181 | AD25: 0.04912 | AE25: 0.0576 | AF25: 0.06738 | AG25: 0.07863 | AH25: 0.09148 | AI25: 0.10607 | AJ25: 0.12252 | AK25: 0.14092 | AL25: 0.1613 | AM25: 0.18367
C26: Cameroon | D26: =ROUND(HistVREShare!$BF28,5) -> 0 | E26: =INDEX(y_GP,MATCH(D26,y_GP,1)+(E$4-D$4)) -> 1e-05 | F26: 2e-05 | G26: 3e-05 | H26: 4e-05 | I26: 5e-05 | J26: 6e-05 | K26: 8e-05 | L26: 9e-05 | M26: 0.00011 | N26: 0.00013 | O26: 0.00015 | P26: 0.00018 | Q26: 0.00021 | R26: 0.00025 | S26: 0.0003 | T26: 0.00036 | U26: 0.00042 | V26: 0.0005 | W26: 0.0006 | X26: 0.00071 | Y26: 0.00084 | Z26: 0.001 | AA26: 0.00119 | AB26: 0.00142 | AC26: 0.00168 | AD26: 0.002 | AE26: 0.00237 | AF26: 0.00281 | AG26: 0.00334 | AH26: 0.00396 | AI26: 0.0047 | AJ26: 0.00558 | AK26: 0.00662 | AL26: 0.00785 | AM26: 0.00931
C27: Canada | D27: =ROUND(HistVREShare!$BF29,5) -> 0.04392 | E27: =INDEX(y_GP,MATCH(D27,y_GP,1)+(E$4-D$4)) -> 0.04912 | F27: 0.0576 | G27: 0.06738 | H27: 0.07863 | I27: 0.09148 | J27: 0.10607 | K27: 0.12252 | L27: 0.14092 | M27: 0.1613 | N27: 0.18367 | O27: 0.20794 | P27: 0.23397 | Q27: 0.26152 | R27: 0.2903 | S27: 0.31993 | T27: 0.35 | U27: 0.38007 | V27: 0.4097 | W27: 0.43848 | X27: 0.46603 | Y27: 0.49206 | Z27: 0.51633 | AA27: 0.5387 | AB27: 0.55908 | AC27: 0.57748 | AD27: 0.59393 | AE27: 0.60852 | AF27: 0.62137 | AG27: 0.63262 | AH27: 0.6424 | AI27: 0.65088 | AJ27: 0.65819 | AK27: 0.66447 | AL27: 0.66985 | AM27: 0.67445
C28: Chile | D28: =ROUND(HistVREShare!$BF30,5) -> 0.04478 | E28: =INDEX(y_GP,MATCH(D28,y_GP,1)+(E$4-D$4)) -> 0.04912 | F28: 0.0576 | G28: 0.06738 | H28: 0.07863 | I28: 0.09148 | J28: 0.10607 | K28: 0.12252 | L28: 0.14092 | M28: 0.1613 | N28: 0.18367 | O28: 0.20794 | P28: 0.23397 | Q28: 0.26152 | R28: 0.2903 | S28: 0.31993 | T28: 0.35 | U28: 0.38007 | V28: 0.4097 | W28: 0.43848 | X28: 0.46603 | Y28: 0.49206 | Z28: 0.51633 | AA28: 0.5387 | AB28: 0.55908 | AC28: 0.57748 | AD28: 0.59393 | AE28: 0.60852 | AF28: 0.62137 | AG28: 0.63262 | AH28: 0.6424 | AI28: 0.65088 | AJ28: 0.65819 | AK28: 0.66447 | AL28: 0.66985 | AM28: 0.67445
C29: China | D29: =ROUND(HistVREShare!$BF31,5) -> 0.03946 | E29: =INDEX(y_GP,MATCH(D29,y_GP,1)+(E$4-D$4)) -> 0.04181 | F29: 0.04912 | G29: 0.0576 | H29: 0.06738 | I29: 0.07863 | J29: 0.09148 | K29: 0.10607 | L29: 0.12252 | M29: 0.14092 | N29: 0.1613 | O29: 0.18367 | P29: 0.20794 | Q29: 0.23397 | R29: 0.26152 | S29: 0.2903 | T29: 0.31993 | U29: 0.35 | V29: 0.38007 | W29: 0.4097 | X29: 0.43848 | Y29: 0.46603 | Z29: 0.49206 | AA29: 0.51633 | AB29: 0.5387 | AC29: 0.55908 | AD29: 0.57748 | AE29: 0.59393 | AF29: 0.60852 | AG29: 0.62137 | AH29: 0.63262 | AI29: 0.6424 | AJ29: 0.65088 | AK29: 0.65819 | AL29: 0.66447 | AM29: 0.66985
C30: Colombia | D30: =ROUND(HistVREShare!$BF32,5) -> 0.00087 | E30: =INDEX(y_GP,MATCH(D30,y_GP,1)+(E$4-D$4)) -> 0.001 | F30: 0.00119 | G30: 0.00142 | H30: 0.00168 | I30: 0.002 | J30: 0.00237 | K30: 0.00281 | L30: 0.00334 | M30: 0.00396 | N30: 0.0047 | O30: 0.00558 | P30: 0.00662 | Q30: 0.00785 | R30: 0.00931 | S30: 0.01103 | T30: 0.01307 | U30: 0.01547 | V30: 0.0183 | W30: 0.02164 | X30: 0.02555 | Y30: 0.03015 | Z30: 0.03553 | AA30: 0.04181 | AB30: 0.04912 | AC30: 0.0576 | AD30: 0.06738 | AE30: 0.07863 | AF30: 0.09148 | AG30: 0.10607 | AH30: 0.12252 | AI30: 0.14092 | AJ30: 0.1613 | AK30: 0.18367 | AL30: 0.20794 | AM30: 0.23397
C31: Congo | D31: =ROUND(HistVREShare!$BF33,5) -> 0 | E31: =INDEX(y_GP,MATCH(D31,y_GP,1)+(E$4-D$4)) -> 1e-05 | F31: 2e-05 | G31: 3e-05 | H31: 4e-05 | I31: 5e-05 | J31: 6e-05 | K31: 8e-05 | L31: 9e-05 | M31: 0.00011 | N31: 0.00013 | O31: 0.00015 | P31: 0.00018 | Q31: 0.00021 | R31: 0.00025 | S31: 0.0003 | T31: 0.00036 | U31: 0.00042 | V31: 0.0005 | W31: 0.0006 | X31: 0.00071 | Y31: 0.00084 | Z31: 0.001 | AA31: 0.00119 | AB31: 0.00142 | AC31: 0.00168 | AD31: 0.002 | AE31: 0.00237 | AF31: 0.00281 | AG31: 0.00334 | AH31: 0.00396 | AI31: 0.0047 | AJ31: 0.00558 | AK31: 0.00662 | AL31: 0.00785 | AM31: 0.00931
C32: Costa Rica | D32: =ROUND(HistVREShare!$BF34,5) -> 0.10017 | E32: =INDEX(y_GP,MATCH(D32,y_GP,1)+(E$4-D$4)) -> 0.10607 | F32: 0.12252 | G32: 0.14092 | H32: 0.1613 | I32: 0.18367 | J32: 0.20794 | K32: 0.23397 | L32: 0.26152 | M32: 0.2903 | N32: 0.31993 | O32: 0.35 | P32: 0.38007 | Q32: 0.4097 | R32: 0.43848 | S32: 0.46603 | T32: 0.49206 | U32: 0.51633 | V32: 0.5387 | W32: 0.55908 | X32: 0.57748 | Y32: 0.59393 | Z32: 0.60852 | AA32: 0.62137 | AB32: 0.63262 | AC32: 0.6424 | AD32: 0.65088 | AE32: 0.65819 | AF32: 0.66447 | AG32: 0.66985 | AH32: 0.67445 | AI32: 0.67836 | AJ32: 0.6817 | AK32: 0.68453 | AL32: 0.68693 | AM32: 0.68897
C33: Côte d'Ivoire | D33: =ROUND(HistVREShare!$BF35,5) -> 0 | E33: =INDEX(y_GP,MATCH(D33,y_GP,1)+(E$4-D$4)) -> 1e-05 | F33: 2e-05 | G33: 3e-05 | H33: 4e-05 | I33: 5e-05 | J33: 6e-05 | K33: 8e-05 | L33: 9e-05 | M33: 0.00011 | N33: 0.00013 | O33: 0.00015 | P33: 0.00018 | Q33: 0.00021 | R33: 0.00025 | S33: 0.0003 | T33: 0.00036 | U33: 0.00042 | V33: 0.0005 | W33: 0.0006 | X33: 0.00071 | Y33: 0.00084 | Z33: 0.001 | AA33: 0.00119 | AB33: 0.00142 | AC33: 0.00168 | AD33: 0.002 | AE33: 0.00237 | AF33: 0.00281 | AG33: 0.00334 | AH33: 0.00396 | AI33: 0.0047 | AJ33: 0.00558 | AK33: 0.00662 | AL33: 0.00785 | AM33: 0.00931
C34: Croatia | D34: =ROUND(HistVREShare!$BF36,5) -> 0.0759 | E34: =INDEX(y_GP,MATCH(D34,y_GP,1)+(E$4-D$4)) -> 0.07863 | F34: 0.09148 | G34: 0.10607 | H34: 0.12252 | I34: 0.14092 | J34: 0.1613 | K34: 0.18367 | L34: 0.20794 | M34: 0.23397 | N34: 0.26152 | O34: 0.2903 | P34: 0.31993 | Q34: 0.35 | R34: 0.38007 | S34: 0.4097 | T34: 0.43848 | U34: 0.46603 | V34: 0.49206 | W34: 0.51633 | X34: 0.5387 | Y34: 0.55908 | Z34: 0.57748 | AA34: 0.59393 | AB34: 0.60852 | AC34: 0.62137 | AD34: 0.63262 | AE34: 0.6424 | AF34: 0.65088 | AG34: 0.65819 | AH34: 0.66447 | AI34: 0.66985 | AJ34: 0.67445 | AK34: 0.67836 | AL34: 0.6817 | AM34: 0.68453
C35: Cuba | D35: =ROUND(HistVREShare!$BF37,5) -> 0.00246 | E35: =INDEX(y_GP,MATCH(D35,y_GP,1)+(E$4-D$4)) -> 0.00281 | F35: 0.00334 | G35: 0.00396 | H35: 0.0047 | I35: 0.00558 | J35: 0.00662 | K35: 0.00785 | L35: 0.00931 | M35: 0.01103 | N35: 0.01307 | O35: 0.01547 | P35: 0.0183 | Q35: 0.02164 | R35: 0.02555 | S35: 0.03015 | T35: 0.03553 | U35: 0.04181 | V35: 0.04912 | W35: 0.0576 | X35: 0.06738 | Y35: 0.07863 | Z35: 0.09148 | AA35: 0.10607 | AB35: 0.12252 | AC35: 0.14092 | AD35: 0.1613 | AE35: 0.18367 | AF35: 0.20794 | AG35: 0.23397 | AH35: 0.26152 | AI35: 0.2903 | AJ35: 0.31993 | AK35: 0.35 | AL35: 0.38007 | AM35: 0.4097
C36: Curaçao | D36: =ROUND(HistVREShare!$BF38,5) -> 0 | E36: =INDEX(y_GP,MATCH(D36,y_GP,1)+(E$4-D$4)) -> 1e-05 | F36: 2e-05 | G36: 3e-05 | H36: 4e-05 | I36: 5e-05 | J36: 6e-05 | K36: 8e-05 | L36: 9e-05 | M36: 0.00011 | N36: 0.00013 | O36: 0.00015 | P36: 0.00018 | Q36: 0.00021 | R36: 0.00025 | S36: 0.0003 | T36: 0.00036 | U36: 0.00042 | V36: 0.0005 | W36: 0.0006 | X36: 0.00071 | Y36: 0.00084 | Z36: 0.001 | AA36: 0.00119 | AB36: 0.00142 | AC36: 0.00168 | AD36: 0.002 | AE36: 0.00237 | AF36: 0.00281 | AG36: 0.00334 | AH36: 0.00396 | AI36: 0.0047 | AJ36: 0.00558 | AK36: 0.00662 | AL36: 0.00785 | AM36: 0.00931
C37: Cyprus | D37: =ROUND(HistVREShare!$BF39,5) -> 0.07655 | E37: =INDEX(y_GP,MATCH(D37,y_GP,1)+(E$4-D$4)) -> 0.07863 | F37: 0.09148 | G37: 0.10607 | H37: 0.12252 | I37: 0.14092 | J37: 0.1613 | K37: 0.18367 | L37: 0.20794 | M37: 0.23397 | N37: 0.26152 | O37: 0.2903 | P37: 0.31993 | Q37: 0.35 | R37: 0.38007 | S37: 0.4097 | T37: 0.43848 | U37: 0.46603 | V37: 0.49206 | W37: 0.51633 | X37: 0.5387 | Y37: 0.55908 | Z37: 0.57748 | AA37: 0.59393 | AB37: 0.60852 | AC37: 0.62137 | AD37: 0.63262 | AE37: 0.6424 | AF37: 0.65088 | AG37: 0.65819 | AH37: 0.66447 | AI37: 0.66985 | AJ37: 0.67445 | AK37: 0.67836 | AL37: 0.6817 | AM37: 0.68453
C38: Czech Republic | D38: =ROUND(HistVREShare!$BF40,5) -> 0.03434 | E38: =INDEX(y_GP,MATCH(D38,y_GP,1)+(E$4-D$4)) -> 0.03553 | F38: 0.04181 | G38: 0.04912 | H38: 0.0576 | I38: 0.06738 | J38: 0.07863 | K38: 0.09148 | L38: 0.10607 | M38: 0.12252 | N38: 0.14092 | O38: 0.1613 | P38: 0.18367 | Q38: 0.20794 | R38: 0.23397 | S38: 0.26152 | T38: 0.2903 | U38: 0.31993 | V38: 0.35 | W38: 0.38007 | X38: 0.4097 | Y38: 0.43848 | Z38: 0.46603 | AA38: 0.49206 | AB38: 0.51633 | AC38: 0.5387 | AD38: 0.55908 | AE38: 0.57748 | AF38: 0.59393 | AG38: 0.60852 | AH38: 0.62137 | AI38: 0.63262 | AJ38: 0.6424 | AK38: 0.65088 | AL38: 0.65819 | AM38: 0.66447
C39: North Korea | D39: =ROUND(HistVREShare!$BF41,5) -> 0 | E39: =INDEX(y_GP,MATCH(D39,y_GP,1)+(E$4-D$4)) -> 1e-05 | F39: 2e-05 | G39: 3e-05 | H39: 4e-05 | I39: 5e-05 | J39: 6e-05 | K39: 8e-05 | L39: 9e-05 | M39: 0.00011 | N39: 0.00013 | O39: 0.00015 | P39: 0.00018 | Q39: 0.00021 | R39: 0.00025 | S39: 0.0003 | T39: 0.00036 | U39: 0.00042 | V39: 0.0005 | W39: 0.0006 | X39: 0.00071 | Y39: 0.00084 | Z39: 0.001 | AA39: 0.00119 | AB39: 0.00142 | AC39: 0.00168 | AD39: 0.002 | AE39: 0.00237 | AF39: 0.00281 | AG39: 0.00334 | AH39: 0.00396 | AI39: 0.0047 | AJ39: 0.00558 | AK39: 0.00662 | AL39: 0.00785 | AM39: 0.00931
C40: Democratic Republic of the Congo | D40: =ROUND(HistVREShare!$BF42,5) -> 0 | E40: =INDEX(y_GP,MATCH(D40,y_GP,1)+(E$4-D$4)) -> 1e-05 | F40: 2e-05 | G40: 3e-05 | H40: 4e-05 | I40: 5e-05 | J40: 6e-05 | K40: 8e-05 | L40: 9e-05 | M40: 0.00011 | N40: 0.00013 | O40: 0.00015 | P40: 0.00018 | Q40: 0.00021 | R40: 0.00025 | S40: 0.0003 | T40: 0.00036 | U40: 0.00042 | V40: 0.0005 | W40: 0.0006 | X40: 0.00071 | Y40: 0.00084 | Z40: 0.001 | AA40: 0.00119 | AB40: 0.00142 | AC40: 0.00168 | AD40: 0.002 | AE40: 0.00237 | AF40: 0.00281 | AG40: 0.00334 | AH40: 0.00396 | AI40: 0.0047 | AJ40: 0.00558 | AK40: 0.00662 | AL40: 0.00785 | AM40: 0.00931
C41: Denmark | D41: =ROUND(HistVREShare!$BF43,5) -> 0.50912 | E41: =INDEX(y_GP,MATCH(D41,y_GP,1)+(E$4-D$4)) -> 0.51633 | F41: 0.5387 | G41: 0.55908 | H41: 0.57748 | I41: 0.59393 | J41: 0.60852 | K41: 0.62137 | L41: 0.63262 | M41: 0.6424 | N41: 0.65088 | O41: 0.65819 | P41: 0.66447 | Q41: 0.66985 | R41: 0.67445 | S41: 0.67836 | T41: 0.6817 | U41: 0.68453 | V41: 0.68693 | W41: 0.68897 | X41: 0.69069 | Y41: 0.69215 | Z41: 0.69338 | AA41: 0.69442 | AB41: 0.6953 | AC41: 0.69604 | AD41: 0.69666 | AE41: 0.69719 | AF41: 0.69763 | AG41: 0.698 | AH41: 0.69832 | AI41: 0.69858 | AJ41: 0.69881 | AK41: 0.699 | AL41: 0.69916 | AM41: 0.69929
C42: Dominican Republic | D42: =ROUND(HistVREShare!$BF44,5) -> 0.04885 | E42: =INDEX(y_GP,MATCH(D42,y_GP,1)+(E$4-D$4)) -> 0.04912 | F42: 0.0576 | G42: 0.06738 | H42: 0.07863 | I42: 0.09148 | J42: 0.10607 | K42: 0.12252 | L42: 0.14092 | M42: 0.1613 | N42: 0.18367 | O42: 0.20794 | P42: 0.23397 | Q42: 0.26152 | R42: 0.2903 | S42: 0.31993 | T42: 0.35 | U42: 0.38007 | V42: 0.4097 | W42: 0.43848 | X42: 0.46603 | Y42: 0.49206 | Z42: 0.51633 | AA42: 0.5387 | AB42: 0.55908 | AC42: 0.57748 | AD42: 0.59393 | AE42: 0.60852 | AF42: 0.62137 | AG42: 0.63262 | AH42: 0.6424 | AI42: 0.65088 | AJ42: 0.65819 | AK42: 0.66447 | AL42: 0.66985 | AM42: 0.67445
C43: Ecuador | D43: =ROUND(HistVREShare!$BF45,5) -> 0.00523 | E43: =INDEX(y_GP,MATCH(D43,y_GP,1)+(E$4-D$4)) -> 0.00558 | F43: 0.00662 | G43: 0.00785 | H43: 0.00931 | I43: 0.01103 | J43: 0.01307 | K43: 0.01547 | L43: 0.0183 | M43: 0.02164 | N43: 0.02555 | O43: 0.03015 | P43: 0.03553 | Q43: 0.04181 | R43: 0.04912 | S43: 0.0576 | T43: 0.06738 | U43: 0.07863 | V43: 0.09148 | W43: 0.10607 | X43: 0.12252 | Y43: 0.14092 | Z43: 0.1613 | AA43: 0.18367 | AB43: 0.20794 | AC43: 0.23397 | AD43: 0.26152 | AE43: 0.2903 | AF43: 0.31993 | AG43: 0.35 | AH43: 0.38007 | AI43: 0.4097 | AJ43: 0.43848 | AK43: 0.46603 | AL43: 0.49206 | AM43: 0.51633
C44: Egypt | D44: =ROUND(HistVREShare!$BF46,5) -> 0.01195 | E44: =INDEX(y_GP,MATCH(D44,y_GP,1)+(E$4-D$4)) -> 0.01307 | F44: 0.01547 | G44: 0.0183 | H44: 0.02164 | I44: 0.02555 | J44: 0.03015 | K44: 0.03553 | L44: 0.04181 | M44: 0.04912 | N44: 0.0576 | O44: 0.06738 | P44: 0.07863 | Q44: 0.09148 | R44: 0.10607 | S44: 0.12252 | T44: 0.14092 | U44: 0.1613 | V44: 0.18367 | W44: 0.20794 | X44: 0.23397 | Y44: 0.26152 | Z44: 0.2903 | AA44: 0.31993 | AB44: 0.35 | AC44: 0.38007 | AD44: 0.4097 | AE44: 0.43848 | AF44: 0.46603 | AG44: 0.49206 | AH44: 0.51633 | AI44: 0.5387 | AJ44: 0.55908 | AK44: 0.57748 | AL44: 0.59393 | AM44: 0.60852
C45: El Salvador | D45: =ROUND(HistVREShare!$BF47,5) -> 0 | E45: =INDEX(y_GP,MATCH(D45,y_GP,1)+(E$4-D$4)) -> 1e-05 | F45: 2e-05 | G45: 3e-05 | H45: 4e-05 | I45: 5e-05 | J45: 6e-05 | K45: 8e-05 | L45: 9e-05 | M45: 0.00011 | N45: 0.00013 | O45: 0.00015 | P45: 0.00018 | Q45: 0.00021 | R45: 0.00025 | S45: 0.0003 | T45: 0.00036 | U45: 0.00042 | V45: 0.0005 | W45: 0.0006 | X45: 0.00071 | Y45: 0.00084 | Z45: 0.001 | AA45: 0.00119 | AB45: 0.00142 | AC45: 0.00168 | AD45: 0.002 | AE45: 0.00237 | AF45: 0.00281 | AG45: 0.00334 | AH45: 0.00396 | AI45: 0.0047 | AJ45: 0.00558 | AK45: 0.00662 | AL45: 0.00785 | AM45: 0.00931
C46: Eritrea | D46: =ROUND(HistVREShare!$BF48,5) -> 0.00493 | E46: =INDEX(y_GP,MATCH(D46,y_GP,1)+(E$4-D$4)) -> 0.00558 | F46: 0.00662 | G46: 0.00785 | H46: 0.00931 | I46: 0.01103 | J46: 0.01307 | K46: 0.01547 | L46: 0.0183 | M46: 0.02164 | N46: 0.02555 | O46: 0.03015 | P46: 0.03553 | Q46: 0.04181 | R46: 0.04912 | S46: 0.0576 | T46: 0.06738 | U46: 0.07863 | V46: 0.09148 | W46: 0.10607 | X46: 0.12252 | Y46: 0.14092 | Z46: 0.1613 | AA46: 0.18367 | AB46: 0.20794 | AC46: 0.23397 | AD46: 0.26152 | AE46: 0.2903 | AF46: 0.31993 | AG46: 0.35 | AH46: 0.38007 | AI46: 0.4097 | AJ46: 0.43848 | AK46: 0.46603 | AL46: 0.49206 | AM46: 0.51633
C47: Estonia | D47: =ROUND(HistVREShare!$BF49,5) -> 0.06876 | E47: =INDEX(y_GP,MATCH(D47,y_GP,1)+(E$4-D$4)) -> 0.07863 | F47: 0.09148 | G47: 0.10607 | H47: 0.12252 | I47: 0.14092 | J47: 0.1613 | K47: 0.18367 | L47: 0.20794 | M47: 0.23397 | N47: 0.26152 | O47: 0.2903 | P47: 0.31993 | Q47: 0.35 | R47: 0.38007 | S47: 0.4097 | T47: 0.43848 | U47: 0.46603 | V47: 0.49206 | W47: 0.51633 | X47: 0.5387 | Y47: 0.55908 | Z47: 0.57748 | AA47: 0.59393 | AB47: 0.60852 | AC47: 0.62137 | AD47: 0.63262 | AE47: 0.6424 | AF47: 0.65088 | AG47: 0.65819 | AH47: 0.66447 | AI47: 0.66985 | AJ47: 0.67445 | AK47: 0.67836 | AL47: 0.6817 | AM47: 0.68453
C48: Ethiopia | D48: =ROUND(HistVREShare!$BF50,5) -> 0.07272 | E48: =INDEX(y_GP,MATCH(D48,y_GP,1)+(E$4-D$4)) -> 0.07863 | F48: 0.09148 | G48: 0.10607 | H48: 0.12252 | I48: 0.14092 | J48: 0.1613 | K48: 0.18367 | L48: 0.20794 | M48: 0.23397 | N48: 0.26152 | O48: 0.2903 | P48: 0.31993 | Q48: 0.35 | R48: 0.38007 | S48: 0.4097 | T48: 0.43848 | U48: 0.46603 | V48: 0.49206 | W48: 0.51633 | X48: 0.5387 | Y48: 0.55908 | Z48: 0.57748 | AA48: 0.59393 | AB48: 0.60852 | AC48: 0.62137 | AD48: 0.63262 | AE48: 0.6424 | AF48: 0.65088 | AG48: 0.65819 | AH48: 0.66447 | AI48: 0.66985 | AJ48: 0.67445 | AK48: 0.67836 | AL48: 0.6817 | AM48: 0.68453
C49: Finland | D49: =ROUND(HistVREShare!$BF51,5) -> 0.03405 | E49: =INDEX(y_GP,MATCH(D49,y_GP,1)+(E$4-D$4)) -> 0.03553 | F49: 0.04181 | G49: 0.04912 | H49: 0.0576 | I49: 0.06738 | J49: 0.07863 | K49: 0.09148 | L49: 0.10607 | M49: 0.12252 | N49: 0.14092 | O49: 0.1613 | P49: 0.18367 | Q49: 0.20794 | R49: 0.23397 | S49: 0.26152 | T49: 0.2903 | U49: 0.31993 | V49: 0.35 | W49: 0.38007 | X49: 0.4097 | Y49: 0.43848 | Z49: 0.46603 | AA49: 0.49206 | AB49: 0.51633 | AC49: 0.5387 | AD49: 0.55908 | AE49: 0.57748 | AF49: 0.59393 | AG49: 0.60852 | AH49: 0.62137 | AI49: 0.63262 | AJ49: 0.6424 | AK49: 0.65088 | AL49: 0.65819 | AM49: 0.66447
C50: Macedonia, FYR | D50: =ROUND(HistVREShare!$BF52,5) -> 0.0255 | E50: =INDEX(y_GP,MATCH(D50,y_GP,1)+(E$4-D$4)) -> 0.02555 | F50: 0.03015 | G50: 0.03553 | H50: 0.04181 | I50: 0.04912 | J50: 0.0576 | K50: 0.06738 | L50: 0.07863 | M50: 0.09148 | N50: 0.10607 | O50: 0.12252 | P50: 0.14092 | Q50: 0.1613 | R50: 0.18367 | S50: 0.20794 | T50: 0.23397 | U50: 0.26152 | V50: 0.2903 | W50: 0.31993 | X50: 0.35 | Y50: 0.38007 | Z50: 0.4097 | AA50: 0.43848 | AB50: 0.46603 | AC50: 0.49206 | AD50: 0.51633 | AE50: 0.5387 | AF50: 0.55908 | AG50: 0.57748 | AH50: 0.59393 | AI50: 0.60852 | AJ50: 0.62137 | AK50: 0.63262 | AL50: 0.6424 | AM50: 0.65088
C51: France | D51: =ROUND(HistVREShare!$BF53,5) -> 0.05043 | E51: =INDEX(y_GP,MATCH(D51,y_GP,1)+(E$4-D$4)) -> 0.0576 | F51: 0.06738 | G51: 0.07863 | H51: 0.09148 | I51: 0.10607 | J51: 0.12252 | K51: 0.14092 | L51: 0.1613 | M51: 0.18367 | N51: 0.20794 | O51: 0.23397 | P51: 0.26152 | Q51: 0.2903 | R51: 0.31993 | S51: 0.35 | T51: 0.38007 | U51: 0.4097 | V51: 0.43848 | W51: 0.46603 | X51: 0.49206 | Y51: 0.51633 | Z51: 0.5387 | AA51: 0.55908 | AB51: 0.57748 | AC51: 0.59393 | AD51: 0.60852 | AE51: 0.62137 | AF51: 0.63262 | AG51: 0.6424 | AH51: 0.65088 | AI51: 0.65819 | AJ51: 0.66447 | AK51: 0.66985 | AL51: 0.67445 | AM51: 0.67836
C52: Gabon | D52: =ROUND(HistVREShare!$BF54,5) -> 0.00094 | E52: =INDEX(y_GP,MATCH(D52,y_GP,1)+(E$4-D$4)) -> 0.001 | F52: 0.00119 | G52: 0.00142 | H52: 0.00168 | I52: 0.002 | J52: 0.00237 | K52: 0.00281 | L52: 0.00334 | M52: 0.00396 | N52: 0.0047 | O52: 0.00558 | P52: 0.00662 | Q52: 0.00785 | R52: 0.00931 | S52: 0.01103 | T52: 0.01307 | U52: 0.01547 | V52: 0.0183 | W52: 0.02164 | X52: 0.02555 | Y52: 0.03015 | Z52: 0.03553 | AA52: 0.04181 | AB52: 0.04912 | AC52: 0.0576 | AD52: 0.06738 | AE52: 0.07863 | AF52: 0.09148 | AG52: 0.10607 | AH52: 0.12252 | AI52: 0.14092 | AJ52: 0.1613 | AK52: 0.18367 | AL52: 0.20794 | AM52: 0.23397
C53: Georgia | D53: =ROUND(HistVREShare!$BF55,5) -> 0 | E53: =INDEX(y_GP,MATCH(D53,y_GP,1)+(E$4-D$4)) -> 1e-05 | F53: 2e-05 | G53: 3e-05 | H53: 4e-05 | I53: 5e-05 | J53: 6e-05 | K53: 8e-05 | L53: 9e-05 | M53: 0.00011 | N53: 0.00013 | O53: 0.00015 | P53: 0.00018 | Q53: 0.00021 | R53: 0.00025 | S53: 0.0003 | T53: 0.00036 | U53: 0.00042 | V53: 0.0005 | W53: 0.0006 | X53: 0.00071 | Y53: 0.00084 | Z53: 0.001 | AA53: 0.00119 | AB53: 0.00142 | AC53: 0.00168 | AD53: 0.002 | AE53: 0.00237 | AF53: 0.00281 | AG53: 0.00334 | AH53: 0.00396 | AI53: 0.0047 | AJ53: 0.00558 | AK53: 0.00662 | AL53: 0.00785 | AM53: 0.00931
C54: Germany | D54: =ROUND(HistVREShare!$BF56,5) -> 0.18399 | E54: =INDEX(y_GP,MATCH(D54,y_GP,1)+(E$4-D$4)) -> 0.20794 | F54: 0.23397 | G54: 0.26152 | H54: 0.2903 | I54: 0.31993 | J54: 0.35 | K54: 0.38007 | L54: 0.4097 | M54: 0.43848 | N54: 0.46603 | O54: 0.49206 | P54: 0.51633 | Q54: 0.5387 | R54: 0.55908 | S54: 0.57748 | T54: 0.59393 | U54: 0.60852 | V54: 0.62137 | W54: 0.63262 | X54: 0.6424 | Y54: 0.65088 | Z54: 0.65819 | AA54: 0.66447 | AB54: 0.66985 | AC54: 0.67445 | AD54: 0.67836 | AE54: 0.6817 | AF54: 0.68453 | AG54: 0.68693 | AH54: 0.68897 | AI54: 0.69069 | AJ54: 0.69215 | AK54: 0.69338 | AL54: 0.69442 | AM54: 0.6953
C55: Ghana | D55: =ROUND(HistVREShare!$BF57,5) -> 0.00026 | E55: =INDEX(y_GP,MATCH(D55,y_GP,1)+(E$4-D$4)) -> 0.0003 | F55: 0.00036 | G55: 0.00042 | H55: 0.0005 | I55: 0.0006 | J55: 0.00071 | K55: 0.00084 | L55: 0.001 | M55: 0.00119 | N55: 0.00142 | O55: 0.00168 | P55: 0.002 | Q55: 0.00237 | R55: 0.00281 | S55: 0.00334 | T55: 0.00396 | U55: 0.0047 | V55: 0.00558 | W55: 0.00662 | X55: 0.00785 | Y55: 0.00931 | Z55: 0.01103 | AA55: 0.01307 | AB55: 0.01547 | AC55: 0.0183 | AD55: 0.02164 | AE55: 0.02555 | AF55: 0.03015 | AG55: 0.03553 | AH55: 0.04181 | AI55: 0.04912 | AJ55: 0.0576 | AK55: 0.06738 | AL55: 0.07863 | AM55: 0.09148
C56: Gibraltar | D56: =ROUND(HistVREShare!$BF58,5) -> 0 | E56: =INDEX(y_GP,MATCH(D56,y_GP,1)+(E$4-D$4)) -> 1e-05 | F56: 2e-05 | G56: 3e-05 | H56: 4e-05 | I56: 5e-05 | J56: 6e-05 | K56: 8e-05 | L56: 9e-05 | M56: 0.00011 | N56: 0.00013 | O56: 0.00015 | P56: 0.00018 | Q56: 0.00021 | R56: 0.00025 | S56: 0.0003 | T56: 0.00036 | U56: 0.00042 | V56: 0.0005 | W56: 0.0006 | X56: 0.00071 | Y56: 0.00084 | Z56: 0.001 | AA56: 0.00119 | AB56: 0.00142 | AC56: 0.00168 | AD56: 0.002 | AE56: 0.00237 | AF56: 0.00281 | AG56: 0.00334 | AH56: 0.00396 | AI56: 0.0047 | AJ56: 0.00558 | AK56: 0.00662 | AL56: 0.00785 | AM56: 0.00931
C57: Greece | D57: =ROUND(HistVREShare!$BF59,5) -> 0.16443 | E57: =INDEX(y_GP,MATCH(D57,y_GP,1)+(E$4-D$4)) -> 0.18367 | F57: 0.20794 | G57: 0.23397 | H57: 0.26152 | I57: 0.2903 | J57: 0.31993 | K57: 0.35 | L57: 0.38007 | M57: 0.4097 | N57: 0.43848 | O57: 0.46603 | P57: 0.49206 | Q57: 0.51633 | R57: 0.5387 | S57: 0.55908 | T57: 0.57748 | U57: 0.59393 | V57: 0.60852 | W57: 0.62137 | X57: 0.63262 | Y57: 0.6424 | Z57: 0.65088 | AA57: 0.65819 | AB57: 0.66447 | AC57: 0.66985 | AD57: 0.67445 | AE57: 0.67836 | AF57: 0.6817 | AG57: 0.68453 | AH57: 0.68693 | AI57: 0.68897 | AJ57: 0.69069 | AK57: 0.69215 | AL57: 0.69338 | AM57: 0.69442
C58: Guatemala | D58: =ROUND(HistVREShare!$BF60,5) -> 0.02201 | E58: =INDEX(y_GP,MATCH(D58,y_GP,1)+(E$4-D$4)) -> 0.02555 | F58: 0.03015 | G58: 0.03553 | H58: 0.04181 | I58: 0.04912 | J58: 0.0576 | K58: 0.06738 | L58: 0.07863 | M58: 0.09148 | N58: 0.10607 | O58: 0.12252 | P58: 0.14092 | Q58: 0.1613 | R58: 0.18367 | S58: 0.20794 | T58: 0.23397 | U58: 0.26152 | V58: 0.2903 | W58: 0.31993 | X58: 0.35 | Y58: 0.38007 | Z58: 0.4097 | AA58: 0.43848 | AB58: 0.46603 | AC58: 0.49206 | AD58: 0.51633 | AE58: 0.5387 | AF58: 0.55908 | AG58: 0.57748 | AH58: 0.59393 | AI58: 0.60852 | AJ58: 0.62137 | AK58: 0.63262 | AL58: 0.6424 | AM58: 0.65088
C59: Haiti | D59: =ROUND(HistVREShare!$BF61,5) -> 0 | E59: =INDEX(y_GP,MATCH(D59,y_GP,1)+(E$4-D$4)) -> 1e-05 | F59: 2e-05 | G59: 3e-05 | H59: 4e-05 | I59: 5e-05 | J59: 6e-05 | K59: 8e-05 | L59: 9e-05 | M59: 0.00011 | N59: 0.00013 | O59: 0.00015 | P59: 0.00018 | Q59: 0.00021 | R59: 0.00025 | S59: 0.0003 | T59: 0.00036 | U59: 0.00042 | V59: 0.0005 | W59: 0.0006 | X59: 0.00071 | Y59: 0.00084 | Z59: 0.001 | AA59: 0.00119 | AB59: 0.00142 | AC59: 0.00168 | AD59: 0.002 | AE59: 0.00237 | AF59: 0.00281 | AG59: 0.00334 | AH59: 0.00396 | AI59: 0.0047 | AJ59: 0.00558 | AK59: 0.00662 | AL59: 0.00785 | AM59: 0.00931
C60: Honduras | D60: =ROUND(HistVREShare!$BF62,5) -> 0.12069 | E60: =INDEX(y_GP,MATCH(D60,y_GP,1)+(E$4-D$4)) -> 0.12252 | F60: 0.14092 | G60: 0.1613 | H60: 0.18367 | I60: 0.20794 | J60: 0.23397 | K60: 0.26152 | L60: 0.2903 | M60: 0.31993 | N60: 0.35 | O60: 0.38007 | P60: 0.4097 | Q60: 0.43848 | R60: 0.46603 | S60: 0.49206 | T60: 0.51633 | U60: 0.5387 | V60: 0.55908 | W60: 0.57748 | X60: 0.59393 | Y60: 0.60852 | Z60: 0.62137 | AA60: 0.63262 | AB60: 0.6424 | AC60: 0.65088 | AD60: 0.65819 | AE60: 0.66447 | AF60: 0.66985 | AG60: 0.67445 | AH60: 0.67836 | AI60: 0.6817 | AJ60: 0.68453 | AK60: 0.68693 | AL60: 0.68897 | AM60: 0.69069
C61: Hong Kong (China) | D61: =ROUND(HistVREShare!$BF63,5) -> 8e-05 | E61: =INDEX(y_GP,MATCH(D61,y_GP,1)+(E$4-D$4)) -> 9e-05 | F61: 0.00011 | G61: 0.00013 | H61: 0.00015 | I61: 0.00018 | J61: 0.00021 | K61: 0.00025 | L61: 0.0003 | M61: 0.00036 | N61: 0.00042 | O61: 0.0005 | P61: 0.0006 | Q61: 0.00071 | R61: 0.00084 | S61: 0.001 | T61: 0.00119 | U61: 0.00142 | V61: 0.00168 | W61: 0.002 | X61: 0.00237 | Y61: 0.00281 | Z61: 0.00334 | AA61: 0.00396 | AB61: 0.0047 | AC61: 0.00558 | AD61: 0.00662 | AE61: 0.00785 | AF61: 0.00931 | AG61: 0.01103 | AH61: 0.01307 | AI61: 0.01547 | AJ61: 0.0183 | AK61: 0.02164 | AL61: 0.02555 | AM61: 0.03015
C62: Hungary | D62: =ROUND(HistVREShare!$BF64,5) -> 0.02689 | E62: =INDEX(y_GP,MATCH(D62,y_GP,1)+(E$4-D$4)) -> 0.03015 | F62: 0.03553 | G62: 0.04181 | H62: 0.04912 | I62: 0.0576 | J62: 0.06738 | K62: 0.07863 | L62: 0.09148 | M62: 0.10607 | N62: 0.12252 | O62: 0.14092 | P62: 0.1613 | Q62: 0.18367 | R62: 0.20794 | S62: 0.23397 | T62: 0.26152 | U62: 0.2903 | V62: 0.31993 | W62: 0.35 | X62: 0.38007 | Y62: 0.4097 | Z62: 0.43848 | AA62: 0.46603 | AB62: 0.49206 | AC62: 0.51633 | AD62: 0.5387 | AE62: 0.55908 | AF62: 0.57748 | AG62: 0.59393 | AH62: 0.60852 | AI62: 0.62137 | AJ62: 0.63262 | AK62: 0.6424 | AL62: 0.65088 | AM62: 0.65819
C63: Iceland | D63: =ROUND(HistVREShare!$BF65,5) -> 0.00059 | E63: =INDEX(y_GP,MATCH(D63,y_GP,1)+(E$4-D$4)) -> 0.0006 | F63: 0.00071 | G63: 0.00084 | H63: 0.001 | I63: 0.00119 | J63: 0.00142 | K63: 0.00168 | L63: 0.002 | M63: 0.00237 | N63: 0.00281 | O63: 0.00334 | P63: 0.00396 | Q63: 0.0047 | R63: 0.00558 | S63: 0.00662 | T63: 0.00785 | U63: 0.00931 | V63: 0.01103 | W63: 0.01307 | X63: 0.01547 | Y63: 0.0183 | Z63: 0.02164 | AA63: 0.02555 | AB63: 0.03015 | AC63: 0.03553 | AD63: 0.04181 | AE63: 0.04912 | AF63: 0.0576 | AG63: 0.06738 | AH63: 0.07863 | AI63: 0.09148 | AJ63: 0.10607 | AK63: 0.12252 | AL63: 0.14092 | AM63: 0.1613
C64: India | D64: =ROUND(HistVREShare!$BF66,5) -> 0.03798 | E64: =INDEX(y_GP,MATCH(D64,y_GP,1)+(E$4-D$4)) -> 0.04181 | F64: 0.04912 | G64: 0.0576 | H64: 0.06738 | I64: 0.07863 | J64: 0.09148 | K64: 0.10607 | L64: 0.12252 | M64: 0.14092 | N64: 0.1613 | O64: 0.18367 | P64: 0.20794 | Q64: 0.23397 | R64: 0.26152 | S64: 0.2903 | T64: 0.31993 | U64: 0.35 | V64: 0.38007 | W64: 0.4097 | X64: 0.43848 | Y64: 0.46603 | Z64: 0.49206 | AA64: 0.51633 | AB64: 0.5387 | AC64: 0.55908 | AD64: 0.57748 | AE64: 0.59393 | AF64: 0.60852 | AG64: 0.62137 | AH64: 0.63262 | AI64: 0.6424 | AJ64: 0.65088 | AK64: 0.65819 | AL64: 0.66447 | AM64: 0.66985
C65: Indonesia | D65: =ROUND(HistVREShare!$BF67,5) -> 4e-05 | E65: =INDEX(y_GP,MATCH(D65,y_GP,1)+(E$4-D$4)) -> 5e-05 | F65: 6e-05 | G65: 8e-05 | H65: 9e-05 | I65: 0.00011 | J65: 0.00013 | K65: 0.00015 | L65: 0.00018 | M65: 0.00021 | N65: 0.00025 | O65: 0.0003 | P65: 0.00036 | Q65: 0.00042 | R65: 0.0005 | S65: 0.0006 | T65: 0.00071 | U65: 0.00084 | V65: 0.001 | W65: 0.00119 | X65: 0.00142 | Y65: 0.00168 | Z65: 0.002 | AA65: 0.00237 | AB65: 0.00281 | AC65: 0.00334 | AD65: 0.00396 | AE65: 0.0047 | AF65: 0.00558 | AG65: 0.00662 | AH65: 0.00785 | AI65: 0.00931 | AJ65: 0.01103 | AK65: 0.01307 | AL65: 0.01547 | AM65: 0.0183
C66: Iran | D66: =ROUND(HistVREShare!$BF68,5) -> 0.00079 | E66: =INDEX(y_GP,MATCH(D66,y_GP,1)+(E$4-D$4)) -> 0.00084 | F66: 0.001 | G66: 0.00119 | H66: 0.00142 | I66: 0.00168 | J66: 0.002 | K66: 0.00237 | L66: 0.00281 | M66: 0.00334 | N66: 0.00396 | O66: 0.0047 | P66: 0.00558 | Q66: 0.00662 | R66: 0.00785 | S66: 0.00931 | T66: 0.01103 | U66: 0.01307 | V66: 0.01547 | W66: 0.0183 | X66: 0.02164 | Y66: 0.02555 | Z66: 0.03015 | AA66: 0.03553 | AB66: 0.04181 | AC66: 0.04912 | AD66: 0.0576 | AE66: 0.06738 | AF66: 0.07863 | AG66: 0.09148 | AH66: 0.10607 | AI66: 0.12252 | AJ66: 0.14092 | AK66: 0.1613 | AL66: 0.18367 | AM66: 0.20794
C67: Iraq | D67: =ROUND(HistVREShare!$BF69,5) -> 0 | E67: =INDEX(y_GP,MATCH(D67,y_GP,1)+(E$4-D$4)) -> 1e-05 | F67: 2e-05 | G67: 3e-05 | H67: 4e-05 | I67: 5e-05 | J67: 6e-05 | K67: 8e-05 | L67: 9e-05 | M67: 0.00011 | N67: 0.00013 | O67: 0.00015 | P67: 0.00018 | Q67: 0.00021 | R67: 0.00025 | S67: 0.0003 | T67: 0.00036 | U67: 0.00042 | V67: 0.0005 | W67: 0.0006 | X67: 0.00071 | Y67: 0.00084 | Z67: 0.001 | AA67: 0.00119 | AB67: 0.00142 | AC67: 0.00168 | AD67: 0.002 | AE67: 0.00237 | AF67: 0.00281 | AG67: 0.00334 | AH67: 0.00396 | AI67: 0.0047 | AJ67: 0.00558 | AK67: 0.00662 | AL67: 0.00785 | AM67: 0.00931
C68: Ireland | D68: =ROUND(HistVREShare!$BF70,5) -> 0.23399 | E68: =INDEX(y_GP,MATCH(D68,y_GP,1)+(E$4-D$4)) -> 0.26152 | F68: 0.2903 | G68: 0.31993 | H68: 0.35 | I68: 0.38007 | J68: 0.4097 | K68: 0.43848 | L68: 0.46603 | M68: 0.49206 | N68: 0.51633 | O68: 0.5387 | P68: 0.55908 | Q68: 0.57748 | R68: 0.59393 | S68: 0.60852 | T68: 0.62137 | U68: 0.63262 | V68: 0.6424 | W68: 0.65088 | X68: 0.65819 | Y68: 0.66447 | Z68: 0.66985 | AA68: 0.67445 | AB68: 0.67836 | AC68: 0.6817 | AD68: 0.68453 | AE68: 0.68693 | AF68: 0.68897 | AG68: 0.69069 | AH68: 0.69215 | AI68: 0.69338 | AJ68: 0.69442 | AK68: 0.6953 | AL68: 0.69604 | AM68: 0.69666
C69: Israel | D69: =ROUND(HistVREShare!$BF71,5) -> 0.01747 | E69: =INDEX(y_GP,MATCH(D69,y_GP,1)+(E$4-D$4)) -> 0.0183 | F69: 0.02164 | G69: 0.02555 | H69: 0.03015 | I69: 0.03553 | J69: 0.04181 | K69: 0.04912 | L69: 0.0576 | M69: 0.06738 | N69: 0.07863 | O69: 0.09148 | P69: 0.10607 | Q69: 0.12252 | R69: 0.14092 | S69: 0.1613 | T69: 0.18367 | U69: 0.20794 | V69: 0.23397 | W69: 0.26152 | X69: 0.2903 | Y69: 0.31993 | Z69: 0.35 | AA69: 0.38007 | AB69: 0.4097 | AC69: 0.43848 | AD69: 0.46603 | AE69: 0.49206 | AF69: 0.51633 | AG69: 0.5387 | AH69: 0.55908 | AI69: 0.57748 | AJ69: 0.59393 | AK69: 0.60852 | AL69: 0.62137 | AM69: 0.63262
C70: Italy | D70: =ROUND(HistVREShare!$BF72,5) -> 0.1342 | E70: =INDEX(y_GP,MATCH(D70,y_GP,1)+(E$4-D$4)) -> 0.14092 | F70: 0.1613 | G70: 0.18367 | H70: 0.20794 | I70: 0.23397 | J70: 0.26152 | K70: 0.2903 | L70: 0.31993 | M70: 0.35 | N70: 0.38007 | O70: 0.4097 | P70: 0.43848 | Q70: 0.46603 | R70: 0.49206 | S70: 0.51633 | T70: 0.5387 | U70: 0.55908 | V70: 0.57748 | W70: 0.59393 | X70: 0.60852 | Y70: 0.62137 | Z70: 0.63262 | AA70: 0.6424 | AB70: 0.65088 | AC70: 0.65819 | AD70: 0.66447 | AE70: 0.66985 | AF70: 0.67445 | AG70: 0.67836 | AH70: 0.6817 | AI70: 0.68453 | AJ70: 0.68693 | AK70: 0.68897 | AL70: 0.69069 | AM70: 0.69215
C71: Jamaica | D71: =ROUND(HistVREShare!$BF73,5) -> 0.03033 | E71: =INDEX(y_GP,MATCH(D71,y_GP,1)+(E$4-D$4)) -> 0.03553 | F71: 0.04181 | G71: 0.04912 | H71: 0.0576 | I71: 0.06738 | J71: 0.07863 | K71: 0.09148 | L71: 0.10607 | M71: 0.12252 | N71: 0.14092 | O71: 0.1613 | P71: 0.18367 | Q71: 0.20794 | R71: 0.23397 | S71: 0.26152 | T71: 0.2903 | U71: 0.31993 | V71: 0.35 | W71: 0.38007 | X71: 0.4097 | Y71: 0.43848 | Z71: 0.46603 | AA71: 0.49206 | AB71: 0.51633 | AC71: 0.5387 | AD71: 0.55908 | AE71: 0.57748 | AF71: 0.59393 | AG71: 0.60852 | AH71: 0.62137 | AI71: 0.63262 | AJ71: 0.6424 | AK71: 0.65088 | AL71: 0.65819 | AM71: 0.66447
C72: Japan | D72: =ROUND(HistVREShare!$BF74,5) -> 0.03873 | E72: =INDEX(y_GP,MATCH(D72,y_GP,1)+(E$4-D$4)) -> 0.04181 | F72: 0.04912 | G72: 0.0576 | H72: 0.06738 | I72: 0.07863 | J72: 0.09148 | K72: 0.10607 | L72: 0.12252 | M72: 0.14092 | N72: 0.1613 | O72: 0.18367 | P72: 0.20794 | Q72: 0.23397 | R72: 0.26152 | S72: 0.2903 | T72: 0.31993 | U72: 0.35 | V72: 0.38007 | W72: 0.4097 | X72: 0.43848 | Y72: 0.46603 | Z72: 0.49206 | AA72: 0.51633 | AB72: 0.5387 | AC72: 0.55908 | AD72: 0.57748 | AE72: 0.59393 | AF72: 0.60852 | AG72: 0.62137 | AH72: 0.63262 | AI72: 0.6424 | AJ72: 0.65088 | AK72: 0.65819 | AL72: 0.66447 | AM72: 0.66985
C73: Jordan | D73: =ROUND(HistVREShare!$BF75,5) -> 0.00657 | E73: =INDEX(y_GP,MATCH(D73,y_GP,1)+(E$4-D$4)) -> 0.00662 | F73: 0.00785 | G73: 0.00931 | H73: 0.01103 | I73: 0.01307 | J73: 0.01547 | K73: 0.0183 | L73: 0.02164 | M73: 0.02555 | N73: 0.03015 | O73: 0.03553 | P73: 0.04181 | Q73: 0.04912 | R73: 0.0576 | S73: 0.06738 | T73: 0.07863 | U73: 0.09148 | V73: 0.10607 | W73: 0.12252 | X73: 0.14092 | Y73: 0.1613 | Z73: 0.18367 | AA73: 0.20794 | AB73: 0.23397 | AC73: 0.26152 | AD73: 0.2903 | AE73: 0.31993 | AF73: 0.35 | AG73: 0.38007 | AH73: 0.4097 | AI73: 0.43848 | AJ73: 0.46603 | AK73: 0.49206 | AL73: 0.51633 | AM73: 0.5387
C74: Kazakhstan | D74: =ROUND(HistVREShare!$BF76,5) -> 0.00168 | E74: =INDEX(y_GP,MATCH(D74,y_GP,1)+(E$4-D$4)) -> 0.002 | F74: 0.00237 | G74: 0.00281 | H74: 0.00334 | I74: 0.00396 | J74: 0.0047 | K74: 0.00558 | L74: 0.00662 | M74: 0.00785 | N74: 0.00931 | O74: 0.01103 | P74: 0.01307 | Q74: 0.01547 | R74: 0.0183 | S74: 0.02164 | T74: 0.02555 | U74: 0.03015 | V74: 0.03553 | W74: 0.04181 | X74: 0.04912 | Y74: 0.0576 | Z74: 0.06738 | AA74: 0.07863 | AB74: 0.09148 | AC74: 0.10607 | AD74: 0.12252 | AE74: 0.14092 | AF74: 0.1613 | AG74: 0.18367 | AH74: 0.20794 | AI74: 0.23397 | AJ74: 0.26152 | AK74: 0.2903 | AL74: 0.31993 | AM74: 0.35
C75: Kenya | D75: =ROUND(HistVREShare!$BF77,5) -> 0.00601 | E75: =INDEX(y_GP,MATCH(D75,y_GP,1)+(E$4-D$4)) -> 0.00662 | F75: 0.00785 | G75: 0.00931 | H75: 0.01103 | I75: 0.01307 | J75: 0.01547 | K75: 0.0183 | L75: 0.02164 | M75: 0.02555 | N75: 0.03015 | O75: 0.03553 | P75: 0.04181 | Q75: 0.04912 | R75: 0.0576 | S75: 0.06738 | T75: 0.07863 | U75: 0.09148 | V75: 0.10607 | W75: 0.12252 | X75: 0.14092 | Y75: 0.1613 | Z75: 0.18367 | AA75: 0.20794 | AB75: 0.23397 | AC75: 0.26152 | AD75: 0.2903 | AE75: 0.31993 | AF75: 0.35 | AG75: 0.38007 | AH75: 0.4097 | AI75: 0.43848 | AJ75: 0.46603 | AK75: 0.49206 | AL75: 0.51633 | AM75: 0.5387
C76: South Korea | D76: =ROUND(HistVREShare!$BF78,5) -> 0.00968 | E76: =INDEX(y_GP,MATCH(D76,y_GP,1)+(E$4-D$4)) -> 0.01103 | F76: 0.01307 | G76: 0.01547 | H76: 0.0183 | I76: 0.02164 | J76: 0.02555 | K76: 0.03015 | L76: 0.03553 | M76: 0.04181 | N76: 0.04912 | O76: 0.0576 | P76: 0.06738 | Q76: 0.07863 | R76: 0.09148 | S76: 0.10607 | T76: 0.12252 | U76: 0.14092 | V76: 0.1613 | W76: 0.18367 | X76: 0.20794 | Y76: 0.23397 | Z76: 0.26152 | AA76: 0.2903 | AB76: 0.31993 | AC76: 0.35 | AD76: 0.38007 | AE76: 0.4097 | AF76: 0.43848 | AG76: 0.46603 | AH76: 0.49206 | AI76: 0.51633 | AJ76: 0.5387 | AK76: 0.55908 | AL76: 0.57748 | AM76: 0.59393
C77: Kosovo | D77: =ROUND(HistVREShare!$BF79,5) -> 0 | E77: =INDEX(y_GP,MATCH(D77,y_GP,1)+(E$4-D$4)) -> 1e-05 | F77: 2e-05 | G77: 3e-05 | H77: 4e-05 | I77: 5e-05 | J77: 6e-05 | K77: 8e-05 | L77: 9e-05 | M77: 0.00011 | N77: 0.00013 | O77: 0.00015 | P77: 0.00018 | Q77: 0.00021 | R77: 0.00025 | S77: 0.0003 | T77: 0.00036 | U77: 0.00042 | V77: 0.0005 | W77: 0.0006 | X77: 0.00071 | Y77: 0.00084 | Z77: 0.001 | AA77: 0.00119 | AB77: 0.00142 | AC77: 0.00168 | AD77: 0.002 | AE77: 0.00237 | AF77: 0.00281 | AG77: 0.00334 | AH77: 0.00396 | AI77: 0.0047 | AJ77: 0.00558 | AK77: 0.00662 | AL77: 0.00785 | AM77: 0.00931
C78: Kuwait | D78: =ROUND(HistVREShare!$BF80,5) -> 0 | E78: =INDEX(y_GP,MATCH(D78,y_GP,1)+(E$4-D$4)) -> 1e-05 | F78: 2e-05 | G78: 3e-05 | H78: 4e-05 | I78: 5e-05 | J78: 6e-05 | K78: 8e-05 | L78: 9e-05 | M78: 0.00011 | N78: 0.00013 | O78: 0.00015 | P78: 0.00018 | Q78: 0.00021 | R78: 0.00025 | S78: 0.0003 | T78: 0.00036 | U78: 0.00042 | V78: 0.0005 | W78: 0.0006 | X78: 0.00071 | Y78: 0.00084 | Z78: 0.001 | AA78: 0.00119 | AB78: 0.00142 | AC78: 0.00168 | AD78: 0.002 | AE78: 0.00237 | AF78: 0.00281 | AG78: 0.00334 | AH78: 0.00396 | AI78: 0.0047 | AJ78: 0.00558 | AK78: 0.00662 | AL78: 0.00785 | AM78: 0.00931
C79: Kyrgyzstan | D79: =ROUND(HistVREShare!$BF81,5) -> 0 | E79: =INDEX(y_GP,MATCH(D79,y_GP,1)+(E$4-D$4)) -> 1e-05 | F79: 2e-05 | G79: 3e-05 | H79: 4e-05 | I79: 5e-05 | J79: 6e-05 | K79: 8e-05 | L79: 9e-05 | M79: 0.00011 | N79: 0.00013 | O79: 0.00015 | P79: 0.00018 | Q79: 0.00021 | R79: 0.00025 | S79: 0.0003 | T79: 0.00036 | U79: 0.00042 | V79: 0.0005 | W79: 0.0006 | X79: 0.00071 | Y79: 0.00084 | Z79: 0.001 | AA79: 0.00119 | AB79: 0.00142 | AC79: 0.00168 | AD79: 0.002 | AE79: 0.00237 | AF79: 0.00281 | AG79: 0.00334 | AH79: 0.00396 | AI79: 0.0047 | AJ79: 0.00558 | AK79: 0.00662 | AL79: 0.00785 | AM79: 0.00931
C80: Latvia | D80: =ROUND(HistVREShare!$BF82,5) -> 0.02657 | E80: =INDEX(y_GP,MATCH(D80,y_GP,1)+(E$4-D$4)) -> 0.03015 | F80: 0.03553 | G80: 0.04181 | H80: 0.04912 | I80: 0.0576 | J80: 0.06738 | K80: 0.07863 | L80: 0.09148 | M80: 0.10607 | N80: 0.12252 | O80: 0.14092 | P80: 0.1613 | Q80: 0.18367 | R80: 0.20794 | S80: 0.23397 | T80: 0.26152 | U80: 0.2903 | V80: 0.31993 | W80: 0.35 | X80: 0.38007 | Y80: 0.4097 | Z80: 0.43848 | AA80: 0.46603 | AB80: 0.49206 | AC80: 0.51633 | AD80: 0.5387 | AE80: 0.55908 | AF80: 0.57748 | AG80: 0.59393 | AH80: 0.60852 | AI80: 0.62137 | AJ80: 0.63262 | AK80: 0.6424 | AL80: 0.65088 | AM80: 0.65819
C81: Lebanon | D81: =ROUND(HistVREShare!$BF83,5) -> 0 | E81: =INDEX(y_GP,MATCH(D81,y_GP,1)+(E$4-D$4)) -> 1e-05 | F81: 2e-05 | G81: 3e-05 | H81: 4e-05 | I81: 5e-05 | J81: 6e-05 | K81: 8e-05 | L81: 9e-05 | M81: 0.00011 | N81: 0.00013 | O81: 0.00015 | P81: 0.00018 | Q81: 0.00021 | R81: 0.00025 | S81: 0.0003 | T81: 0.00036 | U81: 0.00042 | V81: 0.0005 | W81: 0.0006 | X81: 0.00071 | Y81: 0.00084 | Z81: 0.001 | AA81: 0.00119 | AB81: 0.00142 | AC81: 0.00168 | AD81: 0.002 | AE81: 0.00237 | AF81: 0.00281 | AG81: 0.00334 | AH81: 0.00396 | AI81: 0.0047 | AJ81: 0.00558 | AK81: 0.00662 | AL81: 0.00785 | AM81: 0.00931
C82: Libya | D82: =ROUND(HistVREShare!$BF84,5) -> 0.00021 | E82: =INDEX(y_GP,MATCH(D82,y_GP,1)+(E$4-D$4)) -> 0.00025 | F82: 0.0003 | G82: 0.00036 | H82: 0.00042 | I82: 0.0005 | J82: 0.0006 | K82: 0.00071 | L82: 0.00084 | M82: 0.001 | N82: 0.00119 | O82: 0.00142 | P82: 0.00168 | Q82: 0.002 | R82: 0.00237 | S82: 0.00281 | T82: 0.00334 | U82: 0.00396 | V82: 0.0047 | W82: 0.00558 | X82: 0.00662 | Y82: 0.00785 | Z82: 0.00931 | AA82: 0.01103 | AB82: 0.01307 | AC82: 0.01547 | AD82: 0.0183 | AE82: 0.02164 | AF82: 0.02555 | AG82: 0.03015 | AH82: 0.03553 | AI82: 0.04181 | AJ82: 0.04912 | AK82: 0.0576 | AL82: 0.06738 | AM82: 0.07863
C83: Lithuania | D83: =ROUND(HistVREShare!$BF85,5) -> 0.20737 | E83: =INDEX(y_GP,MATCH(D83,y_GP,1)+(E$4-D$4)) -> 0.20794 | F83: 0.23397 | G83: 0.26152 | H83: 0.2903 | I83: 0.31993 | J83: 0.35 | K83: 0.38007 | L83: 0.4097 | M83: 0.43848 | N83: 0.46603 | O83: 0.49206 | P83: 0.51633 | Q83: 0.5387 | R83: 0.55908 | S83: 0.57748 | T83: 0.59393 | U83: 0.60852 | V83: 0.62137 | W83: 0.63262 | X83: 0.6424 | Y83: 0.65088 | Z83: 0.65819 | AA83: 0.66447 | AB83: 0.66985 | AC83: 0.67445 | AD83: 0.67836 | AE83: 0.6817 | AF83: 0.68453 | AG83: 0.68693 | AH83: 0.68897 | AI83: 0.69069 | AJ83: 0.69215 | AK83: 0.69338 | AL83: 0.69442 | AM83: 0.6953
C84: Luxembourg | D84: =ROUND(HistVREShare!$BF86,5) -> 0.15431 | E84: =INDEX(y_GP,MATCH(D84,y_GP,1)+(E$4-D$4)) -> 0.1613 | F84: 0.18367 | G84: 0.20794 | H84: 0.23397 | I84: 0.26152 | J84: 0.2903 | K84: 0.31993 | L84: 0.35 | M84: 0.38007 | N84: 0.4097 | O84: 0.43848 | P84: 0.46603 | Q84: 0.49206 | R84: 0.51633 | S84: 0.5387 | T84: 0.55908 | U84: 0.57748 | V84: 0.59393 | W84: 0.60852 | X84: 0.62137 | Y84: 0.63262 | Z84: 0.6424 | AA84: 0.65088 | AB84: 0.65819 | AC84: 0.66447 | AD84: 0.66985 | AE84: 0.67445 | AF84: 0.67836 | AG84: 0.6817 | AH84: 0.68453 | AI84: 0.68693 | AJ84: 0.68897 | AK84: 0.69069 | AL84: 0.69215 | AM84: 0.69338
C85: Malaysia | D85: =ROUND(HistVREShare!$BF87,5) -> 0.00182 | E85: =INDEX(y_GP,MATCH(D85,y_GP,1)+(E$4-D$4)) -> 0.002 | F85: 0.00237 | G85: 0.00281 | H85: 0.00334 | I85: 0.00396 | J85: 0.0047 | K85: 0.00558 | L85: 0.00662 | M85: 0.00785 | N85: 0.00931 | O85: 0.01103 | P85: 0.01307 | Q85: 0.01547 | R85: 0.0183 | S85: 0.02164 | T85: 0.02555 | U85: 0.03015 | V85: 0.03553 | W85: 0.04181 | X85: 0.04912 | Y85: 0.0576 | Z85: 0.06738 | AA85: 0.07863 | AB85: 0.09148 | AC85: 0.10607 | AD85: 0.12252 | AE85: 0.14092 | AF85: 0.1613 | AG85: 0.18367 | AH85: 0.20794 | AI85: 0.23397 | AJ85: 0.26152 | AK85: 0.2903 | AL85: 0.31993 | AM85: 0.35
C86: Malta | D86: =ROUND(HistVREShare!$BF88,5) -> 0.07137 | E86: =INDEX(y_GP,MATCH(D86,y_GP,1)+(E$4-D$4)) -> 0.07863 | F86: 0.09148 | G86: 0.10607 | H86: 0.12252 | I86: 0.14092 | J86: 0.1613 | K86: 0.18367 | L86: 0.20794 | M86: 0.23397 | N86: 0.26152 | O86: 0.2903 | P86: 0.31993 | Q86: 0.35 | R86: 0.38007 | S86: 0.4097 | T86: 0.43848 | U86: 0.46603 | V86: 0.49206 | W86: 0.51633 | X86: 0.5387 | Y86: 0.55908 | Z86: 0.57748 | AA86: 0.59393 | AB86: 0.60852 | AC86: 0.62137 | AD86: 0.63262 | AE86: 0.6424 | AF86: 0.65088 | AG86: 0.65819 | AH86: 0.66447 | AI86: 0.66985 | AJ86: 0.67445 | AK86: 0.67836 | AL86: 0.6817 | AM86: 0.68453
C87: Mauritius | D87: =ROUND(HistVREShare!$BF89,5) -> 0.00968 | E87: =INDEX(y_GP,MATCH(D87,y_GP,1)+(E$4-D$4)) -> 0.01103 | F87: 0.01307 | G87: 0.01547 | H87: 0.0183 | I87: 0.02164 | J87: 0.02555 | K87: 0.03015 | L87: 0.03553 | M87: 0.04181 | N87: 0.04912 | O87: 0.0576 | P87: 0.06738 | Q87: 0.07863 | R87: 0.09148 | S87: 0.10607 | T87: 0.12252 | U87: 0.14092 | V87: 0.1613 | W87: 0.18367 | X87: 0.20794 | Y87: 0.23397 | Z87: 0.26152 | AA87: 0.2903 | AB87: 0.31993 | AC87: 0.35 | AD87: 0.38007 | AE87: 0.4097 | AF87: 0.43848 | AG87: 0.46603 | AH87: 0.49206 | AI87: 0.51633 | AJ87: 0.5387 | AK87: 0.55908 | AL87: 0.57748 | AM87: 0.59393
C88: Mexico | D88: =ROUND(HistVREShare!$BF90,5) -> 0.02894 | E88: =INDEX(y_GP,MATCH(D88,y_GP,1)+(E$4-D$4)) -> 0.03015 | F88: 0.03553 | G88: 0.04181 | H88: 0.04912 | I88: 0.0576 | J88: 0.06738 | K88: 0.07863 | L88: 0.09148 | M88: 0.10607 | N88: 0.12252 | O88: 0.14092 | P88: 0.1613 | Q88: 0.18367 | R88: 0.20794 | S88: 0.23397 | T88: 0.26152 | U88: 0.2903 | V88: 0.31993 | W88: 0.35 | X88: 0.38007 | Y88: 0.4097 | Z88: 0.43848 | AA88: 0.46603 | AB88: 0.49206 | AC88: 0.51633 | AD88: 0.5387 | AE88: 0.55908 | AF88: 0.57748 | AG88: 0.59393 | AH88: 0.60852 | AI88: 0.62137 | AJ88: 0.63262 | AK88: 0.6424 | AL88: 0.65088 | AM88: 0.65819
C89: Moldova | D89: =ROUND(HistVREShare!$BF91,5) -> 0.00066 | E89: =INDEX(y_GP,MATCH(D89,y_GP,1)+(E$4-D$4)) -> 0.00071 | F89: 0.00084 | G89: 0.001 | H89: 0.00119 | I89: 0.00142 | J89: 0.00168 | K89: 0.002 | L89: 0.00237 | M89: 0.00281 | N89: 0.00334 | O89: 0.00396 | P89: 0.0047 | Q89: 0.00558 | R89: 0.00662 | S89: 0.00785 | T89: 0.00931 | U89: 0.01103 | V89: 0.01307 | W89: 0.01547 | X89: 0.0183 | Y89: 0.02164 | Z89: 0.02555 | AA89: 0.03015 | AB89: 0.03553 | AC89: 0.04181 | AD89: 0.04912 | AE89: 0.0576 | AF89: 0.06738 | AG89: 0.07863 | AH89: 0.09148 | AI89: 0.10607 | AJ89: 0.12252 | AK89: 0.14092 | AL89: 0.1613 | AM89: 0.18367
C90: Mongolia | D90: =ROUND(HistVREShare!$BF92,5) -> 0.0292 | E90: =INDEX(y_GP,MATCH(D90,y_GP,1)+(E$4-D$4)) -> 0.03015 | F90: 0.03553 | G90: 0.04181 | H90: 0.04912 | I90: 0.0576 | J90: 0.06738 | K90: 0.07863 | L90: 0.09148 | M90: 0.10607 | N90: 0.12252 | O90: 0.14092 | P90: 0.1613 | Q90: 0.18367 | R90: 0.20794 | S90: 0.23397 | T90: 0.26152 | U90: 0.2903 | V90: 0.31993 | W90: 0.35 | X90: 0.38007 | Y90: 0.4097 | Z90: 0.43848 | AA90: 0.46603 | AB90: 0.49206 | AC90: 0.51633 | AD90: 0.5387 | AE90: 0.55908 | AF90: 0.57748 | AG90: 0.59393 | AH90: 0.60852 | AI90: 0.62137 | AJ90: 0.63262 | AK90: 0.6424 | AL90: 0.65088 | AM90: 0.65819
C91: Montenegro | D91: =ROUND(HistVREShare!$BF93,5) -> 0 | E91: =INDEX(y_GP,MATCH(D91,y_GP,1)+(E$4-D$4)) -> 1e-05 | F91: 2e-05 | G91: 3e-05 | H91: 4e-05 | I91: 5e-05 | J91: 6e-05 | K91: 8e-05 | L91: 9e-05 | M91: 0.00011 | N91: 0.00013 | O91: 0.00015 | P91: 0.00018 | Q91: 0.00021 | R91: 0.00025 | S91: 0.0003 | T91: 0.00036 | U91: 0.00042 | V91: 0.0005 | W91: 0.0006 | X91: 0.00071 | Y91: 0.00084 | Z91: 0.001 | AA91: 0.00119 | AB91: 0.00142 | AC91: 0.00168 | AD91: 0.002 | AE91: 0.00237 | AF91: 0.00281 | AG91: 0.00334 | AH91: 0.00396 | AI91: 0.0047 | AJ91: 0.00558 | AK91: 0.00662 | AL91: 0.00785 | AM91: 0.00931
C92: Morocco | D92: =ROUND(HistVREShare!$BF94,5) -> 0.0819 | E92: =INDEX(y_GP,MATCH(D92,y_GP,1)+(E$4-D$4)) -> 0.09148 | F92: 0.10607 | G92: 0.12252 | H92: 0.14092 | I92: 0.1613 | J92: 0.18367 | K92: 0.20794 | L92: 0.23397 | M92: 0.26152 | N92: 0.2903 | O92: 0.31993 | P92: 0.35 | Q92: 0.38007 | R92: 0.4097 | S92: 0.43848 | T92: 0.46603 | U92: 0.49206 | V92: 0.51633 | W92: 0.5387 | X92: 0.55908 | Y92: 0.57748 | Z92: 0.59393 | AA92: 0.60852 | AB92: 0.62137 | AC92: 0.63262 | AD92: 0.6424 | AE92: 0.65088 | AF92: 0.65819 | AG92: 0.66447 | AH92: 0.66985 | AI92: 0.67445 | AJ92: 0.67836 | AK92: 0.6817 | AL92: 0.68453 | AM92: 0.68693
C93: Mozambique | D93: =ROUND(HistVREShare!$BF95,5) -> 0 | E93: =INDEX(y_GP,MATCH(D93,y_GP,1)+(E$4-D$4)) -> 1e-05 | F93: 2e-05 | G93: 3e-05 | H93: 4e-05 | I93: 5e-05 | J93: 6e-05 | K93: 8e-05 | L93: 9e-05 | M93: 0.00011 | N93: 0.00013 | O93: 0.00015 | P93: 0.00018 | Q93: 0.00021 | R93: 0.00025 | S93: 0.0003 | T93: 0.00036 | U93: 0.00042 | V93: 0.0005 | W93: 0.0006 | X93: 0.00071 | Y93: 0.00084 | Z93: 0.001 | AA93: 0.00119 | AB93: 0.00142 | AC93: 0.00168 | AD93: 0.002 | AE93: 0.00237 | AF93: 0.00281 | AG93: 0.00334 | AH93: 0.00396 | AI93: 0.0047 | AJ93: 0.00558 | AK93: 0.00662 | AL93: 0.00785 | AM93: 0.00931
C94: Myanmar | D94: =ROUND(HistVREShare!$BF96,5) -> 0 | E94: =INDEX(y_GP,MATCH(D94,y_GP,1)+(E$4-D$4)) -> 1e-05 | F94: 2e-05 | G94: 3e-05 | H94: 4e-05 | I94: 5e-05 | J94: 6e-05 | K94: 8e-05 | L94: 9e-05 | M94: 0.00011 | N94: 0.00013 | O94: 0.00015 | P94: 0.00018 | Q94: 0.00021 | R94: 0.00025 | S94: 0.0003 | T94: 0.00036 | U94: 0.00042 | V94: 0.0005 | W94: 0.0006 | X94: 0.00071 | Y94: 0.00084 | Z94: 0.001 | AA94: 0.00119 | AB94: 0.00142 | AC94: 0.00168 | AD94: 0.002 | AE94: 0.00237 | AF94: 0.00281 | AG94: 0.00334 | AH94: 0.00396 | AI94: 0.0047 | AJ94: 0.00558 | AK94: 0.00662 | AL94: 0.00785 | AM94: 0.00931
C95: Namibia | D95: =ROUND(HistVREShare!$BF97,5) -> 0 | E95: =INDEX(y_GP,MATCH(D95,y_GP,1)+(E$4-D$4)) -> 1e-05 | F95: 2e-05 | G95: 3e-05 | H95: 4e-05 | I95: 5e-05 | J95: 6e-05 | K95: 8e-05 | L95: 9e-05 | M95: 0.00011 | N95: 0.00013 | O95: 0.00015 | P95: 0.00018 | Q95: 0.00021 | R95: 0.00025 | S95: 0.0003 | T95: 0.00036 | U95: 0.00042 | V95: 0.0005 | W95: 0.0006 | X95: 0.00071 | Y95: 0.00084 | Z95: 0.001 | AA95: 0.00119 | AB95: 0.00142 | AC95: 0.00168 | AD95: 0.002 | AE95: 0.00237 | AF95: 0.00281 | AG95: 0.00334 | AH95: 0.00396 | AI95: 0.0047 | AJ95: 0.00558 | AK95: 0.00662 | AL95: 0.00785 | AM95: 0.00931
C96: Nepal | D96: =ROUND(HistVREShare!$BF98,5) -> 0.00202 | E96: =INDEX(y_GP,MATCH(D96,y_GP,1)+(E$4-D$4)) -> 0.00237 | F96: 0.00281 | G96: 0.00334 | H96: 0.00396 | I96: 0.0047 | J96: 0.00558 | K96: 0.00662 | L96: 0.00785 | M96: 0.00931 | N96: 0.01103 | O96: 0.01307 | P96: 0.01547 | Q96: 0.0183 | R96: 0.02164 | S96: 0.02555 | T96: 0.03015 | U96: 0.03553 | V96: 0.04181 | W96: 0.04912 | X96: 0.0576 | Y96: 0.06738 | Z96: 0.07863 | AA96: 0.09148 | AB96: 0.10607 | AC96: 0.12252 | AD96: 0.14092 | AE96: 0.1613 | AF96: 0.18367 | AG96: 0.20794 | AH96: 0.23397 | AI96: 0.26152 | AJ96: 0.2903 | AK96: 0.31993 | AL96: 0.35 | AM96: 0.38007
C97: Netherlands | D97: =ROUND(HistVREShare!$BF99,5) -> 0.07879 | E97: =INDEX(y_GP,MATCH(D97,y_GP,1)+(E$4-D$4)) -> 0.09148 | F97: 0.10607 | G97: 0.12252 | H97: 0.14092 | I97: 0.1613 | J97: 0.18367 | K97: 0.20794 | L97: 0.23397 | M97: 0.26152 | N97: 0.2903 | O97: 0.31993 | P97: 0.35 | Q97: 0.38007 | R97: 0.4097 | S97: 0.43848 | T97: 0.46603 | U97: 0.49206 | V97: 0.51633 | W97: 0.5387 | X97: 0.55908 | Y97: 0.57748 | Z97: 0.59393 | AA97: 0.60852 | AB97: 0.62137 | AC97: 0.63262 | AD97: 0.6424 | AE97: 0.65088 | AF97: 0.65819 | AG97: 0.66447 | AH97: 0.66985 | AI97: 0.67445 | AJ97: 0.67836 | AK97: 0.6817 | AL97: 0.68453 | AM97: 0.68693
C98: New Zealand | D98: =ROUND(HistVREShare!$BF100,5) -> 0.05427 | E98: =INDEX(y_GP,MATCH(D98,y_GP,1)+(E$4-D$4)) -> 0.0576 | F98: 0.06738 | G98: 0.07863 | H98: 0.09148 | I98: 0.10607 | J98: 0.12252 | K98: 0.14092 | L98: 0.1613 | M98: 0.18367 | N98: 0.20794 | O98: 0.23397 | P98: 0.26152 | Q98: 0.2903 | R98: 0.31993 | S98: 0.35 | T98: 0.38007 | U98: 0.4097 | V98: 0.43848 | W98: 0.46603 | X98: 0.49206 | Y98: 0.51633 | Z98: 0.5387 | AA98: 0.55908 | AB98: 0.57748 | AC98: 0.59393 | AD98: 0.60852 | AE98: 0.62137 | AF98: 0.63262 | AG98: 0.6424 | AH98: 0.65088 | AI98: 0.65819 | AJ98: 0.66447 | AK98: 0.66985 | AL98: 0.67445 | AM98: 0.67836
C99: Nicaragua | D99: =ROUND(HistVREShare!$BF101,5) -> 0.18895 | E99: =INDEX(y_GP,MATCH(D99,y_GP,1)+(E$4-D$4)) -> 0.20794 | F99: 0.23397 | G99: 0.26152 | H99: 0.2903 | I99: 0.31993 | J99: 0.35 | K99: 0.38007 | L99: 0.4097 | M99: 0.43848 | N99: 0.46603 | O99: 0.49206 | P99: 0.51633 | Q99: 0.5387 | R99: 0.55908 | S99: 0.57748 | T99: 0.59393 | U99: 0.60852 | V99: 0.62137 | W99: 0.63262 | X99: 0.6424 | Y99: 0.65088 | Z99: 0.65819 | AA99: 0.66447 | AB99: 0.66985 | AC99: 0.67445 | AD99: 0.67836 | AE99: 0.6817 | AF99: 0.68453 | AG99: 0.68693 | AH99: 0.68897 | AI99: 0.69069 | AJ99: 0.69215 | AK99: 0.69338 | AL99: 0.69442 | AM99: 0.6953
C100: Niger | D100: =ROUND(HistVREShare!$BF102,5) -> 0.00753 | E100: =INDEX(y_GP,MATCH(D100,y_GP,1)+(E$4-D$4)) -> 0.00785 | F100: 0.00931 | G100: 0.01103 | H100: 0.01307 | I100: 0.01547 | J100: 0.0183 | K100: 0.02164 | L100: 0.02555 | M100: 0.03015 | N100: 0.03553 | O100: 0.04181 | P100: 0.04912 | Q100: 0.0576 | R100: 0.06738 | S100: 0.07863 | T100: 0.09148 | U100: 0.10607 | V100: 0.12252 | W100: 0.14092 | X100: 0.1613 | Y100: 0.18367 | Z100: 0.20794 | AA100: 0.23397 | AB100: 0.26152 | AC100: 0.2903 | AD100: 0.31993 | AE100: 0.35 | AF100: 0.38007 | AG100: 0.4097 | AH100: 0.43848 | AI100: 0.46603 | AJ100: 0.49206 | AK100: 0.51633 | AL100: 0.5387 | AM100: 0.55908
C101: Nigeria | D101: =ROUND(HistVREShare!$BF103,5) -> 0 | E101: =INDEX(y_GP,MATCH(D101,y_GP,1)+(E$4-D$4)) -> 1e-05 | F101: 2e-05 | G101: 3e-05 | H101: 4e-05 | I101: 5e-05 | J101: 6e-05 | K101: 8e-05 | L101: 9e-05 | M101: 0.00011 | N101: 0.00013 | O101: 0.00015 | P101: 0.00018 | Q101: 0.00021 | R101: 0.00025 | S101: 0.0003 | T101: 0.00036 | U101: 0.00042 | V101: 0.0005 | W101: 0.0006 | X101: 0.00071 | Y101: 0.00084 | Z101: 0.001 | AA101: 0.00119 | AB101: 0.00142 | AC101: 0.00168 | AD101: 0.002 | AE101: 0.00237 | AF101: 0.00281 | AG101: 0.00334 | AH101: 0.00396 | AI101: 0.0047 | AJ101: 0.00558 | AK101: 0.00662 | AL101: 0.00785 | AM101: 0.00931
C102: Norway | D102: =ROUND(HistVREShare!$BF104,5) -> 0.01754 | E102: =INDEX(y_GP,MATCH(D102,y_GP,1)+(E$4-D$4)) -> 0.0183 | F102: 0.02164 | G102: 0.02555 | H102: 0.03015 | I102: 0.03553 | J102: 0.04181 | K102: 0.04912 | L102: 0.0576 | M102: 0.06738 | N102: 0.07863 | O102: 0.09148 | P102: 0.10607 | Q102: 0.12252 | R102: 0.14092 | S102: 0.1613 | T102: 0.18367 | U102: 0.20794 | V102: 0.23397 | W102: 0.26152 | X102: 0.2903 | Y102: 0.31993 | Z102: 0.35 | AA102: 0.38007 | AB102: 0.4097 | AC102: 0.43848 | AD102: 0.46603 | AE102: 0.49206 | AF102: 0.51633 | AG102: 0.5387 | AH102: 0.55908 | AI102: 0.57748 | AJ102: 0.59393 | AK102: 0.60852 | AL102: 0.62137 | AM102: 0.63262
C103: Oman | D103: =ROUND(HistVREShare!$BF105,5) -> 0 | E103: =INDEX(y_GP,MATCH(D103,y_GP,1)+(E$4-D$4)) -> 1e-05 | F103: 2e-05 | G103: 3e-05 | H103: 4e-05 | I103: 5e-05 | J103: 6e-05 | K103: 8e-05 | L103: 9e-05 | M103: 0.00011 | N103: 0.00013 | O103: 0.00015 | P103: 0.00018 | Q103: 0.00021 | R103: 0.00025 | S103: 0.0003 | T103: 0.00036 | U103: 0.00042 | V103: 0.0005 | W103: 0.0006 | X103: 0.00071 | Y103: 0.00084 | Z103: 0.001 | AA103: 0.00119 | AB103: 0.00142 | AC103: 0.00168 | AD103: 0.002 | AE103: 0.00237 | AF103: 0.00281 | AG103: 0.00334 | AH103: 0.00396 | AI103: 0.0047 | AJ103: 0.00558 | AK103: 0.00662 | AL103: 0.00785 | AM103: 0.00931
C104: Pakistan | D104: =ROUND(HistVREShare!$BF106,5) -> 0.00892 | E104: =INDEX(y_GP,MATCH(D104,y_GP,1)+(E$4-D$4)) -> 0.00931 | F104: 0.01103 | G104: 0.01307 | H104: 0.01547 | I104: 0.0183 | J104: 0.02164 | K104: 0.02555 | L104: 0.03015 | M104: 0.03553 | N104: 0.04181 | O104: 0.04912 | P104: 0.0576 | Q104: 0.06738 | R104: 0.07863 | S104: 0.09148 | T104: 0.10607 | U104: 0.12252 | V104: 0.14092 | W104: 0.1613 | X104: 0.18367 | Y104: 0.20794 | Z104: 0.23397 | AA104: 0.26152 | AB104: 0.2903 | AC104: 0.31993 | AD104: 0.35 | AE104: 0.38007 | AF104: 0.4097 | AG104: 0.43848 | AH104: 0.46603 | AI104: 0.49206 | AJ104: 0.51633 | AK104: 0.5387 | AL104: 0.55908 | AM104: 0.57748
C105: Panama | D105: =ROUND(HistVREShare!$BF107,5) -> 0.04225 | E105: =INDEX(y_GP,MATCH(D105,y_GP,1)+(E$4-D$4)) -> 0.04912 | F105: 0.0576 | G105: 0.06738 | H105: 0.07863 | I105: 0.09148 | J105: 0.10607 | K105: 0.12252 | L105: 0.14092 | M105: 0.1613 | N105: 0.18367 | O105: 0.20794 | P105: 0.23397 | Q105: 0.26152 | R105: 0.2903 | S105: 0.31993 | T105: 0.35 | U105: 0.38007 | V105: 0.4097 | W105: 0.43848 | X105: 0.46603 | Y105: 0.49206 | Z105: 0.51633 | AA105: 0.5387 | AB105: 0.55908 | AC105: 0.57748 | AD105: 0.59393 | AE105: 0.60852 | AF105: 0.62137 | AG105: 0.63262 | AH105: 0.6424 | AI105: 0.65088 | AJ105: 0.65819 | AK105: 0.66447 | AL105: 0.66985 | AM105: 0.67445
C106: Paraguay | D106: =ROUND(HistVREShare!$BF108,5) -> 0 | E106: =INDEX(y_GP,MATCH(D106,y_GP,1)+(E$4-D$4)) -> 1e-05 | F106: 2e-05 | G106: 3e-05 | H106: 4e-05 | I106: 5e-05 | J106: 6e-05 | K106: 8e-05 | L106: 9e-05 | M106: 0.00011 | N106: 0.00013 | O106: 0.00015 | P106: 0.00018 | Q106: 0.00021 | R106: 0.00025 | S106: 0.0003 | T106: 0.00036 | U106: 0.00042 | V106: 0.0005 | W106: 0.0006 | X106: 0.00071 | Y106: 0.00084 | Z106: 0.001 | AA106: 0.00119 | AB106: 0.00142 | AC106: 0.00168 | AD106: 0.002 | AE106: 0.00237 | AF106: 0.00281 | AG106: 0.00334 | AH106: 0.00396 | AI106: 0.0047 | AJ106: 0.00558 | AK106: 0.00662 | AL106: 0.00785 | AM106: 0.00931
C107: Peru | D107: =ROUND(HistVREShare!$BF109,5) -> 0.0171 | E107: =INDEX(y_GP,MATCH(D107,y_GP,1)+(E$4-D$4)) -> 0.0183 | F107: 0.02164 | G107: 0.02555 | H107: 0.03015 | I107: 0.03553 | J107: 0.04181 | K107: 0.04912 | L107: 0.0576 | M107: 0.06738 | N107: 0.07863 | O107: 0.09148 | P107: 0.10607 | Q107: 0.12252 | R107: 0.14092 | S107: 0.1613 | T107: 0.18367 | U107: 0.20794 | V107: 0.23397 | W107: 0.26152 | X107: 0.2903 | Y107: 0.31993 | Z107: 0.35 | AA107: 0.38007 | AB107: 0.4097 | AC107: 0.43848 | AD107: 0.46603 | AE107: 0.49206 | AF107: 0.51633 | AG107: 0.5387 | AH107: 0.55908 | AI107: 0.57748 | AJ107: 0.59393 | AK107: 0.60852 | AL107: 0.62137 | AM107: 0.63262
C108: Philippines | D108: =ROUND(HistVREShare!$BF110,5) -> 0.01076 | E108: =INDEX(y_GP,MATCH(D108,y_GP,1)+(E$4-D$4)) -> 0.01103 | F108: 0.01307 | G108: 0.01547 | H108: 0.0183 | I108: 0.02164 | J108: 0.02555 | K108: 0.03015 | L108: 0.03553 | M108: 0.04181 | N108: 0.04912 | O108: 0.0576 | P108: 0.06738 | Q108: 0.07863 | R108: 0.09148 | S108: 0.10607 | T108: 0.12252 | U108: 0.14092 | V108: 0.1613 | W108: 0.18367 | X108: 0.20794 | Y108: 0.23397 | Z108: 0.26152 | AA108: 0.2903 | AB108: 0.31993 | AC108: 0.35 | AD108: 0.38007 | AE108: 0.4097 | AF108: 0.43848 | AG108: 0.46603 | AH108: 0.49206 | AI108: 0.51633 | AJ108: 0.5387 | AK108: 0.55908 | AL108: 0.57748 | AM108: 0.59393
C109: Poland | D109: =ROUND(HistVREShare!$BF111,5) -> 0.06642 | E109: =INDEX(y_GP,MATCH(D109,y_GP,1)+(E$4-D$4)) -> 0.06738 | F109: 0.07863 | G109: 0.09148 | H109: 0.10607 | I109: 0.12252 | J109: 0.14092 | K109: 0.1613 | L109: 0.18367 | M109: 0.20794 | N109: 0.23397 | O109: 0.26152 | P109: 0.2903 | Q109: 0.31993 | R109: 0.35 | S109: 0.38007 | T109: 0.4097 | U109: 0.43848 | V109: 0.46603 | W109: 0.49206 | X109: 0.51633 | Y109: 0.5387 | Z109: 0.55908 | AA109: 0.57748 | AB109: 0.59393 | AC109: 0.60852 | AD109: 0.62137 | AE109: 0.63262 | AF109: 0.6424 | AG109: 0.65088 | AH109: 0.65819 | AI109: 0.66447 | AJ109: 0.66985 | AK109: 0.67445 | AL109: 0.67836 | AM109: 0.6817
C110: Portugal | D110: =ROUND(HistVREShare!$BF112,5) -> 0.24187 | E110: =INDEX(y_GP,MATCH(D110,y_GP,1)+(E$4-D$4)) -> 0.26152 | F110: 0.2903 | G110: 0.31993 | H110: 0.35 | I110: 0.38007 | J110: 0.4097 | K110: 0.43848 | L110: 0.46603 | M110: 0.49206 | N110: 0.51633 | O110: 0.5387 | P110: 0.55908 | Q110: 0.57748 | R110: 0.59393 | S110: 0.60852 | T110: 0.62137 | U110: 0.63262 | V110: 0.6424 | W110: 0.65088 | X110: 0.65819 | Y110: 0.66447 | Z110: 0.66985 | AA110: 0.67445 | AB110: 0.67836 | AC110: 0.6817 | AD110: 0.68453 | AE110: 0.68693 | AF110: 0.68897 | AG110: 0.69069 | AH110: 0.69215 | AI110: 0.69338 | AJ110: 0.69442 | AK110: 0.6953 | AL110: 0.69604 | AM110: 0.69666
C111: Qatar | D111: =ROUND(HistVREShare!$BF113,5) -> 0 | E111: =INDEX(y_GP,MATCH(D111,y_GP,1)+(E$4-D$4)) -> 1e-05 | F111: 2e-05 | G111: 3e-05 | H111: 4e-05 | I111: 5e-05 | J111: 6e-05 | K111: 8e-05 | L111: 9e-05 | M111: 0.00011 | N111: 0.00013 | O111: 0.00015 | P111: 0.00018 | Q111: 0.00021 | R111: 0.00025 | S111: 0.0003 | T111: 0.00036 | U111: 0.00042 | V111: 0.0005 | W111: 0.0006 | X111: 0.00071 | Y111: 0.00084 | Z111: 0.001 | AA111: 0.00119 | AB111: 0.00142 | AC111: 0.00168 | AD111: 0.002 | AE111: 0.00237 | AF111: 0.00281 | AG111: 0.00334 | AH111: 0.00396 | AI111: 0.0047 | AJ111: 0.00558 | AK111: 0.00662 | AL111: 0.00785 | AM111: 0.00931
C112: Romania | D112: =ROUND(HistVREShare!$BF114,5) -> 0.13721 | E112: =INDEX(y_GP,MATCH(D112,y_GP,1)+(E$4-D$4)) -> 0.14092 | F112: 0.1613 | G112: 0.18367 | H112: 0.20794 | I112: 0.23397 | J112: 0.26152 | K112: 0.2903 | L112: 0.31993 | M112: 0.35 | N112: 0.38007 | O112: 0.4097 | P112: 0.43848 | Q112: 0.46603 | R112: 0.49206 | S112: 0.51633 | T112: 0.5387 | U112: 0.55908 | V112: 0.57748 | W112: 0.59393 | X112: 0.60852 | Y112: 0.62137 | Z112: 0.63262 | AA112: 0.6424 | AB112: 0.65088 | AC112: 0.65819 | AD112: 0.66447 | AE112: 0.66985 | AF112: 0.67445 | AG112: 0.67836 | AH112: 0.6817 | AI112: 0.68453 | AJ112: 0.68693 | AK112: 0.68897 | AL112: 0.69069 | AM112: 0.69215
C113: Russian Federation | D113: =ROUND(HistVREShare!$BF115,5) -> 0.00045 | E113: =INDEX(y_GP,MATCH(D113,y_GP,1)+(E$4-D$4)) -> 0.0005 | F113: 0.0006 | G113: 0.00071 | H113: 0.00084 | I113: 0.001 | J113: 0.00119 | K113: 0.00142 | L113: 0.00168 | M113: 0.002 | N113: 0.00237 | O113: 0.00281 | P113: 0.00334 | Q113: 0.00396 | R113: 0.0047 | S113: 0.00558 | T113: 0.00662 | U113: 0.00785 | V113: 0.00931 | W113: 0.01103 | X113: 0.01307 | Y113: 0.01547 | Z113: 0.0183 | AA113: 0.02164 | AB113: 0.02555 | AC113: 0.03015 | AD113: 0.03553 | AE113: 0.04181 | AF113: 0.04912 | AG113: 0.0576 | AH113: 0.06738 | AI113: 0.07863 | AJ113: 0.09148 | AK113: 0.10607 | AL113: 0.12252 | AM113: 0.14092
C114: Saudi Arabia | D114: =ROUND(HistVREShare!$BF116,5) -> 0 | E114: =INDEX(y_GP,MATCH(D114,y_GP,1)+(E$4-D$4)) -> 1e-05 | F114: 2e-05 | G114: 3e-05 | H114: 4e-05 | I114: 5e-05 | J114: 6e-05 | K114: 8e-05 | L114: 9e-05 | M114: 0.00011 | N114: 0.00013 | O114: 0.00015 | P114: 0.00018 | Q114: 0.00021 | R114: 0.00025 | S114: 0.0003 | T114: 0.00036 | U114: 0.00042 | V114: 0.0005 | W114: 0.0006 | X114: 0.00071 | Y114: 0.00084 | Z114: 0.001 | AA114: 0.00119 | AB114: 0.00142 | AC114: 0.00168 | AD114: 0.002 | AE114: 0.00237 | AF114: 0.00281 | AG114: 0.00334 | AH114: 0.00396 | AI114: 0.0047 | AJ114: 0.00558 | AK114: 0.00662 | AL114: 0.00785 | AM114: 0.00931
C115: Senegal | D115: =ROUND(HistVREShare!$BF117,5) -> 0.00096 | E115: =INDEX(y_GP,MATCH(D115,y_GP,1)+(E$4-D$4)) -> 0.001 | F115: 0.00119 | G115: 0.00142 | H115: 0.00168 | I115: 0.002 | J115: 0.00237 | K115: 0.00281 | L115: 0.00334 | M115: 0.00396 | N115: 0.0047 | O115: 0.00558 | P115: 0.00662 | Q115: 0.00785 | R115: 0.00931 | S115: 0.01103 | T115: 0.01307 | U115: 0.01547 | V115: 0.0183 | W115: 0.02164 | X115: 0.02555 | Y115: 0.03015 | Z115: 0.03553 | AA115: 0.04181 | AB115: 0.04912 | AC115: 0.0576 | AD115: 0.06738 | AE115: 0.07863 | AF115: 0.09148 | AG115: 0.10607 | AH115: 0.12252 | AI115: 0.14092 | AJ115: 0.1613 | AK115: 0.18367 | AL115: 0.20794 | AM115: 0.23397
C116: Serbia | D116: =ROUND(HistVREShare!$BF118,5) -> 0.00029 | E116: =INDEX(y_GP,MATCH(D116,y_GP,1)+(E$4-D$4)) -> 0.0003 | F116: 0.00036 | G116: 0.00042 | H116: 0.0005 | I116: 0.0006 | J116: 0.00071 | K116: 0.00084 | L116: 0.001 | M116: 0.00119 | N116: 0.00142 | O116: 0.00168 | P116: 0.002 | Q116: 0.00237 | R116: 0.00281 | S116: 0.00334 | T116: 0.00396 | U116: 0.0047 | V116: 0.00558 | W116: 0.00662 | X116: 0.00785 | Y116: 0.00931 | Z116: 0.01103 | AA116: 0.01307 | AB116: 0.01547 | AC116: 0.0183 | AD116: 0.02164 | AE116: 0.02555 | AF116: 0.03015 | AG116: 0.03553 | AH116: 0.04181 | AI116: 0.04912 | AJ116: 0.0576 | AK116: 0.06738 | AL116: 0.07863 | AM116: 0.09148
C117: Singapore | D117: =ROUND(HistVREShare!$BF119,5) -> 0.00127 | E117: =INDEX(y_GP,MATCH(D117,y_GP,1)+(E$4-D$4)) -> 0.00142 | F117: 0.00168 | G117: 0.002 | H117: 0.00237 | I117: 0.00281 | J117: 0.00334 | K117: 0.00396 | L117: 0.0047 | M117: 0.00558 | N117: 0.00662 | O117: 0.00785 | P117: 0.00931 | Q117: 0.01103 | R117: 0.01307 | S117: 0.01547 | T117: 0.0183 | U117: 0.02164 | V117: 0.02555 | W117: 0.03015 | X117: 0.03553 | Y117: 0.04181 | Z117: 0.04912 | AA117: 0.0576 | AB117: 0.06738 | AC117: 0.07863 | AD117: 0.09148 | AE117: 0.10607 | AF117: 0.12252 | AG117: 0.14092 | AH117: 0.1613 | AI117: 0.18367 | AJ117: 0.20794 | AK117: 0.23397 | AL117: 0.26152 | AM117: 0.2903
C118: Slovakia | D118: =ROUND(HistVREShare!$BF120,5) -> 0.01922 | E118: =INDEX(y_GP,MATCH(D118,y_GP,1)+(E$4-D$4)) -> 0.02164 | F118: 0.02555 | G118: 0.03015 | H118: 0.03553 | I118: 0.04181 | J118: 0.04912 | K118: 0.0576 | L118: 0.06738 | M118: 0.07863 | N118: 0.09148 | O118: 0.10607 | P118: 0.12252 | Q118: 0.14092 | R118: 0.1613 | S118: 0.18367 | T118: 0.20794 | U118: 0.23397 | V118: 0.26152 | W118: 0.2903 | X118: 0.31993 | Y118: 0.35 | Z118: 0.38007 | AA118: 0.4097 | AB118: 0.43848 | AC118: 0.46603 | AD118: 0.49206 | AE118: 0.51633 | AF118: 0.5387 | AG118: 0.55908 | AH118: 0.57748 | AI118: 0.59393 | AJ118: 0.60852 | AK118: 0.62137 | AL118: 0.63262 | AM118: 0.6424
C119: Slovenia | D119: =ROUND(HistVREShare!$BF121,5) -> 0.0189 | E119: =INDEX(y_GP,MATCH(D119,y_GP,1)+(E$4-D$4)) -> 0.02164 | F119: 0.02555 | G119: 0.03015 | H119: 0.03553 | I119: 0.04181 | J119: 0.04912 | K119: 0.0576 | L119: 0.06738 | M119: 0.07863 | N119: 0.09148 | O119: 0.10607 | P119: 0.12252 | Q119: 0.14092 | R119: 0.1613 | S119: 0.18367 | T119: 0.20794 | U119: 0.23397 | V119: 0.26152 | W119: 0.2903 | X119: 0.31993 | Y119: 0.35 | Z119: 0.38007 | AA119: 0.4097 | AB119: 0.43848 | AC119: 0.46603 | AD119: 0.49206 | AE119: 0.51633 | AF119: 0.5387 | AG119: 0.55908 | AH119: 0.57748 | AI119: 0.59393 | AJ119: 0.60852 | AK119: 0.62137 | AL119: 0.63262 | AM119: 0.6424
C120: South Africa | D120: =ROUND(HistVREShare!$BF122,5) -> 0.01975 | E120: =INDEX(y_GP,MATCH(D120,y_GP,1)+(E$4-D$4)) -> 0.02164 | F120: 0.02555 | G120: 0.03015 | H120: 0.03553 | I120: 0.04181 | J120: 0.04912 | K120: 0.0576 | L120: 0.06738 | M120: 0.07863 | N120: 0.09148 | O120: 0.10607 | P120: 0.12252 | Q120: 0.14092 | R120: 0.1613 | S120: 0.18367 | T120: 0.20794 | U120: 0.23397 | V120: 0.26152 | W120: 0.2903 | X120: 0.31993 | Y120: 0.35 | Z120: 0.38007 | AA120: 0.4097 | AB120: 0.43848 | AC120: 0.46603 | AD120: 0.49206 | AE120: 0.51633 | AF120: 0.5387 | AG120: 0.55908 | AH120: 0.57748 | AI120: 0.59393 | AJ120: 0.60852 | AK120: 0.62137 | AL120: 0.63262 | AM120: 0.6424
C121: South Sudan | D121: =ROUND(HistVREShare!$BF123,5) -> 0.00346 | E121: =INDEX(y_GP,MATCH(D121,y_GP,1)+(E$4-D$4)) -> 0.00396 | F121: 0.0047 | G121: 0.00558 | H121: 0.00662 | I121: 0.00785 | J121: 0.00931 | K121: 0.01103 | L121: 0.01307 | M121: 0.01547 | N121: 0.0183 | O121: 0.02164 | P121: 0.02555 | Q121: 0.03015 | R121: 0.03553 | S121: 0.04181 | T121: 0.04912 | U121: 0.0576 | V121: 0.06738 | W121: 0.07863 | X121: 0.09148 | Y121: 0.10607 | Z121: 0.12252 | AA121: 0.14092 | AB121: 0.1613 | AC121: 0.18367 | AD121: 0.20794 | AE121: 0.23397 | AF121: 0.26152 | AG121: 0.2903 | AH121: 0.31993 | AI121: 0.35 | AJ121: 0.38007 | AK121: 0.4097 | AL121: 0.43848 | AM121: 0.46603
C122: Spain | D122: =ROUND(HistVREShare!$BF124,5) -> 0.22754 | E122: =INDEX(y_GP,MATCH(D122,y_GP,1)+(E$4-D$4)) -> 0.23397 | F122: 0.26152 | G122: 0.2903 | H122: 0.31993 | I122: 0.35 | J122: 0.38007 | K122: 0.4097 | L122: 0.43848 | M122: 0.46603 | N122: 0.49206 | O122: 0.51633 | P122: 0.5387 | Q122: 0.55908 | R122: 0.57748 | S122: 0.59393 | T122: 0.60852 | U122: 0.62137 | V122: 0.63262 | W122: 0.6424 | X122: 0.65088 | Y122: 0.65819 | Z122: 0.66447 | AA122: 0.66985 | AB122: 0.67445 | AC122: 0.67836 | AD122: 0.6817 | AE122: 0.68453 | AF122: 0.68693 | AG122: 0.68897 | AH122: 0.69069 | AI122: 0.69215 | AJ122: 0.69338 | AK122: 0.69442 | AL122: 0.6953 | AM122: 0.69604
C123: Sri Lanka | D123: =ROUND(HistVREShare!$BF125,5) -> 0.02761 | E123: =INDEX(y_GP,MATCH(D123,y_GP,1)+(E$4-D$4)) -> 0.03015 | F123: 0.03553 | G123: 0.04181 | H123: 0.04912 | I123: 0.0576 | J123: 0.06738 | K123: 0.07863 | L123: 0.09148 | M123: 0.10607 | N123: 0.12252 | O123: 0.14092 | P123: 0.1613 | Q123: 0.18367 | R123: 0.20794 | S123: 0.23397 | T123: 0.26152 | U123: 0.2903 | V123: 0.31993 | W123: 0.35 | X123: 0.38007 | Y123: 0.4097 | Z123: 0.43848 | AA123: 0.46603 | AB123: 0.49206 | AC123: 0.51633 | AD123: 0.5387 | AE123: 0.55908 | AF123: 0.57748 | AG123: 0.59393 | AH123: 0.60852 | AI123: 0.62137 | AJ123: 0.63262 | AK123: 0.6424 | AL123: 0.65088 | AM123: 0.65819
C124: Sudan | D124: =ROUND(HistVREShare!$BF126,5) -> 0 | E124: =INDEX(y_GP,MATCH(D124,y_GP,1)+(E$4-D$4)) -> 1e-05 | F124: 2e-05 | G124: 3e-05 | H124: 4e-05 | I124: 5e-05 | J124: 6e-05 | K124: 8e-05 | L124: 9e-05 | M124: 0.00011 | N124: 0.00013 | O124: 0.00015 | P124: 0.00018 | Q124: 0.00021 | R124: 0.00025 | S124: 0.0003 | T124: 0.00036 | U124: 0.00042 | V124: 0.0005 | W124: 0.0006 | X124: 0.00071 | Y124: 0.00084 | Z124: 0.001 | AA124: 0.00119 | AB124: 0.00142 | AC124: 0.00168 | AD124: 0.002 | AE124: 0.00237 | AF124: 0.00281 | AG124: 0.00334 | AH124: 0.00396 | AI124: 0.0047 | AJ124: 0.00558 | AK124: 0.00662 | AL124: 0.00785 | AM124: 0.00931
C125: Suriname | D125: =ROUND(HistVREShare!$BF127,5) -> 0 | E125: =INDEX(y_GP,MATCH(D125,y_GP,1)+(E$4-D$4)) -> 1e-05 | F125: 2e-05 | G125: 3e-05 | H125: 4e-05 | I125: 5e-05 | J125: 6e-05 | K125: 8e-05 | L125: 9e-05 | M125: 0.00011 | N125: 0.00013 | O125: 0.00015 | P125: 0.00018 | Q125: 0.00021 | R125: 0.00025 | S125: 0.0003 | T125: 0.00036 | U125: 0.00042 | V125: 0.0005 | W125: 0.0006 | X125: 0.00071 | Y125: 0.00084 | Z125: 0.001 | AA125: 0.00119 | AB125: 0.00142 | AC125: 0.00168 | AD125: 0.002 | AE125: 0.00237 | AF125: 0.00281 | AG125: 0.00334 | AH125: 0.00396 | AI125: 0.0047 | AJ125: 0.00558 | AK125: 0.00662 | AL125: 0.00785 | AM125: 0.00931
C126: Sweden | D126: =ROUND(HistVREShare!$BF128,5) -> 0.10106 | E126: =INDEX(y_GP,MATCH(D126,y_GP,1)+(E$4-D$4)) -> 0.10607 | F126: 0.12252 | G126: 0.14092 | H126: 0.1613 | I126: 0.18367 | J126: 0.20794 | K126: 0.23397 | L126: 0.26152 | M126: 0.2903 | N126: 0.31993 | O126: 0.35 | P126: 0.38007 | Q126: 0.4097 | R126: 0.43848 | S126: 0.46603 | T126: 0.49206 | U126: 0.51633 | V126: 0.5387 | W126: 0.55908 | X126: 0.57748 | Y126: 0.59393 | Z126: 0.60852 | AA126: 0.62137 | AB126: 0.63262 | AC126: 0.6424 | AD126: 0.65088 | AE126: 0.65819 | AF126: 0.66447 | AG126: 0.66985 | AH126: 0.67445 | AI126: 0.67836 | AJ126: 0.6817 | AK126: 0.68453 | AL126: 0.68693 | AM126: 0.68897
C127: Switzerland | D127: =ROUND(HistVREShare!$BF129,5) -> 0.01859 | E127: =INDEX(y_GP,MATCH(D127,y_GP,1)+(E$4-D$4)) -> 0.02164 | F127: 0.02555 | G127: 0.03015 | H127: 0.03553 | I127: 0.04181 | J127: 0.04912 | K127: 0.0576 | L127: 0.06738 | M127: 0.07863 | N127: 0.09148 | O127: 0.10607 | P127: 0.12252 | Q127: 0.14092 | R127: 0.1613 | S127: 0.18367 | T127: 0.20794 | U127: 0.23397 | V127: 0.26152 | W127: 0.2903 | X127: 0.31993 | Y127: 0.35 | Z127: 0.38007 | AA127: 0.4097 | AB127: 0.43848 | AC127: 0.46603 | AD127: 0.49206 | AE127: 0.51633 | AF127: 0.5387 | AG127: 0.55908 | AH127: 0.57748 | AI127: 0.59393 | AJ127: 0.60852 | AK127: 0.62137 | AL127: 0.63262 | AM127: 0.6424
C128: Syrian Arab Republic | D128: =ROUND(HistVREShare!$BF130,5) -> 0 | E128: =INDEX(y_GP,MATCH(D128,y_GP,1)+(E$4-D$4)) -> 1e-05 | F128: 2e-05 | G128: 3e-05 | H128: 4e-05 | I128: 5e-05 | J128: 6e-05 | K128: 8e-05 | L128: 9e-05 | M128: 0.00011 | N128: 0.00013 | O128: 0.00015 | P128: 0.00018 | Q128: 0.00021 | R128: 0.00025 | S128: 0.0003 | T128: 0.00036 | U128: 0.00042 | V128: 0.0005 | W128: 0.0006 | X128: 0.00071 | Y128: 0.00084 | Z128: 0.001 | AA128: 0.00119 | AB128: 0.00142 | AC128: 0.00168 | AD128: 0.002 | AE128: 0.00237 | AF128: 0.00281 | AG128: 0.00334 | AH128: 0.00396 | AI128: 0.0047 | AJ128: 0.00558 | AK128: 0.00662 | AL128: 0.00785 | AM128: 0.00931
C129: Chinese Taipei | D129: =ROUND(HistVREShare!$BF131,5) -> 0.00942 | E129: =INDEX(y_GP,MATCH(D129,y_GP,1)+(E$4-D$4)) -> 0.01103 | F129: 0.01307 | G129: 0.01547 | H129: 0.0183 | I129: 0.02164 | J129: 0.02555 | K129: 0.03015 | L129: 0.03553 | M129: 0.04181 | N129: 0.04912 | O129: 0.0576 | P129: 0.06738 | Q129: 0.07863 | R129: 0.09148 | S129: 0.10607 | T129: 0.12252 | U129: 0.14092 | V129: 0.1613 | W129: 0.18367 | X129: 0.20794 | Y129: 0.23397 | Z129: 0.26152 | AA129: 0.2903 | AB129: 0.31993 | AC129: 0.35 | AD129: 0.38007 | AE129: 0.4097 | AF129: 0.43848 | AG129: 0.46603 | AH129: 0.49206 | AI129: 0.51633 | AJ129: 0.5387 | AK129: 0.55908 | AL129: 0.57748 | AM129: 0.59393
C130: Tajikistan | D130: =ROUND(HistVREShare!$BF132,5) -> 0 | E130: =INDEX(y_GP,MATCH(D130,y_GP,1)+(E$4-D$4)) -> 1e-05 | F130: 2e-05 | G130: 3e-05 | H130: 4e-05 | I130: 5e-05 | J130: 6e-05 | K130: 8e-05 | L130: 9e-05 | M130: 0.00011 | N130: 0.00013 | O130: 0.00015 | P130: 0.00018 | Q130: 0.00021 | R130: 0.00025 | S130: 0.0003 | T130: 0.00036 | U130: 0.00042 | V130: 0.0005 | W130: 0.0006 | X130: 0.00071 | Y130: 0.00084 | Z130: 0.001 | AA130: 0.00119 | AB130: 0.00142 | AC130: 0.00168 | AD130: 0.002 | AE130: 0.00237 | AF130: 0.00281 | AG130: 0.00334 | AH130: 0.00396 | AI130: 0.0047 | AJ130: 0.00558 | AK130: 0.00662 | AL130: 0.00785 | AM130: 0.00931
C131: Tanzania | D131: =ROUND(HistVREShare!$BF133,5) -> 0.00328 | E131: =INDEX(y_GP,MATCH(D131,y_GP,1)+(E$4-D$4)) -> 0.00334 | F131: 0.00396 | G131: 0.0047 | H131: 0.00558 | I131: 0.00662 | J131: 0.00785 | K131: 0.00931 | L131: 0.01103 | M131: 0.01307 | N131: 0.01547 | O131: 0.0183 | P131: 0.02164 | Q131: 0.02555 | R131: 0.03015 | S131: 0.03553 | T131: 0.04181 | U131: 0.04912 | V131: 0.0576 | W131: 0.06738 | X131: 0.07863 | Y131: 0.09148 | Z131: 0.10607 | AA131: 0.12252 | AB131: 0.14092 | AC131: 0.1613 | AD131: 0.18367 | AE131: 0.20794 | AF131: 0.23397 | AG131: 0.26152 | AH131: 0.2903 | AI131: 0.31993 | AJ131: 0.35 | AK131: 0.38007 | AL131: 0.4097 | AM131: 0.43848
C132: Thailand | D132: =ROUND(HistVREShare!$BF134,5) -> 0.01525 | E132: =INDEX(y_GP,MATCH(D132,y_GP,1)+(E$4-D$4)) -> 0.01547 | F132: 0.0183 | G132: 0.02164 | H132: 0.02555 | I132: 0.03015 | J132: 0.03553 | K132: 0.04181 | L132: 0.04912 | M132: 0.0576 | N132: 0.06738 | O132: 0.07863 | P132: 0.09148 | Q132: 0.10607 | R132: 0.12252 | S132: 0.14092 | T132: 0.1613 | U132: 0.18367 | V132: 0.20794 | W132: 0.23397 | X132: 0.26152 | Y132: 0.2903 | Z132: 0.31993 | AA132: 0.35 | AB132: 0.38007 | AC132: 0.4097 | AD132: 0.43848 | AE132: 0.46603 | AF132: 0.49206 | AG132: 0.51633 | AH132: 0.5387 | AI132: 0.55908 | AJ132: 0.57748 | AK132: 0.59393 | AL132: 0.60852 | AM132: 0.62137
C133: Togo | D133: =ROUND(HistVREShare!$BF135,5) -> 0 | E133: =INDEX(y_GP,MATCH(D133,y_GP,1)+(E$4-D$4)) -> 1e-05 | F133: 2e-05 | G133: 3e-05 | H133: 4e-05 | I133: 5e-05 | J133: 6e-05 | K133: 8e-05 | L133: 9e-05 | M133: 0.00011 | N133: 0.00013 | O133: 0.00015 | P133: 0.00018 | Q133: 0.00021 | R133: 0.00025 | S133: 0.0003 | T133: 0.00036 | U133: 0.00042 | V133: 0.0005 | W133: 0.0006 | X133: 0.00071 | Y133: 0.00084 | Z133: 0.001 | AA133: 0.00119 | AB133: 0.00142 | AC133: 0.00168 | AD133: 0.002 | AE133: 0.00237 | AF133: 0.00281 | AG133: 0.00334 | AH133: 0.00396 | AI133: 0.0047 | AJ133: 0.00558 | AK133: 0.00662 | AL133: 0.00785 | AM133: 0.00931
C134: Trinidad and Tobago | D134: =ROUND(HistVREShare!$BF136,5) -> 0 | E134: =INDEX(y_GP,MATCH(D134,y_GP,1)+(E$4-D$4)) -> 1e-05 | F134: 2e-05 | G134: 3e-05 | H134: 4e-05 | I134: 5e-05 | J134: 6e-05 | K134: 8e-05 | L134: 9e-05 | M134: 0.00011 | N134: 0.00013 | O134: 0.00015 | P134: 0.00018 | Q134: 0.00021 | R134: 0.00025 | S134: 0.0003 | T134: 0.00036 | U134: 0.00042 | V134: 0.0005 | W134: 0.0006 | X134: 0.00071 | Y134: 0.00084 | Z134: 0.001 | AA134: 0.00119 | AB134: 0.00142 | AC134: 0.00168 | AD134: 0.002 | AE134: 0.00237 | AF134: 0.00281 | AG134: 0.00334 | AH134: 0.00396 | AI134: 0.0047 | AJ134: 0.00558 | AK134: 0.00662 | AL134: 0.00785 | AM134: 0.00931
C135: Tunisia | D135: =ROUND(HistVREShare!$BF137,5) -> 0.02485 | E135: =INDEX(y_GP,MATCH(D135,y_GP,1)+(E$4-D$4)) -> 0.02555 | F135: 0.03015 | G135: 0.03553 | H135: 0.04181 | I135: 0.04912 | J135: 0.0576 | K135: 0.06738 | L135: 0.07863 | M135: 0.09148 | N135: 0.10607 | O135: 0.12252 | P135: 0.14092 | Q135: 0.1613 | R135: 0.18367 | S135: 0.20794 | T135: 0.23397 | U135: 0.26152 | V135: 0.2903 | W135: 0.31993 | X135: 0.35 | Y135: 0.38007 | Z135: 0.4097 | AA135: 0.43848 | AB135: 0.46603 | AC135: 0.49206 | AD135: 0.51633 | AE135: 0.5387 | AF135: 0.55908 | AG135: 0.57748 | AH135: 0.59393 | AI135: 0.60852 | AJ135: 0.62137 | AK135: 0.63262 | AL135: 0.6424 | AM135: 0.65088
C136: Turkey | D136: =ROUND(HistVREShare!$BF138,5) -> 0.04525 | E136: =INDEX(y_GP,MATCH(D136,y_GP,1)+(E$4-D$4)) -> 0.04912 | F136: 0.0576 | G136: 0.06738 | H136: 0.07863 | I136: 0.09148 | J136: 0.10607 | K136: 0.12252 | L136: 0.14092 | M136: 0.1613 | N136: 0.18367 | O136: 0.20794 | P136: 0.23397 | Q136: 0.26152 | R136: 0.2903 | S136: 0.31993 | T136: 0.35 | U136: 0.38007 | V136: 0.4097 | W136: 0.43848 | X136: 0.46603 | Y136: 0.49206 | Z136: 0.51633 | AA136: 0.5387 | AB136: 0.55908 | AC136: 0.57748 | AD136: 0.59393 | AE136: 0.60852 | AF136: 0.62137 | AG136: 0.63262 | AH136: 0.6424 | AI136: 0.65088 | AJ136: 0.65819 | AK136: 0.66447 | AL136: 0.66985 | AM136: 0.67445
C137: Turkmenistan | D137: =ROUND(HistVREShare!$BF139,5) -> 0 | E137: =INDEX(y_GP,MATCH(D137,y_GP,1)+(E$4-D$4)) -> 1e-05 | F137: 2e-05 | G137: 3e-05 | H137: 4e-05 | I137: 5e-05 | J137: 6e-05 | K137: 8e-05 | L137: 9e-05 | M137: 0.00011 | N137: 0.00013 | O137: 0.00015 | P137: 0.00018 | Q137: 0.00021 | R137: 0.00025 | S137: 0.0003 | T137: 0.00036 | U137: 0.00042 | V137: 0.0005 | W137: 0.0006 | X137: 0.00071 | Y137: 0.00084 | Z137: 0.001 | AA137: 0.00119 | AB137: 0.00142 | AC137: 0.00168 | AD137: 0.002 | AE137: 0.00237 | AF137: 0.00281 | AG137: 0.00334 | AH137: 0.00396 | AI137: 0.0047 | AJ137: 0.00558 | AK137: 0.00662 | AL137: 0.00785 | AM137: 0.00931
C138: Ukraine | D138: =ROUND(HistVREShare!$BF140,5) -> 0.00963 | E138: =INDEX(y_GP,MATCH(D138,y_GP,1)+(E$4-D$4)) -> 0.01103 | F138: 0.01307 | G138: 0.01547 | H138: 0.0183 | I138: 0.02164 | J138: 0.02555 | K138: 0.03015 | L138: 0.03553 | M138: 0.04181 | N138: 0.04912 | O138: 0.0576 | P138: 0.06738 | Q138: 0.07863 | R138: 0.09148 | S138: 0.10607 | T138: 0.12252 | U138: 0.14092 | V138: 0.1613 | W138: 0.18367 | X138: 0.20794 | Y138: 0.23397 | Z138: 0.26152 | AA138: 0.2903 | AB138: 0.31993 | AC138: 0.35 | AD138: 0.38007 | AE138: 0.4097 | AF138: 0.43848 | AG138: 0.46603 | AH138: 0.49206 | AI138: 0.51633 | AJ138: 0.5387 | AK138: 0.55908 | AL138: 0.57748 | AM138: 0.59393
C139: United Arab Emirates | D139: =ROUND(HistVREShare!$BF141,5) -> 0.00232 | E139: =INDEX(y_GP,MATCH(D139,y_GP,1)+(E$4-D$4)) -> 0.00237 | F139: 0.00281 | G139: 0.00334 | H139: 0.00396 | I139: 0.0047 | J139: 0.00558 | K139: 0.00662 | L139: 0.00785 | M139: 0.00931 | N139: 0.01103 | O139: 0.01307 | P139: 0.01547 | Q139: 0.0183 | R139: 0.02164 | S139: 0.02555 | T139: 0.03015 | U139: 0.03553 | V139: 0.04181 | W139: 0.04912 | X139: 0.0576 | Y139: 0.06738 | Z139: 0.07863 | AA139: 0.09148 | AB139: 0.10607 | AC139: 0.12252 | AD139: 0.14092 | AE139: 0.1613 | AF139: 0.18367 | AG139: 0.20794 | AH139: 0.23397 | AI139: 0.26152 | AJ139: 0.2903 | AK139: 0.31993 | AL139: 0.35 | AM139: 0.38007
C140: United Kingdom | D140: =ROUND(HistVREShare!$BF142,5) -> 0.14237 | E140: =INDEX(y_GP,MATCH(D140,y_GP,1)+(E$4-D$4)) -> 0.1613 | F140: 0.18367 | G140: 0.20794 | H140: 0.23397 | I140: 0.26152 | J140: 0.2903 | K140: 0.31993 | L140: 0.35 | M140: 0.38007 | N140: 0.4097 | O140: 0.43848 | P140: 0.46603 | Q140: 0.49206 | R140: 0.51633 | S140: 0.5387 | T140: 0.55908 | U140: 0.57748 | V140: 0.59393 | W140: 0.60852 | X140: 0.62137 | Y140: 0.63262 | Z140: 0.6424 | AA140: 0.65088 | AB140: 0.65819 | AC140: 0.66447 | AD140: 0.66985 | AE140: 0.67445 | AF140: 0.67836 | AG140: 0.6817 | AH140: 0.68453 | AI140: 0.68693 | AJ140: 0.68897 | AK140: 0.69069 | AL140: 0.69215 | AM140: 0.69338
C141: United States of America | D141: =ROUND(HistVREShare!$BF143,5) -> 0.05321 | E141: =INDEX(y_GP,MATCH(D141,y_GP,1)+(E$4-D$4)) -> 0.0576 | F141: 0.06738 | G141: 0.07863 | H141: 0.09148 | I141: 0.10607 | J141: 0.12252 | K141: 0.14092 | L141: 0.1613 | M141: 0.18367 | N141: 0.20794 | O141: 0.23397 | P141: 0.26152 | Q141: 0.2903 | R141: 0.31993 | S141: 0.35 | T141: 0.38007 | U141: 0.4097 | V141: 0.43848 | W141: 0.46603 | X141: 0.49206 | Y141: 0.51633 | Z141: 0.5387 | AA141: 0.55908 | AB141: 0.57748 | AC141: 0.59393 | AD141: 0.60852 | AE141: 0.62137 | AF141: 0.63262 | AG141: 0.6424 | AH141: 0.65088 | AI141: 0.65819 | AJ141: 0.66447 | AK141: 0.66985 | AL141: 0.67445 | AM141: 0.67836
C142: Uruguay | D142: =ROUND(HistVREShare!$BF144,5) -> 0.16128 | E142: =INDEX(y_GP,MATCH(D142,y_GP,1)+(E$4-D$4)) -> 0.1613 | F142: 0.18367 | G142: 0.20794 | H142: 0.23397 | I142: 0.26152 | J142: 0.2903 | K142: 0.31993 | L142: 0.35 | M142: 0.38007 | N142: 0.4097 | O142: 0.43848 | P142: 0.46603 | Q142: 0.49206 | R142: 0.51633 | S142: 0.5387 | T142: 0.55908 | U142: 0.57748 | V142: 0.59393 | W142: 0.60852 | X142: 0.62137 | Y142: 0.63262 | Z142: 0.6424 | AA142: 0.65088 | AB142: 0.65819 | AC142: 0.66447 | AD142: 0.66985 | AE142: 0.67445 | AF142: 0.67836 | AG142: 0.6817 | AH142: 0.68453 | AI142: 0.68693 | AJ142: 0.68897 | AK142: 0.69069 | AL142: 0.69215 | AM142: 0.69338
C143: Uzbekistan | D143: =ROUND(HistVREShare!$BF145,5) -> 0 | E143: =INDEX(y_GP,MATCH(D143,y_GP,1)+(E$4-D$4)) -> 1e-05 | F143: 2e-05 | G143: 3e-05 | H143: 4e-05 | I143: 5e-05 | J143: 6e-05 | K143: 8e-05 | L143: 9e-05 | M143: 0.00011 | N143: 0.00013 | O143: 0.00015 | P143: 0.00018 | Q143: 0.00021 | R143: 0.00025 | S143: 0.0003 | T143: 0.00036 | U143: 0.00042 | V143: 0.0005 | W143: 0.0006 | X143: 0.00071 | Y143: 0.00084 | Z143: 0.001 | AA143: 0.00119 | AB143: 0.00142 | AC143: 0.00168 | AD143: 0.002 | AE143: 0.00237 | AF143: 0.00281 | AG143: 0.00334 | AH143: 0.00396 | AI143: 0.0047 | AJ143: 0.00558 | AK143: 0.00662 | AL143: 0.00785 | AM143: 0.00931
C144: Venezuela | D144: =ROUND(HistVREShare!$BF146,5) -> 0 | E144: =INDEX(y_GP,MATCH(D144,y_GP,1)+(E$4-D$4)) -> 1e-05 | F144: 2e-05 | G144: 3e-05 | H144: 4e-05 | I144: 5e-05 | J144: 6e-05 | K144: 8e-05 | L144: 9e-05 | M144: 0.00011 | N144: 0.00013 | O144: 0.00015 | P144: 0.00018 | Q144: 0.00021 | R144: 0.00025 | S144: 0.0003 | T144: 0.00036 | U144: 0.00042 | V144: 0.0005 | W144: 0.0006 | X144: 0.00071 | Y144: 0.00084 | Z144: 0.001 | AA144: 0.00119 | AB144: 0.00142 | AC144: 0.00168 | AD144: 0.002 | AE144: 0.00237 | AF144: 0.00281 | AG144: 0.00334 | AH144: 0.00396 | AI144: 0.0047 | AJ144: 0.00558 | AK144: 0.00662 | AL144: 0.00785 | AM144: 0.00931
C145: Vietnam | D145: =ROUND(HistVREShare!$BF147,5) -> 0.00077 | E145: =INDEX(y_GP,MATCH(D145,y_GP,1)+(E$4-D$4)) -> 0.00084 | F145: 0.001 | G145: 0.00119 | H145: 0.00142 | I145: 0.00168 | J145: 0.002 | K145: 0.00237 | L145: 0.00281 | M145: 0.00334 | N145: 0.00396 | O145: 0.0047 | P145: 0.00558 | Q145: 0.00662 | R145: 0.00785 | S145: 0.00931 | T145: 0.01103 | U145: 0.01307 | V145: 0.01547 | W145: 0.0183 | X145: 0.02164 | Y145: 0.02555 | Z145: 0.03015 | AA145: 0.03553 | AB145: 0.04181 | AC145: 0.04912 | AD145: 0.0576 | AE145: 0.06738 | AF145: 0.07863 | AG145: 0.09148 | AH145: 0.10607 | AI145: 0.12252 | AJ145: 0.14092 | AK145: 0.1613 | AL145: 0.18367 | AM145: 0.20794
C146: Yemen | D146: =ROUND(HistVREShare!$BF148,5) -> 0.09124 | E146: =INDEX(y_GP,MATCH(D146,y_GP,1)+(E$4-D$4)) -> 0.09148 | F146: 0.10607 | G146: 0.12252 | H146: 0.14092 | I146: 0.1613 | J146: 0.18367 | K146: 0.20794 | L146: 0.23397 | M146: 0.26152 | N146: 0.2903 | O146: 0.31993 | P146: 0.35 | Q146: 0.38007 | R146: 0.4097 | S146: 0.43848 | T146: 0.46603 | U146: 0.49206 | V146: 0.51633 | W146: 0.5387 | X146: 0.55908 | Y146: 0.57748 | Z146: 0.59393 | AA146: 0.60852 | AB146: 0.62137 | AC146: 0.63262 | AD146: 0.6424 | AE146: 0.65088 | AF146: 0.65819 | AG146: 0.66447 | AH146: 0.66985 | AI146: 0.67445 | AJ146: 0.67836 | AK146: 0.6817 | AL146: 0.68453 | AM146: 0.68693
C147: Zambia | D147: =ROUND(HistVREShare!$BF149,5) -> 0 | E147: =INDEX(y_GP,MATCH(D147,y_GP,1)+(E$4-D$4)) -> 1e-05 | F147: 2e-05 | G147: 3e-05 | H147: 4e-05 | I147: 5e-05 | J147: 6e-05 | K147: 8e-05 | L147: 9e-05 | M147: 0.00011 | N147: 0.00013 | O147: 0.00015 | P147: 0.00018 | Q147: 0.00021 | R147: 0.00025 | S147: 0.0003 | T147: 0.00036 | U147: 0.00042 | V147: 0.0005 | W147: 0.0006 | X147: 0.00071 | Y147: 0.00084 | Z147: 0.001 | AA147: 0.00119 | AB147: 0.00142 | AC147: 0.00168 | AD147: 0.002 | AE147: 0.00237 | AF147: 0.00281 | AG147: 0.00334 | AH147: 0.00396 | AI147: 0.0047 | AJ147: 0.00558 | AK147: 0.00662 | AL147: 0.00785 | AM147: 0.00931
C148: Zimbabwe | D148: =ROUND(HistVREShare!$BF150,5) -> 0 | E148: =INDEX(y_GP,MATCH(D148,y_GP,1)+(E$4-D$4)) -> 1e-05 | F148: 2e-05 | G148: 3e-05 | H148: 4e-05 | I148: 5e-05 | J148: 6e-05 | K148: 8e-05 | L148: 9e-05 | M148: 0.00011 | N148: 0.00013 | O148: 0.00015 | P148: 0.00018 | Q148: 0.00021 | R148: 0.00025 | S148: 0.0003 | T148: 0.00036 | U148: 0.00042 | V148: 0.0005 | W148: 0.0006 | X148: 0.00071 | Y148: 0.00084 | Z148: 0.001 | AA148: 0.00119 | AB148: 0.00142 | AC148: 0.00168 | AD148: 0.002 | AE148: 0.00237 | AF148: 0.00281 | AG148: 0.00334 | AH148: 0.00396 | AI148: 0.0047 | AJ148: 0.00558 | AK148: 0.00662 | AL148: 0.00785 | AM148: 0.00931
C149: Other | D149: =ROUND(HistVREShare!$BF151,5) -> 0 | E149: =INDEX(y_GP,MATCH(D149,y_GP,1)+(E$4-D$4)) -> 1e-05 | F149: 2e-05 | G149: 3e-05 | H149: 4e-05 | I149: 5e-05 | J149: 6e-05 | K149: 8e-05 | L149: 9e-05 | M149: 0.00011 | N149: 0.00013 | O149: 0.00015 | P149: 0.00018 | Q149: 0.00021 | R149: 0.00025 | S149: 0.0003 | T149: 0.00036 | U149: 0.00042 | V149: 0.0005 | W149: 0.0006 | X149: 0.00071 | Y149: 0.00084 | Z149: 0.001 | AA149: 0.00119 | AB149: 0.00142 | AC149: 0.00168 | AD149: 0.002 | AE149: 0.00237 | AF149: 0.00281 | AG149: 0.00334 | AH149: 0.00396 | AI149: 0.0047 | AJ149: 0.00558 | AK149: 0.00662 | AL149: 0.00785 | AM149: 0.00931
B151: No policy
C153: Country | D153: 2015 | E153: 2016 | F153: 2017 | G153: 2018 | H153: 2019 | I153: 2020 | J153: 2021 | K153: 2022 | L153: 2023 | M153: 2024 | N153: 2025 | O153: 2026 | P153: 2027 | Q153: 2028 | R153: 2029 | S153: 2030 | T153: 2031 | U153: 2032 | V153: 2033 | W153: 2034 | X153: 2035 | Y153: 2036 | Z153: 2037 | AA153: 2038 | AB153: 2039 | AC153: 2040 | AD153: 2041 | AE153: 2042 | AF153: 2043 | AG153: 2044 | AH153: 2045 | AI153: 2046 | AJ153: 2047 | AK153: 2048 | AL153: 2049 | AM153: 2050
C154: World | D154: =ROUND(HistVREShare!$BF7,5) -> 0.04523 | E154: =INDEX(y_NP,MATCH(D154,y_NP,1)+(E$153-D$153)) -> 0.04546 | F154: 0.04772 | G154: 0.05007 | H154: 0.05251 | I154: 0.05504 | J154: 0.05767 | K154: 0.06039 | L154: 0.06321 | M154: 0.06612 | N154: 0.06913 | O154: 0.07223 | P154: 0.07543 | Q154: 0.07872 | R154: 0.0821 | S154: 0.08556 | T154: 0.08912 | U154: 0.09276 | V154: 0.09648 | W154: 0.10027 | X154: 0.10414 | Y154: 0.10808 | Z154: 0.11208 | AA154: 0.11614 | AB154: 0.12025 | AC154: 0.12441 | AD154: 0.12861 | AE154: 0.13285 | AF154: 0.13711 | AG154: 0.1414 | AH154: 0.14569 | AI154: 0.15 | AJ154: 0.15431 | AK154: 0.1586 | AL154: 0.16289 | AM154: 0.16715
C155: Albania | D155: =ROUND(HistVREShare!$BF8,5) -> 0 | E155: =INDEX(y_NP,MATCH(D155,y_NP,1)+(E$153-D$153)) -> 1e-05 | F155: 2e-05 | G155: 3e-05 | H155: 4e-05 | I155: 5e-05 | J155: 6e-05 | K155: 7e-05 | L155: 8e-05 | M155: 9e-05 | N155: 0.0001 | O155: 0.00011 | P155: 0.00012 | Q155: 0.00013 | R155: 0.00014 | S155: 0.00015 | T155: 0.00016 | U155: 0.00017 | V155: 0.00018 | W155: 0.00019 | X155: 0.0002 | Y155: 0.00022 | Z155: 0.00023 | AA155: 0.00024 | AB155: 0.00026 | AC155: 0.00027 | AD155: 0.00029 | AE155: 0.0003 | AF155: 0.00032 | AG155: 0.00034 | AH155: 0.00036 | AI155: 0.00038 | AJ155: 0.00041 | AK155: 0.00043 | AL155: 0.00046 | AM155: 0.00048
C156: Algeria | D156: =ROUND(HistVREShare!$BF9,5) -> 0.00112 | E156: =INDEX(y_NP,MATCH(D156,y_NP,1)+(E$153-D$153)) -> 0.00114 | F156: 0.00121 | G156: 0.00128 | H156: 0.00135 | I156: 0.00143 | J156: 0.00152 | K156: 0.0016 | L156: 0.0017 | M156: 0.0018 | N156: 0.0019 | O156: 0.00202 | P156: 0.00213 | Q156: 0.00226 | R156: 0.00239 | S156: 0.00253 | T156: 0.00268 | U156: 0.00284 | V156: 0.003 | W156: 0.00318 | X156: 0.00337 | Y156: 0.00356 | Z156: 0.00377 | AA156: 0.00399 | AB156: 0.00422 | AC156: 0.00447 | AD156: 0.00473 | AE156: 0.005 | AF156: 0.00529 | AG156: 0.0056 | AH156: 0.00592 | AI156: 0.00627 | AJ156: 0.00663 | AK156: 0.00701 | AL156: 0.00742 | AM156: 0.00784
C157: Angola | D157: =ROUND(HistVREShare!$BF10,5) -> 0 | E157: =INDEX(y_NP,MATCH(D157,y_NP,1)+(E$153-D$153)) -> 1e-05 | F157: 2e-05 | G157: 3e-05 | H157: 4e-05 | I157: 5e-05 | J157: 6e-05 | K157: 7e-05 | L157: 8e-05 | M157: 9e-05 | N157: 0.0001 | O157: 0.00011 | P157: 0.00012 | Q157: 0.00013 | R157: 0.00014 | S157: 0.00015 | T157: 0.00016 | U157: 0.00017 | V157: 0.00018 | W157: 0.00019 | X157: 0.0002 | Y157: 0.00022 | Z157: 0.00023 | AA157: 0.00024 | AB157: 0.00026 | AC157: 0.00027 | AD157: 0.00029 | AE157: 0.0003 | AF157: 0.00032 | AG157: 0.00034 | AH157: 0.00036 | AI157: 0.00038 | AJ157: 0.00041 | AK157: 0.00043 | AL157: 0.00046 | AM157: 0.00048
C158: Argentina | D158: =ROUND(HistVREShare!$BF11,5) -> 0.00424 | E158: =INDEX(y_NP,MATCH(D158,y_NP,1)+(E$153-D$153)) -> 0.00447 | F158: 0.00473 | G158: 0.005 | H158: 0.00529 | I158: 0.0056 | J158: 0.00592 | K158: 0.00627 | L158: 0.00663 | M158: 0.00701 | N158: 0.00742 | O158: 0.00784 | P158: 0.00829 | Q158: 0.00877 | R158: 0.00927 | S158: 0.0098 | T158: 0.01036 | U158: 0.01095 | V158: 0.01157 | W158: 0.01223 | X158: 0.01292 | Y158: 0.01365 | Z158: 0.01442 | AA158: 0.01523 | AB158: 0.01608 | AC158: 0.01698 | AD158: 0.01792 | AE158: 0.01891 | AF158: 0.01996 | AG158: 0.02105 | AH158: 0.0222 | AI158: 0.02341 | AJ158: 0.02468 | AK158: 0.02602 | AL158: 0.02741 | AM158: 0.02888
C159: Armenia | D159: =ROUND(HistVREShare!$BF12,5) -> 0.00051 | E159: =INDEX(y_NP,MATCH(D159,y_NP,1)+(E$153-D$153)) -> 0.00054 | F159: 0.00057 | G159: 0.00061 | H159: 0.00064 | I159: 0.00068 | J159: 0.00072 | K159: 0.00076 | L159: 0.00081 | M159: 0.00086 | N159: 0.00091 | O159: 0.00096 | P159: 0.00102 | Q159: 0.00108 | R159: 0.00114 | S159: 0.00121 | T159: 0.00128 | U159: 0.00135 | V159: 0.00143 | W159: 0.00152 | X159: 0.0016 | Y159: 0.0017 | Z159: 0.0018 | AA159: 0.0019 | AB159: 0.00202 | AC159: 0.00213 | AD159: 0.00226 | AE159: 0.00239 | AF159: 0.00253 | AG159: 0.00268 | AH159: 0.00284 | AI159: 0.003 | AJ159: 0.00318 | AK159: 0.00337 | AL159: 0.00356 | AM159: 0.00377
C160: Australia | D160: =ROUND(HistVREShare!$BF13,5) -> 0.06561 | E160: =INDEX(y_NP,MATCH(D160,y_NP,1)+(E$153-D$153)) -> 0.06612 | F160: 0.06913 | G160: 0.07223 | H160: 0.07543 | I160: 0.07872 | J160: 0.0821 | K160: 0.08556 | L160: 0.08912 | M160: 0.09276 | N160: 0.09648 | O160: 0.10027 | P160: 0.10414 | Q160: 0.10808 | R160: 0.11208 | S160: 0.11614 | T160: 0.12025 | U160: 0.12441 | V160: 0.12861 | W160: 0.13285 | X160: 0.13711 | Y160: 0.1414 | Z160: 0.14569 | AA160: 0.15 | AB160: 0.15431 | AC160: 0.1586 | AD160: 0.16289 | AE160: 0.16715 | AF160: 0.17139 | AG160: 0.17559 | AH160: 0.17975 | AI160: 0.18386 | AJ160: 0.18792 | AK160: 0.19192 | AL160: 0.19586 | AM160: 0.19973
C161: Austria | D161: =ROUND(HistVREShare!$BF14,5) -> 0.09353 | E161: =INDEX(y_NP,MATCH(D161,y_NP,1)+(E$153-D$153)) -> 0.09648 | F161: 0.10027 | G161: 0.10414 | H161: 0.10808 | I161: 0.11208 | J161: 0.11614 | K161: 0.12025 | L161: 0.12441 | M161: 0.12861 | N161: 0.13285 | O161: 0.13711 | P161: 0.1414 | Q161: 0.14569 | R161: 0.15 | S161: 0.15431 | T161: 0.1586 | U161: 0.16289 | V161: 0.16715 | W161: 0.17139 | X161: 0.17559 | Y161: 0.17975 | Z161: 0.18386 | AA161: 0.18792 | AB161: 0.19192 | AC161: 0.19586 | AD161: 0.19973 | AE161: 0.20352 | AF161: 0.20724 | AG161: 0.21088 | AH161: 0.21444 | AI161: 0.2179 | AJ161: 0.22128 | AK161: 0.22457 | AL161: 0.22777 | AM161: 0.23087
C162: Azerbaijan | D162: =ROUND(HistVREShare!$BF15,5) -> 0.00041 | E162: =INDEX(y_NP,MATCH(D162,y_NP,1)+(E$153-D$153)) -> 0.00043 | F162: 0.00046 | G162: 0.00048 | H162: 0.00051 | I162: 0.00054 | J162: 0.00057 | K162: 0.00061 | L162: 0.00064 | M162: 0.00068 | N162: 0.00072 | O162: 0.00076 | P162: 0.00081 | Q162: 0.00086 | R162: 0.00091 | S162: 0.00096 | T162: 0.00102 | U162: 0.00108 | V162: 0.00114 | W162: 0.00121 | X162: 0.00128 | Y162: 0.00135 | Z162: 0.00143 | AA162: 0.00152 | AB162: 0.0016 | AC162: 0.0017 | AD162: 0.0018 | AE162: 0.0019 | AF162: 0.00202 | AG162: 0.00213 | AH162: 0.00226 | AI162: 0.00239 | AJ162: 0.00253 | AK162: 0.00268 | AL162: 0.00284 | AM162: 0.003
C163: Bahrain | D163: =ROUND(HistVREShare!$BF16,5) -> 0 | E163: =INDEX(y_NP,MATCH(D163,y_NP,1)+(E$153-D$153)) -> 1e-05 | F163: 2e-05 | G163: 3e-05 | H163: 4e-05 | I163: 5e-05 | J163: 6e-05 | K163: 7e-05 | L163: 8e-05 | M163: 9e-05 | N163: 0.0001 | O163: 0.00011 | P163: 0.00012 | Q163: 0.00013 | R163: 0.00014 | S163: 0.00015 | T163: 0.00016 | U163: 0.00017 | V163: 0.00018 | W163: 0.00019 | X163: 0.0002 | Y163: 0.00022 | Z163: 0.00023 | AA163: 0.00024 | AB163: 0.00026 | AC163: 0.00027 | AD163: 0.00029 | AE163: 0.0003 | AF163: 0.00032 | AG163: 0.00034 | AH163: 0.00036 | AI163: 0.00038 | AJ163: 0.00041 | AK163: 0.00043 | AL163: 0.00046 | AM163: 0.00048
C164: Bangladesh | D164: =ROUND(HistVREShare!$BF17,5) -> 0.00268 | E164: =INDEX(y_NP,MATCH(D164,y_NP,1)+(E$153-D$153)) -> 0.00284 | F164: 0.003 | G164: 0.00318 | H164: 0.00337 | I164: 0.00356 | J164: 0.00377 | K164: 0.00399 | L164: 0.00422 | M164: 0.00447 | N164: 0.00473 | O164: 0.005 | P164: 0.00529 | Q164: 0.0056 | R164: 0.00592 | S164: 0.00627 | T164: 0.00663 | U164: 0.00701 | V164: 0.00742 | W164: 0.00784 | X164: 0.00829 | Y164: 0.00877 | Z164: 0.00927 | AA164: 0.0098 | AB164: 0.01036 | AC164: 0.01095 | AD164: 0.01157 | AE164: 0.01223 | AF164: 0.01292 | AG164: 0.01365 | AH164: 0.01442 | AI164: 0.01523 | AJ164: 0.01608 | AK164: 0.01698 | AL164: 0.01792 | AM164: 0.01891
C165: Belarus | D165: =ROUND(HistVREShare!$BF18,5) -> 0.001 | E165: =INDEX(y_NP,MATCH(D165,y_NP,1)+(E$153-D$153)) -> 0.00102 | F165: 0.00108 | G165: 0.00114 | H165: 0.00121 | I165: 0.00128 | J165: 0.00135 | K165: 0.00143 | L165: 0.00152 | M165: 0.0016 | N165: 0.0017 | O165: 0.0018 | P165: 0.0019 | Q165: 0.00202 | R165: 0.00213 | S165: 0.00226 | T165: 0.00239 | U165: 0.00253 | V165: 0.00268 | W165: 0.00284 | X165: 0.003 | Y165: 0.00318 | Z165: 0.00337 | AA165: 0.00356 | AB165: 0.00377 | AC165: 0.00399 | AD165: 0.00422 | AE165: 0.00447 | AF165: 0.00473 | AG165: 0.005 | AH165: 0.00529 | AI165: 0.0056 | AJ165: 0.00592 | AK165: 0.00627 | AL165: 0.00663 | AM165: 0.00701
C166: Belgium | D166: =ROUND(HistVREShare!$BF19,5) -> 0.12549 | E166: =INDEX(y_NP,MATCH(D166,y_NP,1)+(E$153-D$153)) -> 0.12861 | F166: 0.13285 | G166: 0.13711 | H166: 0.1414 | I166: 0.14569 | J166: 0.15 | K166: 0.15431 | L166: 0.1586 | M166: 0.16289 | N166: 0.16715 | O166: 0.17139 | P166: 0.17559 | Q166: 0.17975 | R166: 0.18386 | S166: 0.18792 | T166: 0.19192 | U166: 0.19586 | V166: 0.19973 | W166: 0.20352 | X166: 0.20724 | Y166: 0.21088 | Z166: 0.21444 | AA166: 0.2179 | AB166: 0.22128 | AC166: 0.22457 | AD166: 0.22777 | AE166: 0.23087 | AF166: 0.23388 | AG166: 0.23679 | AH166: 0.23961 | AI166: 0.24233 | AJ166: 0.24496 | AK166: 0.24749 | AL166: 0.24993 | AM166: 0.25228
C167: Benin | D167: =ROUND(HistVREShare!$BF20,5) -> 0.01462 | E167: =INDEX(y_NP,MATCH(D167,y_NP,1)+(E$153-D$153)) -> 0.01523 | F167: 0.01608 | G167: 0.01698 | H167: 0.01792 | I167: 0.01891 | J167: 0.01996 | K167: 0.02105 | L167: 0.0222 | M167: 0.02341 | N167: 0.02468 | O167: 0.02602 | P167: 0.02741 | Q167: 0.02888 | R167: 0.03041 | S167: 0.03202 | T167: 0.0337 | U167: 0.03545 | V167: 0.03729 | W167: 0.0392 | X167: 0.0412 | Y167: 0.04329 | Z167: 0.04546 | AA167: 0.04772 | AB167: 0.05007 | AC167: 0.05251 | AD167: 0.05504 | AE167: 0.05767 | AF167: 0.06039 | AG167: 0.06321 | AH167: 0.06612 | AI167: 0.06913 | AJ167: 0.07223 | AK167: 0.07543 | AL167: 0.07872 | AM167: 0.0821
C168: Bolivia | D168: =ROUND(HistVREShare!$BF21,5) -> 0.00252 | E168: =INDEX(y_NP,MATCH(D168,y_NP,1)+(E$153-D$153)) -> 0.00253 | F168: 0.00268 | G168: 0.00284 | H168: 0.003 | I168: 0.00318 | J168: 0.00337 | K168: 0.00356 | L168: 0.00377 | M168: 0.00399 | N168: 0.00422 | O168: 0.00447 | P168: 0.00473 | Q168: 0.005 | R168: 0.00529 | S168: 0.0056 | T168: 0.00592 | U168: 0.00627 | V168: 0.00663 | W168: 0.00701 | X168: 0.00742 | Y168: 0.00784 | Z168: 0.00829 | AA168: 0.00877 | AB168: 0.00927 | AC168: 0.0098 | AD168: 0.01036 | AE168: 0.01095 | AF168: 0.01157 | AG168: 0.01223 | AH168: 0.01292 | AI168: 0.01365 | AJ168: 0.01442 | AK168: 0.01523 | AL168: 0.01608 | AM168: 0.01698
C169: Bosnia and Herzegovina | D169: =ROUND(HistVREShare!$BF22,5) -> 0 | E169: =INDEX(y_NP,MATCH(D169,y_NP,1)+(E$153-D$153)) -> 1e-05 | F169: 2e-05 | G169: 3e-05 | H169: 4e-05 | I169: 5e-05 | J169: 6e-05 | K169: 7e-05 | L169: 8e-05 | M169: 9e-05 | N169: 0.0001 | O169: 0.00011 | P169: 0.00012 | Q169: 0.00013 | R169: 0.00014 | S169: 0.00015 | T169: 0.00016 | U169: 0.00017 | V169: 0.00018 | W169: 0.00019 | X169: 0.0002 | Y169: 0.00022 | Z169: 0.00023 | AA169: 0.00024 | AB169: 0.00026 | AC169: 0.00027 | AD169: 0.00029 | AE169: 0.0003 | AF169: 0.00032 | AG169: 0.00034 | AH169: 0.00036 | AI169: 0.00038 | AJ169: 0.00041 | AK169: 0.00043 | AL169: 0.00046 | AM169: 0.00048
C170: Botswana | D170: =ROUND(HistVREShare!$BF23,5) -> 0.00067 | E170: =INDEX(y_NP,MATCH(D170,y_NP,1)+(E$153-D$153)) -> 0.00068 | F170: 0.00072 | G170: 0.00076 | H170: 0.00081 | I170: 0.00086 | J170: 0.00091 | K170: 0.00096 | L170: 0.00102 | M170: 0.00108 | N170: 0.00114 | O170: 0.00121 | P170: 0.00128 | Q170: 0.00135 | R170: 0.00143 | S170: 0.00152 | T170: 0.0016 | U170: 0.0017 | V170: 0.0018 | W170: 0.0019 | X170: 0.00202 | Y170: 0.00213 | Z170: 0.00226 | AA170: 0.00239 | AB170: 0.00253 | AC170: 0.00268 | AD170: 0.00284 | AE170: 0.003 | AF170: 0.00318 | AG170: 0.00337 | AH170: 0.00356 | AI170: 0.00377 | AJ170: 0.00399 | AK170: 0.00422 | AL170: 0.00447 | AM170: 0.00473
C171: Brazil | D171: =ROUND(HistVREShare!$BF24,5) -> 0.03728 | E171: =INDEX(y_NP,MATCH(D171,y_NP,1)+(E$153-D$153)) -> 0.03729 | F171: 0.0392 | G171: 0.0412 | H171: 0.04329 | I171: 0.04546 | J171: 0.04772 | K171: 0.05007 | L171: 0.05251 | M171: 0.05504 | N171: 0.05767 | O171: 0.06039 | P171: 0.06321 | Q171: 0.06612 | R171: 0.06913 | S171: 0.07223 | T171: 0.07543 | U171: 0.07872 | V171: 0.0821 | W171: 0.08556 | X171: 0.08912 | Y171: 0.09276 | Z171: 0.09648 | AA171: 0.10027 | AB171: 0.10414 | AC171: 0.10808 | AD171: 0.11208 | AE171: 0.11614 | AF171: 0.12025 | AG171: 0.12441 | AH171: 0.12861 | AI171: 0.13285 | AJ171: 0.13711 | AK171: 0.1414 | AL171: 0.14569 | AM171: 0.15
C172: Brunei | D172: =ROUND(HistVREShare!$BF25,5) -> 0.00048 | E172: =INDEX(y_NP,MATCH(D172,y_NP,1)+(E$153-D$153)) -> 0.00051 | F172: 0.00054 | G172: 0.00057 | H172: 0.00061 | I172: 0.00064 | J172: 0.00068 | K172: 0.00072 | L172: 0.00076 | M172: 0.00081 | N172: 0.00086 | O172: 0.00091 | P172: 0.00096 | Q172: 0.00102 | R172: 0.00108 | S172: 0.00114 | T172: 0.00121 | U172: 0.00128 | V172: 0.00135 | W172: 0.00143 | X172: 0.00152 | Y172: 0.0016 | Z172: 0.0017 | AA172: 0.0018 | AB172: 0.0019 | AC172: 0.00202 | AD172: 0.00213 | AE172: 0.00226 | AF172: 0.00239 | AG172: 0.00253 | AH172: 0.00268 | AI172: 0.00284 | AJ172: 0.003 | AK172: 0.00318 | AL172: 0.00337 | AM172: 0.00356
C173: Bulgaria | D173: =ROUND(HistVREShare!$BF26,5) -> 0.05816 | E173: =INDEX(y_NP,MATCH(D173,y_NP,1)+(E$153-D$153)) -> 0.06039 | F173: 0.06321 | G173: 0.06612 | H173: 0.06913 | I173: 0.07223 | J173: 0.07543 | K173: 0.07872 | L173: 0.0821 | M173: 0.08556 | N173: 0.08912 | O173: 0.09276 | P173: 0.09648 | Q173: 0.10027 | R173: 0.10414 | S173: 0.10808 | T173: 0.11208 | U173: 0.11614 | V173: 0.12025 | W173: 0.12441 | X173: 0.12861 | Y173: 0.13285 | Z173: 0.13711 | AA173: 0.1414 | AB173: 0.14569 | AC173: 0.15 | AD173: 0.15431 | AE173: 0.1586 | AF173: 0.16289 | AG173: 0.16715 | AH173: 0.17139 | AI173: 0.17559 | AJ173: 0.17975 | AK173: 0.18386 | AL173: 0.18792 | AM173: 0.19192
C174: Cambodia | D174: =ROUND(HistVREShare!$BF27,5) -> 0.00068 | E174: =INDEX(y_NP,MATCH(D174,y_NP,1)+(E$153-D$153)) -> 0.00072 | F174: 0.00076 | G174: 0.00081 | H174: 0.00086 | I174: 0.00091 | J174: 0.00096 | K174: 0.00102 | L174: 0.00108 | M174: 0.00114 | N174: 0.00121 | O174: 0.00128 | P174: 0.00135 | Q174: 0.00143 | R174: 0.00152 | S174: 0.0016 | T174: 0.0017 | U174: 0.0018 | V174: 0.0019 | W174: 0.00202 | X174: 0.00213 | Y174: 0.00226 | Z174: 0.00239 | AA174: 0.00253 | AB174: 0.00268 | AC174: 0.00284 | AD174: 0.003 | AE174: 0.00318 | AF174: 0.00337 | AG174: 0.00356 | AH174: 0.00377 | AI174: 0.00399 | AJ174: 0.00422 | AK174: 0.00447 | AL174: 0.00473 | AM174: 0.005
C175: Cameroon | D175: =ROUND(HistVREShare!$BF28,5) -> 0 | E175: =INDEX(y_NP,MATCH(D175,y_NP,1)+(E$153-D$153)) -> 1e-05 | F175: 2e-05 | G175: 3e-05 | H175: 4e-05 | I175: 5e-05 | J175: 6e-05 | K175: 7e-05 | L175: 8e-05 | M175: 9e-05 | N175: 0.0001 | O175: 0.00011 | P175: 0.00012 | Q175: 0.00013 | R175: 0.00014 | S175: 0.00015 | T175: 0.00016 | U175: 0.00017 | V175: 0.00018 | W175: 0.00019 | X175: 0.0002 | Y175: 0.00022 | Z175: 0.00023 | AA175: 0.00024 | AB175: 0.00026 | AC175: 0.00027 | AD175: 0.00029 | AE175: 0.0003 | AF175: 0.00032 | AG175: 0.00034 | AH175: 0.00036 | AI175: 0.00038 | AJ175: 0.00041 | AK175: 0.00043 | AL175: 0.00046 | AM175: 0.00048
C176: Canada | D176: =ROUND(HistVREShare!$BF29,5) -> 0.04392 | E176: =INDEX(y_NP,MATCH(D176,y_NP,1)+(E$153-D$153)) -> 0.04546 | F176: 0.04772 | G176: 0.05007 | H176: 0.05251 | I176: 0.05504 | J176: 0.05767 | K176: 0.06039 | L176: 0.06321 | M176: 0.06612 | N176: 0.06913 | O176: 0.07223 | P176: 0.07543 | Q176: 0.07872 | R176: 0.0821 | S176: 0.08556 | T176: 0.08912 | U176: 0.09276 | V176: 0.09648 | W176: 0.10027 | X176: 0.10414 | Y176: 0.10808 | Z176: 0.11208 | AA176: 0.11614 | AB176: 0.12025 | AC176: 0.12441 | AD176: 0.12861 | AE176: 0.13285 | AF176: 0.13711 | AG176: 0.1414 | AH176: 0.14569 | AI176: 0.15 | AJ176: 0.15431 | AK176: 0.1586 | AL176: 0.16289 | AM176: 0.16715
C177: Chile | D177: =ROUND(HistVREShare!$BF30,5) -> 0.04478 | E177: =INDEX(y_NP,MATCH(D177,y_NP,1)+(E$153-D$153)) -> 0.04546 | F177: 0.04772 | G177: 0.05007 | H177: 0.05251 | I177: 0.05504 | J177: 0.05767 | K177: 0.06039 | L177: 0.06321 | M177: 0.06612 | N177: 0.06913 | O177: 0.07223 | P177: 0.07543 | Q177: 0.07872 | R177: 0.0821 | S177: 0.08556 | T177: 0.08912 | U177: 0.09276 | V177: 0.09648 | W177: 0.10027 | X177: 0.10414 | Y177: 0.10808 | Z177: 0.11208 | AA177: 0.11614 | AB177: 0.12025 | AC177: 0.12441 | AD177: 0.12861 | AE177: 0.13285 | AF177: 0.13711 | AG177: 0.1414 | AH177: 0.14569 | AI177: 0.15 | AJ177: 0.15431 | AK177: 0.1586 | AL177: 0.16289 | AM177: 0.16715
C178: China | D178: =ROUND(HistVREShare!$BF31,5) -> 0.03946 | E178: =INDEX(y_NP,MATCH(D178,y_NP,1)+(E$153-D$153)) -> 0.0412 | F178: 0.04329 | G178: 0.04546 | H178: 0.04772 | I178: 0.05007 | J178: 0.05251 | K178: 0.05504 | L178: 0.05767 | M178: 0.06039 | N178: 0.06321 | O178: 0.06612 | P178: 0.06913 | Q178: 0.07223 | R178: 0.07543 | S178: 0.07872 | T178: 0.0821 | U178: 0.08556 | V178: 0.08912 | W178: 0.09276 | X178: 0.09648 | Y178: 0.10027 | Z178: 0.10414 | AA178: 0.10808 | AB178: 0.11208 | AC178: 0.11614 | AD178: 0.12025 | AE178: 0.12441 | AF178: 0.12861 | AG178: 0.13285 | AH178: 0.13711 | AI178: 0.1414 | AJ178: 0.14569 | AK178: 0.15 | AL178: 0.15431 | AM178: 0.1586
C179: Colombia | D179: =ROUND(HistVREShare!$BF32,5) -> 0.00087 | E179: =INDEX(y_NP,MATCH(D179,y_NP,1)+(E$153-D$153)) -> 0.00091 | F179: 0.00096 | G179: 0.00102 | H179: 0.00108 | I179: 0.00114 | J179: 0.00121 | K179: 0.00128 | L179: 0.00135 | M179: 0.00143 | N179: 0.00152 | O179: 0.0016 | P179: 0.0017 | Q179: 0.0018 | R179: 0.0019 | S179: 0.00202 | T179: 0.00213 | U179: 0.00226 | V179: 0.00239 | W179: 0.00253 | X179: 0.00268 | Y179: 0.00284 | Z179: 0.003 | AA179: 0.00318 | AB179: 0.00337 | AC179: 0.00356 | AD179: 0.00377 | AE179: 0.00399 | AF179: 0.00422 | AG179: 0.00447 | AH179: 0.00473 | AI179: 0.005 | AJ179: 0.00529 | AK179: 0.0056 | AL179: 0.00592 | AM179: 0.00627
C180: Congo | D180: =ROUND(HistVREShare!$BF33,5) -> 0 | E180: =INDEX(y_NP,MATCH(D180,y_NP,1)+(E$153-D$153)) -> 1e-05 | F180: 2e-05 | G180: 3e-05 | H180: 4e-05 | I180: 5e-05 | J180: 6e-05 | K180: 7e-05 | L180: 8e-05 | M180: 9e-05 | N180: 0.0001 | O180: 0.00011 | P180: 0.00012 | Q180: 0.00013 | R180: 0.00014 | S180: 0.00015 | T180: 0.00016 | U180: 0.00017 | V180: 0.00018 | W180: 0.00019 | X180: 0.0002 | Y180: 0.00022 | Z180: 0.00023 | AA180: 0.00024 | AB180: 0.00026 | AC180: 0.00027 | AD180: 0.00029 | AE180: 0.0003 | AF180: 0.00032 | AG180: 0.00034 | AH180: 0.00036 | AI180: 0.00038 | AJ180: 0.00041 | AK180: 0.00043 | AL180: 0.00046 | AM180: 0.00048
C181: Costa Rica | D181: =ROUND(HistVREShare!$BF34,5) -> 0.10017 | E181: =INDEX(y_NP,MATCH(D181,y_NP,1)+(E$153-D$153)) -> 0.10027 | F181: 0.10414 | G181: 0.10808 | H181: 0.11208 | I181: 0.11614 | J181: 0.12025 | K181: 0.12441 | L181: 0.12861 | M181: 0.13285 | N181: 0.13711 | O181: 0.1414 | P181: 0.14569 | Q181: 0.15 | R181: 0.15431 | S181: 0.1586 | T181: 0.16289 | U181: 0.16715 | V181: 0.17139 | W181: 0.17559 | X181: 0.17975 | Y181: 0.18386 | Z181: 0.18792 | AA181: 0.19192 | AB181: 0.19586 | AC181: 0.19973 | AD181: 0.20352 | AE181: 0.20724 | AF181: 0.21088 | AG181: 0.21444 | AH181: 0.2179 | AI181: 0.22128 | AJ181: 0.22457 | AK181: 0.22777 | AL181: 0.23087 | AM181: 0.23388
C182: Côte d'Ivoire | D182: =ROUND(HistVREShare!$BF35,5) -> 0 | E182: =INDEX(y_NP,MATCH(D182,y_NP,1)+(E$153-D$153)) -> 1e-05 | F182: 2e-05 | G182: 3e-05 | H182: 4e-05 | I182: 5e-05 | J182: 6e-05 | K182: 7e-05 | L182: 8e-05 | M182: 9e-05 | N182: 0.0001 | O182: 0.00011 | P182: 0.00012 | Q182: 0.00013 | R182: 0.00014 | S182: 0.00015 | T182: 0.00016 | U182: 0.00017 | V182: 0.00018 | W182: 0.00019 | X182: 0.0002 | Y182: 0.00022 | Z182: 0.00023 | AA182: 0.00024 | AB182: 0.00026 | AC182: 0.00027 | AD182: 0.00029 | AE182: 0.0003 | AF182: 0.00032 | AG182: 0.00034 | AH182: 0.00036 | AI182: 0.00038 | AJ182: 0.00041 | AK182: 0.00043 | AL182: 0.00046 | AM182: 0.00048
C183: Croatia | D183: =ROUND(HistVREShare!$BF36,5) -> 0.0759 | E183: =INDEX(y_NP,MATCH(D183,y_NP,1)+(E$153-D$153)) -> 0.07872 | F183: 0.0821 | G183: 0.08556 | H183: 0.08912 | I183: 0.09276 | J183: 0.09648 | K183: 0.10027 | L183: 0.10414 | M183: 0.10808 | N183: 0.11208 | O183: 0.11614 | P183: 0.12025 | Q183: 0.12441 | R183: 0.12861 | S183: 0.13285 | T183: 0.13711 | U183: 0.1414 | V183: 0.14569 | W183: 0.15 | X183: 0.15431 | Y183: 0.1586 | Z183: 0.16289 | AA183: 0.16715 | AB183: 0.17139 | AC183: 0.17559 | AD183: 0.17975 | AE183: 0.18386 | AF183: 0.18792 | AG183: 0.19192 | AH183: 0.19586 | AI183: 0.19973 | AJ183: 0.20352 | AK183: 0.20724 | AL183: 0.21088 | AM183: 0.21444
C184: Cuba | D184: =ROUND(HistVREShare!$BF37,5) -> 0.00246 | E184: =INDEX(y_NP,MATCH(D184,y_NP,1)+(E$153-D$153)) -> 0.00253 | F184: 0.00268 | G184: 0.00284 | H184: 0.003 | I184: 0.00318 | J184: 0.00337 | K184: 0.00356 | L184: 0.00377 | M184: 0.00399 | N184: 0.00422 | O184: 0.00447 | P184: 0.00473 | Q184: 0.005 | R184: 0.00529 | S184: 0.0056 | T184: 0.00592 | U184: 0.00627 | V184: 0.00663 | W184: 0.00701 | X184: 0.00742 | Y184: 0.00784 | Z184: 0.00829 | AA184: 0.00877 | AB184: 0.00927 | AC184: 0.0098 | AD184: 0.01036 | AE184: 0.01095 | AF184: 0.01157 | AG184: 0.01223 | AH184: 0.01292 | AI184: 0.01365 | AJ184: 0.01442 | AK184: 0.01523 | AL184: 0.01608 | AM184: 0.01698
C185: Curaçao | D185: =ROUND(HistVREShare!$BF38,5) -> 0 | E185: =INDEX(y_NP,MATCH(D185,y_NP,1)+(E$153-D$153)) -> 1e-05 | F185: 2e-05 | G185: 3e-05 | H185: 4e-05 | I185: 5e-05 | J185: 6e-05 | K185: 7e-05 | L185: 8e-05 | M185: 9e-05 | N185: 0.0001 | O185: 0.00011 | P185: 0.00012 | Q185: 0.00013 | R185: 0.00014 | S185: 0.00015 | T185: 0.00016 | U185: 0.00017 | V185: 0.00018 | W185: 0.00019 | X185: 0.0002 | Y185: 0.00022 | Z185: 0.00023 | AA185: 0.00024 | AB185: 0.00026 | AC185: 0.00027 | AD185: 0.00029 | AE185: 0.0003 | AF185: 0.00032 | AG185: 0.00034 | AH185: 0.00036 | AI185: 0.00038 | AJ185: 0.00041 | AK185: 0.00043 | AL185: 0.00046 | AM185: 0.00048
C186: Cyprus | D186: =ROUND(HistVREShare!$BF39,5) -> 0.07655 | E186: =INDEX(y_NP,MATCH(D186,y_NP,1)+(E$153-D$153)) -> 0.07872 | F186: 0.0821 | G186: 0.08556 | H186: 0.08912 | I186: 0.09276 | J186: 0.09648 | K186: 0.10027 | L186: 0.10414 | M186: 0.10808 | N186: 0.11208 | O186: 0.11614 | P186: 0.12025 | Q186: 0.12441 | R186: 0.12861 | S186: 0.13285 | T186: 0.13711 | U186: 0.1414 | V186: 0.14569 | W186: 0.15 | X186: 0.15431 | Y186: 0.1586 | Z186: 0.16289 | AA186: 0.16715 | AB186: 0.17139 | AC186: 0.17559 | AD186: 0.17975 | AE186: 0.18386 | AF186: 0.18792 | AG186: 0.19192 | AH186: 0.19586 | AI186: 0.19973 | AJ186: 0.20352 | AK186: 0.20724 | AL186: 0.21088 | AM186: 0.21444
C187: Czech Republic | D187: =ROUND(HistVREShare!$BF40,5) -> 0.03434 | E187: =INDEX(y_NP,MATCH(D187,y_NP,1)+(E$153-D$153)) -> 0.03545 | F187: 0.03729 | G187: 0.0392 | H187: 0.0412 | I187: 0.04329 | J187: 0.04546 | K187: 0.04772 | L187: 0.05007 | M187: 0.05251 | N187: 0.05504 | O187: 0.05767 | P187: 0.06039 | Q187: 0.06321 | R187: 0.06612 | S187: 0.06913 | T187: 0.07223 | U187: 0.07543 | V187: 0.07872 | W187: 0.0821 | X187: 0.08556 | Y187: 0.08912 | Z187: 0.09276 | AA187: 0.09648 | AB187: 0.10027 | AC187: 0.10414 | AD187: 0.10808 | AE187: 0.11208 | AF187: 0.11614 | AG187: 0.12025 | AH187: 0.12441 | AI187: 0.12861 | AJ187: 0.13285 | AK187: 0.13711 | AL187: 0.1414 | AM187: 0.14569
C188: Korea | D188: =ROUND(HistVREShare!$BF41,5) -> 0 | E188: =INDEX(y_NP,MATCH(D188,y_NP,1)+(E$153-D$153)) -> 1e-05 | F188: 2e-05 | G188: 3e-05 | H188: 4e-05 | I188: 5e-05 | J188: 6e-05 | K188: 7e-05 | L188: 8e-05 | M188: 9e-05 | N188: 0.0001 | O188: 0.00011 | P188: 0.00012 | Q188: 0.00013 | R188: 0.00014 | S188: 0.00015 | T188: 0.00016 | U188: 0.00017 | V188: 0.00018 | W188: 0.00019 | X188: 0.0002 | Y188: 0.00022 | Z188: 0.00023 | AA188: 0.00024 | AB188: 0.00026 | AC188: 0.00027 | AD188: 0.00029 | AE188: 0.0003 | AF188: 0.00032 | AG188: 0.00034 | AH188: 0.00036 | AI188: 0.00038 | AJ188: 0.00041 | AK188: 0.00043 | AL188: 0.00046 | AM188: 0.00048
C189: Democratic Republic of the Congo | D189: =ROUND(HistVREShare!$BF42,5) -> 0 | E189: =INDEX(y_NP,MATCH(D189,y_NP,1)+(E$153-D$153)) -> 1e-05 | F189: 2e-05 | G189: 3e-05 | H189: 4e-05 | I189: 5e-05 | J189: 6e-05 | K189: 7e-05 | L189: 8e-05 | M189: 9e-05 | N189: 0.0001 | O189: 0.00011 | P189: 0.00012 | Q189: 0.00013 | R189: 0.00014 | S189: 0.00015 | T189: 0.00016 | U189: 0.00017 | V189: 0.00018 | W189: 0.00019 | X189: 0.0002 | Y189: 0.00022 | Z189: 0.00023 | AA189: 0.00024 | AB189: 0.00026 | AC189: 0.00027 | AD189: 0.00029 | AE189: 0.0003 | AF189: 0.00032 | AG189: 0.00034 | AH189: 0.00036 | AI189: 0.00038 | AJ189: 0.00041 | AK189: 0.00043 | AL189: 0.00046 | AM189: 0.00048
C190: Denmark | D190: =ROUND(HistVREShare!$BF43,5) -> 0.50912 | E190: =D190 -> 0.50912 | F190: =E190 -> 0.50912 | G190: 0.50912 | H190: 0.50912 | I190: 0.50912 | J190: 0.50912 | K190: 0.50912 | L190: 0.50912 | M190: 0.50912 | N190: 0.50912 | O190: 0.50912 | P190: 0.50912 | Q190: 0.50912 | R190: 0.50912 | S190: 0.50912 | T190: 0.50912 | U190: 0.50912 | V190: 0.50912 | W190: 0.50912 | X190: 0.50912 | Y190: 0.50912 | Z190: 0.50912 | AA190: 0.50912 | AB190: 0.50912 | AC190: 0.50912 | AD190: 0.50912 | AE190: 0.50912 | AF190: 0.50912 | AG190: 0.50912 | AH190: 0.50912 | AI190: 0.50912 | AJ190: 0.50912 | AK190: 0.50912 | AL190: 0.50912 | AM190: 0.50912
C191: Dominican Republic | D191: =ROUND(HistVREShare!$BF44,5) -> 0.04885 | E191: =INDEX(y_NP,MATCH(D191,y_NP,1)+(E$153-D$153)) -> 0.05007 | F191: 0.05251 | G191: 0.05504 | H191: 0.05767 | I191: 0.06039 | J191: 0.06321 | K191: 0.06612 | L191: 0.06913 | M191: 0.07223 | N191: 0.07543 | O191: 0.07872 | P191: 0.0821 | Q191: 0.08556 | R191: 0.08912 | S191: 0.09276 | T191: 0.09648 | U191: 0.10027 | V191: 0.10414 | W191: 0.10808 | X191: 0.11208 | Y191: 0.11614 | Z191: 0.12025 | AA191: 0.12441 | AB191: 0.12861 | AC191: 0.13285 | AD191: 0.13711 | AE191: 0.1414 | AF191: 0.14569 | AG191: 0.15 | AH191: 0.15431 | AI191: 0.1586 | AJ191: 0.16289 | AK191: 0.16715 | AL191: 0.17139 | AM191: 0.17559
C192: Ecuador | D192: =ROUND(HistVREShare!$BF45,5) -> 0.00523 | E192: =INDEX(y_NP,MATCH(D192,y_NP,1)+(E$153-D$153)) -> 0.00529 | F192: 0.0056 | G192: 0.00592 | H192: 0.00627 | I192: 0.00663 | J192: 0.00701 | K192: 0.00742 | L192: 0.00784 | M192: 0.00829 | N192: 0.00877 | O192: 0.00927 | P192: 0.0098 | Q192: 0.01036 | R192: 0.01095 | S192: 0.01157 | T192: 0.01223 | U192: 0.01292 | V192: 0.01365 | W192: 0.01442 | X192: 0.01523 | Y192: 0.01608 | Z192: 0.01698 | AA192: 0.01792 | AB192: 0.01891 | AC192: 0.01996 | AD192: 0.02105 | AE192: 0.0222 | AF192: 0.02341 | AG192: 0.02468 | AH192: 0.02602 | AI192: 0.02741 | AJ192: 0.02888 | AK192: 0.03041 | AL192: 0.03202 | AM192: 0.0337
C193: Egypt | D193: =ROUND(HistVREShare!$BF46,5) -> 0.01195 | E193: =INDEX(y_NP,MATCH(D193,y_NP,1)+(E$153-D$153)) -> 0.01223 | F193: 0.01292 | G193: 0.01365 | H193: 0.01442 | I193: 0.01523 | J193: 0.01608 | K193: 0.01698 | L193: 0.01792 | M193: 0.01891 | N193: 0.01996 | O193: 0.02105 | P193: 0.0222 | Q193: 0.02341 | R193: 0.02468 | S193: 0.02602 | T193: 0.02741 | U193: 0.02888 | V193: 0.03041 | W193: 0.03202 | X193: 0.0337 | Y193: 0.03545 | Z193: 0.03729 | AA193: 0.0392 | AB193: 0.0412 | AC193: 0.04329 | AD193: 0.04546 | AE193: 0.04772 | AF193: 0.05007 | AG193: 0.05251 | AH193: 0.05504 | AI193: 0.05767 | AJ193: 0.06039 | AK193: 0.06321 | AL193: 0.06612 | AM193: 0.06913
C194: El Salvador | D194: =ROUND(HistVREShare!$BF47,5) -> 0 | E194: =INDEX(y_NP,MATCH(D194,y_NP,1)+(E$153-D$153)) -> 1e-05 | F194: 2e-05 | G194: 3e-05 | H194: 4e-05 | I194: 5e-05 | J194: 6e-05 | K194: 7e-05 | L194: 8e-05 | M194: 9e-05 | N194: 0.0001 | O194: 0.00011 | P194: 0.00012 | Q194: 0.00013 | R194: 0.00014 | S194: 0.00015 | T194: 0.00016 | U194: 0.00017 | V194: 0.00018 | W194: 0.00019 | X194: 0.0002 | Y194: 0.00022 | Z194: 0.00023 | AA194: 0.00024 | AB194: 0.00026 | AC194: 0.00027 | AD194: 0.00029 | AE194: 0.0003 | AF194: 0.00032 | AG194: 0.00034 | AH194: 0.00036 | AI194: 0.00038 | AJ194: 0.00041 | AK194: 0.00043 | AL194: 0.00046 | AM194: 0.00048
C195: Eritrea | D195: =ROUND(HistVREShare!$BF48,5) -> 0.00493 | E195: =INDEX(y_NP,MATCH(D195,y_NP,1)+(E$153-D$153)) -> 0.005 | F195: 0.00529 | G195: 0.0056 | H195: 0.00592 | I195: 0.00627 | J195: 0.00663 | K195: 0.00701 | L195: 0.00742 | M195: 0.00784 | N195: 0.00829 | O195: 0.00877 | P195: 0.00927 | Q195: 0.0098 | R195: 0.01036 | S195: 0.01095 | T195: 0.01157 | U195: 0.01223 | V195: 0.01292 | W195: 0.01365 | X195: 0.01442 | Y195: 0.01523 | Z195: 0.01608 | AA195: 0.01698 | AB195: 0.01792 | AC195: 0.01891 | AD195: 0.01996 | AE195: 0.02105 | AF195: 0.0222 | AG195: 0.02341 | AH195: 0.02468 | AI195: 0.02602 | AJ195: 0.02741 | AK195: 0.02888 | AL195: 0.03041 | AM195: 0.03202
C196: Estonia | D196: =ROUND(HistVREShare!$BF49,5) -> 0.06876 | E196: =INDEX(y_NP,MATCH(D196,y_NP,1)+(E$153-D$153)) -> 0.06913 | F196: 0.07223 | G196: 0.07543 | H196: 0.07872 | I196: 0.0821 | J196: 0.08556 | K196: 0.08912 | L196: 0.09276 | M196: 0.09648 | N196: 0.10027 | O196: 0.10414 | P196: 0.10808 | Q196: 0.11208 | R196: 0.11614 | S196: 0.12025 | T196: 0.12441 | U196: 0.12861 | V196: 0.13285 | W196: 0.13711 | X196: 0.1414 | Y196: 0.14569 | Z196: 0.15 | AA196: 0.15431 | AB196: 0.1586 | AC196: 0.16289 | AD196: 0.16715 | AE196: 0.17139 | AF196: 0.17559 | AG196: 0.17975 | AH196: 0.18386 | AI196: 0.18792 | AJ196: 0.19192 | AK196: 0.19586 | AL196: 0.19973 | AM196: 0.20352
C197: Ethiopia | D197: =ROUND(HistVREShare!$BF50,5) -> 0.07272 | E197: =INDEX(y_NP,MATCH(D197,y_NP,1)+(E$153-D$153)) -> 0.07543 | F197: 0.07872 | G197: 0.0821 | H197: 0.08556 | I197: 0.08912 | J197: 0.09276 | K197: 0.09648 | L197: 0.10027 | M197: 0.10414 | N197: 0.10808 | O197: 0.11208 | P197: 0.11614 | Q197: 0.12025 | R197: 0.12441 | S197: 0.12861 | T197: 0.13285 | U197: 0.13711 | V197: 0.1414 | W197: 0.14569 | X197: 0.15 | Y197: 0.15431 | Z197: 0.1586 | AA197: 0.16289 | AB197: 0.16715 | AC197: 0.17139 | AD197: 0.17559 | AE197: 0.17975 | AF197: 0.18386 | AG197: 0.18792 | AH197: 0.19192 | AI197: 0.19586 | AJ197: 0.19973 | AK197: 0.20352 | AL197: 0.20724 | AM197: 0.21088
C198: Finland | D198: =ROUND(HistVREShare!$BF51,5) -> 0.03405 | E198: =INDEX(y_NP,MATCH(D198,y_NP,1)+(E$153-D$153)) -> 0.03545 | F198: 0.03729 | G198: 0.0392 | H198: 0.0412 | I198: 0.04329 | J198: 0.04546 | K198: 0.04772 | L198: 0.05007 | M198: 0.05251 | N198: 0.05504 | O198: 0.05767 | P198: 0.06039 | Q198: 0.06321 | R198: 0.06612 | S198: 0.06913 | T198: 0.07223 | U198: 0.07543 | V198: 0.07872 | W198: 0.0821 | X198: 0.08556 | Y198: 0.08912 | Z198: 0.09276 | AA198: 0.09648 | AB198: 0.10027 | AC198: 0.10414 | AD198: 0.10808 | AE198: 0.11208 | AF198: 0.11614 | AG198: 0.12025 | AH198: 0.12441 | AI198: 0.12861 | AJ198: 0.13285 | AK198: 0.13711 | AL198: 0.1414 | AM198: 0.14569
C199: Macedonia, FYR | D199: =ROUND(HistVREShare!$BF52,5) -> 0.0255 | E199: =INDEX(y_NP,MATCH(D199,y_NP,1)+(E$153-D$153)) -> 0.02602 | F199: 0.02741 | G199: 0.02888 | H199: 0.03041 | I199: 0.03202 | J199: 0.0337 | K199: 0.03545 | L199: 0.03729 | M199: 0.0392 | N199: 0.0412 | O199: 0.04329 | P199: 0.04546 | Q199: 0.04772 | R199: 0.05007 | S199: 0.05251 | T199: 0.05504 | U199: 0.05767 | V199: 0.06039 | W199: 0.06321 | X199: 0.06612 | Y199: 0.06913 | Z199: 0.07223 | AA199: 0.07543 | AB199: 0.07872 | AC199: 0.0821 | AD199: 0.08556 | AE199: 0.08912 | AF199: 0.09276 | AG199: 0.09648 | AH199: 0.10027 | AI199: 0.10414 | AJ199: 0.10808 | AK199: 0.11208 | AL199: 0.11614 | AM199: 0.12025
C200: France | D200: =ROUND(HistVREShare!$BF53,5) -> 0.05043 | E200: =INDEX(y_NP,MATCH(D200,y_NP,1)+(E$153-D$153)) -> 0.05251 | F200: 0.05504 | G200: 0.05767 | H200: 0.06039 | I200: 0.06321 | J200: 0.06612 | K200: 0.06913 | L200: 0.07223 | M200: 0.07543 | N200: 0.07872 | O200: 0.0821 | P200: 0.08556 | Q200: 0.08912 | R200: 0.09276 | S200: 0.09648 | T200: 0.10027 | U200: 0.10414 | V200: 0.10808 | W200: 0.11208 | X200: 0.11614 | Y200: 0.12025 | Z200: 0.12441 | AA200: 0.12861 | AB200: 0.13285 | AC200: 0.13711 | AD200: 0.1414 | AE200: 0.14569 | AF200: 0.15 | AG200: 0.15431 | AH200: 0.1586 | AI200: 0.16289 | AJ200: 0.16715 | AK200: 0.17139 | AL200: 0.17559 | AM200: 0.17975
C201: Gabon | D201: =ROUND(HistVREShare!$BF54,5) -> 0.00094 | E201: =INDEX(y_NP,MATCH(D201,y_NP,1)+(E$153-D$153)) -> 0.00096 | F201: 0.00102 | G201: 0.00108 | H201: 0.00114 | I201: 0.00121 | J201: 0.00128 | K201: 0.00135 | L201: 0.00143 | M201: 0.00152 | N201: 0.0016 | O201: 0.0017 | P201: 0.0018 | Q201: 0.0019 | R201: 0.00202 | S201: 0.00213 | T201: 0.00226 | U201: 0.00239 | V201: 0.00253 | W201: 0.00268 | X201: 0.00284 | Y201: 0.003 | Z201: 0.00318 | AA201: 0.00337 | AB201: 0.00356 | AC201: 0.00377 | AD201: 0.00399 | AE201: 0.00422 | AF201: 0.00447 | AG201: 0.00473 | AH201: 0.005 | AI201: 0.00529 | AJ201: 0.0056 | AK201: 0.00592 | AL201: 0.00627 | AM201: 0.00663
C202: Georgia | D202: =ROUND(HistVREShare!$BF55,5) -> 0 | E202: =INDEX(y_NP,MATCH(D202,y_NP,1)+(E$153-D$153)) -> 1e-05 | F202: 2e-05 | G202: 3e-05 | H202: 4e-05 | I202: 5e-05 | J202: 6e-05 | K202: 7e-05 | L202: 8e-05 | M202: 9e-05 | N202: 0.0001 | O202: 0.00011 | P202: 0.00012 | Q202: 0.00013 | R202: 0.00014 | S202: 0.00015 | T202: 0.00016 | U202: 0.00017 | V202: 0.00018 | W202: 0.00019 | X202: 0.0002 | Y202: 0.00022 | Z202: 0.00023 | AA202: 0.00024 | AB202: 0.00026 | AC202: 0.00027 | AD202: 0.00029 | AE202: 0.0003 | AF202: 0.00032 | AG202: 0.00034 | AH202: 0.00036 | AI202: 0.00038 | AJ202: 0.00041 | AK202: 0.00043 | AL202: 0.00046 | AM202: 0.00048
C203: Germany | D203: =ROUND(HistVREShare!$BF56,5) -> 0.18399 | E203: =INDEX(y_NP,MATCH(D203,y_NP,1)+(E$153-D$153)) -> 0.18792 | F203: 0.19192 | G203: 0.19586 | H203: 0.19973 | I203: 0.20352 | J203: 0.20724 | K203: 0.21088 | L203: 0.21444 | M203: 0.2179 | N203: 0.22128 | O203: 0.22457 | P203: 0.22777 | Q203: 0.23087 | R203: 0.23388 | S203: 0.23679 | T203: 0.23961 | U203: 0.24233 | V203: 0.24496 | W203: 0.24749 | X203: 0.24993 | Y203: 0.25228 | Z203: 0.25454 | AA203: 0.25671 | AB203: 0.2588 | AC203: 0.2608 | AD203: 0.26271 | AE203: 0.26455 | AF203: 0.2663 | AG203: 0.26798 | AH203: 0.26959 | AI203: 0.27112 | AJ203: 0.27259 | AK203: 0.27398 | AL203: 0.27532 | AM203: 0.27659
C204: Ghana | D204: =ROUND(HistVREShare!$BF57,5) -> 0.00026 | E204: =INDEX(y_NP,MATCH(D204,y_NP,1)+(E$153-D$153)) -> 0.00027 | F204: 0.00029 | G204: 0.0003 | H204: 0.00032 | I204: 0.00034 | J204: 0.00036 | K204: 0.00038 | L204: 0.00041 | M204: 0.00043 | N204: 0.00046 | O204: 0.00048 | P204: 0.00051 | Q204: 0.00054 | R204: 0.00057 | S204: 0.00061 | T204: 0.00064 | U204: 0.00068 | V204: 0.00072 | W204: 0.00076 | X204: 0.00081 | Y204: 0.00086 | Z204: 0.00091 | AA204: 0.00096 | AB204: 0.00102 | AC204: 0.00108 | AD204: 0.00114 | AE204: 0.00121 | AF204: 0.00128 | AG204: 0.00135 | AH204: 0.00143 | AI204: 0.00152 | AJ204: 0.0016 | AK204: 0.0017 | AL204: 0.0018 | AM204: 0.0019
... 407 more rows

Sheet Default>>

Sheet Default_InputData
E2: Default Input Data
E3: This sheet contains default input data for G20 countries (excl EU)
E5: Reference values
G6: Default_RefValues_Variable
E7: Policies affecting the ceiling of VRE share
F9: Category and indicators | H9: Scoring | J9: Reference values for: Good practice | M9: Reference values for: No policy | P9: Weight | R9: Source
F11: Long-term vision & strategic policies toward energy system transition | G11: Long-term transition plan for the electricity system | H11: [0,25,50,75,100] 100: A binding, ambitious and concrete strategy for power sector decarbonisation exists 75: A binding and ambitious long-term transition strategy exists but lacks concreteness 50: A binding strategy in place but lacks both ambition and concreteness 25: No 2050 plan but a post-2020 RE strategy exists 0: Policy cliff-edge after 2020 (RE strategy) The score is halved when there is no concrete strategy to reduce electricity demand consistent with the power sector decarbonisation “Binding”: Submitted mid-century strategies to UNFCCC complemented with national information “Ambitious”: full-decarbonisation of the power sector mentioned in the strategy “Concrete”: sector roll-out, intermediate targets etc | J11: 100 | K11: A binding, ambitious and concrete strategy for power sector decarbonisation exists | M11: 0 | N11: Policy cliff-edge after 2020 (RE strategy) | P11: 0.17 | R11: (NewClimate Institute, Germanwatch and Allianz SE, 2018) Category:1.2
G12: Long-term RE target ambition | H12: [0-100] 100: Target on trajectory towards 100% renewables in 2050 1-99: Scaled 0: Equal or lower than reference development of 1% increase per year or no target | J12: 100 | K12: Target on trajectory towards 100% renewables in 2050 | M12: 0 | N12: Equal or lower than reference development of 1% increase per year or no target | P12: 0.17 | R12: (NewClimate Institute, Germanwatch and Allianz SE, 2018) Category:1.1
F14: System integration: non-market measures | G14: VRE in grid codes | H14: [0,100] 100: Yes 0: No | J14: 100 | K14: Yes, VRE are included in existing grid codes and/ or separate grid codes for VRE exist | M14: 0 | N14: No, VRE are not included in existing grid codes and/ or separate grid codes for VRE do not exist | P14: 0.11 | R14: (NewClimate Institute, Germanwatch and Allianz SE, 2018). Category:3.2
G15: Support schemes for demand-side management (DSM) | H15: [0,50,100] 100: Both market based and regulatory DSM policies are present 50: Only market or regulatory DSM policies are present 0: No policy present | J15: 100 | K15: Both market based and regulatory DSM policies are present | M15: 0 | N15: No policy present | P15: 0.11 | R15: (NewClimate Institute, Germanwatch and Allianz SE, 2018). Category:3.3
G16: Storage promotion & flexible supply-side policies | H16: [0,100] 100: Yes 0: No | J16: 100 | K16: Yes, a national policy, roadmap, strategic plan or guidance on the promotion of energy storage exists and has been (at least partially) implemented | M16: 0 | N16: No national policy, roadmap, strategic plan or guidance on the promotion of energy storage exists nor has been implemented. | P16: 0.11 | R16: (NewClimate Institute, Germanwatch and Allianz SE, 2018). Category:3.1
F18: System integration: markets measures | G18: =F18 -> System integration: markets measures | H18: [0,50,100] 100: Flexible markets AND capacity mechanism 50: Flexible markets OR capacity mechanism 0: None | J18: 100 | K18: Flexible markets AND capacity mechanism | M18: 0 | N18: No flexible markets nor capacity mechanism | O18: RefValCeilingFactors | P18: 0.33 | R18: (Veselov et al., 2008; De Souza and Legey, 2008; Maloney, 2013; Pineau, 2013; The World Bank, 2015; Bose, Gupta and Kumar, 2015; Energienet DK, 2015; REPORT ELECTRICITY MARKET REFORM IN SOUTHERN AFRICA, 2016; Market Observatory for Energy of the European Commission, 2016; Milligan and Madan, 2016; pwc, 2016; U.S. Trade and Development Agency, 2016; Vanadzina and Gore, 2016; FUNDACION DE INVESTIGACIONES ECONOMICAS LATINOAMERICANAS, 2017; Herbert Smith Freehills, 2017; Rioux et al., 2017; Saddler, 2017; Wafa, 2017; Yu et al., 2017; Botterud, 2017; Alberta Government, 2018; export.gov, 2018; Paik, 2018; Pamuk, 2018; Australian Government Department of the Environment and Energy, 2018; Shah, 2018; AutoGrid, 2018; Climate Policy Initiative, 2018; Demirkan, Ildiri and Mercan, 2018)
E20: Policies affecting the pace of growth of VRE share
F22: Category and indicators | H22: Scoring | J22: Reference values for: Good practice | M22: Reference values for: No policy | P22: Weight | R22: Source
F24: Mid-term strategic policies toward energy system transition | G24: Mid-term RE target ambition | H24: [0-100] Normalization of mid-term RE target between good practice and no policy curves. 100: the mid-term RE target level (in terms of %-share in total generation) equals the country-specific good practice scenario curve level 0: the mid-term RE target level (in terms of %-share in total generation) equals the country-specific no-policy scenario curve level | J24: 100 | K24: 2030 target alligned 100% with good practice curve. The mid-term RE target level (in terms of %-share in total generation) equals the country-specific good practice scenario curve level. | M24: 0 | N24: 2030 target not alligned to good practice curve. The mid-term RE target level (in terms of %-share in total generation) equals the country-specific no-policy scenario curve level. | P24: 0.1
G25: Policies to level the playing field: shift away from coal/oil | H25: [0,50,100] 100: A coal and/or oil phase-out date is agreed 50: No coal and/or oil phase out plan agreed yet but country has been vocal about its commitment to phase out (e.g. in international coalitions such as powering-past coal alliance) 0: Continued emphasis on coal/oil-based generation ‘Agreed’ – announced + part of a legal process (executive order, parliament decision etc.) | J25: 100 | K25: A coal and/or oil phase-out date is agreed and fixed | M25: 0 | N25: Continued emphasis on coal/oil-based generation | P25: 0.1 | R25: (NewClimate Institute, Germanwatch and Allianz SE, 2018). Category:1.3
F27: Direct RE support policies | G27: Direct support policies (RPS and feed-in schemes, tax measures) | H27: [0,25,50,75,100] 100: Favourable support policies exist for ALL 4 major renewables (= small and large scale solar, onshore and offshore wind) and are complemented by conducive financial support policies and measures to mitigate financial risks i.e. all 5 support conditions are in place 75: Either favourable support policies exist for only 3 renewable energy technologies with complementary financial support policies Or support policies exist for all 4 renewables but without complementary financial support policies and measures to mitigate financial risks i.e. only 4 of the 5 policy support conditions are met 50: Only an initial policy support exists (i.e. support policies cover less than 3 technologies and/or policy support is technology neutral) but with complementary conducive financial support policies 25: Only an initial policy support exists (i.e. support policies cover less than 3 technologies and/or policy support is technology neutral) but without complementary conducive financial support policies 0: No support for renewables / support announced but not yet implemented / Support schemes in place do not necessarily provide sufficient incentives to level the playing field for renewables against fossil fuel-fired technologies (e.g. only tax breaks and accelerated depreciation without other policies) To check ‘favorability’, check if RPS/RPO/Auctions/FiTs/FIPs are present for the following technologies: large and small PV and on-and off-shore wind (exception: include technologies that are critical in specific country contexts e.g. geothermal in Indonesia). For conducive finance policies, look for examples of priority sector lending, differentiated interest rates, dedicated funding mechanisms and/or green bonds issuance guidelines in the country. Other measures to mitigate financial risks in a developer’s remuneration profile, look for presence of additional guarantees etc. are also considered on case to case basis. | J27: 100 | K27: Favourable support policies exist for ALL 4 major renewables (= small and large scale solar, onshore and offshore wind) and are complemented by conducive financial support policies and measures to mitigate financial risks i.e. all 5 support conditions are in place | M27: 0 | N27: No support for renewables / support announced but not yet implemented / Support schemes in place do not necessarily provide sufficient incentives to level the playing field for renewables against fossil fuel-fired technologies (e.g. only tax breaks and accelerated depreciation without other policies) | P27: 0.2 | R27: (NewClimate Institute, Germanwatch and Allianz SE, 2018). Category:2.1
G28: Reliability of RE policies | H28: [0-100] Fluctuation of support measured by standard deviation of CCPI Energy Scores 2012-2018 on a 0 – 100 scale multiplied with CCPI Energy Scores 2012-2018 Expert judgment on party consensus regarding ambitious renewable energy policies (also on a 0 - 100 scale | J28: 100 | K28: Favourable support for RE policies | M28: 0 | N28: No support for RE policies | P28: 0.2 | R28: (NewClimate Institute, Germanwatch and Allianz SE, 2018). Category:1.4
G29: Ensuring realization | H29: [0,50,75,100] 100: Ensuring the projects are really implemented E.g. for auctions: (1) Pre-defined realisation periods in policy schedules exist, (2) pre-qualification requirements can help identify “serious” bids and eliminate projects with low realisation probability (3) effective penalties for non-realisation. For FITs always given (generally do not have a similar need) 75: For auctions: two of the three above 50: For auctions: one of the three above 0: None of the above | J29: 100 | K29: Ensuring the projects are really implemented E.g. for auctions: (1) Pre-defined realisation periods in policy schedules exist, (2) pre-qualification requirements can help identify “serious” bids and eliminate projects with low realisation probability (3) effective penalties for non-realisation. For FITs always given (generally do not have a similar need) | M29: 0 | N29: Projects are not implemented | O29: RefValGrowthFactors | P29: 0.2 | R29: (NewClimate Institute, Germanwatch and Allianz SE, 2018). Category:2.2
F31: Energy Efficiency | G31: Energy efficiency policy | H31: [Absolute scoring 0 to 100] | J31: 100 | K31: No national efforts on energy efficiency or energy efficiency policies in the buildings, industry and transport sectors exist. National efforts consider the following policies (and metrics): energy productivity, change in energy intensity, efficiency in thermal power plants, mandatory saving goas, tax credits and loan programmes, energy efficiency spending, and energy efficiency research and development spending. | M31: 0 | N31: Maximum number of energy efficiency policies in the buildings, industry, and transport sectors are present in a country. Additionally, national efforts on energy efficiency exist. National efforts consider the following policies (and metrics): energy productivity, change in energy intensity, efficiency in thermal power plants, mandatory saving goas, tax credits and loan programmes, energy efficiency spending, and energy efficiency research and development spending. | P31: 0.2 | R31: 2018 International energy efficiency scorecard ACEEE (total score) (Castro-Alvarez et al., 2018)
E35: Barriers to the pace of growth
F37: Category and indicators | H37: Scoring | J37: Reference values for: Good practice | M37: Reference values for: No policy | P37: Weight | R37: Source
F39: Mid-term strategic policies toward energy system transition | G39: Fossil fuel production | H39: [0-100] Indexed. Self sufficiency: in coal & gas production / coal & gas consumption 100: The country produced 100% or more of coal and gas consumed domestically in 2016. 0: The country produced no coal or gas domestically in 2016. | J39: 100 | K39: High self suffiency The country produced more coal and gas than it consumed domestically in 2016. | M39: 0 | N39: No self sufficiency The country produced no coal or gas domestically in 2016. | P39: 0.05
F41: Direct RE support policies | G41: Administrative procedures - Permit granting procedures | H41: [0,50,100] 100: Streamlined procedures for permitting renewable energy projects speed up uptake 50: Standard administrative procedures or no information 0: Bureaucratic and in transparent procedures are inhibitory. | J41: 100 | K41: Bureaucratic and in transparent procedures are inhibitory | M41: 0 | N41: Streamlined procedures for permitting renewable energy projects speed up uptake | P41: 0.05 | R41: (NewClimate Institute, Germanwatch and Allianz SE, 2018)
G42: Administrative procedures - Siting / zoning | H42: [0,50,100] 100: The country has carried out strategic planning or produced zoning guidance to inform the commercial development of both solar AND wind resources. 50: The country has carried out strategic planning or produced zoning guidance to inform the commercial development of both solar OR wind resources. 0: The country has carried out NO strategic planning or produced zoning guidance to inform the commercial development of solar and wind resources. | J42: 100 | K42: The country has carried out NO strategic planning or produced zoning guidance to inform the commercial development of solar and wind resources. | M42: 0 | N42: The country has carried out strategic planning or produced zoning guidance to inform the commercial development of both solar AND wind resources. | O42: RefValsGrowthBarriers | P42: 0.05 | R42: (Worldbank, 2017)
E45: Optional barriers
F47: General investing conditions | G47: Financial & non-financial determinants and macroeconomic fundamentals | H47: [0-100] 0: Optimal general investment conditions based on macro economic and governance indicators. 100: Bad general investment conditions based on macro economic and governance indicators. Based on category 5 of the Allianz Energy and Climate Monitor 2018 | J47: 100 | K47: Bad general investment conditions based on macro economic and governance indicators | M47: 0 | N47: Optimal general investment conditions based on macro economic and governance indicators | O47: RefValsOptionalBarriers | P47: 0.05 | R47: (NewClimate Institute, Germanwatch and Allianz SE, 2018). Category:5
E49: Country Data
B52: CountryGroup | C52: Country + Scenario | D52: Scenario | E52: Country | F52: =G11 -> Long-term transition plan for the electricity system | G52: =G12 -> Long-term RE target ambition | H52: =G14 -> VRE in grid codes | I52: =G15 -> Support schemes for demand-side management (DSM) | J52: =G16 -> Storage promotion & flexible supply-side policies | K52: =G18 -> System integration: markets measures | L52: =G24 -> Mid-term RE target ambition | M52: =G25 -> Policies to level the playing field: shift away from coal/oil | N52: =G27 -> Direct support policies (RPS and feed-in schemes, tax measures) | O52: =+G28 -> Reliability of RE policies | P52: =G29 -> Ensuring realization | Q52: =G31 -> Energy efficiency policy | R52: =G39 -> Fossil fuel production | S52: =G41 -> Administrative procedures - Permit granting procedures | T52: =G42 -> Administrative procedures - Siting / zoning | U52: =G47 -> Financial & non-financial determinants and macroeconomic fundamentals | W52: Notes
A53: Default_CountryScenario | C53: mapped | F53: [0,25,50,75,100] | G53: [0-100] | H53: [0,100] | I53: [0,50,100] | J53: [0,100] | K53: [0,50,100] | L53: [0-100] | M53: [0,50,100] | N53: [0,25,50,75,100] | O53: [0-100] | P53: [0,50,75,100] | Q53: [0-100] | R53: [0-100] | S53: [0,50,100] | T53: [0,50,100] | U53: [0-100] | X53: Default__InputData_Head
B54: G20 | C54: =IF(LEN(D54)>0,E54&"_"&D54,E54) -> Argentina_Default | D54: Default | E54: =CountriesDefault -> Argentina | F54: 25 | G54: 99 | H54: 0 | I54: 0 | J54: 100 | K54: =INDEX('Default_RawData&Calc'!$J$8:$J$26,MATCH(E54,'Default_RawData&Calc'!$C$8:$C$26,0)) -> 0 | L54: =INDEX('Default_RawData&Calc'!$N$31:$N$49,MATCH(Default_InputData!E54,'Default_RawData&Calc'!$D$31:$D$49,0)) -> 100 | M54: 0 | N54: 50 | O54: 58 | P54: 25 | Q54: 0 | R54: =INDEX(CoalGas_SelfSufficiency_data,MATCH(E54,CoalGas_SelfSufficiency_countries,0)) -> 100 | S54: =INDEX('Default_RawData&Calc'!$F$56:$F$75,MATCH(E54,'Default_RawData&Calc'!$C$56:$C$75,0)) -> 50 | T54: =INDEX(SitingZoning_data,MATCH(E54,SitingZoning_country,0)) -> 100 | U54: 87 | X54: Default_InputData
B55: G20 | C55: Australia_Default | D55: Default | E55: Australia | F55: 0 | G55: 0 | H55: 100 | I55: 100 | J55: 0 | K55: =INDEX('Default_RawData&Calc'!$J$8:$J$26,MATCH(E55,'Default_RawData&Calc'!$C$8:$C$26,0)) -> 50 | L55: =INDEX('Default_RawData&Calc'!$N$31:$N$49,MATCH(Default_InputData!E55,'Default_RawData&Calc'!$D$31:$D$49,0)) -> 100 | M55: 0 | N55: 50 | O55: 0 | P55: 75 | Q55: =ROUND(INDEX('Default_RawData&Calc'!$D$84:$D$108,MATCH(E55,'Default_RawData&Calc'!$C$84:$C$108,0)),0) -> 41 | R55: 100 | S55: =INDEX('Default_RawData&Calc'!$F$56:$F$75,MATCH(E55,'Default_RawData&Calc'!$C$56:$C$75,0)) -> 50 | T55: 100 | U55: 11
B56: G20 | C56: Brazil_Default | D56: Default | E56: Brazil | F56: 25 | G56: 100 | H56: 100 | I56: 100 | J56: 0 | K56: =INDEX('Default_RawData&Calc'!$J$8:$J$26,MATCH(E56,'Default_RawData&Calc'!$C$8:$C$26,0)) -> 50 | L56: =INDEX('Default_RawData&Calc'!$N$31:$N$49,MATCH(Default_InputData!E56,'Default_RawData&Calc'!$D$31:$D$49,0)) -> 87 | M56: 0 | N56: 100 | O56: 72 | P56: 50 | Q56: =ROUND(INDEX('Default_RawData&Calc'!$D$84:$D$108,MATCH(E56,'Default_RawData&Calc'!$C$84:$C$108,0)),0) -> 37 | R56: 100 | S56: =INDEX('Default_RawData&Calc'!$F$56:$F$75,MATCH(E56,'Default_RawData&Calc'!$C$56:$C$75,0)) -> 100 | T56: 0 | U56: 63
B57: G20 | C57: Canada_Default | D57: Default | E57: Canada | F57: 50 | G57: 0 | H57: 100 | I57: 100 | J57: 100 | K57: =INDEX('Default_RawData&Calc'!$J$8:$J$26,MATCH(E57,'Default_RawData&Calc'!$C$8:$C$26,0)) -> 50 | L57: 0 | M57: 50 | N57: 25 | O57: 13 | P57: 100 | Q57: =ROUND(INDEX('Default_RawData&Calc'!$D$84:$D$108,MATCH(E57,'Default_RawData&Calc'!$C$84:$C$108,0)),0) -> 56 | R57: 100 | S57: =INDEX('Default_RawData&Calc'!$F$56:$F$75,MATCH(E57,'Default_RawData&Calc'!$C$56:$C$75,0)) -> 50 | T57: 100 | U57: 8
